Workbook

Sheet Title page
A3: Anatomical constraints to C4 evolution: light harvesting capacity in the bundle sheath
A4: Chandra Bellasio and Marjorie R. Lundgren
A5: Table S1: Excel workbook coding the anatomical model and results obtained with 9 study accessions

Sheet (rice)
K2: Quantities to be Fitted
B3: Input | K3: S | M3: 0.0003055347852 | P3: Quantities for integration
B4: Layers MAD | C4: 179 | K4: KMI | M4: 0.002268304197 | P4: MI | R4: MA | T4: VB | W4: Additional quantities | AD4: Integration for profile P1 | AO4: Integration for profile P2
B5: Layers Vein | C5: 727 | P5: KMI | Q5: =kappaM -> 0.002268304197 | R5: KMA | S5: =C13*kappaM -> 0.0006623448254 | T5: KVB | U5: =C14*kappaM -> 7.485403849e-06 | W5: N | X5: 1000 | AD5: n | AE5: N-n | AF5: num J | AG5: denom | AH5: num I | AI5: I P1 | AJ5: J | AK5: J/I % | AL5: A | AM5: I+J | AO5: Layer | AQ5: n | AR5: N-n | AS5: k | AT5: s | AU5: I P2 | AV5: J P2(1) | AW5: J P2(1) | AX5: J/I % | AY5: A | AZ5: I+J
B6: Layers MAB | C6: 94 | K6: Sq.Differences for curve fitting | P6: α2 | Q6: =kappaM*(kappaM+2*esse) -> 6.531295599e-06 | W6: M | X6: =1-C7 -> 0.866 | Y6: Width factor | Z6: =C7/X6 -> 0.1547344111 | AD6: 0 | AE6: =ENNE-AD6 -> 1000 | AF6: =(1-betasquare)*((EXP(alpha*AE6))-(EXP(-alpha*AE6)))-Rg*(((POWER((1-beta),2)*(EXP(alpha*AE6)))-POWER((1+beta),2))*(EXP(-alpha*AE6))) -> 2.732697544 | AG6: =(POWER((1+beta),2)*EXP(alpha*ENNE))-(POWER((1-beta),2)*EXP(-(alpha*ENNE)))-(Rg*(1-betasquare)*(EXP(alpha*ENNE)-EXP(-(alpha*ENNE)))) -> 45.72468385 | AH6: =POWER((1+beta),2)*EXP(alpha*AE6)-POWER((1-beta),2)*EXP(-alpha*AE6)-Rg*(1-betasquare)*(EXP(alpha*AE6)-EXP(-alpha*AE6)) -> 45.72468385 | AI6: =AH6/AG6 -> 1 | AJ6: =AF6/AG6 -> 0.05976416487 | AK6: =AJ6/AI6*100 -> 5.976416487 | AM6: =AI6+AJ6 -> 1.059764165 | AO6: 0 | AQ6: 0 | AR6: =ENNE-AQ6 -> 1000 | AS6: =IF(AO6<=$C$4,$S$5,(IF(AO6<=($C$5+$C$4),kappaBS,$S$5))) -> 0.0006623448254 | AT6: =esse -> 0.0003055347852 | AU6: 1 | AV6: =AW6 -> 0.2125172125 | AW6: =AW7-(AS6+AT6)*AW7+AT6*AU6 -> 0.21251726 | AX6: =AW6/AU6*100 -> 21.251726 | AZ6: =AU6+AW6 -> 1.21251726
B7: VEW/IVD | C7: 0.134 | K7: Sqdiff leaf level transmittance | M7: =POWER((C28-trasmittance),2) -> 0.0007602908475 | P7: α | Q7: =SQRT(alphasquare) -> 0.002555639959 | AD7: 1 | AE7: 999 | AF7: 2.725721349 | AG7: 45.72468385 | AH7: 45.60797725 | AI7: 0.9974476237 | AJ7: 0.05961159531 | AK7: =AJ7/AI7*100 -> 5.976413587 | AL7: =kappaM*(AI7)+kappaM*AJ7 -> 0.002397731863 | AM7: =AI7+AJ7 -> 1.057059219 | AO7: 1 | AQ7: 1 | AR7: 999 | AS7: 0.0006623448254 | AT7: 0.0003055347852 | AU7: =AU6-(AS7+AT7)*AU6+AT7*AV7 -> 0.9990970213 | AV7: =AW7 -> 0.2124173196 | AW7: 0.2124173675 | AX7: 21.26093493 | AY7: =IF(AO7<=$C$4,AZ7*$S$5,IF(AO7<=($C$4+$C$5),AZ7*kappaBS,AZ7*$S$5)) -> 0.0008024402546 | AZ7: 1.211514389
K8: Sqdiff absorptance | M8: =POWER((1-reflectance-trasmittance)-C27,2) -> 0.00062863467 | P8: β2 | Q8: =kappaM/(kappaM+2*esse) -> 0.7877769196 | W8: J(N)=RgI(N) | Y8: 0.06 | AD8: 2 | AE8: 998 | AF8: 2.718762962 | AG8: 45.72468385 | AH8: 45.49156853 | AI8: 0.9949017621 | AJ8: 0.0594594152 | AK8: 5.976410684 | AL8: 0.002391611883 | AM8: 1.054361177 | AO8: 2 | AQ8: 2 | AR8: 998 | AS8: 0.0006623448254 | AT8: 0.0003055347852 | AU8: =AU7-(AS8+AT8)*AU7+AT8*AV8 -> 0.998194886 | AV8: 0.2123176065 | AW8: 0.2123176549 | AX8: 21.27016055 | AY8: 0.0008017766855 | AZ8: 1.210512541
K9: Sqdiff Reflectance | M9: =POWER(reflectance-C26,2) -> 0.0003907313932 | P9: β | Q9: =SQRT(betasquare) -> 0.8875679803 | AD9: 3 | AE9: 997 | AF9: 2.711822337 | AG9: 45.72468385 | AH9: 45.37545693 | AI9: 0.9923623984 | AJ9: 0.05930762355 | AK9: 5.976407777 | AL9: 0.002385507524 | AM9: 1.051670022 | AO9: 3 | AQ9: 3 | AR9: 997 | AS9: 0.0006623448254 | AT9: 0.0003055347852 | AU9: 0.9972935935 | AV9: 0.2122180731 | AW9: 0.2122181219 | AX9: 21.2794029 | AY9: 0.0008011137937 | AZ9: 1.209511715
B10: Leaf level reflectance R | C10: 0.1 | K10: sqdiff optic | M10: =M7+M8+M9 -> 0.001779656911 | W10: Sqdiff I | Y10: =POWER((AM1007-trasmittance),2) -> 0.0007297634857 | AD10: 4 | AE10: 996 | AF10: 2.704899428 | AG10: 45.72468385 | AH10: 45.25964169 | AI10: 0.9898295161 | AJ10: 0.05915621937 | AK10: 5.976404866 | AL10: 0.002379418746 | AM10: 1.048985736 | AO10: 4 | AQ10: 4 | AR10: 996 | AS10: 0.0006623448254 | AT10: 0.0003055347852 | AU10: 0.996393143 | AV10: 0.2121187194 | AW10: 0.2121187685 | AX10: 21.28866201 | AY10: 0.0008004515785 | AZ10: 1.208511912
B11: Leaf level Transmittance T | C11: 0.1 | W11: Sqdiff J | Y11: =POWER((AJ6-reflectance),2) -> 0.001618922429 | AD11: 5 | AE11: 995 | AF11: 2.697994191 | AG11: 45.72468385 | AH11: 45.14412205 | AI11: 0.9873030988 | AJ11: 0.05900520166 | AK11: 5.976401951 | AL11: 0.002373345509 | AM11: 1.0463083 | AO11: 5 | AQ11: 5 | AR11: 995 | AS11: 0.0006623448254 | AT11: 0.0003055347852 | AU11: 0.9954935338 | AV11: 0.2120195451 | AW11: 0.2120195947 | AX11: 21.29793791 | AY11: 0.0007997900394 | AZ11: 1.207513128
AD12: 6 | AE12: 994 | AF12: 2.69110658 | AG12: 45.72468385 | AH12: 45.02889727 | AI12: 0.9847831298 | AJ12: 0.05885456944 | AK12: 5.976399032 | AL12: 0.002367287773 | AM12: 1.043637699 | AO12: 6 | AQ12: 6 | AR12: 994 | AS12: 0.0006623448254 | AT12: 0.0003055347852 | AU12: 0.9945947649 | AV12: 0.2119205504 | AW12: 0.2119206003 | AX12: 21.30723062 | AY12: 0.0007991291758 | AZ12: 1.206515365
B13: kMA/kMI | C13: 0.292 | P13: Profile level output | AD13: 7 | AE13: 993 | AF13: 2.684236551 | AG13: 45.72468385 | AH13: 44.91396658 | AI13: 0.9822695927 | AJ13: 0.05870432172 | AK13: 5.976396109 | AL13: 0.002361245499 | AM13: 1.040973914 | AO13: 7 | AQ13: 7 | AR13: 993 | AS13: 0.0006623448254 | AT13: 0.0003055347852 | AU13: 0.9936968358 | AV13: 0.211821735 | AW13: 0.2118217853 | AX13: 21.31654018 | AY13: 0.0007984689872 | AZ13: 1.205518621
B14: kVB/KMI | C14: 0.0033 | Q14: P1 | S14: P2 | AD14: 8 | AE14: 992 | AF14: 2.677384058 | AG14: 45.72468385 | AH14: 44.79932924 | AI14: 0.9797624711 | AJ14: 0.05855445753 | AK14: 5.976393182 | AL14: 0.002355218647 | AM14: 1.038316929 | AO14: 8 | AQ14: 8 | AR14: 992 | AS14: 0.0006623448254 | AT14: 0.0003055347852 | AU14: 0.9927997457 | AV14: 0.2117230988 | AW14: 0.2117231496 | AX14: 21.32586662 | AY14: 0.0007978094731 | AZ14: 1.204522895
P15: Atot P1 | Q15: =SUM(AL7:AL1006) -> 0.8664761759 | R15: A tot MAD | S15: =SUM(OFFSET(AY7,0,0,$C$4,1)) -> 0.1336797058 | W15: =MIN($M$10) -> 0.001779656911 | AD15: 9 | AE15: 991 | AF15: 2.670549057 | AG15: 45.72468385 | AH15: 44.68498449 | AI15: 0.9772617486 | AJ15: 0.05840497588 | AK15: 5.976390252 | AL15: 0.002349207177 | AM15: 1.035666725 | AO15: 9 | AQ15: 9 | AR15: 991 | AS15: 0.0006623448254 | AT15: 0.0003055347852 | AU15: 0.9919034937 | AV15: 0.2116246419 | AW15: 0.2116246931 | AX15: 21.33520997 | AY15: 0.0007971506328 | AZ15: 1.203528187
P16: 1-R-T | Q16: =1-AJ6-AI1006 -> 0.8625912978 | R16: A tot VB | S16: =SUM(OFFSET(AY7,$C$4,0,$C$5,1)) -> 0.004908439018 | W16: =COUNT($M$3,$M$4) -> 2 | AD16: 10 | AE16: 990 | AF16: 2.663731503 | AG16: 45.72468385 | AH16: 44.5709316 | AI16: 0.974767409 | AJ16: 0.0582558758 | AK16: 5.976387317 | AL16: 0.002343211052 | AM16: 1.033023285 | AO16: 10 | AQ16: 10 | AR16: 990 | AS16: 0.0006623448254 | AT16: 0.0003055347852 | AU16: 0.9910080792 | AV16: 0.2115263641 | AW16: 0.2115264157 | AX16: 21.34457025 | AY16: 0.0007964924658 | AZ16: 1.202534495
P17: R=J(0) | Q17: =AJ6 -> 0.05976416487 | R17: A tot MAB | S17: =SUM(OFFSET(AY7,($C$4+$C$5),0,$C$6,1)) -> 0.04468831723 | W17: =esse<=0.01 -> TRUE | AD17: 11 | AE17: 989 | AF17: 2.656931352 | AG17: 45.72468385 | AH17: 44.45716981 | AI17: 0.9722794358 | AJ17: 0.05810715631 | AK17: 5.976384378 | AL17: 0.002337230231 | AM17: 1.030386592 | AO17: 11 | AQ17: 11 | AR17: 989 | AS17: 0.0006623448254 | AT17: 0.0003055347852 | AU17: 0.9901135014 | AV17: 0.2114282653 | AW17: 0.2114283173 | AX17: 21.3539475 | AY17: 0.0007958349716 | AZ17: 1.201541819
P18: T | Q18: =AI1006 -> 0.07764453731 | R18: A Total P2 | S18: =SUM(S15:S17) -> 0.1832764621 | W18: =esse>=0 -> TRUE | AD18: 12 | AE18: 988 | AF18: 2.650148558 | AG18: 45.72468385 | AH18: 44.34369839 | AI18: 0.9697978128 | AJ18: 0.05795881645 | AK18: 5.976381436 | AL18: 0.002331264675 | AM18: 1.027756629 | AO18: 12 | AQ18: 12 | AR18: 988 | AS18: 0.0006623448254 | AT18: 0.0003055347852 | AU18: 0.9892197595 | AV18: 0.2113303455 | AW18: 0.2113303979 | AX18: 21.36334175 | AY18: 0.0007951781496 | AZ18: 1.200550157
B19: Output Leaf level Absorbed light | R19: J(0) | S19: =AW6 -> 0.21251726 | W19: =kappaM<=0.01 -> TRUE | AD19: 13 | AE19: 987 | AF19: 2.643383079 | AG19: 45.72468385 | AH19: 44.23051659 | AI19: 0.967322524 | AJ19: 0.05781085525 | AK19: 5.97637849 | AL19: 0.002325314346 | AM19: 1.025133379 | AO19: 13 | AQ19: 13 | AR19: 987 | AS19: 0.0006623448254 | AT19: 0.0003055347852 | AU19: 0.9883268527 | AV19: 0.2112326046 | AW19: 0.2112326574 | AX19: 21.37275303 | AY19: 0.0007945219992 | AZ19: 1.19955951
B20: A MI | C20: =Q15*X6 -> 0.7503683683 | R20: T | S20: =AU1006 -> 0.6424324149 | W20: =kappaM>=0 -> TRUE | AD20: 14 | AE20: 986 | AF20: 2.636634869 | AG20: 45.72468385 | AH20: 44.11762367 | AI20: 0.9648535529 | AJ20: 0.05766327173 | AK20: 5.97637554 | AL20: 0.002319379204 | AM20: 1.022516825 | AO20: 14 | AQ20: 14 | AR20: 986 | AS20: 0.0006623448254 | AT20: 0.0003055347852 | AU20: 0.9874347804 | AV20: 0.2111350425 | AW20: 0.2111350956 | AX20: 21.38218137 | AY20: 0.0007938665199 | AZ20: 1.198569876
B21: A MAD | C21: =S15*C7 -> 0.01791308058 | R21: 1-R-t | S21: =1-S19-S20 -> 0.1450503251 | W21: ={32767,32767,0.000001,0.01,FALSE,FALSE,TRUE,1,1,1,0.0001,TRUE} -> 32767 | AD21: 15 | AE21: 985 | AF21: 2.629903885 | AG21: 45.72468385 | AH21: 44.00501889 | AI21: 0.9623908837 | AJ21: 0.05751606494 | AK21: 5.976372586 | AL21: 0.002313459212 | AM21: 1.019906949 | AO21: 15 | AQ21: 15 | AR21: 985 | AS21: 0.0006623448254 | AT21: 0.0003055347852 | AU21: 0.9865435417 | AV21: 0.211037659 | AW21: 0.2110377126 | AX21: 21.39162679 | AY21: 0.0007932117112 | AZ21: 1.197581254
B22: A MAB | C22: =S17*C7 -> 0.005988234508 | W22: ={0,0,1,100,0,FALSE,TRUE,0.075,0,0,FALSE,30} -> 0 | AD22: 16 | AE22: 984 | AF22: 2.623190083 | AG22: 45.72468385 | AH22: 43.89270153 | AI22: 0.9599345 | AJ22: 0.05736923391 | AK22: 5.976369628 | AL22: 0.002307554329 | AM22: 1.017303734 | AO22: 16 | AQ22: 16 | AR22: 984 | AS22: 0.0006623448254 | AT22: 0.0003055347852 | AU22: 0.985653136 | AV22: 0.2109404542 | AW22: 0.2109405082 | AX22: 21.40108934 | AY22: 0.0007925575724 | AZ22: 1.196593644
B23: Amesophyll | C23: =SUM(C20:C21,C22) -> 0.7742696834 | AD23: 17 | AE23: 983 | AF23: 2.616493418 | AG23: 45.72468385 | AH23: 43.78067084 | AI23: 0.9574843861 | AJ23: 0.05722277768 | AK23: 5.976366666 | AL23: 0.002301664518 | AM23: 1.014707164 | AO23: 17 | AQ23: 17 | AR23: 983 | AS23: 0.0006623448254 | AT23: 0.0003055347852 | AU23: 0.9847635624 | AV23: 0.2108434279 | AW23: 0.2108434823 | AX23: 21.41056903 | AY23: 0.0007919041031 | AZ23: 1.195607045
B24: A VB | C24: =S16*C7 -> 0.0006577308284 | AD24: 18 | AE24: 982 | AF24: 2.609813848 | AG24: 45.72468385 | AH24: 43.6689261 | AI24: 0.9550405257 | AJ24: 0.0570766953 | AK24: 5.9763637 | AL24: 0.00229578974 | AM24: 1.012117221 | AO24: 18 | AQ24: 18 | AR24: 982 | AS24: 0.0006623448254 | AT24: 0.0003055347852 | AU24: 0.9838748202 | AV24: 0.2107465801 | AW24: 0.2107466349 | AX24: 21.42006591 | AY24: 0.0007912513027 | AZ24: 1.194621455
B25: AB BS / M | C25: =C24/C23 -> 0.0008494854474 | AD25: 19 | AE25: 981 | AF25: 2.603151328 | AG25: 45.72468385 | AH25: 43.55746657 | AI25: 0.952602903 | AJ25: 0.05693098582 | AK25: 5.976360731 | AL25: 0.002289929957 | AM25: 1.009533889 | AO25: 19 | AQ25: 19 | AR25: 981 | AS25: 0.0006623448254 | AT25: 0.0003055347852 | AU25: 0.9829869087 | AV25: 0.2106499107 | AW25: 0.2106499659 | AX25: 21.42957999 | AY25: 0.0007905991706 | AZ25: 1.193636875
B26: Leaf level Reflectance | C26: =C7*AW6+X6*AJ6 -> 0.08023307961 | AD26: 20 | AE26: 980 | AF26: 2.596505814 | AG26: 45.72468385 | AH26: 43.44629153 | AI26: 0.950171502 | AJ26: 0.05678564827 | AK26: 5.976357758 | AL26: 0.00228408513 | AM26: 1.00695715 | AO26: 20 | AQ26: 20 | AR26: 980 | AS26: 0.0006623448254 | AT26: 0.0003055347852 | AU26: 0.9820998271 | AV26: 0.2105534196 | AW26: 0.2105534752 | AX26: 21.43911132 | AY26: 0.0007899477062 | AZ26: 1.192653302
B27: Leaf level Absorptance | C27: =SUM(C23,C24) -> 0.7749274142 | AD27: 21 | AE27: 979 | AF27: 2.589877265 | AG27: 45.72468385 | AH27: 43.33540025 | AI27: 0.9477463068 | AJ27: 0.05664068172 | AK27: 5.976354781 | AL27: 0.002278255221 | AM27: 1.004386989 | AO27: 21 | AQ27: 21 | AR27: 979 | AS27: 0.0006623448254 | AT27: 0.0003055347852 | AU27: 0.9812135746 | AV27: 0.2104571067 | AW27: 0.2104571627 | AX27: 21.44865992 | AY27: 0.0007892969091 | AZ27: 1.191670737
B28: Leaf level trasmittance | C28: =C7*AW1006+X6*AI1006 -> 0.07242662843 | AD28: 22 | AE28: 978 | AF28: 2.583265635 | AG28: 45.72468385 | AH28: 43.224792 | AI28: 0.9453273017 | AJ28: 0.05649608521 | AK28: 5.9763518 | AL28: 0.002272440193 | AM28: 1.001823387 | AO28: 22 | AQ28: 22 | AR28: 978 | AS28: 0.0006623448254 | AT28: 0.0003055347852 | AU28: 0.9803281506 | AV28: 0.2103609719 | AW28: 0.2103610284 | AX28: 21.45822582 | AY28: 0.0007886467787 | AZ28: 1.190689179
AD29: 23 | AE29: 977 | AF29: 2.576670883 | AG29: 45.72468385 | AH29: 43.11446607 | AI29: 0.9429144708 | AJ29: 0.05635185781 | AK29: 5.976348815 | AL29: 0.002266640007 | AM29: 0.9992663286 | AO29: 23 | AQ29: 23 | AR29: 977 | AS29: 0.0006623448254 | AT29: 0.0003055347852 | AU29: 0.9794435542 | AV29: 0.2102650152 | AW29: 0.2102650721 | AX29: 21.46780906 | AY29: 0.0007879973145 | AZ29: 1.189708626
AD30: 24 | AE30: 976 | AF30: 2.570092964 | AG30: 45.72468385 | AH30: 43.00442174 | AI30: 0.9405077984 | AJ30: 0.05620799856 | AK30: 5.976345827 | AL30: 0.002260854625 | AM30: 0.996715797 | AO30: 24 | AQ30: 24 | AR30: 976 | AS30: 0.0006623448254 | AT30: 0.0003055347852 | AU30: 0.9785597848 | AV30: 0.2101692365 | AW30: 0.2101692937 | AX30: 21.47740966 | AY30: 0.0007873485158 | AZ30: 1.188729079
AD31: 25 | AE31: 975 | AF31: 2.563531836 | AG31: 45.72468385 | AH31: 42.89465828 | AI31: 0.9381072687 | AJ31: 0.05606450654 | AK31: 5.976342835 | AL31: 0.00225508401 | AM31: 0.9941717752 | AO31: 25 | AQ31: 25 | AR31: 975 | AS31: 0.0006623448254 | AT31: 0.0003055347852 | AU31: 0.9776768415 | AV31: 0.2100736357 | AW31: 0.2100736933 | AX31: 21.48702765 | AY31: 0.0007867003822 | AZ31: 1.187750535
AD32: 26 | AE32: 974 | AF32: 2.556987457 | AG32: 45.72468385 | AH32: 42.78517497 | AI32: 0.935712866 | AJ32: 0.05592138079 | AK32: 5.976339839 | AL32: 0.002249328124 | AM32: 0.9916342468 | AO32: 26 | AQ32: 26 | AR32: 974 | AS32: 0.0006623448254 | AT32: 0.0003055347852 | AU32: 0.9767947237 | AV32: 0.2099782126 | AW32: 0.2099782707 | AX32: 21.49666308 | AY32: 0.000786052913 | AZ32: 1.186772994
AD33: 27 | AE33: 973 | AF33: 2.550459783 | AG33: 45.72468385 | AH33: 42.67597111 | AI33: 0.9333245748 | AJ33: 0.0557786204 | AK33: 5.97633684 | AL33: 0.002243586929 | AM33: 0.9891031952 | AO33: 27 | AQ33: 27 | AR33: 973 | AS33: 0.0006623448254 | AT33: 0.0003055347852 | AU33: 0.9759134305 | AV33: 0.2098829674 | AW33: 0.2098830258 | AX33: 21.50631595 | AY33: 0.0007854061078 | AZ33: 1.185796456
AD34: 28 | AE34: 972 | AF34: 2.543948772 | AG34: 45.72468385 | AH34: 42.56704598 | AI34: 0.9309423794 | AJ34: 0.05563622442 | AK34: 5.976333836 | AL34: 0.002237860387 | AM34: 0.9865786038 | AO34: 28 | AQ34: 28 | AR34: 972 | AS34: 0.0006623448254 | AT34: 0.0003055347852 | AU34: 0.9750329613 | AV34: 0.2097878997 | AW34: 0.2097879586 | AX34: 21.51598632 | AY34: 0.000784759966 | AZ34: 1.18482092
AD35: 29 | AE35: 971 | AF35: 2.537454381 | AG35: 45.72468385 | AH35: 42.45839886 | AI35: 0.9285662643 | AJ35: 0.05549419192 | AK35: 5.976330829 | AL35: 0.002232148462 | AM35: 0.9840604562 | AO35: 29 | AQ35: 29 | AR35: 971 | AS35: 0.0006623448254 | AT35: 0.0003055347852 | AU35: 0.9741533152 | AV35: 0.2096930097 | AW35: 0.2096930689 | AX35: 21.52567421 | AY35: 0.0007841144871 | AZ35: 1.183846384
AD36: 30 | AE36: 970 | AF36: 2.530976568 | AG36: 45.72468385 | AH36: 42.35002906 | AI36: 0.9261962139 | AJ36: 0.05535252198 | AK36: 5.976327818 | AL36: 0.002226451117 | AM36: 0.9815487359 | AO36: 30 | AQ36: 30 | AR36: 970 | AS36: 0.0006623448254 | AT36: 0.0003055347852 | AU36: 0.9732744916 | AV36: 0.2095982971 | AW36: 0.2095983568 | AX36: 21.53537965 | AY36: 0.0007834696704 | AZ36: 1.182872848
AD37: 31 | AE37: 969 | AF37: 2.52451529 | AG37: 45.72468385 | AH37: 42.24193586 | AI37: 0.9238322127 | AJ37: 0.05521121368 | AK37: 5.976324804 | AL37: 0.002220768313 | AM37: 0.9790434264 | AO37: 31 | AQ37: 31 | AR37: 969 | AS37: 0.0006623448254 | AT37: 0.0003055347852 | AU37: 0.9723964898 | AV37: 0.209503762 | AW37: 0.209503822 | AX37: 21.54510266 | AY37: 0.0007828255156 | AZ37: 1.181900312
AD38: 32 | AE38: 968 | AF38: 2.518070506 | AG38: 45.72468385 | AH38: 42.13411855 | AI38: 0.9214742454 | AJ38: 0.05507026608 | AK38: 5.976321786 | AL38: 0.002215100014 | AM38: 0.9765445115 | AO38: 32 | AQ38: 32 | AR38: 968 | AS38: 0.0006623448254 | AT38: 0.0003055347852 | AU38: 0.9715193089 | AV38: 0.2094094042 | AW38: 0.2094094646 | AX38: 21.5548433 | AY38: 0.0007821820219 | AZ38: 1.180928774
AD39: 33 | AE39: 967 | AF39: 2.511642173 | AG39: 45.72468385 | AH39: 42.02657643 | AI39: 0.9191222965 | AJ39: 0.05492967827 | AK39: 5.976318764 | AL39: 0.002209446182 | AM39: 0.9740519748 | AO39: 33 | AQ39: 33 | AR39: 967 | AS39: 0.0006623448254 | AT39: 0.0003055347852 | AU39: 0.9706429482 | AV39: 0.2093152236 | AW39: 0.2093152845 | AX39: 21.56460157 | AY39: 0.000781539189 | AZ39: 1.179958233
AD40: 34 | AE40: 966 | AF40: 2.505230249 | AG40: 45.72468385 | AH40: 41.9193088 | AI40: 0.9167763507 | AJ40: 0.05478944933 | AK40: 5.976315738 | AL40: 0.002203806782 | AM40: 0.9715658001 | AO40: 34 | AQ40: 34 | AR40: 966 | AS40: 0.0006623448254 | AT40: 0.0003055347852 | AU40: 0.969767407 | AV40: 0.2092212203 | AW40: 0.2092212815 | AX40: 21.57437753 | AY40: 0.0007808970161 | AZ40: 1.178988689
AD41: 35 | AE41: 965 | AF41: 2.498834693 | AG41: 45.72468385 | AH41: 41.81231495 | AI41: 0.9144363926 | AJ41: 0.05464957835 | AK41: 5.976312709 | AL41: 0.002198181775 | AM41: 0.969085971 | AO41: 35 | AQ41: 35 | AR41: 965 | AS41: 0.0006623448254 | AT41: 0.0003055347852 | AU41: 0.9688926846 | AV41: 0.209127394 | AW41: 0.2091274556 | AX41: 21.58417118 | AY41: 0.0007802555029 | AZ41: 1.17802014
AD42: 36 | AE42: 964 | AF42: 2.492455462 | AG42: 45.72468385 | AH42: 41.7055942 | AI42: 0.912102407 | AJ42: 0.05451006441 | AK42: 5.976309676 | AL42: 0.002192571125 | AM42: 0.9666124714 | AO42: 36 | AQ42: 36 | AR42: 964 | AS42: 0.0006623448254 | AT42: 0.0003055347852 | AU42: 0.9680187802 | AV42: 0.2090337447 | AW42: 0.2090338068 | AX42: 21.59398258 | AY42: 0.0007796146487 | AZ42: 1.177052587
AD43: 37 | AE43: 963 | AF43: 2.486092515 | AG43: 45.72468385 | AH43: 41.59914583 | AI43: 0.9097743786 | AJ43: 0.0543709066 | AK43: 5.97630664 | AL43: 0.002186974797 | AM43: 0.9641452852 | AO43: 37 | AQ43: 37 | AR43: 963 | AS43: 0.0006623448254 | AT43: 0.0003055347852 | AU43: 0.9671456931 | AV43: 0.2089402724 | AW43: 0.2089403349 | AX43: 21.60381175 | AY43: 0.0007789744531 | AZ43: 1.176086028
AD44: 38 | AE44: 962 | AF44: 2.47974581 | AG44: 45.72468385 | AH44: 41.49296917 | AI44: 0.9074522922 | AJ44: 0.05423210401 | AK44: 5.9763036 | AL44: 0.002181392752 | AM44: 0.9616843962 | AO44: 38 | AQ44: 38 | AR44: 962 | AS44: 0.0006623448254 | AT44: 0.0003055347852 | AU44: 0.9662734225 | AV44: 0.208846977 | AW44: 0.2088470398 | AX44: 21.61365872 | AY44: 0.0007783349154 | AZ44: 1.175120462
AD45: 39 | AE45: 961 | AF45: 2.473415306 | AG45: 45.72468385 | AH45: 41.3870635 | AI45: 0.9051361327 | AJ45: 0.05409365573 | AK45: 5.976300556 | AL45: 0.002175824954 | AM45: 0.9592297884 | AO45: 39 | AQ45: 39 | AR45: 961 | AS45: 0.0006623448254 | AT45: 0.0003055347852 | AU45: 0.9654019677 | AV45: 0.2087538583 | AW45: 0.2087539216 | AX45: 21.62352352 | AY45: 0.0007776960351 | AZ45: 1.174155889
AD46: 40 | AE46: 960 | AF46: 2.467100962 | AG46: 45.72468385 | AH46: 41.28142815 | AI46: 0.9028258848 | AJ46: 0.05395556086 | AK46: 5.976297509 | AL46: 0.002170271368 | AM46: 0.9567814457 | AO46: 40 | AQ46: 40 | AR46: 960 | AS46: 0.0006623448254 | AT46: 0.0003055347852 | AU46: 0.9645313279 | AV46: 0.2086609163 | AW46: 0.20866098 | AX46: 21.63340619 | AY46: 0.0007770578118 | AZ46: 1.173192308
AD47: 41 | AE47: 959 | AF47: 2.460802737 | AG47: 45.72468385 | AH47: 41.17606242 | AI47: 0.9005215336 | AJ47: 0.05381781851 | AK47: 5.976294458 | AL47: 0.002164731957 | AM47: 0.9543393521 | AO47: 41 | AQ47: 41 | AR47: 959 | AS47: 0.0006623448254 | AT47: 0.0003055347852 | AU47: 0.9636615025 | AV47: 0.208568151 | AW47: 0.2085682151 | AX47: 21.64330676 | AY47: 0.0007764202447 | AZ47: 1.172229718
AD48: 42 | AE48: 958 | AF48: 2.454520588 | AG48: 45.72468385 | AH48: 41.07096562 | AI48: 0.898223064 | AJ48: 0.05368042776 | AK48: 5.976291404 | AL48: 0.002159206685 | AM48: 0.9519034917 | AO48: 42 | AQ48: 42 | AR48: 958 | AS48: 0.0006623448254 | AT48: 0.0003055347852 | AU48: 0.9627924907 | AV48: 0.2084755622 | AW48: 0.2084756267 | AX48: 21.65322525 | AY48: 0.0007757833336 | AZ48: 1.171268117
AD49: 43 | AE49: 957 | AF49: 2.448254476 | AG49: 45.72468385 | AH49: 40.96613707 | AI49: 0.8959304609 | AJ49: 0.05354338772 | AK49: 5.976288346 | AL49: 0.002153695515 | AM49: 0.9494738486 | AO49: 43 | AQ49: 43 | AR49: 957 | AS49: 0.0006623448254 | AT49: 0.0003055347852 | AU49: 0.9619242918 | AV49: 0.2083831499 | AW49: 0.2083832148 | AX49: 21.6631617 | AY49: 0.0007751470777 | AZ49: 1.170307507
AD50: 44 | AE50: 956 | AF50: 2.442004358 | AG50: 45.72468385 | AH50: 40.86157608 | AI50: 0.8936437094 | AJ50: 0.0534066975 | AK50: 5.976285284 | AL50: 0.002148198412 | AM50: 0.9470504069 | AO50: 44 | AQ50: 44 | AR50: 956 | AS50: 0.0006623448254 | AT50: 0.0003055347852 | AU50: 0.961056905 | AV50: 0.208290914 | AW50: 0.2082909793 | AX50: 21.67311615 | AY50: 0.0007745114765 | AZ50: 1.169347884
AD51: 45 | AE51: 955 | AF51: 2.435770196 | AG51: 45.72468385 | AH51: 40.75728197 | AI51: 0.8913627946 | AJ51: 0.0532703562 | AK51: 5.976282219 | AL51: 0.00214271534 | AM51: 0.9446331508 | AO51: 45 | AQ51: 45 | AR51: 955 | AS51: 0.0006623448254 | AT51: 0.0003055347852 | AU51: 0.9601903296 | AV51: 0.2081988544 | AW51: 0.2081989201 | AX51: 21.68308862 | AY51: 0.0007738765295 | AZ51: 1.16838925
AD52: 46 | AE52: 954 | AF52: 2.429551947 | AG52: 45.72468385 | AH52: 40.65325406 | AI52: 0.8890877015 | AJ52: 0.05313436293 | AK52: 5.97627915 | AL52: 0.002137246263 | AM52: 0.9422220644 | AO52: 46 | AQ52: 46 | AR52: 954 | AS52: 0.0006623448254 | AT52: 0.0003055347852 | AU52: 0.9593245648 | AV52: 0.208106971 | AW52: 0.2081070371 | AX52: 21.69307914 | AY52: 0.0007732422363 | AZ52: 1.167431602
AD53: 47 | AE53: 953 | AF53: 2.423349571 | AG53: 45.72468385 | AH53: 40.54949167 | AI53: 0.8868184153 | AJ53: 0.05299871681 | AK53: 5.976276078 | AL53: 0.002131791145 | AM53: 0.9398171321 | AO53: 47 | AQ53: 47 | AR53: 953 | AS53: 0.0006623448254 | AT53: 0.0003055347852 | AU53: 0.95845961 | AV53: 0.2080152638 | AW53: 0.2080153303 | AX53: 21.70308776 | AY53: 0.0007726085961 | AZ53: 1.16647494
AD54: 48 | AE54: 952 | AF54: 2.417163027 | AG54: 45.72468385 | AH54: 40.44599412 | AI54: 0.8845549212 | AJ54: 0.05286341695 | AK54: 5.976273003 | AL54: 0.00212634995 | AM54: 0.9374183381 | AO54: 48 | AQ54: 48 | AR54: 952 | AS54: 0.0006623448254 | AT54: 0.0003055347852 | AU54: 0.9575954644 | AV54: 0.2079237327 | AW54: 0.2079237996 | AX54: 21.71311449 | AY54: 0.0007719756086 | AZ54: 1.165519264
AD55: 49 | AE55: 951 | AF55: 2.410992276 | AG55: 45.72468385 | AH55: 40.34276073 | AI55: 0.8822972044 | AJ55: 0.05272846246 | AK55: 5.976269924 | AL55: 0.002120922644 | AM55: 0.9350256668 | AO55: 49 | AQ55: 49 | AR55: 951 | AS55: 0.0006623448254 | AT55: 0.0003055347852 | AU55: 0.9567321273 | AV55: 0.2078323776 | AW55: 0.2078324448 | AX55: 21.72315938 | AY55: 0.0007713432731 | AZ55: 1.164564572
AD56: 50 | AE56: 950 | AF56: 2.404837277 | AG56: 45.72468385 | AH56: 40.23979083 | AI56: 0.8800452501 | AJ56: 0.05259385247 | AK56: 5.976266841 | AL56: 0.00211550919 | AM56: 0.9326391026 | AO56: 50 | AQ56: 50 | AR56: 950 | AS56: 0.0006623448254 | AT56: 0.0003055347852 | AU56: 0.9558695979 | AV56: 0.2077411984 | AW56: 0.2077412661 | AX56: 21.73322245 | AY56: 0.0007707115891 | AZ56: 1.163610864
AD57: 51 | AE57: 949 | AF57: 2.398697989 | AG57: 45.72468385 | AH57: 40.13708375 | AI57: 0.8777990437 | AJ57: 0.05245958609 | AK57: 5.976263755 | AL57: 0.002110109554 | AM57: 0.9302586298 | AO57: 51 | AQ57: 51 | AR57: 949 | AS57: 0.0006623448254 | AT57: 0.0003055347852 | AU57: 0.9550078756 | AV57: 0.207650195 | AW57: 0.2076502631 | AX57: 21.74330374 | AY57: 0.0007700805562 | AZ57: 1.162658139
AD58: 52 | AE58: 948 | AF58: 2.392574373 | AG58: 45.72468385 | AH58: 40.03463882 | AI58: 0.8755585704 | AJ58: 0.05232566245 | AK58: 5.976260666 | AL58: 0.002104723699 | AM58: 0.9278842329 | AO58: 52 | AQ58: 52 | AR58: 948 | AS58: 0.0006623448254 | AT58: 0.0003055347852 | AU58: 0.9541469595 | AV58: 0.2075593675 | AW58: 0.207559436 | AX58: 21.75340328 | AY58: 0.0007694501737 | AZ58: 1.161706395
AD59: 53 | AE59: 947 | AF59: 2.386466388 | AG59: 45.72468385 | AH59: 39.93245537 | AI59: 0.8733238157 | AJ59: 0.05219208067 | AK59: 5.976257573 | AL59: 0.002099351592 | AM59: 0.9255158964 | AO59: 53 | AQ59: 53 | AR59: 947 | AS59: 0.0006623448254 | AT59: 0.0003055347852 | AU59: 0.953286849 | AV59: 0.2074687156 | AW59: 0.2074687845 | AX59: 21.7635211 | AY59: 0.0007688204412 | AZ59: 1.160755634
AD60: 54 | AE60: 946 | AF60: 2.380373995 | AG60: 45.72468385 | AH60: 39.83053273 | AI60: 0.8710947649 | AJ60: 0.05205883988 | AK60: 5.976254477 | AL60: 0.002093993196 | AM60: 0.9231536048 | AO60: 54 | AQ60: 54 | AR60: 946 | AS60: 0.0006623448254 | AT60: 0.0003055347852 | AU60: 0.9524275433 | AV60: 0.2073782394 | AW60: 0.2073783087 | AX60: 21.77365723 | AY60: 0.000768191358 | AZ60: 1.159805852
AD61: 55 | AE61: 945 | AF61: 2.374297154 | AG61: 45.72468385 | AH61: 39.72887023 | AI61: 0.8688714035 | AJ61: 0.05192593922 | AK61: 5.976251377 | AL61: 0.002088648477 | AM61: 0.9207973428 | AO61: 55 | AQ61: 55 | AR61: 945 | AS61: 0.0006623448254 | AT61: 0.0003055347852 | AU61: 0.9515690418 | AV61: 0.2072879387 | AW61: 0.2072880084 | AX61: 21.78381172 | AY61: 0.0007675629238 | AZ61: 1.15885705
AD62: 56 | AE62: 944 | AF62: 2.368235825 | AG62: 45.72468385 | AH62: 39.62746721 | AI62: 0.866653717 | AJ62: 0.0517933778 | AK62: 5.976248274 | AL62: 0.002083317399 | AM62: 0.9184470948 | AO62: 56 | AQ62: 56 | AR62: 944 | AS62: 0.0006623448254 | AT62: 0.0003055347852 | AU62: 0.9507113436 | AV62: 0.2071978135 | AW62: 0.2071978836 | AX62: 21.79398458 | AY62: 0.0007669351379 | AZ62: 1.157909227
AD63: 57 | AE63: 943 | AF63: 2.362189969 | AG63: 45.72468385 | AH63: 39.52632302 | AI63: 0.8644416908 | AJ63: 0.05166115477 | AK63: 5.976245167 | AL63: 0.002077999929 | AM63: 0.9161028456 | AO63: 57 | AQ63: 57 | AR63: 943 | AS63: 0.0006623448254 | AT63: 0.0003055347852 | AU63: 0.9498544481 | AV63: 0.2071078637 | AW63: 0.2071079342 | AX63: 21.80417585 | AY63: 0.0007663079998 | AZ63: 1.156962382
AD64: 58 | AE64: 942 | AF64: 2.356159546 | AG64: 45.72468385 | AH64: 39.42543698 | AI64: 0.8622353106 | AJ64: 0.05152926927 | AK64: 5.976242058 | AL64: 0.002072696031 | AM64: 0.9137645799 | AO64: 58 | AQ64: 58 | AR64: 942 | AS64: 0.0006623448254 | AT64: 0.0003055347852 | AU64: 0.9489983546 | AV64: 0.2070180892 | AW64: 0.2070181601 | AX64: 21.81438557 | AY64: 0.000765681509 | AZ64: 1.156016515
AD65: 59 | AE65: 941 | AF65: 2.350144517 | AG65: 45.72468385 | AH65: 39.32480844 | AI65: 0.8600345619 | AJ65: 0.05139772042 | AK65: 5.976238944 | AL65: 0.002067405671 | AM65: 0.9114322823 | AO65: 59 | AQ65: 59 | AR65: 941 | AS65: 0.0006623448254 | AT65: 0.0003055347852 | AU65: 0.9481430623 | AV65: 0.20692849 | AW65: 0.2069285612 | AX65: 21.82461376 | AY65: 0.0007650556649 | AZ65: 1.155071624
AD66: 60 | AE66: 940 | AF66: 2.344144842 | AG66: 45.72468385 | AH66: 39.22443674 | AI66: 0.8578394303 | AJ66: 0.05126650738 | AK66: 5.976235828 | AL66: 0.002062128814 | AM66: 0.9091059377 | AO66: 60 | AQ66: 60 | AR66: 940 | AS66: 0.0006623448254 | AT66: 0.0003055347852 | AU66: 0.9472885704 | AV66: 0.2068390659 | AW66: 0.2068391376 | AX66: 21.83486047 | AY66: 0.0007644304671 | AZ66: 1.154127708
AD67: 61 | AE67: 939 | AF67: 2.338160482 | AG67: 45.72468385 | AH67: 39.12432123 | AI67: 0.8556499015 | AJ67: 0.05113562928 | AK67: 5.976232708 | AL67: 0.002056865425 | AM67: 0.9067855308 | AO67: 61 | AQ67: 61 | AR67: 939 | AS67: 0.0006623448254 | AT67: 0.0003055347852 | AU67: 0.9464348784 | AV67: 0.2067498169 | AW67: 0.206749889 | AX67: 21.84512571 | AY67: 0.0007638059149 | AZ67: 1.153184767
AD68: 62 | AE68: 938 | AF68: 2.332191399 | AG68: 45.72468385 | AH68: 39.02446125 | AI68: 0.8534659612 | AJ68: 0.05100508528 | AK68: 5.976229585 | AL68: 0.00205161547 | AM68: 0.9044710465 | AO68: 62 | AQ68: 62 | AR68: 938 | AS68: 0.0006623448254 | AT68: 0.0003055347852 | AU68: 0.9455819854 | AV68: 0.2066607429 | AW68: 0.2066608154 | AX68: 21.85540954 | AY68: 0.000763182008 | AZ68: 1.152242801
AD69: 63 | AE69: 937 | AF69: 2.326237553 | AG69: 45.72468385 | AH69: 38.92485615 | AI69: 0.8512875952 | AJ69: 0.05087487451 | AK69: 5.976226459 | AL69: 0.002046378916 | AM69: 0.9021624697 | AO69: 63 | AQ69: 63 | AR69: 937 | AS69: 0.0006623448254 | AT69: 0.0003055347852 | AU69: 0.9447298907 | AV69: 0.2065718439 | AW69: 0.2065719168 | AX69: 21.86571197 | AY69: 0.0007625587457 | AZ69: 1.151301808
AD70: 64 | AE70: =ENNE-AD70 -> 936 | AF70: =(1-betasquare)*((EXP(alpha*AE70))-(EXP(-alpha*AE70)))-Rg*(((POWER((1-beta),2)*(EXP(alpha*AE70)))-POWER((1+beta),2))*(EXP(-alpha*AE70))) -> 2.320298905 | AG70: =(POWER((1+beta),2)*EXP(alpha*ENNE))-(POWER((1-beta),2)*EXP(-(alpha*ENNE)))-(Rg*(1-betasquare)*(EXP(alpha*ENNE)-EXP(-(alpha*ENNE)))) -> 45.72468385 | AH70: =POWER((1+beta),2)*EXP(alpha*AE70)-POWER((1-beta),2)*EXP(-alpha*AE70)-Rg*(1-betasquare)*(EXP(alpha*AE70)-EXP(-alpha*AE70)) -> 38.82550529 | AI70: =AH70/AG70 -> 0.8491147892 | AJ70: =AF70/AG70 -> 0.05074499612 | AK70: 5.976223329 | AL70: 0.002041155727 | AM70: 0.8998597853 | AO70: 64 | AQ70: 64 | AR70: =ENNE-AQ70 -> 936 | AS70: =IF(AO70<=$C$4,$S$5,(IF(AO70<=($C$5+$C$4),kappaBS,$S$5))) -> 0.0006623448254 | AT70: =esse -> 0.0003055347852 | AU70: 0.9438785937 | AV70: 0.2064831197 | AW70: =AW71-(AS70+AT70)*AW71+AT70*AU70 -> 0.2064831932 | AX70: =AW70/AU70*100 -> 21.87603306 | AY70: 0.0007619361275 | AZ70: =AU70+AW70 -> 1.150361787
AD71: 65 | AE71: 935 | AF71: 2.314375416 | AG71: 45.72468385 | AH71: 38.726408 | AI71: 0.846947529 | AJ71: 0.05061544928 | AK71: =AJ71/AI71*100 -> 5.976220197 | AL71: =kappaM*(AI71)+kappaM*AJ71 -> 0.00203594587 | AM71: =AI71+AJ71 -> 0.8975629783 | AO71: 65 | AQ71: 65 | AR71: 935 | AS71: 0.0006623448254 | AT71: 0.0003055347852 | AU71: 0.9430280935 | AV71: =AW71 -> 0.2063945705 | AW71: 0.2063946445 | AX71: 21.88637284 | AY71: =IF(AO71<=$C$4,AZ71*$S$5,IF(AO71<=($C$4+$C$5),AZ71*kappaBS,AZ71*$S$5)) -> 0.000761314153 | AZ71: 1.149422738
AD72: 66 | AE72: 934 | AF72: 2.308467049 | AG72: 45.72468385 | AH72: 38.62756365 | AI72: 0.8447858005 | AJ72: 0.05048623313 | AK72: 5.97621706 | AL72: 0.002030749311 | AM72: 0.8952720336 | AO72: 66 | AQ72: 66 | AR72: 934 | AS72: 0.0006623448254 | AT72: 0.0003055347852 | AU72: =AU71-(AS72+AT72)*AU71+AT72*AV72 -> 0.9421783896 | AV72: 0.2063061962 | AW72: 0.2063062707 | AX72: 21.89673134 | AY72: 0.0007606928216 | AZ72: 1.14848466
AD73: 67 | AE73: 933 | AF73: 2.302573763 | AG73: 45.72468385 | AH73: 38.52897158 | AI73: 0.8426295895 | AJ73: 0.05035734683 | AK73: 5.976213921 | AL73: 0.002025566015 | AM73: 0.8929869363 | AO73: 67 | AQ73: 67 | AR73: 933 | AS73: 0.0006623448254 | AT73: 0.0003055347852 | AU73: 0.9413294811 | AV73: 0.2062179966 | AW73: 0.2062180716 | AX73: 21.90710859 | AY73: 0.0007600721329 | AZ73: 1.147547553
AD74: 68 | AE74: 932 | AF74: 2.296695522 | AG74: 45.72468385 | AH74: 38.43063116 | AI74: 0.840478882 | AJ74: 0.05022878954 | AK74: 5.976210779 | AL74: 0.002020395949 | AM74: 0.8907076715 | AO74: 68 | AQ74: 68 | AR74: 932 | AS74: 0.0006623448254 | AT74: 0.0003055347852 | AU74: 0.9404813673 | AV74: 0.2061299717 | AW74: 0.2061300472 | AX74: 21.91750463 | AY74: 0.0007594520863 | AZ74: 1.146611415
AD75: 69 | AE75: 931 | AF75: 2.290832285 | AG75: 45.72468385 | AH75: 38.33254174 | AI75: 0.8383336639 | AJ75: 0.05010056041 | AK75: 5.976207633 | AL75: 0.002015239079 | AM75: 0.8884342243 | AO75: 69 | AQ75: 69 | AR75: 931 | AS75: 0.0006623448254 | AT75: 0.0003055347852 | AU75: 0.9396340476 | AV75: 0.2060421214 | AW75: 0.2060421974 | AX75: 21.92791949 | AY75: 0.0007588326813 | AZ75: 1.145676245
AD76: 70 | AE76: 930 | AF76: 2.284984016 | AG76: 45.72468385 | AH76: 38.23470268 | AI76: 0.8361939212 | AJ76: 0.04997265862 | AK76: 5.976204484 | AL76: 0.002010095372 | AM76: 0.8861665798 | AO76: 70 | AQ76: 70 | AR76: 930 | AS76: 0.0006623448254 | AT76: 0.0003055347852 | AU76: 0.9387875212 | AV76: 0.2059544457 | AW76: 0.2059545222 | AX76: 21.9383532 | AY76: 0.0007582139173 | AZ76: 1.144742043
AD77: 71 | AE77: 929 | AF77: 2.279150676 | AG77: 45.72468385 | AH77: 38.13711335 | AI77: 0.83405964 | AJ77: 0.04984508332 | AK77: 5.976201332 | AL77: 0.002004964793 | AM77: 0.8839047233 | AO77: 71 | AQ77: 71 | AR77: 929 | AS77: 0.0006623448254 | AT77: 0.0003055347852 | AU77: 0.9379417874 | AV77: 0.2058669444 | AW77: 0.2058670214 | AX77: 21.9488058 | AY77: 0.0007575957939 | AZ77: 1.143808809
AD78: 72 | AE78: 928 | AF78: 2.273332226 | AG78: 45.72468385 | AH78: 38.0397731 | AI78: 0.8319308062 | AJ78: 0.04971783368 | AK78: 5.976198177 | AL78: 0.00199984731 | AM78: 0.8816486399 | AO78: 72 | AQ78: 72 | AR78: 928 | AS78: 0.0006623448254 | AT78: 0.0003055347852 | AU78: 0.9370968454 | AV78: 0.2057796175 | AW78: 0.205779695 | AX78: 21.95927732 | AY78: 0.0007569783104 | AZ78: 1.14287654
AD79: 73 | AE79: 927 | AF79: 2.26752863 | AG79: 45.72468385 | AH79: 37.9426813 | AI79: 0.8298074061 | AJ79: 0.04959090887 | AK79: 5.976195019 | AL79: 0.001994742888 | AM79: 0.8793983149 | AO79: 73 | AQ79: 73 | AR79: 927 | AS79: 0.0006623448254 | AT79: 0.0003055347852 | AU79: 0.9362526947 | AV79: 0.2056924649 | AW79: 0.2056925429 | AX79: 21.96976779 | AY79: 0.0007563614664 | AZ79: 1.141945238
AD80: 74 | AE80: 926 | AF80: 2.261739848 | AG80: 45.72468385 | AH80: 37.84583731 | AI80: 0.8276894256 | AJ80: 0.04946430806 | AK80: 5.976191858 | AL80: 0.001989651495 | AM80: 0.8771537337 | AO80: 74 | AQ80: 74 | AR80: 926 | AS80: 0.0006623448254 | AT80: 0.0003055347852 | AU80: 0.9354093344 | AV80: 0.2056054865 | AW80: 0.2056055651 | AX80: 21.98027725 | AY80: 0.0007557452614 | AZ80: 1.141014899
AD81: 75 | AE81: 925 | AF81: 2.255965843 | AG81: 45.72468385 | AH81: 37.74924051 | AI81: 0.8255768511 | AJ81: 0.04933803043 | AK81: 5.976188693 | AL81: 0.001984573097 | AM81: 0.8749148815 | AO81: 75 | AQ81: 75 | AR81: 925 | AS81: 0.0006623448254 | AT81: 0.0003055347852 | AU81: 0.9345667638 | AV81: 0.2055186824 | AW81: 0.2055187614 | AX81: 21.99080573 | AY81: 0.0007551296949 | AZ81: 1.140085525
AD82: 76 | AE82: 924 | AF82: 2.250206577 | AG82: 45.72468385 | AH82: 37.65289025 | AI82: 0.8234696686 | AJ82: 0.04921207514 | AK82: 5.976185526 | AL82: 0.001979507662 | AM82: 0.8726817437 | AO82: 76 | AQ82: 76 | AR82: 924 | AS82: 0.0006623448254 | AT82: 0.0003055347852 | AU82: 0.9337249823 | AV82: 0.2054320523 | AW82: 0.2054321319 | AX82: 22.00135326 | AY82: 0.0007545147663 | AZ82: 1.139157114
AD83: 77 | AE83: 923 | AF83: 2.244462014 | AG83: 45.72468385 | AH83: 37.55678592 | AI83: 0.8213678644 | AJ83: 0.04908644139 | AK83: 5.976182355 | AL83: 0.001974455155 | AM83: 0.8704543058 | AO83: 77 | AQ83: 77 | AR83: 923 | AS83: 0.0006623448254 | AT83: 0.0003055347852 | AU83: 0.9328839892 | AV83: 0.2053455962 | AW83: 0.2053456763 | AX83: 22.01191989 | AY83: 0.0007539004751 | AZ83: 1.138229666
AD84: 78 | AE84: 922 | AF84: 2.238732114 | AG84: 45.72468385 | AH84: 37.46092689 | AI84: 0.8192714249 | AJ84: 0.04896112834 | AK84: 5.976179182 | AL84: 0.001969415544 | AM84: 0.8682325532 | AO84: 78 | AQ84: 78 | AR84: 922 | AS84: 0.0006623448254 | AT84: 0.0003055347852 | AU84: 0.9320437836 | AV84: 0.2052593141 | AW84: 0.2052593948 | AX84: 22.02250563 | AY84: 0.0007532868208 | AZ84: 1.137303178
AD85: 79 | AE85: 921 | AF85: 2.233016841 | AG85: 45.72468385 | AH85: 37.36531252 | AI85: 0.8171803363 | AJ85: 0.04883613518 | AK85: 5.976176005 | AL85: 0.001964388796 | AM85: 0.8660164714 | AO85: 79 | AQ85: 79 | AR85: 921 | AS85: 0.0006623448254 | AT85: 0.0003055347852 | AU85: 0.931204365 | AV85: 0.2051732059 | AW85: 0.2051732871 | AX85: 22.03311054 | AY85: 0.0007526738028 | AZ85: 1.136377652
AD86: 80 | AE86: 920 | AF86: 2.227316158 | AG86: 45.72468385 | AH86: 37.2699422 | AI86: 0.8150945849 | AJ86: 0.04871146109 | AK86: 5.976172826 | AL86: 0.001959374879 | AM86: 0.863806046 | AO86: 80 | AQ86: 80 | AR86: 920 | AS86: 0.0006623448254 | AT86: 0.0003055347852 | AU86: 0.9303657325 | AV86: 0.2050872715 | AW86: 0.2050873532 | AX86: 22.04373463 | AY86: 0.0007520614207 | AZ86: 1.135453086
AD87: 81 | AE87: 919 | AF87: 2.221630027 | AG87: 45.72468385 | AH87: 37.1748153 | AI87: 0.8130141571 | AJ87: 0.04858710525 | AK87: 5.976169643 | AL87: 0.001954373759 | AM87: 0.8616012624 | AO87: 81 | AQ87: 81 | AR87: 919 | AS87: 0.0006623448254 | AT87: 0.0003055347852 | AU87: 0.9295278856 | AV87: 0.2050015109 | AW87: 0.205001593 | AX87: 22.05437795 | AY87: 0.000751449674 | AZ87: 1.134529479
AD88: 82 | AE88: 918 | AF88: 2.215958411 | AG88: 45.72468385 | AH88: 37.0799312 | AI88: 0.8109390394 | AJ88: 0.04846306687 | AK88: 5.976166458 | AL88: 0.001949385404 | AM88: 0.8594021063 | AO88: 82 | AQ88: 82 | AR88: 918 | AS88: 0.0006623448254 | AT88: 0.0003055347852 | AU88: 0.9286908234 | AV88: 0.2049159239 | AW88: 0.2049160065 | AX88: 22.06504052 | AY88: 0.0007508385621 | AZ88: 1.13360683
AD89: 83 | AE89: 917 | AF89: 2.210301273 | AG89: 45.72468385 | AH89: 36.98528927 | AI89: 0.8088692181 | AJ89: 0.04833934512 | AK89: 5.97616327 | AL89: 0.001944409781 | AM89: 0.8572085633 | AO89: 83 | AQ89: 83 | AR89: 917 | AS89: 0.0006623448254 | AT89: 0.0003055347852 | AU89: 0.9278545453 | AV89: 0.2048305105 | AW89: 0.2048305936 | AX89: 22.07572239 | AY89: 0.0007502280845 | AZ89: 1.132685139
AD90: 84 | AE90: 916 | AF90: 2.204658576 | AG90: 45.72468385 | AH90: 36.89088891 | AI90: 0.8068046799 | AJ90: 0.04821593919 | AK90: 5.976160079 | AL90: 0.001939446858 | AM90: 0.8550206191 | AO90: 84 | AQ90: 84 | AR90: 916 | AS90: 0.0006623448254 | AT90: 0.0003055347852 | AU90: 0.9270190506 | AV90: 0.2047452706 | AW90: 0.2047453543 | AX90: 22.08642359 | AY90: 0.0007496182406 | AZ90: 1.131764405
AD91: 85 | AE91: 915 | AF91: 2.199030283 | AG91: 45.72468385 | AH91: 36.7967295 | AI91: 0.8047454111 | AJ91: 0.04809284829 | AK91: 5.976156884 | AL91: 0.001934496603 | AM91: 0.8528382594 | AO91: 85 | AQ91: 85 | AR91: 915 | AS91: 0.0006623448254 | AT91: 0.0003055347852 | AU91: 0.9261843385 | AV91: 0.2046602042 | AW91: 0.2046602884 | AX91: 22.09714415 | AY91: 0.0007490090301 | AZ91: 1.130844627
AD92: 86 | AE92: 914 | AF92: 2.193416358 | AG92: 45.72468385 | AH92: 36.70281042 | AI92: 0.8026913983 | AJ92: 0.0479700716 | AK92: 5.976153687 | AL92: 0.001929558982 | AM92: 0.8506614699 | AO92: 86 | AQ92: 86 | AR92: 914 | AS92: 0.0006623448254 | AT92: 0.0003055347852 | AU92: 0.9253504084 | AV92: 0.2045753111 | AW92: 0.2045753959 | AX92: 22.1078841 | AY92: 0.0007484004524 | AZ92: 1.129925804
AD93: 87 | AE93: 913 | AF93: 2.187816764 | AG93: 45.72468385 | AH93: 36.60913105 | AI93: 0.8006426282 | AJ93: 0.04784760833 | AK93: 5.976150488 | AL93: 0.001924633964 | AM93: 0.8484902365 | AO93: 87 | AQ93: 87 | AR93: 913 | AS93: 0.0006623448254 | AT93: 0.0003055347852 | AU93: 0.9245172596 | AV93: 0.2044905914 | AW93: 0.2044906766 | AX93: 22.11864349 | AY93: 0.0007477925069 | AZ93: 1.129007936
AD94: 88 | AE94: 912 | AF94: 2.182231464 | AG94: 45.72468385 | AH94: 36.51569079 | AI94: 0.7985990873 | AJ94: 0.04772545767 | AK94: 5.976147285 | AL94: 0.001919721517 | AM94: 0.846324545 | AO94: 88 | AQ94: 88 | AR94: 912 | AS94: 0.0006623448254 | AT94: 0.0003055347852 | AU94: 0.9236848913 | AV94: 0.2044060449 | AW94: 0.2044061307 | AX94: 22.12942234 | AY94: 0.0007471851931 | AZ94: 1.128091022
AD95: 89 | AE95: 911 | AF95: 2.176660421 | AG95: 45.72468385 | AH95: 36.42248902 | AI95: 0.7965607623 | AJ95: 0.04760361883 | AK95: 5.976144079 | AL95: 0.001914821608 | AM95: 0.8441643811 | AO95: 89 | AQ95: 89 | AR95: 911 | AS95: 0.0006623448254 | AT95: 0.0003055347852 | AU95: 0.9228533029 | AV95: 0.2043216716 | AW95: 0.2043217579 | AX95: 22.14022069 | AY95: 0.0007465785106 | AZ95: 1.127175061
AD96: 90 | AE96: 910 | AF96: 2.1711036 | AG96: 45.72468385 | AH96: 36.32952514 | AI96: 0.7945276399 | AJ96: 0.04748209102 | AK96: 5.976140871 | AL96: 0.001909934206 | AM96: 0.8420097309 | AO96: 90 | AQ96: 90 | AR96: 910 | AS96: 0.0006623448254 | AT96: 0.0003055347852 | AU96: 0.9220224937 | AV96: 0.2042374714 | AW96: 0.2042375582 | AX96: 22.15103857 | AY96: 0.0007459724587 | AZ96: 1.126260052
AD97: 91 | AE97: 909 | AF97: 2.165560964 | AG97: 45.72468385 | AH97: 36.23679854 | AI97: 0.7924997067 | AJ97: 0.04736087343 | AK97: 5.97613766 | AL97: 0.001905059278 | AM97: 0.8398605801 | AO97: 91 | AQ97: 91 | AR97: 909 | AS97: 0.0006623448254 | AT97: 0.0003055347852 | AU97: 0.9211924628 | AV97: 0.2041534442 | AW97: 0.2041535315 | AX97: 22.16187602 | AY97: 0.0007453670371 | AZ97: 1.125345994
AD98: 92 | AE98: 908 | AF98: 2.160032477 | AG98: 45.72468385 | AH98: 36.14430861 | AI98: 0.7904769496 | AJ98: 0.04723996528 | AK98: 5.976134446 | AL98: 0.001900196794 | AM98: 0.8377169149 | AO98: 92 | AQ98: 92 | AR98: 908 | AS98: 0.0006623448254 | AT98: 0.0003055347852 | AU98: 0.9203632098 | AV98: 0.20406959 | AW98: 0.2040696778 | AX98: 22.17273308 | AY98: 0.0007447622452 | AZ98: 1.124432888
AD99: 93 | AE99: 907 | AF99: 2.154518103 | AG99: 45.72468385 | AH99: 36.05205475 | AI99: 0.7884593554 | AJ99: 0.04711936577 | AK99: 5.97613123 | AL99: 0.00189534672 | AM99: 0.8355787212 | AO99: 93 | AQ99: 93 | AR99: 907 | AS99: 0.0006623448254 | AT99: 0.0003055347852 | AU99: 0.9195347337 | AV99: 0.2039859086 | AW99: 0.203985997 | AX99: 22.18360977 | AY99: 0.0007441580825 | AZ99: 1.123520731
AD100: 94 | AE100: 906 | AF100: 2.149017805 | AG100: 45.72468385 | AH100: 35.96003636 | AI100: 0.7864469108 | AJ100: 0.04699907412 | AK100: 5.97612801 | AL100: 0.001890509025 | AM100: 0.8334459849 | AO100: 94 | AQ100: 94 | AR100: 906 | AS100: 0.0006623448254 | AT100: 0.0003055347852 | AU100: 0.9187070341 | AV100: 0.2039024001 | AW100: 0.203902489 | AX100: 22.19450613 | AY100: 0.0007435545485 | AZ100: 1.122609523
AD101: 95 | AE101: 905 | AF101: 2.143531549 | AG101: 45.72468385 | AH101: 35.86825283 | AI101: 0.7844396028 | AJ101: 0.04687908955 | AK101: 5.976124788 | AL101: 0.001885683678 | AM101: 0.8313186923 | AO101: 95 | AQ101: 95 | AR101: 905 | AS101: 0.0006623448254 | AT101: 0.0003055347852 | AU101: 0.91788011 | AV101: 0.2038190644 | AW101: 0.2038191538 | AX101: 22.20542221 | AY101: 0.0007429516426 | AZ101: 1.121699264
AD102: 96 | AE102: 904 | AF102: 2.138059297 | AG102: 45.72468385 | AH102: 35.77670357 | AI102: 0.7824374181 | AJ102: 0.04675941127 | AK102: 5.976121564 | AL102: 0.001880870648 | AM102: 0.8291968294 | AO102: 96 | AQ102: 96 | AR102: 904 | AS102: 0.0006623448254 | AT102: 0.0003055347852 | AU102: 0.917053961 | AV102: 0.2037359013 | AW102: 0.2037359912 | AX102: 22.21635802 | AY102: 0.0007423493644 | AZ102: 1.120789952
AD103: 97 | AE103: 903 | AF103: 2.132601015 | AG103: 45.72468385 | AH103: 35.68538798 | AI103: 0.7804403438 | AJ103: 0.04664003849 | AK103: 5.976118337 | AL103: 0.001876069902 | AM103: 0.8270803823 | AO103: 97 | AQ103: 97 | AR103: 903 | AS103: 0.0006623448254 | AT103: 0.0003055347852 | AU103: 0.9162285862 | AV103: 0.2036529108 | AW103: 0.2036530013 | AX103: 22.22731362 | AY103: 0.0007417477133 | AZ103: 1.119881587
AD104: 98 | AE104: 902 | AF104: 2.127156666 | AG104: 45.72468385 | AH104: 35.59430546 | AI104: 0.7784483668 | AJ104: 0.04652097044 | AK104: 5.976115107 | AL104: 0.00187128141 | AM104: 0.8249693372 | AO104: 98 | AQ104: 98 | AR104: 902 | AS104: 0.0006623448254 | AT104: 0.0003055347852 | AU104: 0.9154039849 | AV104: 0.2035700929 | AW104: 0.2035701839 | AX104: 22.23828902 | AY104: 0.0007411466889 | AZ104: 1.118974169
AD105: 99 | AE105: 901 | AF105: 2.121726215 | AG105: 45.72468385 | AH105: 35.50345542 | AI105: 0.776461474 | AJ105: 0.04640220635 | AK105: 5.976111874 | AL105: 0.001866505139 | AM105: 0.8228636804 | AO105: 99 | AQ105: 99 | AR105: 901 | AS105: 0.0006623448254 | AT105: 0.0003055347852 | AU105: 0.9145801565 | AV105: 0.2034874475 | AW105: 0.203487539 | AX105: 22.24928428 | AY105: 0.0007405462907 | AZ105: 1.118067696
AD106: 100 | AE106: 900 | AF106: 2.116309627 | AG106: 45.72468385 | AH106: 35.41283726 | AI106: 0.7744796526 | AJ106: 0.04628374543 | AK106: 5.976108639 | AL106: 0.00186174106 | AM106: 0.820763398 | AO106: 100 | AQ106: 100 | AR106: 900 | AS106: 0.0006623448254 | AT106: 0.0003055347852 | AU106: 0.9137571003 | AV106: 0.2034049744 | AW106: 0.2034050665 | AX106: 22.26029942 | AY106: 0.000739946518 | AZ106: 1.117162167
AD107: 101 | AE107: 899 | AF107: 2.110906866 | AG107: 45.72468385 | AH107: 35.32245039 | AI107: 0.7725028895 | AJ107: 0.04616558691 | AK107: 5.976105402 | AL107: 0.001856989141 | AM107: 0.8186684764 | AO107: 101 | AQ107: 101 | AR107: 899 | AS107: 0.0006623448254 | AT107: 0.0003055347852 | AU107: 0.9129348156 | AV107: 0.2033226737 | AW107: 0.2033227663 | AX107: 22.27133447 | AY107: 0.0007393473705 | AZ107: 1.116257582
AD108: 102 | AE108: 898 | AF108: 2.105517897 | AG108: 45.72468385 | AH108: 35.23229423 | AI108: 0.7705311718 | AJ108: 0.04604773002 | AK108: 5.976102162 | AL108: 0.00185224935 | AM108: 0.8165789019 | AO108: 102 | AQ108: 102 | AR108: 898 | AS108: 0.0006623448254 | AT108: 0.0003055347852 | AU108: 0.9121133016 | AV108: 0.2032405453 | AW108: 0.2032406384 | AX108: 22.28238948 | AY108: 0.0007387488476 | AZ108: 1.11535394
AD109: 103 | AE109: 897 | AF109: 2.100142685 | AG109: 45.72468385 | AH109: 35.14236817 | AI109: 0.7685644868 | AJ109: 0.04593017399 | AK109: 5.976098919 | AL109: 0.001847521657 | AM109: 0.8144946608 | AO109: 103 | AQ109: 103 | AR109: 897 | AS109: 0.0006623448254 | AT109: 0.0003055347852 | AU109: 0.9112925577 | AV109: 0.2031585891 | AW109: 0.2031586827 | AX109: 22.29346448 | AY109: 0.0007381509489 | AZ109: 1.11445124
AD110: 104 | AE110: 896 | AF110: 2.094781194 | AG110: 45.72468385 | AH110: 35.05267165 | AI110: 0.7666028214 | AJ110: 0.04581291805 | AK110: 5.976095674 | AL110: 0.001842806031 | AM110: 0.8124157395 | AO110: 104 | AQ110: 104 | AR110: 896 | AS110: 0.0006623448254 | AT110: 0.0003055347852 | AU110: 0.9104725832 | AV110: 0.203076805 | AW110: 0.2030768991 | AX110: 22.3045595 | AY110: 0.0007375536737 | AZ110: 1.113549482
AD111: 105 | AE111: 895 | AF111: 2.08943339 | AG111: 45.72468385 | AH111: 34.96320406 | AI111: 0.764646163 | AJ111: 0.04569596143 | AK111: 5.976092426 | AL111: 0.001838102442 | AM111: 0.8103421244 | AO111: 105 | AQ111: 105 | AR111: 895 | AS111: 0.0006623448254 | AT111: 0.0003055347852 | AU111: 0.9096533775 | AV111: 0.202995193 | AW111: 0.2029952876 | AX111: 22.31567459 | AY111: 0.0007369570217 | AZ111: 1.112648665
AD112: 106 | AE112: 894 | AF112: 2.084099237 | AG112: 45.72468385 | AH112: 34.87396482 | AI112: 0.7626944987 | AJ112: 0.04557930338 | AK112: 5.976089176 | AL112: 0.001833410857 | AM112: 0.8082738021 | AO112: 106 | AQ112: 106 | AR112: 894 | AS112: 0.0006623448254 | AT112: 0.0003055347852 | AU112: 0.9088349397 | AV112: 0.2029137529 | AW112: 0.2029138481 | AX112: 22.32680977 | AY112: 0.0007363609923 | AZ112: 1.111748788
AD113: 107 | AE113: 893 | AF113: 2.078778702 | AG113: 45.72468385 | AH113: 34.78495336 | AI113: 0.7607478158 | AJ113: 0.04546294314 | AK113: 5.976085924 | AL113: 0.001828731248 | AM113: 0.8062107589 | AO113: 107 | AQ113: 107 | AR113: 893 | AS113: 0.0006623448254 | AT113: 0.0003055347852 | AU113: 0.9080172692 | AV113: 0.2028324848 | AW113: 0.2028325805 | AX113: 22.33796508 | AY113: 0.0007357655849 | AZ113: 1.11084985
AD114: 108 | AE114: 892 | AF114: 2.073471748 | AG114: 45.72468385 | AH114: 34.69616909 | AI114: 0.7588061015 | AJ114: 0.04534687993 | AK114: 5.976082669 | AL114: 0.001824063583 | AM114: 0.8041529815 | AO114: 108 | AQ114: 108 | AR114: 892 | AS114: 0.0006623448254 | AT114: 0.0003055347852 | AU114: 0.9072003654 | AV114: 0.2027513886 | AW114: 0.2027514848 | AX114: 22.34914055 | AY114: 0.0007351707992 | AZ114: 1.10995185
AD115: 109 | AE115: 891 | AF115: 2.068178342 | AG115: 45.72468385 | AH115: 34.60761144 | AI115: 0.7568693433 | AJ115: 0.045231113 | AK115: 5.976079412 | AL115: 0.001819407831 | AM115: 0.8021004563 | AO115: 109 | AQ115: 109 | AR115: 891 | AS115: 0.0006623448254 | AT115: 0.0003055347852 | AU115: 0.9063842275 | AV115: 0.2026704641 | AW115: 0.2026705608 | AX115: 22.36033623 | AY115: 0.0007345766346 | AZ115: 1.109054788
AD116: 110 | AE116: 890 | AF116: 2.062898449 | AG116: 45.72468385 | AH116: 34.51927981 | AI116: 0.7549375284 | AJ116: 0.0451156416 | AK116: 5.976076152 | AL116: 0.001814763963 | AM116: 0.80005317 | AO116: 110 | AQ116: 110 | AR116: 890 | AS116: 0.0006623448254 | AT116: 0.0003055347852 | AU116: 0.9055688549 | AV116: 0.2025897114 | AW116: 0.2025898086 | AX116: 22.37155215 | AY116: 0.0007339830906 | AZ116: 1.108158663
AD117: 111 | AE117: 889 | AF117: 2.057632034 | AG117: 45.72468385 | AH117: 34.43117364 | AI117: 0.7530106442 | AJ117: 0.04500046497 | AK117: 5.976072891 | AL117: 0.001810131948 | AM117: 0.7980111091 | AO117: 111 | AQ117: 111 | AR117: 889 | AS117: 0.0006623448254 | AT117: 0.0003055347852 | AU117: 0.9047542468 | AV117: 0.2025091303 | AW117: 0.2025092281 | AX117: 22.38278834 | AY117: 0.0007333901667 | AZ117: 1.107263475
AD118: 112 | AE118: 888 | AF118: 2.052379063 | AG118: 45.72468385 | AH118: 34.34329235 | AI118: 0.7510886781 | AJ118: 0.04488558236 | AK118: 5.976069627 | AL118: 0.001805511755 | AM118: 0.7959742605 | AO118: 112 | AQ118: 112 | AR118: 888 | AS118: 0.0006623448254 | AT118: 0.0003055347852 | AU118: 0.9039404026 | AV118: 0.2024287208 | AW118: 0.2024288191 | AX118: 22.39404484 | AY118: 0.0007327978623 | AZ118: 1.106369222
AD119: 113 | AE119: 887 | AF119: 2.047139501 | AG119: 45.72468385 | AH119: 34.25563536 | AI119: 0.7491716177 | AJ119: 0.04477099302 | AK119: 5.97606636 | AL119: 0.001800903356 | AM119: 0.7939426107 | AO119: 113 | AQ119: 113 | AR119: 887 | AS119: 0.0006623448254 | AT119: 0.0003055347852 | AU119: 0.9031273216 | AV119: 0.2023484829 | AW119: 0.2023485817 | AX119: 22.40532169 | AY119: 0.0007322061771 | AZ119: 1.105475903
AD120: 114 | AE120: 886 | AF120: 2.041913316 | AG120: 45.72468385 | AH120: 34.16820211 | AI120: 0.7472594503 | AJ120: 0.0446566962 | AK120: 5.976063092 | AL120: 0.001796306718 | AM120: 0.7919161465 | AO120: 114 | AQ120: 114 | AR120: 886 | AS120: 0.0006623448254 | AT120: 0.0003055347852 | AU120: 0.9023150031 | AV120: 0.2022684164 | AW120: 0.2022685157 | AX120: 22.41661892 | AY120: 0.0007316151105 | AZ120: 1.104583519
AD121: 115 | AE121: 885 | AF121: 2.036700471 | AG121: 45.72468385 | AH121: 34.08099203 | AI121: 0.7453521634 | AJ121: 0.04454269116 | AK121: 5.976059821 | AL121: 0.001791721814 | AM121: 0.7898948546 | AO121: 115 | AQ121: 115 | AR121: 885 | AS121: 0.0006623448254 | AT121: 0.0003055347852 | AU121: 0.9015034464 | AV121: 0.2021885212 | AW121: 0.2021886211 | AX121: 22.42793657 | AY121: 0.000731024662 | AZ121: 1.103692067
AD122: 116 | AE122: 884 | AF122: 2.031500934 | AG122: 45.72468385 | AH122: 33.99400453 | AI122: 0.7434497447 | AJ122: 0.04442897715 | AK122: 5.976056548 | AL122: 0.001787148611 | AM122: 0.7878787219 | AO122: 116 | AQ122: 116 | AR122: 884 | AS122: 0.0006623448254 | AT122: 0.0003055347852 | AU122: 0.9006926508 | AV122: 0.2021087975 | AW122: 0.2021088979 | AX122: 22.43927467 | AY122: 0.0007304348311 | AZ122: 1.102801549
AD123: 117 | AE123: 883 | AF123: 2.02631467 | AG123: 45.72468385 | AH123: 33.90723906 | AI123: 0.7415521817 | AJ123: 0.04431555342 | AK123: 5.976053272 | AL123: 0.001782587082 | AM123: 0.7858677351 | AO123: 117 | AQ123: 117 | AR123: 883 | AS123: 0.0006623448254 | AT123: 0.0003055347852 | AU123: 0.8998826157 | AV123: 0.2020292449 | AW123: 0.2020293459 | AX123: 22.45063327 | AY123: 0.0007298456173 | AZ123: 1.101911962
AD124: 118 | AE124: 882 | AF124: 2.021141645 | AG124: 45.72468385 | AH124: 33.82069505 | AI124: 0.739659462 | AJ124: 0.04420241924 | AK124: 5.976049995 | AL124: 0.001778037195 | AM124: 0.7838618812 | AO124: 118 | AQ124: 118 | AR124: 882 | AS124: 0.0006623448254 | AT124: 0.0003055347852 | AU124: 0.8990733403 | AV124: 0.2019498636 | AW124: 0.2019499651 | AX124: 22.46201239 | AY124: 0.0007292570201 | AZ124: 1.101023305
AD125: 119 | AE125: 881 | AF125: 2.015981826 | AG125: 45.72468385 | AH125: 33.73437194 | AI125: 0.7377715732 | AJ125: 0.04408957387 | AK125: 5.976046716 | AL125: 0.001773498921 | AM125: 0.7818611471 | AO125: 119 | AQ125: 119 | AR125: 881 | AS125: 0.0006623448254 | AT125: 0.0003055347852 | AU125: 0.898264824 | AV125: 0.2018706534 | AW125: 0.2018707554 | AX125: 22.47341207 | AY125: 0.0007286690391 | AZ125: 1.100135579
AD126: 120 | AE126: 880 | AF126: 2.010835179 | AG126: 45.72468385 | AH126: 33.64826915 | AI126: 0.735888503 | AJ126: 0.04397701657 | AK126: 5.976043434 | AL126: 0.001768972231 | AM126: 0.7798655196 | AO126: 120 | AQ126: 120 | AR126: 880 | AS126: 0.0006623448254 | AT126: 0.0003055347852 | AU126: 0.8974570662 | AV126: 0.2017916142 | AW126: 0.2017917168 | AX126: 22.48483235 | AY126: 0.0007280816736 | AZ126: 1.099248783
AD127: 121 | AE127: 879 | AF127: 2.00570167 | AG127: 45.72468385 | AH127: 33.56238613 | AI127: 0.7340102392 | AJ127: 0.0438647466 | AK127: 5.976040151 | AL127: 0.001764457095 | AM127: 0.7778749858 | AO127: 121 | AQ127: 121 | AR127: 879 | AS127: 0.0006623448254 | AT127: 0.0003055347852 | AU127: 0.896650066 | AV127: 0.2017127461 | AW127: 0.2017128492 | AX127: 22.49627327 | AY127: 0.0007274949233 | AZ127: 1.098362915
AD128: 122 | AE128: 878 | AF128: 2.000581266 | AG128: 45.72468385 | AH128: 33.47672231 | AI128: 0.7321367693 | AJ128: 0.04375276324 | AK128: 5.976036865 | AL128: 0.001759953483 | AM128: 0.7758895326 | AO128: 122 | AQ128: 122 | AR128: 878 | AS128: 0.0006623448254 | AT128: 0.0003055347852 | AU128: 0.8958438229 | AV128: 0.2016340489 | AW128: 0.2016341525 | AX128: 22.50773487 | AY128: 0.0007269087876 | AZ128: 1.097477975
AD129: 123 | AE129: 877 | AF129: 1.995473934 | AG129: 45.72468385 | AH129: 33.39127714 | AI129: 0.7302680813 | AJ129: 0.04364106574 | AK129: 5.976033577 | AL129: 0.001755461366 | AM129: 0.7739091471 | AO129: 123 | AQ129: 123 | AR129: 877 | AS129: 0.0006623448254 | AT129: 0.0003055347852 | AU129: 0.8950383361 | AV129: 0.2015555225 | AW129: 0.2015556266 | AX129: 22.51921717 | AY129: 0.0007263232661 | AZ129: 1.096593963
AD130: 124 | AE130: 876 | AF130: 1.990379639 | AG130: 45.72468385 | AH130: 33.30605006 | AI130: 0.7284041629 | AJ130: 0.04352965339 | AK130: 5.976030288 | AL130: 0.001750980715 | AM130: 0.7719338163 | AO130: 124 | AQ130: 124 | AR130: 876 | AS130: 0.0006623448254 | AT130: 0.0003055347852 | AU130: 0.894233605 | AV130: 0.2014771669 | AW130: 0.2014772716 | AX130: 22.53072021 | AY130: 0.0007257383581 | AZ130: 1.095710877
AD131: 125 | AE131: 875 | AF131: 1.985298349 | AG131: 45.72468385 | AH131: 33.22104051 | AI131: 0.7265450019 | AJ131: 0.04341852545 | AK131: 5.976026996 | AL131: 0.0017465115 | AM131: 0.7699635273 | AO131: 125 | AQ131: 125 | AR131: 875 | AS131: 0.0006623448254 | AT131: 0.0003055347852 | AU131: 0.8934296289 | AV131: 0.2013989821 | AW131: 0.2013990873 | AX131: 22.54224404 | AY131: 0.0007251540634 | AZ131: 1.094828716
AD132: 126 | AE132: 874 | AF132: 1.980230031 | AG132: 45.72468385 | AH132: 33.13624794 | AI132: 0.7246905862 | AJ132: 0.0433076812 | AK132: 5.976023703 | AL132: 0.001742053693 | AM132: 0.7679982674 | AO132: 126 | AQ132: 126 | AR132: 874 | AS132: 0.0006623448254 | AT132: 0.0003055347852 | AU132: 0.8926264071 | AV132: 0.2013209679 | AW132: 0.2013210736 | AX132: 22.55378869 | AY132: 0.0007245703813 | AZ132: 1.093947481
AD133: 127 | AE133: 873 | AF133: 1.975174651 | AG133: 45.72468385 | AH133: 33.05167179 | AI133: 0.7228409036 | AJ133: 0.04319711992 | AK133: 5.976020408 | AL133: 0.001737607264 | AM133: 0.7660380235 | AO133: 127 | AQ133: 127 | AR133: 873 | AS133: 0.0006623448254 | AT133: 0.0003055347852 | AU133: 0.8918239389 | AV133: 0.2012431243 | AW133: 0.2012432306 | AX133: 22.5653542 | AY133: 0.0007239873113 | AZ133: 1.09306717
AD134: 128 | AE134: =ENNE-AD134 -> 872 | AF134: =(1-betasquare)*((EXP(alpha*AE134))-(EXP(-alpha*AE134)))-Rg*(((POWER((1-beta),2)*(EXP(alpha*AE134)))-POWER((1+beta),2))*(EXP(-alpha*AE134))) -> 1.970132177 | AG134: =(POWER((1+beta),2)*EXP(alpha*ENNE))-(POWER((1-beta),2)*EXP(-(alpha*ENNE)))-(Rg*(1-betasquare)*(EXP(alpha*ENNE)-EXP(-(alpha*ENNE)))) -> 45.72468385 | AH134: =POWER((1+beta),2)*EXP(alpha*AE134)-POWER((1-beta),2)*EXP(-alpha*AE134)-Rg*(1-betasquare)*(EXP(alpha*AE134)-EXP(-alpha*AE134)) -> 32.96731151 | AI134: =AH134/AG134 -> 0.7209959422 | AJ134: =AF134/AG134 -> 0.04308684087 | AK134: 5.97601711 | AL134: 0.001733172183 | AM134: 0.764082783 | AO134: 128 | AQ134: 128 | AR134: =ENNE-AQ134 -> 872 | AS134: =IF(AO134<=$C$4,$S$5,(IF(AO134<=($C$5+$C$4),kappaBS,$S$5))) -> 0.0006623448254 | AT134: =esse -> 0.0003055347852 | AU134: 0.8910222237 | AV134: 0.2011654513 | AW134: =AW135-(AS134+AT134)*AW135+AT134*AU134 -> 0.2011655581 | AX134: =AW134/AU134*100 -> 22.57694059 | AY134: 0.0007234048531 | AZ134: =AU134+AW134 -> 1.092187782
AD135: 129 | AE135: 871 | AF135: 1.965102575 | AG135: 45.72468385 | AH135: 32.88316655 | AI135: 0.7191556898 | AJ135: 0.04297684335 | AK135: =AJ135/AI135*100 -> 5.976013811 | AL135: =kappaM*(AI135)+kappaM*AJ135 -> 0.001728748423 | AM135: =AI135+AJ135 -> 0.7621325331 | AO135: 129 | AQ135: 129 | AR135: 871 | AS135: 0.0006623448254 | AT135: 0.0003055347852 | AU135: 0.8902212608 | AV135: =AW135 -> 0.2010879488 | AW135: 0.2010880561 | AX135: 22.58854792 | AY135: =IF(AO135<=$C$4,AZ135*$S$5,IF(AO135<=($C$4+$C$5),AZ135*kappaBS,AZ135*$S$5)) -> 0.000722823006 | AZ135: 1.091309317
AD136: 130 | AE136: 870 | AF136: 1.960085812 | AG136: 45.72468385 | AH136: 32.79923636 | AI136: 0.7173201344 | AJ136: 0.04286712662 | AK136: 5.976010511 | AL136: 0.001724335954 | AM136: 0.760187261 | AO136: 130 | AQ136: 130 | AR136: 870 | AS136: 0.0006623448254 | AT136: 0.0003055347852 | AU136: =AU135-(AS136+AT136)*AU135+AT136*AV136 -> 0.8894210495 | AV136: 0.2010106166 | AW136: 0.2010107245 | AX136: 22.60017621 | AY136: 0.0007222417696 | AZ136: 1.090431774
AD137: 131 | AE137: 869 | AF137: 1.955081857 | AG137: 45.72468385 | AH137: 32.71552039 | AI137: 0.715489264 | AJ137: 0.04275768999 | AK137: 5.976007208 | AL137: 0.001719934748 | AM137: 0.758246954 | AO137: 131 | AQ137: 131 | AR137: 869 | AS137: 0.0006623448254 | AT137: 0.0003055347852 | AU137: 0.8886215891 | AV137: 0.2009334548 | AW137: 0.2009335632 | AX137: 22.61182551 | AY137: 0.0007216611434 | AZ137: 1.089555152
AD138: 132 | AE138: 868 | AF138: 1.950090675 | AG138: 45.72468385 | AH138: 32.6320181 | AI138: 0.7136630667 | AJ138: 0.04264853273 | AK138: 5.976003904 | AL138: 0.001715544775 | AM138: 0.7563115995 | AO138: 132 | AQ138: 132 | AR138: 868 | AS138: 0.0006623448254 | AT138: 0.0003055347852 | AU138: 0.887822879 | AV138: 0.2008564633 | AW138: 0.2008565722 | AX138: 22.62349585 | AY138: 0.000721081127 | AZ138: 1.088679451
AD139: 133 | AE139: 867 | AF139: 1.945112236 | AG139: 45.72468385 | AH139: 32.54872894 | AI139: 0.7118415306 | AJ139: 0.04253965412 | AK139: 5.976000598 | AL139: 0.001711166007 | AM139: 0.7543811847 | AO139: 133 | AQ139: 133 | AR139: 867 | AS139: 0.0006623448254 | AT139: 0.0003055347852 | AU139: 0.8870249185 | AV139: 0.200779642 | AW139: 0.2007797514 | AX139: 22.63518727 | AY139: 0.0007205017197 | AZ139: 1.08780467
AD140: 134 | AE140: 866 | AF140: 1.940146505 | AG140: 45.72468385 | AH140: 32.46565236 | AI140: 0.7100246437 | AJ140: 0.04243105346 | AK140: 5.97599729 | AL140: 0.001706798416 | AM140: 0.7524556972 | AO140: 134 | AQ140: 134 | AR140: 866 | AS140: 0.0006623448254 | AT140: 0.0003055347852 | AU140: 0.8862277069 | AV140: 0.2007029908 | AW140: 0.2007031008 | AX140: 22.6468998 | AY140: 0.0007199229212 | AZ140: 1.086930808
AD141: 135 | AE141: 865 | AF141: 1.935193451 | AG141: 45.72468385 | AH141: 32.38278782 | AI141: 0.7082123942 | AJ141: 0.04232273005 | AK141: 5.97599398 | AL141: 0.001702441972 | AM141: 0.7505351242 | AO141: 135 | AQ141: 135 | AR141: 865 | AS141: 0.0006623448254 | AT141: 0.0003055347852 | AU141: 0.8854312435 | AV141: 0.2006265097 | AW141: 0.2006266203 | AX141: 22.65863349 | AY141: 0.0007193447309 | AZ141: 1.086057864
AD142: 136 | AE142: 864 | AF142: 1.930253041 | AG142: 45.72468385 | AH142: 32.30013479 | AI142: 0.7064047702 | AJ142: 0.04221468316 | AK142: 5.975990669 | AL142: 0.001698096648 | AM142: 0.7486194534 | AO142: 136 | AQ142: 136 | AR142: 864 | AS142: 0.0006623448254 | AT142: 0.0003055347852 | AU142: 0.8846355277 | AV142: 0.2005501987 | AW142: 0.2005503098 | AX142: 22.67038837 | AY142: 0.0007187671484 | AZ142: 1.085185837
AD143: 137 | AE143: 863 | AF143: 1.925325243 | AG143: 45.72468385 | AH143: 32.21769272 | AI143: 0.70460176 | AJ143: 0.04210691209 | AK143: 5.975987357 | AL143: 0.001693762415 | AM143: 0.7467086721 | AO143: 137 | AQ143: 137 | AR143: 863 | AS143: 0.0006623448254 | AT143: 0.0003055347852 | AU143: 0.8838405587 | AV143: 0.2004740576 | AW143: 0.2004741692 | AX143: 22.68216447 | AY143: 0.0007181901732 | AZ143: 1.084314728
AD144: 138 | AE144: 862 | AF144: 1.920410025 | AG144: 45.72468385 | AH144: 32.13546107 | AI144: 0.7028033518 | AJ144: 0.04199941615 | AK144: 5.975984043 | AL144: 0.001689439244 | AM144: 0.7448027679 | AO144: 138 | AQ144: 138 | AR144: 862 | AS144: 0.0006623448254 | AT144: 0.0003055347852 | AU144: 0.883046336 | AV144: 0.2003980864 | AW144: 0.2003981986 | AX144: 22.69396184 | AY144: 0.0007176138048 | AZ144: 1.083444535
AD145: 139 | AE145: 861 | AF145: 1.915507355 | AG145: 45.72468385 | AH145: 32.0534393 | AI145: 0.7010095337 | AJ145: 0.04189219463 | AK145: 5.975980727 | AL145: 0.001685127108 | AM145: 0.7429017284 | AO145: 139 | AQ145: 139 | AR145: 861 | AS145: 0.0006623448254 | AT145: 0.0003055347852 | AU145: 0.8822528589 | AV145: 0.200322285 | AW145: 0.2003223977 | AX145: 22.70578052 | AY145: 0.0007170380426 | AZ145: 1.082575257
AD146: 140 | AE146: 860 | AF146: 1.910617201 | AG146: 45.72468385 | AH146: 31.97162689 | AI146: 0.6992202942 | AJ146: 0.04178524683 | AK146: 5.97597741 | AL146: 0.001680825978 | AM146: 0.741005541 | AO146: 140 | AQ146: 140 | AR146: 860 | AS146: 0.0006623448254 | AT146: 0.0003055347852 | AU146: 0.8814601266 | AV146: 0.2002466535 | AW146: 0.2002467667 | AX146: 22.71762053 | AY146: 0.0007164628863 | AZ146: 1.081706893
AD147: 141 | AE147: 859 | AF147: 1.90573953 | AG147: 45.72468385 | AH147: 31.8900233 | AI147: 0.6974356215 | AJ147: 0.04167857204 | AK147: 5.975974091 | AL147: 0.001676535827 | AM147: 0.7391141935 | AO147: 141 | AQ147: 141 | AR147: 859 | AS147: 0.0006623448254 | AT147: 0.0003055347852 | AU147: 0.8806681385 | AV147: 0.2001711916 | AW147: 0.2001713054 | AX147: 22.72948192 | AY147: 0.0007158883353 | AZ147: 1.080839444
AD148: 142 | AE148: 858 | AF148: 1.900874311 | AG148: 45.72468385 | AH148: 31.80862798 | AI148: 0.6956555039 | AJ148: 0.04157216958 | AK148: 5.975970771 | AL148: 0.001672256626 | AM148: 0.7372276735 | AO148: 142 | AQ148: 142 | AR148: 858 | AS148: 0.0006623448254 | AT148: 0.0003055347852 | AU148: 0.879876894 | AV148: 0.2000958993 | AW148: 0.2000960137 | AX148: 22.74136473 | AY148: 0.0007153143892 | AZ148: 1.079972908
AD149: 143 | AE149: 857 | AF149: 1.896021512 | AG149: 45.72468385 | AH149: 31.72744042 | AI149: 0.6938799299 | AJ149: 0.04146603875 | AK149: 5.97596745 | AL149: 0.001667988347 | AM149: 0.7353459687 | AO149: 143 | AQ149: 143 | AR149: 857 | AS149: 0.0006623448254 | AT149: 0.0003055347852 | AU149: 0.8790863924 | AV149: 0.2000207767 | AW149: 0.2000208915 | AX149: 22.75326899 | AY149: 0.0007147410474 | AZ149: 1.079107284
AD150: 144 | AE150: 856 | AF150: 1.891181102 | AG150: 45.72468385 | AH150: 31.64646008 | AI150: 0.6921088878 | AJ150: 0.04136017886 | AK150: 5.975964127 | AL150: 0.001663730962 | AM150: 0.7334690667 | AO150: 144 | AQ150: 144 | AR150: 856 | AS150: 0.0006623448254 | AT150: 0.0003055347852 | AU150: 0.878296633 | AV150: 0.1999458236 | AW150: 0.199945939 | AX150: 22.76519475 | AY150: 0.0007141683095 | AZ150: 1.078242572
AD151: 145 | AE151: 855 | AF151: 1.886353049 | AG151: 45.72468385 | AH151: 31.56568644 | AI151: 0.6903423661 | AJ151: 0.0412545892 | AK151: 5.975960803 | AL151: 0.001659484444 | AM151: 0.7315969553 | AO151: 145 | AQ151: 145 | AR151: 855 | AS151: 0.0006623448254 | AT151: 0.0003055347852 | AU151: 0.8775076151 | AV151: 0.1998710399 | AW151: 0.1998711558 | AX151: 22.77714203 | AY151: 0.0007135961749 | AZ151: 1.077378771
AD152: 146 | AE152: 854 | AF152: 1.88153732 | AG152: 45.72468385 | AH152: 31.48511896 | AI152: 0.6885803533 | AJ152: 0.04114926911 | AK152: 5.975957477 | AL152: 0.001655248765 | AM152: 0.7297296224 | AO152: 146 | AQ152: 146 | AR152: 854 | AS152: 0.0006623448254 | AT152: 0.0003055347852 | AU152: 0.8767193381 | AV152: 0.1997964256 | AW152: 0.1997965421 | AX152: 22.78911088 | AY152: 0.0007130246433 | AZ152: 1.07651588
AD153: 147 | AE153: 853 | AF153: 1.876733886 | AG153: 45.72468385 | AH153: 31.40475711 | AI153: 0.6868228377 | AJ153: 0.04104421787 | AK153: 5.97595415 | AL153: 0.001651023897 | AM153: 0.7278670556 | AO153: 147 | AQ153: 147 | AR153: 853 | AS153: 0.0006623448254 | AT153: 0.0003055347852 | AU153: 0.8759318013 | AV153: 0.1997219807 | AW153: 0.1997220977 | AX153: 22.80110134 | AY153: 0.0007124537142 | AZ153: 1.075653899
AD154: 148 | AE154: 852 | AF154: 1.871942714 | AG154: 45.72468385 | AH154: 31.32460038 | AI154: 0.685069808 | AJ154: 0.04093943482 | AK154: 5.975950822 | AL154: 0.001646809812 | AM154: 0.7260092428 | AO154: 148 | AQ154: 148 | AR154: 852 | AS154: 0.0006623448254 | AT154: 0.0003055347852 | AU154: 0.875145004 | AV154: 0.199647705 | AW154: 0.1996478225 | AX154: 22.81311344 | AY154: 0.000711883387 | AZ154: 1.074792827
AD155: 149 | AE155: 851 | AF155: 1.867163774 | AG155: 45.72468385 | AH155: 31.24464824 | AI155: 0.6833212527 | AJ155: 0.04083491927 | AK155: 5.975947493 | AL155: 0.001642606484 | AM155: 0.7241561719 | AO155: 149 | AQ155: 149 | AR155: 851 | AS155: 0.0006623448254 | AT155: 0.0003055347852 | AU155: 0.8743589457 | AV155: 0.1995735985 | AW155: 0.1995737166 | AX155: 22.82514722 | AY155: 0.0007113136612 | AZ155: 1.073932662
AD156: 150 | AE156: 850 | AF156: 1.862397033 | AG156: 45.72468385 | AH156: 31.16490017 | AI156: 0.6815771603 | AJ156: 0.04073067053 | AK156: 5.975944163 | AL156: 0.001638413884 | AM156: 0.7223078309 | AO156: 150 | AQ156: 150 | AR156: 850 | AS156: 0.0006623448254 | AT156: 0.0003055347852 | AU156: 0.8735736255 | AV156: 0.1994996612 | AW156: 0.1994997798 | AX156: 22.83720273 | AY156: 0.0007107445365 | AZ156: 1.073073405
AD157: 151 | AE157: 849 | AF157: 1.857642461 | AG157: 45.72468385 | AH157: 31.08535565 | AI157: 0.6798375196 | AJ157: 0.04062668792 | AK157: 5.975940831 | AL157: 0.001634231985 | AM157: 0.7204642075 | AO157: 151 | AQ157: 151 | AR157: 849 | AS157: 0.0006623448254 | AT157: 0.0003055347852 | AU157: 0.8727890429 | AV157: 0.199425893 | AW157: 0.1994260122 | AX157: 22.84927999 | AY157: 0.0007101760122 | AZ157: 1.072215055
AD158: 152 | AE158: 848 | AF158: 1.852900027 | AG158: 45.72468385 | AH158: 31.00601415 | AI158: 0.6781023191 | AJ158: 0.04052297076 | AK158: 5.975937499 | AL158: 0.001630060761 | AM158: 0.7186252898 | AO158: 152 | AQ158: 152 | AR158: 848 | AS158: 0.0006623448254 | AT158: 0.0003055347852 | AU158: 0.8720051972 | AV158: 0.1993522938 | AW158: 0.1993524135 | AX158: 22.86137905 | AY158: 0.000709608088 | AZ158: 1.071357611
AD159: 153 | AE159: 847 | AF159: 1.848169699 | AG159: 45.72468385 | AH159: 30.92687517 | AI159: 0.6763715474 | AJ159: 0.04041951839 | AK159: 5.975934165 | AL159: 0.001625900183 | AM159: 0.7167910658 | AO159: 153 | AQ159: 153 | AR159: 847 | AS159: 0.0006623448254 | AT159: 0.0003055347852 | AU159: 0.8712220878 | AV159: 0.1992788635 | AW159: 0.1992789838 | AX159: 22.87349995 | AY159: 0.0007090407633 | AZ159: 1.070501072
AD160: 154 | AE160: 846 | AF160: 1.843451448 | AG160: 45.72468385 | AH160: 30.84793818 | AI160: 0.6746451934 | AJ160: 0.04031633011 | AK160: 5.97593083 | AL160: 0.001621750224 | AM160: 0.7149615235 | AO160: 154 | AQ160: 154 | AR160: 846 | AS160: 0.0006623448254 | AT160: 0.0003055347852 | AU160: 0.8704397139 | AV160: 0.1992056022 | AW160: 0.199205723 | AX160: 22.88564272 | AY160: 0.0007084740377 | AZ160: 1.069645437
AD161: 155 | AE161: 845 | AF161: 1.838745242 | AG161: 45.72468385 | AH161: 30.76920266 | AI161: 0.6729232456 | AJ161: 0.04021340525 | AK161: 5.975927495 | AL161: 0.001617610858 | AM161: 0.7131366509 | AO161: 155 | AQ161: 155 | AR161: 845 | AS161: 0.0006623448254 | AT161: 0.0003055347852 | AU161: 0.8696580749 | AV161: 0.1991325097 | AW161: 0.199132631 | AX161: 22.8978074 | AY161: 0.0007079079107 | AZ161: 1.068790706
AD162: 156 | AE162: 844 | AF162: 1.83405105 | AG162: 45.72468385 | AH162: 30.69066811 | AI162: 0.6712056929 | AJ162: 0.04011074316 | AK162: 5.975924158 | AL162: 0.001613482057 | AM162: 0.7113164361 | AO162: 156 | AQ162: 156 | AR162: 844 | AS162: 0.0006623448254 | AT162: 0.0003055347852 | AU162: 0.8688771702 | AV162: 0.199059586 | AW162: 0.1990597079 | AX162: 22.90999404 | AY162: 0.0007073423819 | AZ162: 1.067936878
AD163: 157 | AE163: 843 | AF163: 1.829368841 | AG163: 45.72468385 | AH163: 30.612334 | AI163: 0.6694925241 | AJ163: 0.04000834314 | AK163: 5.975920821 | AL163: 0.001609363795 | AM163: 0.7095008672 | AO163: 157 | AQ163: 157 | AR163: 843 | AS163: 0.0006623448254 | AT163: 0.0003055347852 | AU163: 0.868096999 | AV163: 0.198986831 | AW163: 0.1989869534 | AX163: 22.92220266 | AY163: 0.0007067774506 | AZ163: 1.067083952
AD164: 158 | AE164: 842 | AF164: 1.824698586 | AG164: 45.72468385 | AH164: 30.53419984 | AI164: 0.6677837279 | AJ164: 0.03990620454 | AK164: 5.975917482 | AL164: 0.001605256044 | AM164: 0.7076899324 | AO164: 158 | AQ164: 158 | AR164: 842 | AS164: 0.0006623448254 | AT164: 0.0003055347852 | AU164: 0.8673175608 | AV164: 0.1989142446 | AW164: 0.1989143676 | AX164: 22.93443331 | AY164: 0.0007062131166 | AZ164: 1.066231928
AD165: 159 | AE165: 841 | AF165: 1.820040254 | AG165: 45.72468385 | AH165: 30.4562651 | AI165: 0.6660792932 | AJ165: 0.03980432669 | AK165: 5.975914143 | AL165: 0.001601158777 | AM165: 0.7058836199 | AO165: 159 | AQ165: 159 | AR165: 841 | AS165: 0.0006623448254 | AT165: 0.0003055347852 | AU165: 0.8665388549 | AV165: 0.1988418269 | AW165: 0.1988419504 | AX165: 22.94668604 | AY165: 0.0007056493792 | AZ165: 1.065380805
AD166: 160 | AE166: 840 | AF166: 1.815393813 | AG166: 45.72468385 | AH166: 30.37852928 | AI166: 0.6643792089 | AJ166: 0.03970270892 | AK166: 5.975910803 | AL166: 0.001597071969 | AM166: 0.7040819178 | AO166: 160 | AQ166: 160 | AR166: 840 | AS166: 0.0006623448254 | AT166: 0.0003055347852 | AU166: 0.8657608806 | AV166: 0.1987695777 | AW166: 0.1987697018 | AX166: 22.95896087 | AY166: 0.000705086238 | AZ166: 1.064530582
AD167: 161 | AE167: 839 | AF167: 1.810759235 | AG167: 45.72468385 | AH167: 30.30099187 | AI167: 0.6626834638 | AJ167: 0.03960135057 | AK167: 5.975907462 | AL167: 0.001592995592 | AM167: 0.7022848144 | AO167: 161 | AQ167: 161 | AR167: 839 | AS167: 0.0006623448254 | AT167: 0.0003055347852 | AU167: 0.8649836373 | AV167: 0.198697497 | AW167: 0.1986976216 | AX167: 22.97125784 | AY167: 0.0007045236926 | AZ167: 1.063681259
AD168: 162 | AE168: 838 | AF168: 1.806136488 | AG168: 45.72468385 | AH168: 30.22365237 | AI168: 0.6609920469 | AJ168: 0.03950025097 | AK168: 5.975904121 | AL168: 0.001588929619 | AM168: 0.7004922979 | AO168: 162 | AQ168: 162 | AR168: 838 | AS168: 0.0006623448254 | AT168: 0.0003055347852 | AU168: 0.8642071242 | AV168: 0.1986255847 | AW168: 0.1986257098 | AX168: 22.983577 | AY168: 0.0007039617424 | AZ168: 1.062832834
AD169: 163 | AE169: 837 | AF169: 1.801525542 | AG169: 45.72468385 | AH169: 30.14651027 | AI169: 0.6593049472 | AJ169: 0.03939940947 | AK169: 5.975900779 | AL169: 0.001584874024 | AM169: 0.6987043567 | AO169: 163 | AQ169: 163 | AR169: 837 | AS169: 0.0006623448254 | AT169: 0.0003055347852 | AU169: 0.8634313408 | AV169: 0.1985538407 | AW169: 0.1985539664 | AX169: 22.99591838 | AY169: 0.0007034003871 | AZ169: 1.061985307
AD170: 164 | AE170: 836 | AF170: 1.796926368 | AG170: 45.72468385 | AH170: 30.06956506 | AI170: 0.6576221536 | AJ170: 0.03929882541 | AK170: 5.975897436 | AL170: 0.001580828781 | AM170: 0.696920979 | AO170: 164 | AQ170: 164 | AR170: 836 | AS170: 0.0006623448254 | AT170: 0.0003055347852 | AU170: 0.8626562865 | AV170: 0.1984822651 | AW170: 0.1984823913 | AX170: 23.00828203 | AY170: 0.000702839626 | AZ170: 1.061138678
AD171: 165 | AE171: 835 | AF171: 1.792338934 | AG171: 45.72468385 | AH171: 29.99281625 | AI171: 0.6559436551 | AJ171: 0.03919849813 | AK171: 5.975894092 | AL171: 0.001576793863 | AM171: 0.6951421532 | AO171: 165 | AQ171: 165 | AR171: 835 | AS171: 0.0006623448254 | AT171: 0.0003055347852 | AU171: 0.8618819604 | AV171: 0.1984108577 | AW171: 0.1984109845 | AX171: 23.02066798 | AY171: 0.0007022794588 | AZ171: 1.060292945
AD172: 166 | AE172: 834 | AF172: 1.787763212 | AG172: 45.72468385 | AH172: 29.91626333 | AI172: 0.6542694407 | AJ172: 0.03909842698 | AK172: 5.975890748 | AL172: 0.001572769244 | AM172: 0.6933678677 | AO172: 166 | AQ172: 166 | AR172: 834 | AS172: 0.0006623448254 | AT172: 0.0003055347852 | AU172: 0.861108362 | AV172: 0.1983396184 | AW172: 0.1983397458 | AX172: 23.03307627 | AY172: 0.000701719885 | AZ172: 1.059448108
AD173: 167 | AE173: 833 | AF173: 1.783199172 | AG173: 45.72468385 | AH173: 29.8399058 | AI173: 0.6525994996 | AJ173: 0.03899861129 | AK173: 5.975887403 | AL173: 0.001568754897 | AM173: 0.6915981109 | AO173: 167 | AQ173: 167 | AR173: 833 | AS173: 0.0006623448254 | AT173: 0.0003055347852 | AU173: 0.8603354907 | AV173: 0.1982685473 | AW173: 0.1982686752 | AX173: 23.04550694 | AY173: 0.0007011609041 | AZ173: 1.058604166
AD174: 168 | AE174: 832 | AF174: 1.778646783 | AG174: 45.72468385 | AH174: 29.76374316 | AI174: 0.6509338208 | AJ174: 0.03889905043 | AK174: 5.975884058 | AL174: 0.001564750797 | AM174: 0.6898328713 | AO174: 168 | AQ174: 168 | AR174: 832 | AS174: 0.0006623448254 | AT174: 0.0003055347852 | AU174: 0.8595633458 | AV174: 0.1981976443 | AW174: 0.1981977728 | AX174: 23.05796004 | AY174: 0.0007006025156 | AZ174: 1.057761119
AD175: 169 | AE175: 831 | AF175: 1.774106016 | AG175: 45.72468385 | AH175: 29.68777492 | AI175: 0.6492723935 | AJ175: 0.03879974374 | AK175: 5.975880713 | AL175: 0.001560756916 | AM175: 0.6880721372 | AO175: 169 | AQ175: 169 | AR175: 831 | AS175: 0.0006623448254 | AT175: 0.0003055347852 | AU175: 0.8587919266 | AV175: 0.1981269093 | AW175: 0.1981270383 | AX175: 23.07043559 | AY175: 0.000700044719 | AZ175: 1.056918965
AD176: 170 | AE176: 830 | AF176: 1.769576841 | AG176: 45.72468385 | AH176: 29.61200058 | AI176: 0.6476152068 | AJ176: 0.03870069057 | AK176: 5.975877367 | AL176: 0.00155677323 | AM176: 0.6863158973 | AO176: 170 | AQ176: 170 | AR176: 830 | AS176: 0.0006623448254 | AT176: 0.0003055347852 | AU176: 0.8580212324 | AV176: 0.1980563422 | AW176: 0.1980564717 | AX176: 23.08293364 | AY176: 0.000699487514 | AZ176: 1.056077704
AD177: 171 | AE177: 829 | AF177: 1.765059228 | AG177: 45.72468385 | AH177: 29.53641965 | AI177: 0.6459622498 | AJ177: 0.03860189027 | AK177: 5.97587402 | AL177: 0.001552799712 | AM177: 0.68456414 | AO177: 171 | AQ177: 171 | AR177: 829 | AS177: 0.0006623448254 | AT177: 0.0003055347852 | AU177: 0.8572512627 | AV177: 0.1979859429 | AW177: 0.1979860731 | AX177: 23.09545424 | AY177: 0.0006989309 | AZ177: 1.055237336
AD178: 172 | AE178: 828 | AF178: 1.760553149 | AG178: 45.72468385 | AH178: 29.46103162 | AI178: 0.6443135118 | AJ178: 0.0385033422 | AK178: 5.975870674 | AL178: 0.001548836335 | AM178: 0.682816854 | AO178: 172 | AQ178: 172 | AR178: 828 | AS178: 0.0006623448254 | AT178: 0.0003055347852 | AU178: 0.8564820168 | AV178: 0.1979157116 | AW178: 0.1979158422 | AX178: 23.10799741 | AY178: 0.0006983748765 | AZ178: 1.054397859
AD179: 173 | AE179: 827 | AF179: 1.756058573 | AG179: 45.72468385 | AH179: 29.38583602 | AI179: 0.642668982 | AJ179: 0.03840504571 | AK179: 5.975867327 | AL179: 0.001544883075 | AM179: 0.6810740277 | AO179: 173 | AQ179: 173 | AR179: 827 | AS179: 0.0006623448254 | AT179: 0.0003055347852 | AU179: 0.855713494 | AV179: 0.197845648 | AW179: 0.1978457792 | AX179: 23.1205632 | AY179: 0.0006978194431 | AZ179: 1.053559273
AD180: 174 | AE180: 826 | AF180: 1.751575472 | AG180: 45.72468385 | AH180: 29.31083234 | AI180: 0.6410286496 | AJ180: 0.03830700017 | AK180: 5.97586398 | AL180: 0.001540939905 | AM180: 0.6793356498 | AO180: 174 | AQ180: 174 | AR180: 826 | AS180: 0.0006623448254 | AT180: 0.0003055347852 | AU180: 0.8549456937 | AV180: 0.197775752 | AW180: 0.1977758838 | AX180: 23.13315165 | AY180: 0.0006972645993 | AZ180: 1.052721578
AD181: 175 | AE181: 825 | AF181: 1.747103816 | AG181: 45.72468385 | AH181: 29.2360201 | AI181: 0.639392504 | AJ181: 0.03820920493 | AK181: 5.975860632 | AL181: 0.0015370068 | AM181: 0.677601709 | AO181: 175 | AQ181: 175 | AR181: 825 | AS181: 0.0006623448254 | AT181: 0.0003055347852 | AU181: 0.8541786152 | AV181: 0.1977060238 | AW181: 0.1977061561 | AX181: 23.14576279 | AY181: 0.0006967103447 | AZ181: 1.051884771
AD182: 176 | AE182: 824 | AF182: 1.742643575 | AG182: 45.72468385 | AH182: 29.16139881 | AI182: 0.6377605345 | AJ182: 0.03811165936 | AK182: 5.975857285 | AL182: 0.001533083734 | AM182: 0.6758721939 | AO182: 176 | AQ182: 176 | AR182: 824 | AS182: 0.0006623448254 | AT182: 0.0003055347852 | AU182: 0.8534122579 | AV182: 0.1976364631 | AW182: 0.197636596 | AX182: 23.15839668 | AY182: 0.0006961566788 | AZ182: 1.051048854
AD183: 177 | AE183: 823 | AF183: 1.738194721 | AG183: 45.72468385 | AH183: 29.08696798 | AI183: 0.6361327304 | AJ183: 0.03801436281 | AK183: 5.975853937 | AL183: 0.001529170681 | AM183: 0.6741470932 | AO183: 177 | AQ183: 177 | AR183: 823 | AS183: 0.0006623448254 | AT183: 0.0003055347852 | AU183: 0.8526466212 | AV183: 0.19756707 | AW183: 0.1975672034 | AX183: 23.17105335 | AY183: 0.000695603601 | AZ183: 1.050213825
AD184: 178 | AE184: 822 | AF184: 1.733757225 | AG184: 45.72468385 | AH184: 29.01272713 | AI184: 0.6345090811 | AJ184: 0.03791731466 | AK184: 5.975850589 | AL184: 0.001525267615 | AM184: 0.6724263957 | AO184: 178 | AQ184: 178 | AR184: 822 | AS184: 0.0006623448254 | AT184: 0.0003055347852 | AU184: 0.8518817043 | AV184: 0.1974978444 | AW184: 0.1974979784 | AX184: 23.18373283 | AY184: 0.000695051111 | AZ184: 1.049379683
AD185: 179 | AE185: 821 | AF185: 1.729331057 | AG185: 45.72468385 | AH185: 28.93867577 | AI185: 0.6328895759 | AJ185: 0.03782051426 | AK185: 5.975847241 | AL185: 0.001521374512 | AM185: 0.6707100901 | AO185: 179 | AQ185: 179 | AR185: 821 | AS185: 0.0006623448254 | AT185: 0.0003055347852 | AU185: 0.8511175067 | AV185: 0.1974287862 | AW185: 0.1974289207 | AX185: 23.19643517 | AY185: 0.0006944992083 | AZ185: 1.048546427
AD186: 180 | AE186: 820 | AF186: 1.72491619 | AG186: 45.72468385 | AH186: 28.86481341 | AI186: 0.6312742043 | AJ186: 0.03772396099 | AK186: 5.975843893 | AL186: 0.001517491346 | AM186: 0.6689981653 | AO186: 180 | AQ186: 180 | AR186: 820 | AS186: 7.485403849e-06 | AT186: 0.0003055347852 | AU186: 0.85091139 | AV186: 0.1973598953 | AW186: 0.1973600304 | AX186: 23.193958 | AY186: 7.84673388e-06 | AZ186: 1.04827142
AD187: 181 | AE187: 819 | AF187: 1.720512593 | AG187: 45.72468385 | AH187: 28.79113958 | AI187: 0.6296629557 | AJ187: 0.03762765421 | AK187: 5.975840546 | AL187: 0.001513618091 | AM187: 0.66729061 | AO187: 181 | AQ187: 181 | AR187: 819 | AS187: 7.485403849e-06 | AT187: 0.0003055347852 | AU187: 0.8507052773 | AV187: 0.197161763 | AW187: 0.1971618985 | AX187: 23.17628723 | AY187: 7.843707942e-06 | AZ187: 1.047867176
AD188: 182 | AE188: 818 | AF188: 1.716120238 | AG188: 45.72468385 | AH188: 28.71765379 | AI188: 0.6280558197 | AJ188: 0.0375315933 | AK188: 5.975837198 | AL188: 0.001509754722 | AM188: 0.665587413 | AO188: 182 | AQ188: 182 | AR188: 818 | AS188: 7.485403849e-06 | AT188: 0.0003055347852 | AU188: 0.8504991686 | AV188: 0.1969636321 | AW188: 0.1969637681 | AX188: 23.15860795 | AY188: 7.840682045e-06 | AZ188: 1.047462937
AD189: 183 | AE189: 817 | AF189: 1.711739096 | AG189: 45.72468385 | AH189: 28.64435557 | AI189: 0.6264527857 | AJ189: 0.03743577762 | AK189: 5.97583385 | AL189: 0.001505901214 | AM189: 0.6638885633 | AO189: 183 | AQ189: 183 | AR189: 817 | AS189: 7.485403849e-06 | AT189: 0.0003055347852 | AU189: 0.8502930638 | AV189: 0.1967655026 | AW189: 0.196765639 | AX189: 23.14092016 | AY189: 7.837656188e-06 | AZ189: 1.047058703
AD190: 184 | AE190: 816 | AF190: 1.70736914 | AG190: 45.72468385 | AH190: 28.57124443 | AI190: 0.6248538432 | AJ190: 0.03734020656 | AK190: 5.975830503 | AL190: 0.001502057542 | AM190: 0.6621940498 | AO190: 184 | AQ190: 184 | AR190: 816 | AS190: 7.485403849e-06 | AT190: 0.0003055347852 | AU190: 0.8500869631 | AV190: 0.1965673745 | AW190: 0.1965675114 | AX190: 23.12322385 | AY190: 7.834630372e-06 | AZ190: 1.046654474
AD191: 185 | AE191: 815 | AF191: 1.70301034 | AG191: 45.72468385 | AH191: 28.4983199 | AI191: 0.6232589819 | AJ191: 0.03724487949 | AK191: 5.975827156 | AL191: 0.001498223681 | AM191: 0.6605038614 | AO191: 185 | AQ191: 185 | AR191: 815 | AS191: 7.485403849e-06 | AT191: 0.0003055347852 | AU191: 0.8498808663 | AV191: 0.1963692478 | AW191: 0.1963693852 | AX191: 23.10551902 | AY191: 7.831604596e-06 | AZ191: 1.046250251
AD192: 186 | AE192: 814 | AF192: 1.698662667 | AG192: 45.72468385 | AH192: 28.4255815 | AI192: 0.6216681912 | AJ192: 0.03714979579 | AK192: 5.975823809 | AL192: 0.001494399605 | AM192: 0.658817987 | AO192: 186 | AQ192: 186 | AR192: 814 | AS192: 7.485403849e-06 | AT192: 0.0003055347852 | AU192: 0.8496747735 | AV192: 0.1961711226 | AW192: 0.1961712604 | AX192: 23.08780566 | AY192: 7.82857886e-06 | AZ192: 1.045846034
AD193: 187 | AE193: 813 | AF193: 1.694326094 | AG193: 45.72468385 | AH193: 28.35302876 | AI193: 0.6200814609 | AJ193: 0.03705495482 | AK193: 5.975820463 | AL193: 0.001490585289 | AM193: 0.6571364157 | AO193: 187 | AQ193: 187 | AR193: 813 | AS193: 7.485403849e-06 | AT193: 0.0003055347852 | AU193: 0.8494686846 | AV193: 0.1959729988 | AW193: 0.1959731371 | AX193: 23.07008376 | AY193: 7.825553165e-06 | AZ193: 1.045441822
AD194: 188 | AE194: 812 | AF194: 1.690000592 | AG194: 45.72468385 | AH194: 28.2806612 | AI194: 0.6184987805 | AJ194: 0.03696035599 | AK194: 5.975817116 | AL194: 0.00148678071 | AM194: 0.6554591364 | AO194: 188 | AQ194: 188 | AR194: 812 | AS194: 7.485403849e-06 | AT194: 0.0003055347852 | AU194: 0.8492625998 | AV194: 0.1957748763 | AW194: 0.1957750151 | AX194: 23.05235332 | AY194: 7.82252751e-06 | AZ194: 1.045037615
AD195: 189 | AE195: 811 | AF195: 1.685686133 | AG195: 45.72468385 | AH195: 28.20847834 | AI195: 0.6169201396 | AJ195: 0.03686599866 | AK195: 5.975813771 | AL195: 0.001482985841 | AM195: 0.6537861383 | AO195: 189 | AQ195: 189 | AR195: 811 | AS195: 7.485403849e-06 | AT195: 0.0003055347852 | AU195: 0.8490565189 | AV195: 0.1955767553 | AW195: 0.1955768946 | AX195: 23.03461433 | AY195: 7.819501895e-06 | AZ195: 1.044633413
AD196: 190 | AE196: 810 | AF196: 1.681382689 | AG196: 45.72468385 | AH196: 28.13647973 | AI196: 0.6153455281 | AJ196: 0.03677188222 | AK196: 5.975810425 | AL196: 0.001479200658 | AM196: 0.6521174103 | AO196: 190 | AQ196: 190 | AR196: 810 | AS196: 7.485403849e-06 | AT196: 0.0003055347852 | AU196: 0.848850442 | AV196: 0.1953786357 | AW196: 0.1953787755 | AX196: 23.01686679 | AY196: 7.816476321e-06 | AZ196: 1.044229217
AD197: 191 | AE197: 809 | AF197: 1.677090231 | AG197: 45.72468385 | AH197: 28.06466488 | AI197: 0.6137749356 | AJ197: 0.03667800606 | AK197: 5.975807081 | AL197: 0.001475425137 | AM197: 0.6504529416 | AO197: 191 | AQ197: 191 | AR197: 809 | AS197: 7.485403849e-06 | AT197: 0.0003055347852 | AU197: 0.8486443691 | AV197: 0.1951805176 | AW197: 0.1951806577 | AX197: 22.99911068 | AY197: 7.813450787e-06 | AZ197: 1.043825027
AD198: 192 | AE198: =ENNE-AD198 -> 808 | AF198: =(1-betasquare)*((EXP(alpha*AE198))-(EXP(-alpha*AE198)))-Rg*(((POWER((1-beta),2)*(EXP(alpha*AE198)))-POWER((1+beta),2))*(EXP(-alpha*AE198))) -> 1.672808732 | AG198: =(POWER((1+beta),2)*EXP(alpha*ENNE))-(POWER((1-beta),2)*EXP(-(alpha*ENNE)))-(Rg*(1-betasquare)*(EXP(alpha*ENNE)-EXP(-(alpha*ENNE)))) -> 45.72468385 | AH198: =POWER((1+beta),2)*EXP(alpha*AE198)-POWER((1-beta),2)*EXP(-alpha*AE198)-Rg*(1-betasquare)*(EXP(alpha*AE198)-EXP(-alpha*AE198)) -> 27.99303333 | AI198: =AH198/AG198 -> 0.6122083518 | AJ198: =AF198/AG198 -> 0.03658436956 | AK198: 5.975803736 | AL198: 0.001471659253 | AM198: 0.6487927214 | AO198: 192 | AQ198: 192 | AR198: =ENNE-AQ198 -> 808 | AS198: =IF(AO198<=$C$4,$S$5,(IF(AO198<=($C$5+$C$4),kappaBS,$S$5))) -> 7.485403849e-06 | AT198: =esse -> 0.0003055347852 | AU198: 0.8484383001 | AV198: 0.1949824008 | AW198: =AW199-(AS198+AT198)*AW199+AT198*AU198 -> 0.1949825414 | AX198: =AW198/AU198*100 -> 22.98134601 | AY198: 7.810425293e-06 | AZ198: =AU198+AW198 -> 1.043420842
AD199: 193 | AE199: 807 | AF199: 1.668538163 | AG199: 45.72468385 | AH199: 27.92158462 | AI199: 0.6106457665 | AJ199: 0.03649097211 | AK199: =AJ199/AI199*100 -> 5.975800393 | AL199: =kappaM*(AI199)+kappaM*AJ199 -> 0.00146790298 | AM199: =AI199+AJ199 -> 0.6471367387 | AO199: 193 | AQ199: 193 | AR199: 807 | AS199: 7.485403849e-06 | AT199: 0.0003055347852 | AU199: 0.8482322351 | AV199: =AW199 -> 0.1947842854 | AW199: 0.1947844265 | AX199: 22.96357276 | AY199: =IF(AO199<=$C$4,AZ199*$S$5,IF(AO199<=($C$4+$C$5),AZ199*kappaBS,AZ199*$S$5)) -> 7.807399839e-06 | AZ199: 1.043016662
AD200: 194 | AE200: 806 | AF200: 1.664278497 | AG200: 45.72468385 | AH200: 27.85031826 | AI200: 0.6090871696 | AJ200: 0.03639781311 | AK200: 5.97579705 | AL200: 0.001464156295 | AM200: 0.6454849827 | AO200: 194 | AQ200: 194 | AR200: 806 | AS200: 7.485403849e-06 | AT200: 0.0003055347852 | AU200: =AU199-(AS200+AT200)*AU199+AT200*AV200 -> 0.8480261741 | AV200: 0.1945861715 | AW200: 0.194586313 | AX200: 22.94579094 | AY200: 7.804374426e-06 | AZ200: 1.042612487
AD201: 195 | AE201: 805 | AF201: 1.660029706 | AG201: 45.72468385 | AH201: 27.77923381 | AI201: 0.6075325508 | AJ201: 0.03630489194 | AK201: 5.975793707 | AL201: 0.001460419173 | AM201: 0.6438374427 | AO201: 195 | AQ201: 195 | AR201: 805 | AS201: 7.485403849e-06 | AT201: 0.0003055347852 | AU201: 0.8478201171 | AV201: 0.1943880589 | AW201: 0.1943882009 | AX201: 22.92800053 | AY201: 7.801349053e-06 | AZ201: 1.042208318
... 806 more rows

Sheet (wheat)
K2: Quantities to be Fitted
B3: Input | K3: S | M3: 0.0003818328259 | P3: Quantities for integration
B4: Layers MAD | C4: 249 | K4: KMI | M4: 0.001908512491 | P4: MI | R4: MA | T4: VB | W4: Additional quantities | AD4: Integration for profile P1 | AO4: Integration for profile P2
B5: Layers Vein | C5: 502 | P5: KMI | Q5: =kappaM -> 0.001908512491 | R5: KMA | S5: =C13*kappaM -> 0.001908512491 | T5: KVB | U5: =C14*kappaM -> 0.0003778854733 | W5: N | X5: 1000 | AD5: n | AE5: N-n | AF5: num J | AG5: denom | AH5: num I | AI5: I P1 | AJ5: J | AK5: J/I % | AL5: A | AM5: I+J | AO5: Layer | AQ5: n | AR5: N-n | AS5: k | AT5: s | AU5: I P2 | AV5: J P2(1) | AW5: J P2(1) | AX5: J/I % | AY5: A | AZ5: I+J
B6: Layers MAB | C6: 249 | K6: Sq.Differences for curve fitting | P6: α2 | Q6: =kappaM*(kappaM+2*esse) -> 5.099885366e-06 | W6: M | X6: =1-C7 -> 0.806 | Y6: Width factor | Z6: =C7/X6 -> 0.2406947891 | AD6: 0 | AE6: =ENNE-AD6 -> 1000 | AF6: =(1-betasquare)*((EXP(alpha*AE6))-(EXP(-alpha*AE6)))-Rg*(((POWER((1-beta),2)*(EXP(alpha*AE6)))-POWER((1+beta),2))*(EXP(-alpha*AE6))) -> 2.724060737 | AG6: =(POWER((1+beta),2)*EXP(alpha*ENNE))-(POWER((1-beta),2)*EXP(-(alpha*ENNE)))-(Rg*(1-betasquare)*(EXP(alpha*ENNE)-EXP(-(alpha*ENNE)))) -> 32.40465848 | AH6: =POWER((1+beta),2)*EXP(alpha*AE6)-POWER((1-beta),2)*EXP(-alpha*AE6)-Rg*(1-betasquare)*(EXP(alpha*AE6)-EXP(-alpha*AE6)) -> 32.40465848 | AI6: =AH6/AG6 -> 1 | AJ6: =AF6/AG6 -> 0.08406386195 | AK6: =AJ6/AI6*100 -> 8.406386195 | AM6: =AI6+AJ6 -> 1.084063862 | AO6: 0 | AQ6: 0 | AR6: =ENNE-AQ6 -> 1000 | AS6: =IF(AO6<=$C$4,$S$5,(IF(AO6<=($C$5+$C$4),kappaBS,$S$5))) -> 0.001908512491 | AT6: =esse -> 0.0003818328259 | AU6: 1 | AV6: =AW6 -> 0.1127472285 | AW6: =AW7-(AS6+AT6)*AW7+AT6*AU6 -> 0.1127472369 | AX6: =AW6/AU6*100 -> 11.27472369 | AZ6: =AU6+AW6 -> 1.112747237
B7: VEW/IVD | C7: 0.194 | K7: Sqdiff leaf level transmittance | M7: =POWER((C28-trasmittance),2) -> 0.0001756828772 | P7: α | Q7: =SQRT(alphasquare) -> 0.002258292578 | AD7: 1 | AE7: 999 | AF7: 2.71787422 | AG7: 32.40465848 | AH7: 32.33155862 | AI7: 0.9977441557 | AJ7: 0.0838729475 | AK7: =AJ7/AI7*100 -> 8.406257959 | AL7: =kappaM*(AI7)+kappaM*AJ7 -> 0.002064279753 | AM7: =AI7+AJ7 -> 1.081617103 | AO7: 1 | AQ7: 1 | AR7: 999 | AS7: 0.001908512491 | AT7: 0.0003818328259 | AU7: =AU6-(AS7+AT7)*AU6+AT7*AV7 -> 0.997752658 | AV7: =AW7 -> 0.1126233504 | AW7: 0.1126233589 | AX7: 11.28770322 | AY7: =IF(AO7<=$C$4,AZ7*$S$5,IF(AO7<=($C$4+$C$5),AZ7*kappaBS,AZ7*$S$5)) -> 0.002119166482 | AZ7: 1.110376017
K8: Sqdiff absorptance | M8: =POWER((1-reflectance-trasmittance)-C27,2) -> 0.0001150156278 | P8: β2 | Q8: =kappaM/(kappaM+2*esse) -> 0.7142160399 | W8: J(N)=RgI(N) | Y8: 0.06 | AD8: 2 | AE8: 998 | AF8: 2.71170157 | AG8: 32.40465848 | AH8: 32.25862364 | AI8: 0.9954933999 | AJ8: 0.08368246102 | AK8: 8.406129165 | AL8: 0.002059620611 | AM8: 1.079175861 | AO8: 2 | AQ8: 2 | AR8: 998 | AS8: 0.001908512491 | AT8: 0.0003818328259 | AU8: =AU7-(AS8+AT8)*AU7+AT8*AV8 -> 0.9955104161 | AV8: 0.1125000482 | AW8: 0.1125000567 | AX8: 11.3007413 | AY8: 0.002114651812 | AZ8: 1.108010473
K9: Sqdiff Reflectance | M9: =POWER(reflectance-C26,2) -> 0.0001075693594 | P9: β | Q9: =SQRT(betasquare) -> 0.8451130338 | AD9: 3 | AE9: 997 | AF9: 2.705542758 | AG9: 32.40465848 | AH9: 32.18585318 | AI9: 0.9932477209 | AJ9: 0.08349240154 | AK9: 8.40599981 | AL9: 0.002054971974 | AM9: 1.076740122 | AO9: 3 | AQ9: 3 | AR9: 997 | AS9: 0.001908512491 | AT9: 0.0003818328259 | AU9: 0.9932732628 | AV9: 0.112377321 | AW9: 0.1123773296 | AX9: 11.31383818 | AY9: 0.00211014795 | AZ9: 1.105650592
B10: Leaf level reflectance R | C10: 0.1 | K10: sqdiff optic | M10: =M7+M8+M9 -> 0.0003982678643 | W10: Sqdiff I | Y10: =POWER((AM1007-trasmittance),2) -> 3.760703392e-06 | AD10: 4 | AE10: 996 | AF10: 2.69939775 | AG10: 32.40465848 | AH10: 32.11324687 | AI10: 0.9910071074 | AJ10: 0.08330276808 | AK10: 8.405869893 | AL10: 0.002050333817 | AM10: 1.074309875 | AO10: 4 | AQ10: 4 | AR10: 996 | AS10: 0.001908512491 | AT10: 0.0003818328259 | AU10: 0.9910411867 | AV10: 0.1122551684 | AW10: 0.112255177 | AX10: 11.32699413 | AY10: 0.002105654875 | AZ10: 1.103296364
B11: Leaf level Transmittance T | C11: 0.1 | W11: Sqdiff J | Y11: =POWER((AJ6-reflectance),2) -> 0.0002539604958 | AD11: 5 | AE11: 995 | AF11: 2.693266517 | AG11: 32.40465848 | AH11: 32.04080433 | AI11: 0.9887715479 | AJ11: 0.08311355969 | AK11: 8.405739411 | AL11: 0.002045706117 | AM11: 1.071885108 | AO11: 5 | AQ11: 5 | AR11: 995 | AS11: 0.001908512491 | AT11: 0.0003818328259 | AU11: 0.9888141765 | AV11: 0.1121335896 | AW11: 0.1121335983 | AX11: 11.34020941 | AY11: 0.002101172564 | AZ11: 1.100947775
AD12: 6 | AE12: 994 | AF12: 2.687149026 | AG12: 32.40465848 | AH12: 31.96852519 | AI12: 0.9865410311 | AJ12: 0.08292477539 | AK12: 8.405608361 | AL12: 0.002041088851 | AM12: 1.069465806 | AO12: 6 | AQ12: 6 | AR12: 994 | AS12: 0.001908512491 | AT12: 0.0003818328259 | AU12: 0.9865922206 | AV12: 0.1120125841 | AW12: 0.1120125928 | AX12: 11.3534843 | AY12: 0.002096700993 | AZ12: 1.098604813
B13: kMA/kMI | C13: 1 | P13: Profile level output | AD13: 7 | AE13: 993 | AF13: 2.681045247 | AG13: 32.40465848 | AH13: 31.89640909 | AI13: 0.9843155454 | AJ13: 0.08273641422 | AK13: 8.40547674 | AL13: 0.002036481994 | AM13: 1.06705196 | AO13: 7 | AQ13: 7 | AR13: 993 | AS13: 0.001908512491 | AT13: 0.0003818328259 | AU13: 0.9843753078 | AV13: 0.1118921512 | AW13: 0.11189216 | AX13: 11.36681905 | AY13: 0.00209224014 | AZ13: 1.096267468
B14: kVB/KMI | C14: 0.198 | Q14: P1 | S14: P2 | AD14: 8 | AE14: 992 | AF14: 2.674955148 | AG14: 32.40465848 | AH14: 31.82445566 | AI14: 0.9820950797 | AJ14: 0.08254847523 | AK14: 8.405344547 | AL14: 0.002031885524 | AM14: 1.064643555 | AO14: 8 | AQ14: 8 | AR14: 992 | AS14: 0.001908512491 | AT14: 0.0003818328259 | AU14: 0.9821634268 | AV14: 0.1117722903 | AW14: 0.1117722992 | AX14: 11.38021394 | AY14: 0.002087789981 | AZ14: 1.093935726
P15: Atot P1 | Q15: =SUM(AL7:AL1006) -> 0.8175641315 | R15: A tot MAD | S15: =SUM(OFFSET(AY7,0,0,$C$4,1)) -> 0.4125456907 | AD15: 9 | AE15: 991 | AF15: 2.668878699 | AG15: 32.40465848 | AH15: 31.75266452 | AI15: 0.9798796226 | AJ15: 0.08236095746 | AK15: 8.405211779 | AL15: 0.002027299416 | AM15: 1.06224058 | AO15: 9 | AQ15: 9 | AR15: 991 | AS15: 0.001908512491 | AT15: 0.0003818328259 | AU15: 0.9799565662 | AV15: 0.1116530009 | AW15: 0.1116530098 | AX15: 11.39366923 | AY15: 0.002083350494 | AZ15: 1.091609576
P16: 1-R-T | Q16: =1-AJ6-AI1006 -> 0.8116161948 | R16: A tot VB | S16: =SUM(OFFSET(AY7,$C$4,0,$C$5,1)) -> 0.1035797307 | AD16: 10 | AE16: 990 | AF16: 2.662815867 | AG16: 32.40465848 | AH16: 31.68103533 | AI16: 0.9776691627 | AJ16: 0.08217385994 | AK16: 8.405078432 | AL16: 0.002022723648 | AM16: 1.059843023 | AO16: 10 | AQ16: 10 | AR16: 990 | AS16: 0.001908512491 | AT16: 0.0003818328259 | AU16: 0.9777547147 | AV16: 0.1115342822 | AW16: 0.1115342912 | AX16: 11.40718521 | AY16: 0.002078921657 | AZ16: 1.089289006
P17: R=J(0) | Q17: =AJ6 -> 0.08406386195 | R17: A tot MAB | S17: =SUM(OFFSET(AY7,($C$4+$C$5),0,$C$6,1)) -> 0.155620864 | AD17: 11 | AE17: 989 | AF17: 2.656766624 | AG17: 32.40465848 | AH17: 31.6095677 | AI17: 0.9754636889 | AJ17: 0.08198718172 | AK17: 8.404944506 | AL17: 0.002018158196 | AM17: 1.057450871 | AO17: 11 | AQ17: 11 | AR17: 989 | AS17: 0.001908512491 | AT17: 0.0003818328259 | AU17: 0.9755578611 | AV17: 0.1114161337 | AW17: 0.1114161427 | AX17: 11.42076213 | AY17: 0.002074503447 | AZ17: 1.086974004
P18: T | Q18: =AI1006 -> 0.1043199433 | R18: A Total P2 | S18: =SUM(S15:S17) -> 0.6717462854 | AD18: 12 | AE18: 988 | AF18: 2.650730936 | AG18: 32.40465848 | AH18: 31.53826128 | AI18: 0.9732631898 | AJ18: 0.08180092186 | AK18: 8.404809996 | AL18: 0.002013603036 | AM18: 1.055064112 | AO18: 12 | AQ18: 12 | AR18: 988 | AS18: 0.001908512491 | AT18: 0.0003818328259 | AU18: 0.9733659941 | AV18: 0.1112985548 | AW18: 0.1112985639 | AX18: 11.43440027 | AY18: 0.002070095841 | AZ18: 1.084664558
B19: Output Leaf level Absorbed light | R19: J(0) | S19: =AW6 -> 0.1127472369 | AD19: 13 | AE19: 987 | AF19: 2.644708775 | AG19: 32.40465848 | AH19: 31.4671157 | AI19: 0.9710676542 | AJ19: 0.0816150794 | AK19: 8.404674901 | AL19: 0.002009058147 | AM19: 1.052682734 | AO19: 13 | AQ19: 13 | AR19: 987 | AS19: 0.001908512491 | AT19: 0.0003818328259 | AU19: 0.9711791026 | AV19: 0.1111815449 | AW19: 0.111181554 | AX19: 11.44809992 | AY19: 0.002065698816 | AZ19: 1.082360657
B20: A MI | C20: =Q15*X6 -> 0.65895669 | R20: T | S20: =AU1006 -> 0.2279018758 | AD20: 14 | AE20: 986 | AF20: 2.638700108 | AG20: 32.40465848 | AH20: 31.3961306 | AI20: 0.9688770709 | AJ20: 0.08142965339 | AK20: 8.404539217 | AL20: 0.002004523503 | AM20: 1.050306724 | AO20: 14 | AQ20: 14 | AR20: 986 | AS20: 0.001908512491 | AT20: 0.0003818328259 | AU20: 0.9689971754 | AV20: 0.1110651034 | AW20: 0.1110651126 | AX20: 11.46186133 | AY20: 0.002061312351 | AZ20: 1.080062288
B21: A MAD | C21: =S15*C7 -> 0.08003386399 | R21: 1-R-t | S21: =1-S19-S20 -> 0.6593508873 | AD21: 15 | AE21: 985 | AF21: 2.632704906 | AG21: 32.40465848 | AH21: 31.32530561 | AI21: 0.9666914289 | AJ21: 0.08124464289 | AK21: 8.404402943 | AL21: 0.001999999083 | AM21: 1.047936072 | AO21: 15 | AQ21: 15 | AR21: 985 | AS21: 0.001908512491 | AT21: 0.0003818328259 | AU21: 0.9668202013 | AV21: 0.1109492297 | AW21: 0.1109492389 | AX21: 11.4756848 | AY21: 0.002056936422 | AZ21: 1.07776944
B22: A MAB | C22: =S17*C7 -> 0.03019044762 | AD22: 16 | AE22: 984 | AF22: 2.626723138 | AG22: 32.40465848 | AH22: 31.25464038 | AI22: 0.9645107168 | AJ22: 0.08106004696 | AK22: 8.404266075 | AL22: 0.001995484863 | AM22: 1.045570764 | AO22: 16 | AQ22: 16 | AR22: 984 | AS22: 0.001908512491 | AT22: 0.0003818328259 | AU22: 0.9646481693 | AV22: 0.1108339231 | AW22: 0.1108339324 | AX22: 11.48957059 | AY22: 0.002052571008 | AZ22: 1.075482102
B23: Amesophyll | C23: =SUM(C20:C21,C22) -> 0.7691810016 | AD23: 17 | AE23: 983 | AF23: 2.620754773 | AG23: 32.40465848 | AH23: 31.18413455 | AI23: 0.9623349236 | AJ23: 0.08087586465 | AK23: 8.404128611 | AL23: 0.001990980821 | AM23: 1.043210788 | AO23: 17 | AQ23: 17 | AR23: 983 | AS23: 0.001908512491 | AT23: 0.0003818328259 | AU23: 0.962481068 | AV23: 0.1107191832 | AW23: 0.1107191925 | AX23: 11.503519 | AY23: 0.002048216085 | AZ23: 1.073200261
B24: A VB | C24: =S16*C7 -> 0.02009446775 | AD24: 18 | AE24: 982 | AF24: 2.614799782 | AG24: 32.40465848 | AH24: 31.11378775 | AI24: 0.9601640383 | AJ24: 0.08069209503 | AK24: 8.403990548 | AL24: 0.001986486932 | AM24: 1.040856133 | AO24: 18 | AQ24: 18 | AR24: 982 | AS24: 0.001908512491 | AT24: 0.0003818328259 | AU24: 0.9603188867 | AV24: 0.1106050093 | AW24: 0.1106050186 | AX24: 11.51753029 | AY24: 0.002043871633 | AZ24: 1.070923905
B25: AB BS / M | C25: =C24/C23 -> 0.02612449827 | AD25: 19 | AE25: 981 | AF25: 2.608858132 | AG25: 32.40465848 | AH25: 31.04359963 | AI25: 0.9579980497 | AJ25: 0.08050873715 | AK25: 8.403851884 | AL25: 0.001982003175 | AM25: 1.038506787 | AO25: 19 | AQ25: 19 | AR25: 981 | AS25: 0.001908512491 | AT25: 0.0003818328259 | AU25: 0.958161614 | AV25: 0.1104914008 | AW25: 0.1104914102 | AX25: 11.53160475 | AY25: 0.002039537628 | AZ25: 1.068653024
B26: Leaf level Reflectance | C26: =C7*AW6+X6*AJ6 -> 0.08962843669 | AD26: 20 | AE26: 980 | AF26: 2.602929795 | AG26: 32.40465848 | AH26: 30.97356982 | AI26: 0.9558369467 | AJ26: 0.08032579008 | AK26: 8.403712616 | AL26: 0.001977529526 | AM26: 1.036162737 | AO26: 20 | AQ26: 20 | AR26: 980 | AS26: 0.001908512491 | AT26: 0.0003818328259 | AU26: 0.9560092391 | AV26: 0.1103783572 | AW26: 0.1103783667 | AX26: 11.54574267 | AY26: 0.002035214048 | AZ26: 1.066387606
B27: Leaf level Absorptance | C27: =SUM(C23,C24) -> 0.7892754694 | AD27: 21 | AE27: 979 | AF27: 2.59701474 | AG27: 32.40465848 | AH27: 30.90369798 | AI27: 0.9536807184 | AJ27: 0.0801432529 | AK27: 8.403572742 | AL27: 0.001973065963 | AM27: 1.033823971 | AO27: 21 | AQ27: 21 | AR27: 979 | AS27: 0.001908512491 | AT27: 0.0003818328259 | AU27: 0.953861751 | AV27: 0.1102658779 | AW27: 0.1102658874 | AX27: 11.55994433 | AY27: 0.002030900872 | AZ27: 1.064127638
B28: Leaf level trasmittance | C28: =C7*AW1006+X6*AI1006 -> 0.08674545828 | AD28: 22 | AE28: 978 | AF28: 2.591112936 | AG28: 32.40465848 | AH28: 30.83398375 | AI28: 0.9515293538 | AJ28: 0.07996112466 | AK28: 8.403432258 | AL28: 0.001968612463 | AM28: 1.031490478 | AO28: 22 | AQ28: 22 | AR28: 978 | AS28: 0.001908512491 | AT28: 0.0003818328259 | AU28: 0.9517191386 | AV28: 0.1101539623 | AW28: 0.1101539718 | AX28: 11.57421001 | AY28: 0.002026598077 | AZ28: 1.06187311
AD29: 23 | AE29: 977 | AF29: 2.585224355 | AG29: 32.40465848 | AH29: 30.76442676 | AI29: 0.9493828419 | AJ29: 0.07977940444 | AK29: 8.403291161 | AL29: 0.001964169003 | AM29: 1.029162246 | AO29: 23 | AQ29: 23 | AR29: 977 | AS29: 0.001908512491 | AT29: 0.0003818328259 | AU29: 0.949581391 | AV29: 0.1100426098 | AW29: 0.1100426193 | AX29: 11.58854 | AY29: 0.002022305642 | AZ29: 1.05962401
AD30: 24 | AE30: 976 | AF30: 2.579348965 | AG30: 32.40465848 | AH30: 30.69502667 | AI30: 0.9472411717 | AJ30: 0.07959809131 | AK30: 8.40314945 | AL30: 0.00195973556 | AM30: 1.026839263 | AO30: 24 | AQ30: 24 | AR30: 976 | AS30: 0.001908512491 | AT30: 0.0003818328259 | AU30: 0.9474484973 | AV30: 0.1099318198 | AW30: 0.1099318294 | AX30: 11.60293459 | AY30: 0.002018023543 | AZ30: 1.057380327
AD31: 25 | AE31: 975 | AF31: 2.573486737 | AG31: 32.40465848 | AH31: 30.62578312 | AI31: 0.9451043323 | AJ31: 0.07941718435 | AK31: 8.403007122 | AL31: 0.001955312112 | AM31: 1.024521517 | AO31: 25 | AQ31: 25 | AR31: 975 | AS31: 0.001908512491 | AT31: 0.0003818328259 | AU31: 0.9453204465 | AV31: 0.1098215919 | AW31: 0.1098216016 | AX31: 11.61739408 | AY31: 0.00201375176 | AZ31: 1.055142048
AD32: 26 | AE32: 974 | AF32: 2.56763764 | AG32: 32.40465848 | AH32: 30.55669576 | AI32: 0.9429723129 | AJ32: 0.07923668264 | AK32: 8.402864173 | AL32: 0.001950898637 | AM32: 1.022208996 | AO32: 26 | AQ32: 26 | AR32: 974 | AS32: 0.001908512491 | AT32: 0.0003818328259 | AU32: 0.9431972279 | AV32: 0.1097119254 | AW32: 0.1097119351 | AX32: 11.63191874 | AY32: 0.002009490271 | AZ32: 1.052909163
AD33: 27 | AE33: 973 | AF33: 2.561801646 | AG33: 32.40465848 | AH33: 30.48776423 | AI33: 0.9408451025 | AJ33: 0.07905658525 | AK33: 8.402720601 | AL33: 0.001946495111 | AM33: 1.019901688 | AO33: 27 | AQ33: 27 | AR33: 973 | AS33: 0.001908512491 | AT33: 0.0003818328259 | AU33: 0.9410788305 | AV33: 0.1096028197 | AW33: 0.1096028295 | AX33: 11.64650887 | AY33: 0.002005239054 | AZ33: 1.05068166
AD34: 28 | AE34: 972 | AF34: 2.555978724 | AG34: 32.40465848 | AH34: 30.41898819 | AI34: 0.9387226903 | AJ34: 0.07887689127 | AK34: 8.402576403 | AL34: 0.001942101513 | AM34: 1.017599582 | AO34: 28 | AQ34: 28 | AR34: 972 | AS34: 0.001908512491 | AT34: 0.0003818328259 | AU34: 0.9389652435 | AV34: 0.1094942744 | AW34: 0.1094942842 | AX34: 11.66116478 | AY34: 0.002000998087 | AZ34: 1.048459528
AD35: 29 | AE35: 971 | AF35: 2.550168844 | AG35: 32.40465848 | AH35: 30.35036728 | AI35: 0.9366050655 | AJ35: 0.07869759977 | AK35: 8.402431577 | AL35: 0.001937717819 | AM35: 1.015302665 | AO35: 29 | AQ35: 29 | AR35: 971 | AS35: 0.001908512491 | AT35: 0.0003818328259 | AU35: 0.9368564561 | AV35: 0.1093862888 | AW35: 0.1093862987 | AX35: 11.67588674 | AY35: 0.001996767348 | AZ35: 1.046242755
AD36: 30 | AE36: 970 | AF36: 2.544371977 | AG36: 32.40465848 | AH36: 30.28190116 | AI36: 0.9344922173 | AJ36: 0.07851870985 | AK36: 8.402286119 | AL36: 0.001933344008 | AM36: 1.013010927 | AO36: 30 | AQ36: 30 | AR36: 970 | AS36: 0.001908512491 | AT36: 0.0003818328259 | AU36: 0.9347524576 | AV36: 0.1092788625 | AW36: 0.1092788724 | AX36: 11.69067506 | AY36: 0.001992546816 | AZ36: 1.04403133
AD37: 31 | AE37: 969 | AF37: 2.538588094 | AG37: 32.40465848 | AH37: 30.21358946 | AI37: 0.9323841349 | AJ37: 0.0783402206 | AK37: 8.402140027 | AL37: 0.001928980058 | AM37: 1.010724355 | AO37: 31 | AQ37: 31 | AR37: 969 | AS37: 0.001908512491 | AT37: 0.0003818328259 | AU37: 0.9326532371 | AV37: 0.1091719948 | AW37: 0.1091720047 | AX37: 11.70553003 | AY37: 0.001988336469 | AZ37: 1.041825242
AD38: 32 | AE38: 968 | AF38: 2.532817165 | AG38: 32.40465848 | AH38: 30.14543186 | AI38: 0.9302808075 | AJ38: 0.0781621311 | AK38: 8.401993298 | AL38: 0.001924625945 | AM38: 1.008442939 | AO38: 32 | AQ38: 32 | AR38: 968 | AS38: 0.001908512491 | AT38: 0.0003818328259 | AU38: 0.930558784 | AV38: 0.1090656852 | AW38: 0.1090656952 | AX38: 11.72045196 | AY38: 0.001984136286 | AZ38: 1.039624479
AD39: 33 | AE39: 967 | AF39: 2.527059159 | AG39: 32.40465848 | AH39: 30.07742799 | AI39: 0.9281822245 | AJ39: 0.07798444044 | AK39: 8.401845929 | AL39: 0.001920281649 | AM39: 1.006166665 | AO39: 33 | AQ39: 33 | AR39: 967 | AS39: 0.001908512491 | AT39: 0.0003818328259 | AU39: 0.9284690875 | AV39: 0.1089599332 | AW39: 0.1089599432 | AX39: 11.73544114 | AY39: 0.001979946245 | AZ39: 1.037429031
AD40: 34 | AE40: 966 | AF40: 2.521314049 | AG40: 32.40465848 | AH40: 30.00957752 | AI40: 0.9260883751 | AJ40: 0.07780714772 | AK40: 8.401697918 | AL40: 0.001915947145 | AM40: 1.003895523 | AO40: 34 | AQ40: 34 | AR40: 966 | AS40: 0.001908512491 | AT40: 0.0003818328259 | AU40: 0.926384137 | AV40: 0.1088547382 | AW40: 0.1088547483 | AX40: 11.75049787 | AY40: 0.001975766325 | AZ40: 1.035238885
AD41: 35 | AE41: 965 | AF41: 2.515581805 | AG41: 32.40465848 | AH41: 29.94188009 | AI41: 0.9239992486 | AJ41: 0.07763025204 | AK41: 8.401549261 | AL41: 0.001911622414 | AM41: 1.001629501 | AO41: 35 | AQ41: 35 | AR41: 965 | AS41: 0.001908512491 | AT41: 0.0003818328259 | AU41: 0.9243039218 | AV41: 0.1087500997 | AW41: 0.1087501098 | AX41: 11.76562246 | AY41: 0.001971596504 | AZ41: 1.033054032
AD42: 36 | AE42: 964 | AF42: 2.509862398 | AG42: 32.40465848 | AH42: 29.87433536 | AI42: 0.9219148344 | AJ42: 0.07745375249 | AK42: 8.401399955 | AL42: 0.001907307432 | AM42: 0.9993685869 | AO42: 36 | AQ42: 36 | AR42: 964 | AS42: 0.001908512491 | AT42: 0.0003818328259 | AU42: 0.9222284312 | AV42: 0.1086460171 | AW42: 0.1086460273 | AX42: 11.78081521 | AY42: 0.001967436762 | AZ42: 1.030874459
AD43: 37 | AE43: 963 | AF43: 2.504155797 | AG43: 32.40465848 | AH43: 29.80694299 | AI43: 0.9198351219 | AJ43: 0.07727764817 | AK43: 8.401249998 | AL43: 0.001903002177 | AM43: 0.9971127701 | AO43: 37 | AQ43: 37 | AR43: 963 | AS43: 0.001908512491 | AT43: 0.0003818328259 | AU43: 0.9201576547 | AV43: 0.10854249 | AW43: 0.1085425002 | AX43: 11.79607643 | AY43: 0.001963287076 | AZ43: 1.028700155
AD44: 38 | AE44: 962 | AF44: 2.498461975 | AG44: 32.40465848 | AH44: 29.73970262 | AI44: 0.9177601005 | AJ44: 0.07710193818 | AK44: 8.401099387 | AL44: 0.001898706628 | AM44: 0.9948620387 | AO44: 38 | AQ44: 38 | AR44: 962 | AS44: 0.001908512491 | AT44: 0.0003818328259 | AU44: 0.9180915817 | AV44: 0.1084395178 | AW44: 0.108439528 | AX44: 11.81140642 | AY44: 0.001959147426 | AZ44: 1.02653111
AD45: 39 | AE45: 961 | AF45: 2.492780902 | AG45: 32.40465848 | AH45: 29.67261393 | AI45: 0.9156897595 | AJ45: 0.07692662163 | AK45: 8.400948119 | AL45: 0.001894420763 | AM45: 0.9926163811 | AO45: 39 | AQ45: 39 | AR45: 961 | AS45: 0.001908512491 | AT45: 0.0003818328259 | AU45: 0.9160302016 | AV45: 0.1083370999 | AW45: 0.1083371102 | AX45: 11.82680549 | AY45: 0.001955017791 | AZ45: 1.024367312
AD46: 40 | AE46: 960 | AF46: 2.48711255 | AG46: 32.40465848 | AH46: 29.60567657 | AI46: 0.9136240884 | AJ46: 0.07675169763 | AK46: 8.400796191 | AL46: 0.001890144559 | AM46: 0.9903757861 | AO46: 40 | AQ46: 40 | AR46: 960 | AS46: 0.001908512491 | AT46: 0.0003818328259 | AU46: 0.9139735039 | AV46: 0.1082352359 | AW46: 0.1082352462 | AX46: 11.84227396 | AY46: 0.001950898149 | AZ46: 1.02220875
AD47: 41 | AE47: 959 | AF47: 2.481456888 | AG47: 32.40465848 | AH47: 29.53889019 | AI47: 0.9115630768 | AJ47: 0.07657716527 | AK47: 8.400643601 | AL47: 0.001885877995 | AM47: 0.988140242 | AO47: 41 | AQ47: 41 | AR47: 959 | AS47: 0.001908512491 | AT47: 0.0003818328259 | AU47: 0.9119214781 | AV47: 0.1081339252 | AW47: 0.1081339356 | AX47: 11.85781212 | AY47: 0.001946788479 | AZ47: 1.020055414
AD48: 42 | AE48: 958 | AF48: 2.475813889 | AG48: 32.40465848 | AH48: 29.47225445 | AI48: 0.9095067139 | AJ48: 0.07640302368 | AK48: 8.400490344 | AL48: 0.00188162105 | AM48: 0.9859097376 | AO48: 42 | AQ48: 42 | AR48: 958 | AS48: 0.001908512491 | AT48: 0.0003818328259 | AU48: 0.9098741136 | AV48: 0.1080331673 | AW48: 0.1080331777 | AX48: 11.8734203 | AY48: 0.00194268876 | AZ48: 1.017907291
AD49: 43 | AE49: 957 | AF49: 2.470183524 | AG49: 32.40465848 | AH49: 29.40576902 | AI49: 0.9074549895 | AJ49: 0.07622927196 | AK49: 8.400336418 | AL49: 0.001877373701 | AM49: 0.9836842615 | AO49: 43 | AQ49: 43 | AR49: 957 | AS49: 0.001908512491 | AT49: 0.0003818328259 | AU49: 0.9078314 | AV49: 0.1079329616 | AW49: 0.1079329721 | AX49: 11.88909881 | AY49: 0.001938598972 | AZ49: 1.015764372
AD50: 44 | AE50: 956 | AF50: 2.464565764 | AG50: 32.40465848 | AH50: 29.33943356 | AI50: 0.905407893 | AJ50: 0.07605590923 | AK50: 8.400181821 | AL50: 0.001873135926 | AM50: 0.9814638022 | AO50: 44 | AQ50: 44 | AR50: 956 | AS50: 0.001908512491 | AT50: 0.0003818328259 | AU50: 0.9057933269 | AV50: 0.1078333078 | AW50: 0.1078333183 | AX50: 11.90484795 | AY50: 0.001934519094 | AZ50: 1.013626645
AD51: 45 | AE51: 955 | AF51: 2.45896058 | AG51: 32.40465848 | AH51: 29.27324772 | AI51: 0.903365414 | AJ51: 0.0758829346 | AK51: 8.400026548 | AL51: 0.001868907705 | AM51: 0.9792483486 | AO51: 45 | AQ51: 45 | AR51: 955 | AS51: 0.001908512491 | AT51: 0.0003818328259 | AU51: 0.9037598838 | AV51: 0.1077342052 | AW51: 0.1077342158 | AX51: 11.92066806 | AY51: 0.001930449104 | AZ51: 1.0114941
AD52: 46 | AE52: 954 | AF52: 2.453367944 | AG52: 32.40465848 | AH52: 29.20721118 | AI52: 0.901327542 | AJ52: 0.07571034719 | AK52: 8.399870598 | AL52: 0.001864689016 | AM52: 0.9770378892 | AO52: 46 | AQ52: 46 | AR52: 954 | AS52: 0.001908512491 | AT52: 0.0003818328259 | AU52: 0.9017310604 | AV52: 0.1076356534 | AW52: 0.107635664 | AX52: 11.93655944 | AY52: 0.001926388982 | AZ52: 1.009366724
AD53: 47 | AE53: 953 | AF53: 2.447787828 | AG53: 32.40465848 | AH53: 29.14132359 | AI53: 0.8992942667 | AJ53: 0.07553814613 | AK53: 8.399713968 | AL53: 0.001860479837 | AM53: 0.9748324128 | AO53: 47 | AQ53: 47 | AR53: 953 | AS53: 0.001908512491 | AT53: 0.0003818328259 | AU53: 0.8997068463 | AV53: 0.1075376519 | AW53: 0.1075376625 | AX53: 11.95252242 | AY53: 0.001922338707 | AZ53: 1.007244509
AD54: 48 | AE54: 952 | AF54: 2.442220202 | AG54: 32.40465848 | AH54: 29.07558461 | AI54: 0.8972655777 | AJ54: 0.07536633052 | AK54: 8.399556653 | AL54: 0.001856280146 | AM54: 0.9726319082 | AO54: 48 | AQ54: 48 | AR54: 952 | AS54: 0.001908512491 | AT54: 0.0003818328259 | AU54: 0.8976872312 | AV54: 0.1074402001 | AW54: 0.1074402108 | AX54: 11.96855732 | AY54: 0.001918298258 | AZ54: 1.005127442
AD55: 49 | AE55: 951 | AF55: 2.436665038 | AG55: 32.40465848 | AH55: 29.00999392 | AI55: 0.8952414646 | AJ55: 0.07519489951 | AK55: 8.399398651 | AL55: 0.001852089923 | AM55: 0.9704363641 | AO55: 49 | AQ55: 49 | AR55: 951 | AS55: 0.001908512491 | AT55: 0.0003818328259 | AU55: 0.8956722046 | AV55: 0.1073432975 | AW55: 0.1073433083 | AX55: 11.98466445 | AY55: 0.001914267615 | AZ55: 1.003015513
AD56: 50 | AE56: 950 | AF56: 2.431122309 | AG56: 32.40465848 | AH56: 28.94455118 | AI56: 0.8932219172 | AJ56: 0.0750238522 | AK56: 8.39923996 | AL56: 0.001847909146 | AM56: 0.9682457694 | AO56: 50 | AQ56: 50 | AR56: 950 | AS56: 0.001908512491 | AT56: 0.0003818328259 | AU56: 0.8936617564 | AV56: 0.1072469438 | AW56: 0.1072469545 | AX56: 12.00084414 | AY56: 0.001910246757 | AZ56: 1.000908711
AD57: 51 | AE57: 949 | AF57: 2.425591985 | AG57: 32.40465848 | AH57: 28.87925605 | AI57: 0.8912069251 | AJ57: 0.07485318773 | AK57: 8.399080575 | AL57: 0.001843737793 | AM57: 0.9660601128 | AO57: 51 | AQ57: 51 | AR57: 949 | AS57: 0.001908512491 | AT57: 0.0003818328259 | AU57: 0.8916558762 | AV57: 0.1071511383 | AW57: 0.1071511491 | AX57: 12.01709672 | AY57: 0.001906235663 | AZ57: 0.9988070252
AD58: 52 | AE58: 948 | AF58: 2.420074039 | AG58: 32.40465848 | AH58: 28.8141082 | AI58: 0.8891964781 | AJ58: 0.07468290524 | AK58: 8.398920495 | AL58: 0.001839575843 | AM58: 0.9638793833 | AO58: 52 | AQ58: 52 | AR58: 948 | AS58: 0.001908512491 | AT58: 0.0003818328259 | AU58: 0.8896545538 | AV58: 0.1070558805 | AW58: 0.1070558914 | AX58: 12.03342252 | AY58: 0.001902234314 | AZ58: 0.9967104451
AD59: 53 | AE59: 947 | AF59: 2.414568442 | AG59: 32.40465848 | AH59: 28.7491073 | AI59: 0.8871905658 | AJ59: 0.07451300384 | AK59: 8.398759715 | AL59: 0.001835423276 | AM59: 0.9617035697 | AO59: 53 | AQ59: 53 | AR59: 947 | AS59: 0.001908512491 | AT59: 0.0003818328259 | AU59: 0.8876577789 | AV59: 0.1069611701 | AW59: 0.106961181 | AX59: 12.04982185 | AY59: 0.001898242688 | AZ59: 0.9946189599
AD60: 54 | AE60: 946 | AF60: 2.409075167 | AG60: 32.40465848 | AH60: 28.68425301 | AI60: 0.8851891782 | AJ60: 0.07434348268 | AK60: 8.398598233 | AL60: 0.001831280069 | AM60: 0.9595326609 | AO60: 54 | AQ60: 54 | AR60: 946 | AS60: 0.001908512491 | AT60: 0.0003818328259 | AU60: 0.8856655414 | AV60: 0.1068670065 | AW60: 0.1068670174 | AX60: 12.06629505 | AY60: 0.001894260765 | AZ60: 0.9925325588
AD61: 55 | AE61: 945 | AF61: 2.403594185 | AG61: 32.40465848 | AH61: 28.61954501 | AI61: 0.8831923049 | AJ61: 0.07417434089 | AK61: 8.398436046 | AL61: 0.001827146202 | AM61: 0.9573666458 | AO61: 55 | AQ61: 55 | AR61: 945 | AS61: 0.001908512491 | AT61: 0.0003818328259 | AU61: 0.883677831 | AV61: 0.1067733892 | AW61: 0.1067734001 | AX61: 12.08284245 | AY61: 0.001890288526 | AZ61: 0.9904512312
AD62: 56 | AE62: 944 | AF62: 2.398125468 | AG62: 32.40465848 | AH62: 28.55498297 | AI62: 0.8811999358 | AJ62: 0.07400557761 | AK62: 8.39827315 | AL62: 0.001823021654 | AM62: 0.9552055134 | AO62: 56 | AQ62: 56 | AR62: 944 | AS62: 0.001908512491 | AT62: 0.0003818328259 | AU62: 0.8816946377 | AV62: 0.1066803177 | AW62: 0.1066803287 | AX62: 12.09946439 | AY62: 0.001886325948 | AZ62: 0.9883749664
AD63: 57 | AE63: 943 | AF63: 2.392668989 | AG63: 32.40465848 | AH63: 28.49056656 | AI63: 0.8792120607 | AJ63: 0.07383719197 | AK63: 8.398109543 | AL63: 0.001818906404 | AM63: 0.9530492527 | AO63: 57 | AQ63: 57 | AR63: 943 | AS63: 0.001908512491 | AT63: 0.0003818328259 | AU63: 0.8797159512 | AV63: 0.1065877916 | AW63: 0.1065878027 | AX63: 12.11616119 | AY63: 0.001882373013 | AZ63: 0.9863037539
AD64: 58 | AE64: 942 | AF64: 2.38722472 | AG64: 32.40465848 | AH64: 28.42629545 | AI64: 0.8772286695 | AJ64: 0.07366918312 | AK64: 8.39794522 | AL64: 0.00181480043 | AM64: 0.9508978526 | AO64: 58 | AQ64: 58 | AR64: 942 | AS64: 0.001908512491 | AT64: 0.0003818328259 | AU64: 0.8777417615 | AV64: 0.1064958104 | AW64: 0.1064958215 | AX64: 12.13293319 | AY64: 0.0018784297 | AZ64: 0.984237583
AD65: 59 | AE65: 941 | AF65: 2.381792632 | AG65: 32.40465848 | AH65: 28.3621693 | AI65: 0.875249752 | AJ65: 0.0735015502 | AK65: 8.39778018 | AL65: 0.001810703712 | AM65: 0.9487513022 | AO65: 59 | AQ65: 59 | AR65: 941 | AS65: 0.001908512491 | AT65: 0.0003818328259 | AU65: 0.8757720585 | AV65: 0.1064043737 | AW65: 0.1064043848 | AX65: 12.14978073 | AY65: 0.001874495989 | AZ65: 0.9821764433
AD66: 60 | AE66: 940 | AF66: 2.376372699 | AG66: 32.40465848 | AH66: 28.2981878 | AI66: 0.8732752983 | AJ66: 0.07333429236 | AK66: 8.397614418 | AL66: 0.001806616228 | AM66: 0.9466095906 | AO66: 60 | AQ66: 60 | AR66: 940 | AS66: 0.001908512491 | AT66: 0.0003818328259 | AU66: 0.873806832 | AV66: 0.1063134809 | AW66: 0.1063134921 | AX66: 12.16670415 | AY66: 0.00187057186 | AZ66: 0.980120324
AD67: 61 | AE67: 939 | AF67: 2.370964892 | AG67: 32.40465848 | AH67: 28.23435062 | AI67: 0.8713052981 | AJ67: 0.07316740874 | AK67: 8.397447932 | AL67: 0.001802537959 | AM67: 0.9444727069 | AO67: 61 | AQ67: 61 | AR67: 939 | AS67: 0.001908512491 | AT67: 0.0003818328259 | AU67: 0.8718460721 | AV67: 0.1062231316 | AW67: 0.1062231428 | AX67: 12.18370377 | AY67: 0.001866657292 | AZ67: 0.9780692149
AD68: 62 | AE68: 938 | AF68: 2.365569185 | AG68: 32.40465848 | AH68: 28.17065743 | AI68: 0.8693397415 | AJ68: 0.07300089849 | AK68: 8.397280719 | AL68: 0.001798468883 | AM68: 0.94234064 | AO68: 62 | AQ68: 62 | AR68: 938 | AS68: 0.001908512491 | AT68: 0.0003818328259 | AU68: 0.8698897687 | AV68: 0.1061333253 | AW68: 0.1061333366 | AX68: 12.20077996 | AY68: 0.001862752266 | AZ68: 0.9760231053
AD69: 63 | AE69: 937 | AF69: 2.360185548 | AG69: 32.40465848 | AH69: 28.10710791 | AI69: 0.8673786184 | AJ69: 0.07283476077 | AK69: 8.397112774 | AL69: 0.001794408979 | AM69: 0.9402133792 | AO69: 63 | AQ69: 63 | AR69: 937 | AS69: 0.001908512491 | AT69: 0.0003818328259 | AU69: 0.8679379118 | AV69: 0.1060440616 | AW69: 0.1060440729 | AX69: 12.21793304 | AY69: 0.001858856762 | AZ69: 0.9739819848
AD70: 64 | AE70: =ENNE-AD70 -> 936 | AF70: =(1-betasquare)*((EXP(alpha*AE70))-(EXP(-alpha*AE70)))-Rg*(((POWER((1-beta),2)*(EXP(alpha*AE70)))-POWER((1+beta),2))*(EXP(-alpha*AE70))) -> 2.354813956 | AG70: =(POWER((1+beta),2)*EXP(alpha*ENNE))-(POWER((1-beta),2)*EXP(-(alpha*ENNE)))-(Rg*(1-betasquare)*(EXP(alpha*ENNE)-EXP(-(alpha*ENNE)))) -> 32.40465848 | AH70: =POWER((1+beta),2)*EXP(alpha*AE70)-POWER((1-beta),2)*EXP(-alpha*AE70)-Rg*(1-betasquare)*(EXP(alpha*AE70)-EXP(-alpha*AE70)) -> 28.04370173 | AI70: =AH70/AG70 -> 0.8654219189 | AJ70: =AF70/AG70 -> 0.07266899472 | AK70: 8.396944096 | AL70: 0.001790358227 | AM70: 0.9380909136 | AO70: 64 | AQ70: 64 | AR70: =ENNE-AQ70 -> 936 | AS70: =IF(AO70<=$C$4,$S$5,(IF(AO70<=($C$5+$C$4),kappaBS,$S$5))) -> 0.001908512491 | AT70: =esse -> 0.0003818328259 | AU70: 0.8659904915 | AV70: 0.1059553401 | AW70: =AW71-(AS70+AT70)*AW71+AT70*AU70 -> 0.1059553514 | AX70: =AW70/AU70*100 -> 12.23516337 | AY70: 0.00185497076 | AZ70: =AU70+AW70 -> 0.9719458429
AD71: 65 | AE71: 935 | AF71: 2.349454381 | AG71: 32.40465848 | AH71: 27.98043857 | AI71: 0.8634696329 | AJ71: 0.0725035995 | AK71: =AJ71/AI71*100 -> 8.39677468 | AL71: =kappaM*(AI71)+kappaM*AJ71 -> 0.001786316606 | AM71: =AI71+AJ71 -> 0.9359732324 | AO71: 65 | AQ71: 65 | AR71: 935 | AS71: 0.001908512491 | AT71: 0.0003818328259 | AU71: 0.8640474978 | AV71: =AW71 -> 0.1058671601 | AW71: 0.1058671715 | AX71: 12.25247128 | AY71: =IF(AO71<=$C$4,AZ71*$S$5,IF(AO71<=($C$4+$C$5),AZ71*kappaBS,AZ71*$S$5)) -> 0.00185109424 | AZ71: 0.9699146693
AD72: 66 | AE72: 934 | AF72: 2.344106794 | AG72: 32.40465848 | AH72: 27.9173181 | AI72: 0.8615217505 | AJ72: 0.07233857427 | AK72: 8.396604523 | AL72: 0.001782284095 | AM72: 0.9338603248 | AO72: 66 | AQ72: 66 | AR72: 934 | AS72: 0.001908512491 | AT72: 0.0003818328259 | AU72: =AU71-(AS72+AT72)*AU71+AT72*AV72 -> 0.8621089208 | AV72: 0.1057795215 | AW72: 0.1057795329 | AX72: 12.26985713 | AY72: 0.001847227182 | AZ72: 0.9678884536
AD73: 67 | AE73: 933 | AF73: 2.33877117 | AG73: 32.40465848 | AH73: 27.85434001 | AI73: 0.8595782618 | AJ73: 0.07217391819 | AK73: 8.396433622 | AL73: 0.001778260675 | AM73: 0.93175218 | AO73: 67 | AQ73: 67 | AR73: 933 | AS73: 0.001908512491 | AT73: 0.0003818328259 | AU73: 0.8601747505 | AV73: 0.1056924235 | AW73: 0.105692435 | AX73: 12.28732126 | AY73: 0.001843369566 | AZ73: 0.9658671854
AD74: 68 | AE74: 932 | AF74: 2.333447481 | AG74: 32.40465848 | AH74: 27.79150398 | AI74: 0.8576391569 | AJ74: 0.07200963041 | AK74: 8.396261975 | AL74: 0.001774246323 | AM74: 0.9296487873 | AO74: 68 | AQ74: 68 | AR74: 932 | AS74: 0.001908512491 | AT74: 0.0003818328259 | AU74: 0.858244977 | AV74: 0.1056058659 | AW74: 0.1056058774 | AX74: 12.30486402 | AY74: 0.001839521373 | AZ74: 0.9638508545
AD75: 69 | AE75: 931 | AF75: 2.328135699 | AG75: 32.40465848 | AH75: 27.72880968 | AI75: 0.8557044258 | AJ75: 0.07184571009 | AK75: 8.396089576 | AL75: 0.001770241021 | AM75: 0.9275501359 | AO75: 69 | AQ75: 69 | AR75: 931 | AS75: 0.001908512491 | AT75: 0.0003818328259 | AU75: 0.8563195906 | AV75: 0.1055198482 | AW75: 0.1055198597 | AX75: 12.32248577 | AY75: 0.001835682583 | AZ75: 0.9618394503
AD76: 70 | AE76: 930 | AF76: 2.322835798 | AG76: 32.40465848 | AH76: 27.66625679 | AI76: 0.8537740587 | AJ76: 0.07168215641 | AK76: 8.395916424 | AL76: 0.001766244747 | AM76: 0.9254562151 | AO76: 70 | AQ76: 70 | AR76: 930 | AS76: 0.001908512491 | AT76: 0.0003818328259 | AU76: 0.8543985813 | AV76: 0.1054343699 | AW76: 0.1054343815 | AX76: 12.34018686 | AY76: 0.001831853177 | AZ76: 0.9598329628
AD77: 71 | AE77: 929 | AF77: 2.31754775 | AG77: 32.40465848 | AH77: 27.603845 | AI77: 0.8518480457 | AJ77: 0.07151896853 | AK77: 8.395742514 | AL77: 0.001762257481 | AM77: 0.9233670142 | AO77: 71 | AQ77: 71 | AR77: 929 | AS77: 0.001908512491 | AT77: 0.0003818328259 | AU77: 0.8524819394 | AV77: 0.1053494306 | AW77: 0.1053494422 | AX77: 12.35796764 | AY77: 0.001828033134 | AZ77: 0.9578313817
AD78: 72 | AE78: 928 | AF78: 2.312271529 | AG78: 32.40465848 | AH78: 27.54157398 | AI78: 0.8499263771 | AJ78: 0.07135614561 | AK78: 8.395567844 | AL78: 0.001758279203 | AM78: 0.9212825227 | AO78: 72 | AQ78: 72 | AR78: 928 | AS78: 0.001908512491 | AT78: 0.0003818328259 | AU78: 0.850569655 | AV78: 0.1052650299 | AW78: 0.1052650416 | AX78: 12.37582847 | AY78: 0.001824222436 | AZ78: 0.9558346966
AD79: 73 | AE79: 927 | AF79: 2.307007108 | AG79: 32.40465848 | AH79: 27.47944343 | AI79: 0.848009043 | AJ79: 0.07119368683 | AK79: 8.395392409 | AL79: 0.001754309892 | AM79: 0.9192027298 | AO79: 73 | AQ79: 73 | AR79: 927 | AS79: 0.001908512491 | AT79: 0.0003818328259 | AU79: 0.8486617184 | AV79: 0.1051811673 | AW79: 0.105181179 | AX79: 12.39376971 | AY79: 0.001820421062 | AZ79: 0.9538428974
AD80: 74 | AE80: 926 | AF80: 2.301754459 | AG80: 32.40465848 | AH80: 27.41745301 | AI80: 0.8460960336 | AJ80: 0.07103159135 | AK80: 8.395216208 | AL80: 0.001750349529 | AM80: 0.917127625 | AO80: 74 | AQ80: 74 | AR80: 926 | AS80: 0.001908512491 | AT80: 0.0003818328259 | AU80: 0.8467581198 | AV80: 0.1050978425 | AW80: 0.1050978542 | AX80: 12.41179172 | AY80: 0.001816628994 | AZ80: 0.951855974
AD81: 75 | AE81: 925 | AF81: 2.296513557 | AG81: 32.40465848 | AH81: 27.35560242 | AI81: 0.8441873393 | AJ81: 0.07086985835 | AK81: 8.395039235 | AL81: 0.001746398092 | AM81: 0.9150571976 | AO81: 75 | AQ81: 75 | AR81: 925 | AS81: 0.001908512491 | AT81: 0.0003818328259 | AU81: 0.8448588495 | AV81: 0.1050150549 | AW81: 0.1050150666 | AX81: 12.42989485 | AY81: 0.001812846211 | AZ81: 0.9498739162
AD82: 76 | AE82: 924 | AF82: 2.291284373 | AG82: 32.40465848 | AH82: 27.29389135 | AI82: 0.8422829502 | AJ82: 0.07070848701 | AK82: 8.394861488 | AL82: 0.001742455563 | AM82: 0.9129914372 | AO82: 76 | AQ82: 76 | AR82: 924 | AS82: 0.001908512491 | AT82: 0.0003818328259 | AU82: 0.8429638978 | AV82: 0.1049328041 | AW82: 0.1049328159 | AX82: 12.44807947 | AY82: 0.001809072696 | AZ82: 0.9478967137
AD83: 77 | AE83: 923 | AF83: 2.286066883 | AG83: 32.40465848 | AH83: 27.23231946 | AI83: 0.8403828567 | AJ83: 0.0705474765 | AK83: 8.394682963 | AL83: 0.00173852192 | AM83: 0.9109303332 | AO83: 77 | AQ83: 77 | AR83: 923 | AS83: 0.001908512491 | AT83: 0.0003818328259 | AU83: 0.841073255 | AV83: 0.1048510898 | AW83: 0.1048511017 | AX83: 12.46634595 | AY83: 0.001805308428 | AZ83: 0.9459243566
AD84: 78 | AE84: 922 | AF84: 2.280861058 | AG84: 32.40465848 | AH84: 27.17088646 | AI84: 0.838487049 | AJ84: 0.07038682599 | AK84: 8.394503658 | AL84: 0.001734597144 | AM84: 0.908873875 | AO84: 78 | AQ84: 78 | AR84: 922 | AS84: 0.001908512491 | AT84: 0.0003818328259 | AU84: 0.8391869114 | AV84: 0.1047699116 | AW84: 0.1047699234 | AX84: 12.48469465 | AY84: 0.001801553387 | AZ84: 0.9439568348
AD85: 79 | AE85: 921 | AF85: 2.275666873 | AG85: 32.40465848 | AH85: 27.10959203 | AI85: 0.8365955175 | AJ85: 0.07022653469 | AK85: 8.394323567 | AL85: 0.001730681214 | AM85: 0.9068220522 | AO85: 79 | AQ85: 79 | AR85: 921 | AS85: 0.001908512491 | AT85: 0.0003818328259 | AU85: 0.8373048574 | AV85: 0.1046892689 | AW85: 0.1046892808 | AX85: 12.50312594 | AY85: 0.001797807556 | AZ85: 0.9419941381
AD86: 80 | AE86: 920 | AF86: 2.270484301 | AG86: 32.40465848 | AH86: 27.04843586 | AI86: 0.8347082525 | AJ86: 0.07006660175 | AK86: 8.394142689 | AL86: 0.001726774111 | AM86: 0.9047748543 | AO86: 80 | AQ86: 80 | AR86: 920 | AS86: 0.001908512491 | AT86: 0.0003818328259 | AU86: 0.8354270833 | AV86: 0.1046091614 | AW86: 0.1046091733 | AX86: 12.52164018 | AY86: 0.001794070915 | AZ86: 0.9400362566
AD87: 81 | AE87: 919 | AF87: 2.265313315 | AG87: 32.40465848 | AH87: 26.98741762 | AI87: 0.8328252445 | AJ87: 0.06990702637 | AK87: 8.393961018 | AL87: 0.001722875815 | AM87: 0.9027322709 | AO87: 81 | AQ87: 81 | AR87: 919 | AS87: 0.001908512491 | AT87: 0.0003818328259 | AU87: 0.8335535796 | AV87: 0.1045295887 | AW87: 0.1045296007 | AX87: 12.54023775 | AY87: 0.001790343444 | AZ87: 0.9380831803
AD88: 82 | AE88: 918 | AF88: 2.26015389 | AG88: 32.40465848 | AH88: 26.92653702 | AI88: 0.8309464838 | AJ88: 0.06974780774 | AK88: 8.393778553 | AL88: 0.001718986306 | AM88: 0.9006942915 | AO88: 82 | AQ88: 82 | AR88: 918 | AS88: 0.001908512491 | AT88: 0.0003818328259 | AU88: 0.8316843367 | AV88: 0.1044505504 | AW88: 0.1044505624 | AX88: 12.55891903 | AY88: 0.001786625125 | AZ88: 0.9361348991
AD89: 83 | AE89: 917 | AF89: 2.255005998 | AG89: 32.40465848 | AH89: 26.86579375 | AI89: 0.8290719608 | AJ89: 0.06958894504 | AK89: 8.393595289 | AL89: 0.001715105564 | AM89: 0.8986609058 | AO89: 83 | AQ89: 83 | AR89: 917 | AS89: 0.001908512491 | AT89: 0.0003818328259 | AU89: 0.8298193451 | AV89: 0.104372046 | AW89: 0.1043720581 | AX89: 12.57768437 | AY89: 0.001782915939 | AZ89: 0.9341914031
AD90: 84 | AE90: 916 | AF90: 2.249869614 | AG90: 32.40465848 | AH90: 26.80518748 | AI90: 0.827201666 | AJ90: 0.06943043746 | AK90: 8.393411222 | AL90: 0.00171123357 | AM90: 0.8966321035 | AO90: 84 | AQ90: 84 | AR90: 916 | AS90: 0.001908512491 | AT90: 0.0003818328259 | AU90: 0.8279585951 | AV90: 0.1042940753 | AW90: 0.1042940873 | AX90: 12.59653417 | AY90: 0.001779215866 | AZ90: 0.9322526824
AD91: 85 | AE91: 915 | AF91: 2.244744712 | AG91: 32.40465848 | AH91: 26.74471792 | AI91: 0.8253355898 | AJ91: 0.0692722842 | AK91: 8.39322635 | AL91: 0.001707370303 | AM91: 0.894607874 | AO91: 85 | AQ91: 85 | AR91: 915 | AS91: 0.001908512491 | AT91: 0.0003818328259 | AU91: 0.8261020773 | AV91: 0.1042166377 | AW91: 0.1042166498 | AX91: 12.61546879 | AY91: 0.001775524888 | AZ91: 0.9303187271
AD92: 86 | AE92: 914 | AF92: 2.239631265 | AG92: 32.40465848 | AH92: 26.68438476 | AI92: 0.8234737228 | AJ92: 0.06911448444 | AK92: 8.393040668 | AL92: 0.001703515743 | AM92: 0.8925882072 | AO92: 86 | AQ92: 86 | AR92: 914 | AS92: 0.001908512491 | AT92: 0.0003818328259 | AU92: 0.8242497823 | AV92: 0.1041397328 | AW92: 0.104139745 | AX92: 12.63448862 | AY92: 0.001771842986 | AZ92: 0.9283895273
AD93: 87 | AE93: 913 | AF93: 2.234529247 | AG93: 32.40465848 | AH93: 26.62418768 | AI93: 0.8216160553 | AJ93: 0.06895703739 | AK93: 8.392854174 | AL93: 0.001699669872 | AM93: 0.8905730927 | AO93: 87 | AQ93: 87 | AR93: 913 | AS93: 0.001908512491 | AT93: 0.0003818328259 | AU93: 0.8224017005 | AV93: 0.1040633604 | AW93: 0.1040633725 | AX93: 12.65359404 | AY93: 0.001768170141 | AZ93: 0.926465073
AD94: 88 | AE94: 912 | AF94: 2.229438632 | AG94: 32.40465848 | AH94: 26.56412638 | AI94: 0.819762578 | AJ94: 0.06879994224 | AK94: 8.392666862 | AL94: 0.001695832669 | AM94: 0.8885625203 | AO94: 88 | AQ94: 88 | AR94: 912 | AS94: 0.001908512491 | AT94: 0.0003818328259 | AU94: 0.8205578224 | AV94: 0.1039875199 | AW94: 0.1039875321 | AX94: 12.67278543 | AY94: 0.001764506334 | AZ94: 0.9245453545
AD95: 89 | AE95: 911 | AF95: 2.224359394 | AG95: 32.40465848 | AH95: 26.50420055 | AI95: 0.8179132815 | AJ95: 0.06864319818 | AK95: 8.392478731 | AL95: 0.001692004116 | AM95: 0.8865564796 | AO95: 89 | AQ95: 89 | AR95: 911 | AS95: 0.001908512491 | AT95: 0.0003818328259 | AU95: 0.8187181387 | AV95: 0.1039122111 | AW95: 0.1039122233 | AX95: 12.69206316 | AY95: 0.001760851547 | AZ95: 0.922630362
AD96: 90 | AE96: 910 | AF96: 2.219291508 | AG96: 32.40465848 | AH96: 26.4444099 | AI96: 0.8160681561 | AJ96: 0.06848680443 | AK96: 8.392289775 | AL96: 0.001688184192 | AM96: 0.8845549606 | AO96: 90 | AQ96: 90 | AR96: 910 | AS96: 0.001908512491 | AT96: 0.0003818328259 | AU96: 0.81688264 | AV96: 0.1038374334 | AW96: 0.1038374457 | AX96: 12.71142764 | AY96: 0.001757205761 | AZ96: 0.9207200857
AD97: 91 | AE97: 909 | AF97: 2.214234947 | AG97: 32.40465848 | AH97: 26.38475411 | AI97: 0.8142271927 | AJ97: 0.06833076017 | AK97: 8.392099992 | AL97: 0.001684372877 | AM97: 0.8825579528 | AO97: 91 | AQ97: 91 | AR97: 909 | AS97: 0.001908512491 | AT97: 0.0003818328259 | AU97: 0.8150513169 | AV97: 0.1037631866 | AW97: 0.1037631989 | AX97: 12.73087925 | AY97: 0.001753568957 | AZ97: 0.9188145158
AD98: 92 | AE98: 908 | AF98: 2.209189686 | AG98: 32.40465848 | AH98: 26.32523287 | AI98: 0.8123903817 | AJ98: 0.06817506462 | AK98: 8.391909378 | AL98: 0.001680570154 | AM98: 0.8805654463 | AO98: 92 | AQ98: 92 | AR98: 908 | AS98: 0.001908512491 | AT98: 0.0003818328259 | AU98: 0.81322416 | AV98: 0.1036894703 | AW98: 0.1036894826 | AX98: 12.75041836 | AY98: 0.001749941116 | AZ98: 0.9169136426
AD99: 93 | AE99: 907 | AF99: 2.204155699 | AG99: 32.40465848 | AH99: 26.2658459 | AI99: 0.8105577138 | AJ99: 0.06801971698 | AK99: 8.391717928 | AL99: 0.001676776001 | AM99: 0.8785774308 | AO99: 93 | AQ99: 93 | AR99: 907 | AS99: 0.001908512491 | AT99: 0.0003818328259 | AU99: 0.8114011599 | AV99: 0.103616284 | AW99: 0.1036162964 | AX99: 12.77004539 | AY99: 0.001746322221 | AZ99: 0.9150174563
AD100: 94 | AE100: 906 | AF100: 2.19913296 | AG100: 32.40465848 | AH100: 26.20659287 | AI100: 0.8087291796 | AJ100: 0.06786471647 | AK100: 8.39152564 | AL100: 0.001672990401 | AM100: 0.8765938961 | AO100: 94 | AQ100: 94 | AR100: 906 | AS100: 0.001908512491 | AT100: 0.0003818328259 | AU100: 0.8095823074 | AV100: 0.1035436275 | AW100: 0.1035436399 | AX100: 12.78976071 | AY100: 0.001742712252 | AZ100: 0.9131259473
AD101: 95 | AE101: 905 | AF101: 2.194121444 | AG101: 32.40465848 | AH101: 26.1474735 | AI101: 0.8069047699 | AJ101: 0.06771006228 | AK101: 8.391332509 | AL101: 0.001669213332 | AM101: 0.8746148322 | AO101: 95 | AQ101: 95 | AR101: 905 | AS101: 0.001908512491 | AT101: 0.0003818328259 | AU101: 0.8077675932 | AV101: 0.1034715002 | AW101: 0.1034715127 | AX101: 12.80956473 | AY101: 0.001739111192 | AZ101: 0.9112391059
AD102: 96 | AE102: 904 | AF102: 2.189121125 | AG102: 32.40465848 | AH102: 26.08848747 | AI102: 0.8050844753 | AJ102: 0.06755575363 | AK102: 8.391138533 | AL102: 0.001665444778 | AM102: 0.872640229 | AO102: 96 | AQ102: 96 | AR102: 904 | AS102: 0.001908512491 | AT102: 0.0003818328259 | AU102: 0.8059570079 | AV102: 0.103399902 | AW102: 0.1033999145 | AX102: 12.82945783 | AY102: 0.001735519021 | AZ102: 0.9093569224
AD103: 97 | AE103: 903 | AF103: 2.184131977 | AG103: 32.40465848 | AH103: 26.0296345 | AI103: 0.8032682866 | AJ103: 0.06740178973 | AK103: 8.390943706 | AL103: 0.001661684717 | AM103: 0.8706700763 | AO103: 97 | AQ103: 97 | AR103: 903 | AS103: 0.001908512491 | AT103: 0.0003818328259 | AU103: 0.8041505424 | AV103: 0.1033288323 | AW103: 0.1033288449 | AX103: 12.84944042 | AY103: 0.001731935722 | AZ103: 0.9074793872
AD104: 98 | AE104: 902 | AF104: 2.179153976 | AG104: 32.40465848 | AH104: 25.97091427 | AI104: 0.8014561944 | AJ104: 0.06724816981 | AK104: 8.390748026 | AL104: 0.00165793313 | AM104: 0.8687043642 | AO104: 98 | AQ104: 98 | AR104: 902 | AS104: 0.001908512491 | AT104: 0.0003818328259 | AU104: 0.8023481874 | AV104: 0.1032582909 | AW104: 0.1032583035 | AX104: 12.8695129 | AY104: 0.001728361275 | AZ104: 0.9056064908
AD105: 99 | AE105: 901 | AF105: 2.174187096 | AG105: 32.40465848 | AH105: 25.91232649 | AI105: 0.7996481896 | AJ105: 0.06709489306 | AK105: 8.390551488 | AL105: 0.00165419 | AM105: 0.8667430826 | AO105: 99 | AQ105: 99 | AR105: 901 | AS105: 0.001908512491 | AT105: 0.0003818328259 | AU105: 0.8005499336 | AV105: 0.1031882774 | AW105: 0.10318829 | AX105: 12.88967566 | AY105: 0.001724795664 | AZ105: 0.9037382236
AD106: 100 | AE106: 900 | AF106: 2.169231311 | AG106: 32.40465848 | AH106: 25.85387086 | AI106: 0.7978442628 | AJ106: 0.06694195872 | AK106: 8.390354088 | AL106: 0.001650455306 | AM106: 0.8647862216 | AO106: 100 | AQ106: 100 | AR106: 900 | AS106: 0.001908512491 | AT106: 0.0003818328259 | AU106: 0.798755772 | AV106: 0.1031187914 | AW106: 0.103118804 | AX106: 12.90992912 | AY106: 0.001721238869 | AZ106: 0.9018745759
AD107: 101 | AE107: 899 | AF107: 2.164286596 | AG107: 32.40465848 | AH107: 25.79554708 | AI107: 0.796044405 | AJ107: 0.06678936601 | AK107: 8.390155824 | AL107: 0.00164672903 | AM107: 0.862833771 | AO107: 101 | AQ107: 101 | AR107: 899 | AS107: 0.001908512491 | AT107: 0.0003818328259 | AU107: 0.7969656932 | AV107: 0.1030498325 | AW107: 0.1030498451 | AX107: 12.93027366 | AY107: 0.001717690873 | AZ107: 0.9000155384
AD108: 102 | AE108: 898 | AF108: 2.159352926 | AG108: 32.40465848 | AH108: 25.73735486 | AI108: 0.794248607 | AJ108: 0.06663711414 | AK108: 8.38995669 | AL108: 0.001643011152 | AM108: 0.8608857211 | AO108: 102 | AQ108: 102 | AR108: 898 | AS108: 0.001908512491 | AT108: 0.0003818328259 | AU108: 0.7951796882 | AV108: 0.1029814004 | AW108: 0.1029814131 | AX108: 12.95070971 | AY108: 0.001714151656 | AZ108: 0.8981611014
AD109: 103 | AE109: 897 | AF109: 2.154430276 | AG109: 32.40465848 | AH109: 25.67929389 | AI109: 0.7924568595 | AJ109: 0.06648520233 | AK109: 8.389756684 | AL109: 0.001639301654 | AM109: 0.8589420618 | AO109: 103 | AQ109: 103 | AR109: 897 | AS109: 0.001908512491 | AT109: 0.0003818328259 | AU109: 0.7933977479 | AV109: 0.1029134948 | AW109: 0.1029135076 | AX109: 12.97123767 | AY109: 0.001710621202 | AZ109: 0.8963112555
AD110: 104 | AE110: 896 | AF110: 2.14951862 | AG110: 32.40465848 | AH110: 25.62136389 | AI110: 0.7906691534 | AJ110: 0.06633362982 | AK110: 8.3895558 | AL110: 0.001635600517 | AM110: 0.8570027832 | AO110: 104 | AQ110: 104 | AR110: 896 | AS110: 0.001908512491 | AT110: 0.0003818328259 | AU110: 0.7916198631 | AV110: 0.1028461154 | AW110: 0.1028461281 | AX110: 12.99185795 | AY110: 0.001707099492 | AZ110: 0.8944659912
AD111: 105 | AE111: 895 | AF111: 2.144617935 | AG111: 32.40465848 | AH111: 25.56356455 | AI111: 0.7888854797 | AJ111: 0.06618239583 | AK111: 8.389354036 | AL111: 0.001631907722 | AM111: 0.8550678755 | AO111: 105 | AQ111: 105 | AR111: 895 | AS111: 0.001908512491 | AT111: 0.0003818328259 | AU111: 0.7898460248 | AV111: 0.1027792617 | AW111: 0.1027792744 | AX111: 13.01257096 | AY111: 0.001703586509 | AZ111: 0.8926252992
AD112: 106 | AE112: 894 | AF112: 2.139728193 | AG112: 32.40465848 | AH112: 25.50589558 | AI112: 0.7871058292 | AJ112: 0.06603149959 | AK112: 8.389151388 | AL112: 0.001628223249 | AM112: 0.8531373288 | AO112: 106 | AQ112: 106 | AR112: 894 | AS112: 0.001908512491 | AT112: 0.0003818328259 | AU112: 0.7880762238 | AV112: 0.1027129334 | AW112: 0.1027129462 | AX112: 13.03337711 | AY112: 0.001700082233 | AZ112: 0.89078917
AD113: 107 | AE113: 893 | AF113: 2.134849372 | AG113: 32.40465848 | AH113: 25.4483567 | AI113: 0.7853301928 | AJ113: 0.06588094033 | AK113: 8.388947851 | AL113: 0.001624547081 | AM113: 0.8512111332 | AO113: 107 | AQ113: 107 | AR113: 893 | AS113: 0.001908512491 | AT113: 0.0003818328259 | AU113: 0.7863104511 | AV113: 0.1026471302 | AW113: 0.102647143 | AX113: 13.05427683 | AY113: 0.001696586648 | AZ113: 0.8889575941
AD114: 108 | AE114: 892 | AF114: 2.129981445 | AG114: 32.40465848 | AH114: 25.39094759 | AI114: 0.7835585616 | AJ114: 0.06573071728 | AK114: 8.388743421 | AL114: 0.001620879198 | AM114: 0.8492892789 | AO114: 108 | AQ114: 108 | AR114: 892 | AS114: 0.001908512491 | AT114: 0.0003818328259 | AU114: 0.7845486978 | AV114: 0.1025818517 | AW114: 0.1025818646 | AX114: 13.07527052 | AY114: 0.001693099735 | AZ114: 0.8871305624
AD115: 109 | AE115: 891 | AF115: 2.125124389 | AG115: 32.40465848 | AH115: 25.33366797 | AI115: 0.7817909264 | AJ115: 0.06558082968 | AK115: 8.388538095 | AL115: 0.001617219581 | AM115: 0.8473717561 | AO115: 109 | AQ115: 109 | AR115: 891 | AS115: 0.001908512491 | AT115: 0.0003818328259 | AU115: 0.7827909547 | AV115: 0.1025170977 | AW115: 0.1025171106 | AX115: 13.09635861 | AY115: 0.001689621476 | AZ115: 0.8853080653
AD116: 110 | AE116: 890 | AF116: 2.120278177 | AG116: 32.40465848 | AH116: 25.27651756 | AI116: 0.7800272783 | AJ116: 0.06543127676 | AK116: 8.388331868 | AL116: 0.001613568213 | AM116: 0.845458555 | AO116: 110 | AQ116: 110 | AR116: 890 | AS116: 0.001908512491 | AT116: 0.0003818328259 | AU116: 0.781037213 | AV116: 0.1024528678 | AW116: 0.1024528807 | AX116: 13.11754152 | AY116: 0.001686151854 | AZ116: 0.8834900937
AD117: 111 | AE117: 889 | AF117: 2.115442787 | AG117: 32.40465848 | AH117: 25.21949605 | AI117: 0.7782676082 | AJ117: 0.06528205776 | AK117: 8.388124737 | AL117: 0.001609925075 | AM117: 0.8435496659 | AO117: 111 | AQ117: 111 | AR117: 889 | AS117: 0.001908512491 | AT117: 0.0003818328259 | AU117: 0.7792874636 | AV117: 0.1023891616 | AW117: 0.1023891745 | AX117: 13.13881967 | AY117: 0.001682690852 | AZ117: 0.8816766381
AD118: 112 | AE118: 888 | AF118: 2.110618192 | AG118: 32.40465848 | AH118: 25.16260316 | AI118: 0.7765119071 | AJ118: 0.06513317191 | AK118: 8.387916697 | AL118: 0.001606290147 | AM118: 0.8416450791 | AO118: 112 | AQ118: 112 | AR118: 888 | AS118: 0.001908512491 | AT118: 0.0003818328259 | AU118: 0.7775416976 | AV118: 0.1023259788 | AW118: 0.1023259918 | AX118: 13.16019348 | AY118: 0.001679238451 | AZ118: 0.8798676894
AD119: 113 | AE119: 887 | AF119: 2.105804368 | AG119: 32.40465848 | AH119: 25.10583859 | AI119: 0.7747601662 | AJ119: 0.06498461847 | AK119: 8.387707745 | AL119: 0.001602663411 | AM119: 0.8397447847 | AO119: 113 | AQ119: 113 | AR119: 887 | AS119: 0.001908512491 | AT119: 0.0003818328259 | AU119: 0.7757999061 | AV119: 0.1022633192 | AW119: 0.1022633322 | AX119: 13.18166339 | AY119: 0.001675794633 | AZ119: 0.8780632383
AD120: 114 | AE120: 886 | AF120: 2.101001291 | AG120: 32.40465848 | AH120: 25.04920206 | AI120: 0.7730123765 | AJ120: 0.06483639666 | AK120: 8.387497876 | AL120: 0.00159904485 | AM120: 0.8378487732 | AO120: 114 | AQ120: 114 | AR120: 886 | AS120: 0.001908512491 | AT120: 0.0003818328259 | AU120: 0.7740620802 | AV120: 0.1022011823 | AW120: 0.1022011954 | AX120: 13.20322981 | AY120: 0.001672359382 | AZ120: 0.8762632756
AD121: 115 | AE121: 885 | AF121: 2.096208936 | AG121: 32.40465848 | AH121: 24.99269328 | AI121: 0.7712685291 | AJ121: 0.06468850574 | AK121: 8.387287086 | AL121: 0.001595434443 | AM121: 0.8359570349 | AO121: 115 | AQ121: 115 | AR121: 885 | AS121: 0.001908512491 | AT121: 0.0003818328259 | AU121: 0.772328211 | AV121: 0.1021395679 | AW121: 0.102139581 | AX121: 13.22489319 | AY121: 0.001668932679 | AZ121: 0.874467792
AD122: 116 | AE122: 884 | AF122: 2.091427279 | AG122: 32.40465848 | AH122: 24.93631196 | AI122: 0.7695286151 | AJ122: 0.06454094495 | AK122: 8.387075371 | AL122: 0.001591832174 | AM122: 0.83406956 | AO122: 116 | AQ122: 116 | AR122: 884 | AS122: 0.001908512491 | AT122: 0.0003818328259 | AU122: 0.7705982896 | AV122: 0.1020784757 | AW122: 0.1020784888 | AX122: 13.24665395 | AY122: 0.001665514507 | AZ122: 0.8726767784
AD123: 117 | AE123: 883 | AF123: 2.086656296 | AG123: 32.40465848 | AH123: 24.88005782 | AI123: 0.7677926255 | AJ123: 0.06439371354 | AK123: 8.386862728 | AL123: 0.001588238023 | AM123: 0.8321863391 | AO123: 117 | AQ123: 117 | AR123: 883 | AS123: 0.001908512491 | AT123: 0.0003818328259 | AU123: 0.7688723072 | AV123: 0.1020179053 | AW123: 0.1020179184 | AX123: 13.26851253 | AY123: 0.001662104848 | AZ123: 0.8708902256
AD124: 118 | AE124: 882 | AF124: 2.081895961 | AG124: 32.40465848 | AH124: 24.82393055 | AI124: 0.7660605517 | AJ124: 0.06424681075 | AK124: 8.386649151 | AL124: 0.001584651973 | AM124: 0.8303073624 | AO124: 118 | AQ124: 118 | AR124: 882 | AS124: 0.001908512491 | AT124: 0.0003818328259 | AU124: 0.767150255 | AV124: 0.1019578564 | AW124: 0.1019578696 | AX124: 13.29046936 | AY124: 0.001658703686 | AZ124: 0.8691081246
AD125: 119 | AE125: 881 | AF125: 2.077146251 | AG125: 32.40465848 | AH125: 24.76792989 | AI125: 0.7643323846 | AJ125: 0.06410023585 | AK125: 8.386434637 | AL125: 0.001581074004 | AM125: 0.8284326204 | AO125: 119 | AQ125: 119 | AR125: 881 | AS125: 0.001908512491 | AT125: 0.0003818328259 | AU125: 0.7654321241 | AV125: 0.1018983288 | AW125: 0.101898342 | AX125: 13.31252489 | AY125: 0.001655311003 | AZ125: 0.8673304661
AD126: 120 | AE126: 880 | AF126: 2.072407142 | AG126: 32.40465848 | AH126: 24.71205554 | AI126: 0.7626081155 | AJ126: 0.06395398807 | AK126: 8.386219182 | AL126: 0.0015775041 | AM126: 0.8265621036 | AO126: 120 | AQ126: 120 | AR126: 880 | AS126: 0.001908512491 | AT126: 0.0003818328259 | AU126: 0.7637179058 | AV126: 0.1018393221 | AW126: 0.1018393353 | AX126: 13.33467954 | AY126: 0.001651926781 | AZ126: 0.8655572411
AD127: 121 | AE127: 879 | AF127: 2.067678609 | AG127: 32.40465848 | AH127: 24.65630722 | AI127: 0.7608877357 | AJ127: 0.06380806668 | AK127: 8.386002781 | AL127: 0.001573942241 | AM127: 0.8246958024 | AO127: 121 | AQ127: 121 | AR127: 879 | AS127: 0.001908512491 | AT127: 0.0003818328259 | AU127: 0.7620075913 | AV127: 0.101780836 | AW127: 0.1017808493 | AX127: 13.35693377 | AY127: 0.001648551003 | AZ127: 0.8637884406
AD128: 122 | AE128: 878 | AF128: 2.062960629 | AG128: 32.40465848 | AH128: 24.60068464 | AI128: 0.7591712363 | AJ128: 0.06366247093 | AK128: 8.38578543 | AL128: 0.001570388409 | AM128: 0.8228337073 | AO128: 122 | AQ128: 122 | AR128: 878 | AS128: 0.001908512491 | AT128: 0.0003818328259 | AU128: 0.7603011719 | AV128: 0.1017228703 | AW128: 0.1017228835 | AX128: 13.37928801 | AY128: 0.001645183652 | AZ128: 0.8620240555
AD129: 123 | AE129: 877 | AF129: 2.058253176 | AG129: 32.40465848 | AH129: 24.54518753 | AI129: 0.7574586086 | AJ129: 0.06351720007 | AK129: 8.385567126 | AL129: 0.001566842586 | AM129: 0.8209758087 | AO129: 123 | AQ129: 123 | AR129: 877 | AS129: 0.001908512491 | AT129: 0.0003818328259 | AU129: 0.7585986389 | AV129: 0.1016654245 | AW129: 0.1016654378 | AX129: 13.40174272 | AY129: 0.00164182471 | AZ129: 0.8602640767
AD130: 124 | AE130: 876 | AF130: 2.053556228 | AG130: 32.40465848 | AH130: 24.48981559 | AI130: 0.7557498439 | AJ130: 0.06337225338 | AK130: 8.385347862 | AL130: 0.001563304755 | AM130: 0.8191220973 | AO130: 124 | AQ130: 124 | AR130: 876 | AS130: 0.001908512491 | AT130: 0.0003818328259 | AU130: 0.7568999835 | AV130: 0.1016084985 | AW130: 0.1016085119 | AX130: 13.42429833 | AY130: 0.001638474161 | AZ130: 0.8585084954
AD131: 125 | AE131: 875 | AF131: 2.04886976 | AG131: 32.40465848 | AH131: 24.43456855 | AI131: 0.7540449334 | AJ131: 0.0632276301 | AK131: 8.385127637 | AL131: 0.001559774896 | AM131: 0.8172725635 | AO131: 125 | AQ131: 125 | AR131: 875 | AS131: 0.001908512491 | AT131: 0.0003818328259 | AU131: 0.7552051971 | AV131: 0.101552092 | AW131: 0.1015521053 | AX131: 13.4469553 | AY131: 0.001635131987 | AZ131: 0.8567573024
AD132: 126 | AE132: 874 | AF132: 2.044193748 | AG132: 32.40465848 | AH132: 24.37944612 | AI132: 0.7523438684 | AJ132: 0.0630833295 | AK132: 8.384906444 | AL132: 0.001556252993 | AM132: 0.8154271979 | AO132: 126 | AQ132: 126 | AR132: 874 | AS132: 0.001908512491 | AT132: 0.0003818328259 | AU132: 0.753514271 | AV132: 0.1014962045 | AW132: 0.1014962179 | AX132: 13.46971409 | AY132: 0.001631798172 | AZ132: 0.8550104889
AD133: 127 | AE133: 873 | AF133: 2.039528169 | AG133: 32.40465848 | AH133: 24.32444802 | AI133: 0.7506466403 | AJ133: 0.06293935085 | AK133: 8.38468428 | AL133: 0.001552739027 | AM133: 0.8135859912 | AO133: 127 | AQ133: 127 | AR133: 873 | AS133: 0.001908512491 | AT133: 0.0003818328259 | AU133: 0.7518271965 | AV133: 0.101440836 | AW133: 0.1014408494 | AX133: 13.49257514 | AY133: 0.001628472698 | AZ133: 0.8532680459
AD134: 128 | AE134: =ENNE-AD134 -> 872 | AF134: =(1-betasquare)*((EXP(alpha*AE134))-(EXP(-alpha*AE134)))-Rg*(((POWER((1-beta),2)*(EXP(alpha*AE134)))-POWER((1+beta),2))*(EXP(-alpha*AE134))) -> 2.034872999 | AG134: =(POWER((1+beta),2)*EXP(alpha*ENNE))-(POWER((1-beta),2)*EXP(-(alpha*ENNE)))-(Rg*(1-betasquare)*(EXP(alpha*ENNE)-EXP(-(alpha*ENNE)))) -> 32.40465848 | AH134: =POWER((1+beta),2)*EXP(alpha*AE134)-POWER((1-beta),2)*EXP(-alpha*AE134)-Rg*(1-betasquare)*(EXP(alpha*AE134)-EXP(-alpha*AE134)) -> 24.26957398 | AI134: =AH134/AG134 -> 0.7489532404 | AJ134: =AF134/AG134 -> 0.06279569341 | AK134: 8.384461141 | AL134: 0.00154923298 | AM134: 0.8117489338 | AO134: 128 | AQ134: 128 | AR134: =ENNE-AQ134 -> 872 | AS134: =IF(AO134<=$C$4,$S$5,(IF(AO134<=($C$5+$C$4),kappaBS,$S$5))) -> 0.001908512491 | AT134: =esse -> 0.0003818328259 | AU134: 0.7501439651 | AV134: 0.101385986 | AW134: =AW135-(AS134+AT134)*AW135+AT134*AU134 -> 0.1013859998 | AX134: =AW134/AU134*100 -> 13.51553895 | AY134: 0.001625155548 | AZ134: =AU134+AW134 -> 0.851529965
AD135: 129 | AE135: 871 | AF135: 2.030228214 | AG135: 32.40465848 | AH135: 24.2148237 | AI135: 0.7472636601 | AJ135: 0.06265235644 | AK135: =AJ135/AI135*100 -> 8.384237022 | AL135: =kappaM*(AI135)+kappaM*AJ135 -> 0.001545734835 | AM135: =AI135+AJ135 -> 0.8099160166 | AO135: 129 | AQ135: 129 | AR135: 871 | AS135: 0.001908512491 | AT135: 0.0003818328259 | AU135: 0.7484645682 | AV135: =AW135 -> 0.1013316547 | AW135: 0.1013316689 | AX135: 13.538606 | AY135: =IF(AO135<=$C$4,AZ135*$S$5,IF(AO135<=($C$4+$C$5),AZ135*kappaBS,AZ135*$S$5)) -> 0.001621846706 | AZ135: 0.8497962371
AD136: 130 | AE136: 870 | AF136: 2.025593789 | AG136: 32.40465848 | AH136: 24.16019692 | AI136: 0.7455778908 | AJ136: 0.06250933922 | AK136: 8.384011918 | AL136: 0.001542244573 | AM136: 0.80808723 | AO136: 130 | AQ136: 130 | AR136: 870 | AS136: 0.001908512491 | AT136: 0.0003818328259 | AU136: =AU135-(AS136+AT136)*AU135+AT136*AV136 -> 0.746788997 | AV136: 0.1012778418 | AW136: 0.1012778561 | AX136: 13.56177669 | AY136: 0.001618546155 | AZ136: 0.8480668532
AD137: 131 | AE137: 869 | AF137: 2.020969703 | AG137: 32.40465848 | AH137: 24.10569336 | AI137: 0.7438959238 | AJ137: 0.06236664102 | AK137: 8.383785826 | AL137: 0.001538762176 | AM137: 0.8062625648 | AO137: 131 | AQ137: 131 | AR137: 869 | AS137: 0.001908512491 | AT137: 0.0003818328259 | AU137: 0.7451172432 | AV137: 0.1012245468 | AW137: 0.1012245612 | AX137: 13.58505149 | AY137: 0.001615253877 | AZ137: 0.8463418044
AD138: 132 | AE138: 868 | AF138: 2.01635593 | AG138: 32.40465848 | AH138: 24.05131273 | AI138: 0.7422177506 | AJ138: 0.06222426111 | AK138: 8.383558741 | AL138: 0.001535287628 | AM138: 0.8044420117 | AO138: 132 | AQ138: 132 | AR138: 868 | AS138: 0.001908512491 | AT138: 0.0003818328259 | AU138: 0.7434492981 | AV138: 0.1011717692 | AW138: 0.1011717837 | AX138: 13.60843086 | AY138: 0.001611969857 | AZ138: 0.8446210818
AD139: 133 | AE139: 867 | AF139: 2.011752449 | AG139: 32.40465848 | AH139: 23.99705476 | AI139: 0.7405433626 | AJ139: 0.06208219876 | AK139: 8.383330658 | AL139: 0.00153182091 | AM139: 0.8026255614 | AO139: 133 | AQ139: 133 | AR139: 867 | AS139: 0.001908512491 | AT139: 0.0003818328259 | AU139: 0.7417851532 | AV139: 0.101119509 | AW139: 0.1011195235 | AX139: 13.63191527 | AY139: 0.001608694076 | AZ139: 0.8429046768
AD140: 134 | AE140: 866 | AF140: 2.007159234 | AG140: 32.40465848 | AH140: 23.94291917 | AI140: 0.7388727513 | AJ140: 0.06194045325 | AK140: 8.383101574 | AL140: 0.001528362004 | AM140: 0.8008132046 | AO140: 134 | AQ140: 134 | AR140: 866 | AS140: 0.001908512491 | AT140: 0.0003818328259 | AU140: 0.7401248001 | AV140: 0.1010677657 | AW140: 0.1010677804 | AX140: 13.65550518 | AY140: 0.001605426519 | AZ140: 0.8411925805
AD141: 135 | AE141: 865 | AF141: 2.002576262 | AG141: 32.40465848 | AH141: 23.88890569 | AI141: 0.7372059082 | AJ141: 0.06179902385 | AK141: 8.382871483 | AL141: 0.001524910894 | AM141: 0.7990049321 | AO141: 135 | AQ141: 135 | AR141: 865 | AS141: 0.001908512491 | AT141: 0.0003818328259 | AU141: 0.7384682301 | AV141: 0.1010165392 | AW141: 0.101016554 | AX141: 13.67920106 | AY141: 0.001602167168 | AZ141: 0.8394847841
AD142: 136 | AE142: 864 | AF142: 1.998003511 | AG142: 32.40465848 | AH142: 23.83501404 | AI142: 0.7355428248 | AJ142: 0.06165790985 | AK142: 8.382640381 | AL142: 0.00152146756 | AM142: 0.7972007346 | AO142: 136 | AQ142: 136 | AR142: 864 | AS142: 0.001908512491 | AT142: 0.0003818328259 | AU142: 0.7368154349 | AV142: 0.1009658292 | AW142: 0.100965844 | AX142: 13.70300339 | AY142: 0.001598916007 | AZ142: 0.8377812789
AD143: 137 | AE143: 863 | AF143: 1.993440957 | AG143: 32.40465848 | AH143: 23.78124394 | AI143: 0.7338834925 | AJ143: 0.06151711053 | AK143: 8.382408264 | AL143: 0.001518031987 | AM143: 0.795400603 | AO143: 137 | AQ143: 137 | AR143: 863 | AS143: 0.001908512491 | AT143: 0.0003818328259 | AU143: 0.7351664061 | AV143: 0.1009156353 | AW143: 0.1009156503 | AX143: 13.72691263 | AY143: 0.001595673019 | AZ143: 0.8360820563
AD144: 138 | AE144: 862 | AF144: 1.988888577 | AG144: 32.40465848 | AH144: 23.72759513 | AI144: 0.732227903 | AJ144: 0.06137662516 | AK144: 8.382175127 | AL144: 0.001514604155 | AM144: 0.7936045281 | AO144: 138 | AQ144: 138 | AR144: 862 | AS144: 0.001908512491 | AT144: 0.0003818328259 | AU144: 0.733521135 | AV144: 0.1008659575 | AW144: 0.1008659725 | AX144: 13.75092928 | AY144: 0.001592438188 | AZ144: 0.8343871075
AD145: 139 | AE145: 861 | AF145: 1.984346347 | AG145: 32.40465848 | AH145: 23.67406732 | AI145: 0.7305760477 | AJ145: 0.06123645303 | AK145: 8.381940966 | AL145: 0.001511184049 | AM145: 0.7918125008 | AO145: 139 | AQ145: 139 | AR145: 861 | AS145: 0.001908512491 | AT145: 0.0003818328259 | AU145: 0.7318796135 | AV145: 0.1008167953 | AW145: 0.1008168104 | AX145: 13.77505379 | AY145: 0.001589211497 | AZ145: 0.832696424
AD146: 140 | AE146: 860 | AF146: 1.979814244 | AG146: 32.40465848 | AH146: 23.62066025 | AI146: 0.7289279183 | AJ146: 0.06109659343 | AK146: 8.381705775 | AL146: 0.001507771649 | AM146: 0.7900245118 | AO146: 140 | AQ146: 140 | AR146: 860 | AS146: 0.001908512491 | AT146: 0.0003818328259 | AU146: 0.730241833 | AV146: 0.1007681486 | AW146: 0.1007681638 | AX146: 13.79928666 | AY146: 0.00158599293 | AZ146: 0.8310099969
AD147: 141 | AE147: 859 | AF147: 1.975292246 | AG147: 32.40465848 | AH147: 23.56737364 | AI147: 0.7272835064 | AJ147: 0.06095704564 | AK147: 8.381469551 | AL147: 0.00150436694 | AM147: 0.788240552 | AO147: 141 | AQ147: 141 | AR147: 859 | AS147: 0.001908512491 | AT147: 0.0003818328259 | AU147: 0.7286077853 | AV147: 0.1007200172 | AW147: 0.1007200325 | AX147: 13.82362836 | AY147: 0.001582782469 | AZ147: 0.8293278177
AD148: 142 | AE148: 858 | AF148: 1.970780329 | AG148: 32.40465848 | AH148: 23.51420723 | AI148: 0.7256428035 | AJ148: 0.06081780895 | AK148: 8.381232289 | AL148: 0.001500969903 | AM148: 0.7864606124 | AO148: 142 | AQ148: 142 | AR148: 858 | AS148: 0.001908512491 | AT148: 0.0003818328259 | AU148: 0.7269774619 | AV148: 0.1006724007 | AW148: 0.100672416 | AX148: 13.84807939 | AY148: 0.0015795801 | AZ148: 0.8276498779
AD149: 143 | AE149: 857 | AF149: 1.966278469 | AG149: 32.40465848 | AH149: 23.46116073 | AI149: 0.7240058013 | AJ149: 0.06067888265 | AK149: 8.380993984 | AL149: 0.001497580521 | AM149: 0.7846846839 | AO149: 143 | AQ149: 143 | AR149: 857 | AS149: 0.001908512491 | AT149: 0.0003818328259 | AU149: 0.7253508545 | AV149: 0.1006252989 | AW149: 0.1006253143 | AX149: 13.87264021 | AY149: 0.001576385805 | AZ149: 0.8259761688
AD150: 144 | AE150: 856 | AF150: 1.961786645 | AG150: 32.40465848 | AH150: 23.40823388 | AI150: 0.7223724915 | AJ150: 0.06054026603 | AK150: 8.380754631 | AL150: 0.001494198777 | AM150: 0.7829127575 | AO150: 144 | AQ150: 144 | AR150: 856 | AS150: 0.001908512491 | AT150: 0.0003818328259 | AU150: 0.7237279548 | AV150: 0.1005787115 | AW150: 0.1005787271 | AX150: 13.89731134 | AY150: 0.001573199568 | AZ150: 0.8243066819
AD151: 145 | AE151: 855 | AF151: 1.957304833 | AG151: 32.40465848 | AH151: 23.35542641 | AI151: 0.7207428656 | AJ151: 0.06040195839 | AK151: 8.380514226 | AL151: 0.001490824654 | AM151: 0.781144824 | AO151: 145 | AQ151: 145 | AR151: 855 | AS151: 0.001908512491 | AT151: 0.0003818328259 | AU151: 0.7221087545 | AV151: 0.1005326385 | AW151: 0.1005326541 | AX151: 13.92209324 | AY151: 0.001570021373 | AZ151: 0.8226414086
AD152: 146 | AE152: 854 | AF152: 1.952833011 | AG152: 32.40465848 | AH152: 23.30273806 | AI152: 0.7191169155 | AJ152: 0.06026395902 | AK152: 8.380272765 | AL152: 0.001487458135 | AM152: 0.7793808745 | AO152: 146 | AQ152: 146 | AR152: 854 | AS152: 0.001908512491 | AT152: 0.0003818328259 | AU152: 0.7204932454 | AV152: 0.1004870794 | AW152: 0.1004870952 | AX152: 13.94698643 | AY152: 0.001566851204 | AZ152: 0.8209803405
AD153: 147 | AE153: 853 | AF153: 1.948371155 | AG153: 32.40465848 | AH153: 23.25016854 | AI153: 0.7174946328 | AJ153: 0.06012626721 | AK153: 8.380030242 | AL153: 0.001484099201 | AM153: 0.7776209 | AO153: 147 | AQ153: 147 | AR153: 853 | AS153: 0.001908512491 | AT153: 0.0003818328259 | AU153: 0.7188814191 | AV153: 0.1004420341 | AW153: 0.10044205 | AX153: 13.97199139 | AY153: 0.001563689044 | AZ153: 0.8193234691
AD154: 148 | AE154: 852 | AF154: 1.943919243 | AG154: 32.40465848 | AH154: 23.1977176 | AI154: 0.7158760093 | AJ154: 0.05998888227 | AK154: 8.379786652 | AL154: 0.001480747837 | AM154: 0.7758648915 | AO154: 148 | AQ154: 148 | AR154: 852 | AS154: 0.001908512491 | AT154: 0.0003818328259 | AU154: 0.7172732675 | AV154: 0.1003975024 | AW154: 0.1003975183 | AX154: 13.99710861 | AY154: 0.001560534877 | AZ154: 0.8176707858
AD155: 149 | AE155: 851 | AF155: 1.939477252 | AG155: 32.40465848 | AH155: 23.14538496 | AI155: 0.7142610366 | AJ155: 0.05985180349 | AK155: 8.379541992 | AL155: 0.001477404025 | AM155: 0.7741128401 | AO155: 149 | AQ155: 149 | AR155: 851 | AS155: 0.001908512491 | AT155: 0.0003818328259 | AU155: 0.7156687822 | AV155: 0.100353484 | AW155: 0.1003535 | AX155: 14.02233861 | AY155: 0.001557388687 | AZ155: 0.8160222822
AD156: 150 | AE156: 850 | AF156: 1.935045159 | AG156: 32.40465848 | AH156: 23.09317036 | AI156: 0.7126497066 | AJ156: 0.05971503017 | AK156: 8.379296255 | AL156: 0.001474067748 | AM156: 0.7723647367 | AO156: 150 | AQ156: 150 | AR156: 850 | AS156: 0.001908512491 | AT156: 0.0003818328259 | AU156: 0.7140679552 | AV156: 0.1003099786 | AW156: 0.1003099947 | AX156: 14.04768188 | AY156: 0.001554250458 | AZ156: 0.81437795
AD157: 151 | AE157: 849 | AF157: 1.930622942 | AG157: 32.40465848 | AH157: 23.04107353 | AI157: 0.711042011 | AJ157: 0.05957856163 | AK157: 8.379049438 | AL157: 0.001470738989 | AM157: 0.7706205726 | AO157: 151 | AQ157: 151 | AR157: 849 | AS157: 0.001908512491 | AT157: 0.0003818328259 | AU157: 0.7124707783 | AV157: 0.1002669862 | AW157: 0.1002670024 | AX157: 14.07313892 | AY157: 0.001551120175 | AZ157: 0.8127377806
AD158: 152 | AE158: 848 | AF158: 1.926210579 | AG158: 32.40465848 | AH158: 22.98909421 | AI158: 0.7094379416 | AJ158: 0.05944239715 | AK158: 8.378801536 | AL158: 0.001467417731 | AM158: 0.7688803388 | AO158: 152 | AQ158: 152 | AR158: 848 | AS158: 0.001908512491 | AT158: 0.0003818328259 | AU158: 0.7108772432 | AV158: 0.1002245064 | AW158: 0.1002245226 | AX158: 14.09871024 | AY158: 0.00154799782 | AZ158: 0.8111017658
AD159: 153 | AE159: 847 | AF159: 1.921808046 | AG159: 32.40465848 | AH159: 22.93723214 | AI159: 0.7078374903 | AJ159: 0.05930653605 | AK159: 8.378552543 | AL159: 0.001464103957 | AM159: 0.7671440264 | AO159: 153 | AQ159: 153 | AR159: 847 | AS159: 0.001908512491 | AT159: 0.0003818328259 | AU159: 0.7092873418 | AV159: 0.100182539 | AW159: 0.1001825554 | AX159: 14.12439634 | AY159: 0.001544883378 | AZ159: 0.8094698971
AD160: 154 | AE160: 846 | AF160: 1.917415322 | AG160: 32.40465848 | AH160: 22.88548703 | AI160: 0.7062406489 | AJ160: 0.05917097763 | AK160: 8.378302455 | AL160: 0.00146079765 | AM160: 0.7654116265 | AO160: 154 | AQ160: 154 | AR160: 846 | AS160: 0.001908512491 | AT160: 0.0003818328259 | AU160: 0.707701066 | AV160: 0.1001410838 | AW160: 0.1001411003 | AX160: 14.15019775 | AY160: 0.001541776833 | AZ160: 0.8078421663
AD161: 155 | AE161: 845 | AF161: 1.913032384 | AG161: 32.40465848 | AH161: 22.83385865 | AI161: 0.7046474093 | AJ161: 0.0590357212 | AK161: 8.378051267 | AL161: 0.001457498794 | AM161: 0.7636831305 | AO161: 155 | AQ161: 155 | AR161: 845 | AS161: 0.001908512491 | AT161: 0.0003818328259 | AU161: 0.7061184077 | AV161: 0.1001001407 | AW161: 0.1001001572 | AX161: 14.17611496 | AY161: 0.001538678169 | AZ161: 0.8062185649
AD162: 156 | AE162: 844 | AF162: 1.908659209 | AG162: 32.40465848 | AH162: 22.78234671 | AI162: 0.7030577632 | AJ162: 0.05890076607 | AK162: 8.377798974 | AL162: 0.001454207371 | AM162: 0.7619585293 | AO162: 156 | AQ162: 156 | AR162: 844 | AS162: 0.001908512491 | AT162: 0.0003818328259 | AU162: 0.7045393587 | AV162: 0.1000597093 | AW162: 0.100059726 | AX162: 14.2021485 | AY162: 0.001535587371 | AZ162: 0.8045990847
AD163: 157 | AE163: 843 | AF163: 1.904295776 | AG163: 32.40465848 | AH163: 22.73095096 | AI163: 0.7014717027 | AJ163: 0.05876611156 | AK163: 8.377545571 | AL163: 0.001450923365 | AM163: 0.7602378143 | AO163: 157 | AQ163: 157 | AR163: 843 | AS163: 0.001908512491 | AT163: 0.0003818328259 | AU163: 0.7029639112 | AV163: 0.1000197896 | AW163: 0.1000198063 | AX163: 14.22829888 | AY163: 0.001532504422 | AZ163: 0.8029837175
AD164: 158 | AE164: 842 | AF164: 1.899942061 | AG164: 32.40465848 | AH164: 22.67967114 | AI164: 0.6998892196 | AJ164: 0.05863175698 | AK164: 8.377291053 | AL164: 0.001447646759 | AM164: 0.7585209766 | AO164: 158 | AQ164: 158 | AR164: 842 | AS164: 0.001908512491 | AT164: 0.0003818328259 | AU164: 0.7013920568 | AV164: 0.09998038123 | AW164: 0.09998039805 | AX164: 14.25456663 | AY164: 0.001529429307 | AZ164: 0.8013724549
AD165: 159 | AE165: 841 | AF165: 1.895598044 | AG165: 32.40465848 | AH165: 22.62850698 | AI165: 0.6983103059 | AJ165: 0.05849770164 | AK165: 8.377035416 | AL165: 0.001444377536 | AM165: 0.7568080075 | AO165: 159 | AQ165: 159 | AR165: 841 | AS165: 0.001908512491 | AT165: 0.0003818328259 | AU165: 0.6998237878 | AV165: 0.09994148405 | AW165: 0.09994150097 | AX165: 14.28095225 | AY165: 0.00152636201 | AZ165: 0.7997652887
AD166: 160 | AE166: 840 | AF166: 1.891263701 | AG166: 32.40465848 | AH166: 22.57745822 | AI166: 0.6967349534 | AJ166: 0.05836394485 | AK166: 8.376778654 | AL166: 0.00144111568 | AM166: 0.7550988983 | AO166: 160 | AQ166: 160 | AR166: 840 | AS166: 0.001908512491 | AT166: 0.0003818328259 | AU166: 0.6982590959 | AV166: 0.09990309787 | AW166: 0.09990311488 | AX166: 14.30745628 | AY166: 0.001523302516 | AZ166: 0.7981622108
AD167: 161 | AE167: 839 | AF167: 1.88693901 | AG167: 32.40465848 | AH167: 22.5265246 | AI167: 0.6951631543 | AJ167: 0.05823048594 | AK167: 8.376520761 | AL167: 0.001437861173 | AM167: 0.7533936402 | AO167: 161 | AQ167: 161 | AR167: 839 | AS167: 0.001908512491 | AT167: 0.0003818328259 | AU167: 0.6966979733 | AV167: 0.09986522248 | AW167: 0.09986523958 | AX167: 14.33407924 | AY167: 0.001520250808 | AZ167: 0.7965632128
AD168: 162 | AE168: 838 | AF168: 1.88262395 | AG168: 32.40465848 | AH168: 22.47570587 | AI168: 0.6935949004 | AJ168: 0.05809732423 | AK168: 8.376261734 | AL168: 0.001434614 | AM168: 0.7516922246 | AO168: 162 | AQ168: 162 | AR168: 838 | AS168: 0.001908512491 | AT168: 0.0003818328259 | AU168: 0.6951404119 | AV168: 0.09982785769 | AW168: 0.09982787488 | AX168: 14.36082167 | AY168: 0.001517206872 | AZ168: 0.7949682868
AD169: 163 | AE169: 837 | AF169: 1.878318499 | AG169: 32.40465848 | AH169: 22.42500176 | AI169: 0.6920301837 | AJ169: 0.05796445903 | AK169: 8.376001567 | AL169: 0.001431374144 | AM169: 0.7499946427 | AO169: 163 | AQ169: 163 | AR169: 837 | AS169: 0.001908512491 | AT169: 0.0003818328259 | AU169: 0.6935864038 | AV169: 0.09979100331 | AW169: 0.0997910206 | AX169: 14.38768408 | AY169: 0.001514170691 | AZ169: 0.7933774244
AD170: 164 | AE170: 836 | AF170: 1.874022634 | AG170: 32.40465848 | AH170: 22.37441202 | AI170: 0.6904689963 | AJ170: 0.05783188968 | AK170: 8.375740256 | AL170: 0.001428141588 | AM170: 0.748300886 | AO170: 164 | AQ170: 164 | AR170: 836 | AS170: 0.001908512491 | AT170: 0.0003818328259 | AU170: 0.692035941 | AV170: 0.09975465916 | AW170: 0.09975467653 | AX170: 14.41466702 | AY170: 0.00151114225 | AZ170: 0.7917906175
AD171: 165 | AE171: 835 | AF171: 1.869736334 | AG171: 32.40465848 | AH171: 22.32393638 | AI171: 0.6889113303 | AJ171: 0.05769961548 | AK171: 8.375477793 | AL171: 0.001424916316 | AM171: 0.7466109457 | AO171: 165 | AQ171: 165 | AR171: 835 | AS171: 0.001908512491 | AT171: 0.0003818328259 | AU171: 0.6904890156 | AV171: 0.09971882504 | AW171: 0.0997188425 | AX171: 14.44177101 | AY171: 0.001508121534 | AZ171: 0.7902078581
AD172: 166 | AE172: 834 | AF172: 1.865459577 | AG172: 32.40465848 | AH172: 22.27357459 | AI172: 0.6873571776 | AJ172: 0.05756763578 | AK172: 8.375214176 | AL172: 0.001421698311 | AM172: 0.7449248133 | AO172: 166 | AQ172: 166 | AR172: 834 | AS172: 0.001908512491 | AT172: 0.0003818328259 | AU172: 0.6889456198 | AV172: 0.09968350077 | AW172: 0.09968351833 | AX172: 14.4689966 | AY172: 0.001505108526 | AZ172: 0.7886291381
AD173: 167 | AE173: 833 | AF173: 1.861192341 | AG173: 32.40465848 | AH173: 22.2233264 | AI173: 0.6858065303 | AJ173: 0.05743594988 | AK173: 8.374949398 | AL173: 0.001418487558 | AM173: 0.7432424802 | AO173: 167 | AQ173: 167 | AR173: 833 | AS173: 0.001908512491 | AT173: 0.0003818328259 | AU173: 0.6874057455 | AV173: 0.09964868618 | AW173: 0.09964870383 | AX173: 14.49634433 | AY173: 0.001502103213 | AZ173: 0.7870544493
AD174: 168 | AE174: 832 | AF174: 1.856934603 | AG174: 32.40465848 | AH174: 22.17319154 | AI174: 0.6842593806 | AJ174: 0.05730455714 | AK174: 8.374683455 | AL174: 0.001415284038 | AM174: 0.7415639377 | AO174: 168 | AQ174: 168 | AR174: 832 | AS174: 0.001908512491 | AT174: 0.0003818328259 | AU174: 0.685869385 | AV174: 0.09961438108 | AW174: 0.09961439882 | AX174: 14.52381474 | AY174: 0.001499105578 | AZ174: 0.7854837838
AD175: 169 | AE175: 831 | AF175: 1.852686344 | AG175: 32.40465848 | AH175: 22.12316976 | AI175: 0.6827157205 | AJ175: 0.05717345686 | AK175: 8.374416341 | AL175: 0.001412087737 | AM175: 0.7398891774 | AO175: 169 | AQ175: 169 | AR175: 831 | AS175: 0.001908512491 | AT175: 0.0003818328259 | AU175: 0.6843365304 | AV175: 0.0995805853 | AW175: 0.09958060314 | AX175: 14.55140837 | AY175: 0.001496115606 | AZ175: 0.7839171336
AD176: 170 | AE176: 830 | AF176: 1.84844754 | AG176: 32.40465848 | AH176: 22.07326081 | AI176: 0.6811755422 | AJ176: 0.05704264839 | AK176: 8.37414805 | AL176: 0.001408898638 | AM176: 0.7382181906 | AO176: 170 | AQ176: 170 | AR176: 830 | AS176: 0.001908512491 | AT176: 0.0003818328259 | AU176: 0.6828071739 | AV176: 0.09954729868 | AW176: 0.0995473166 | AX176: 14.57912576 | AY176: 0.001493133282 | AZ176: 0.7823544905
AD177: 171 | AE177: 829 | AF177: 1.84421817 | AG177: 32.40465848 | AH177: 22.02346443 | AI177: 0.6796388379 | AJ177: 0.05691213106 | AK177: 8.373878579 | AL177: 0.001405716725 | AM177: 0.7365509689 | AO177: 171 | AQ177: 171 | AR177: 829 | AS177: 0.001908512491 | AT177: 0.0003818328259 | AU177: 0.6812813076 | AV177: 0.09951452103 | AW177: 0.09951453904 | AX177: 14.60696748 | AY177: 0.001490158591 | AZ177: 0.7807958466
AD178: 172 | AE178: 828 | AF178: 1.839998214 | AG178: 32.40465848 | AH178: 21.97378037 | AI178: 0.6781055996 | AJ178: 0.0567819042 | AK178: 8.373607921 | AL178: 0.001402541981 | AM178: 0.7348875038 | AO178: 172 | AQ178: 172 | AR178: 828 | AS178: 0.001908512491 | AT178: 0.0003818328259 | AU178: 0.6797589237 | AV178: 0.09948225219 | AW178: 0.0994822703 | AX178: 14.63493407 | AY178: 0.001487191517 | AZ178: 0.779241194
AD179: 173 | AE179: 827 | AF179: 1.835787648 | AG179: 32.40465848 | AH179: 21.92420837 | AI179: 0.6765758195 | AJ179: 0.05665196714 | AK179: 8.373336071 | AL179: 0.00139937439 | AM179: 0.7332277867 | AO179: 173 | AQ179: 173 | AR179: 827 | AS179: 0.001908512491 | AT179: 0.0003818328259 | AU179: 0.6782400145 | AV179: 0.099450492 | AW179: 0.0994505102 | AX179: 14.66302608 | AY179: 0.001484232045 | AZ179: 0.7776905247
AD180: 174 | AE180: 826 | AF180: 1.831586452 | AG180: 32.40465848 | AH180: 21.87474818 | AI180: 0.67504949 | AJ180: 0.05652231924 | AK180: 8.373063024 | AL180: 0.001396213936 | AM180: 0.7315718092 | AO180: 174 | AQ180: 174 | AR180: 826 | AS180: 0.001908512491 | AT180: 0.0003818328259 | AU180: 0.6767245722 | AV180: 0.09941924029 | AW180: 0.09941925858 | AX180: 14.69124407 | AY180: 0.00148128016 | AZ180: 0.7761438307
AD181: 175 | AE181: 825 | AF181: 1.827394604 | AG181: 32.40465848 | AH181: 21.82539955 | AI181: 0.6735266031 | AJ181: 0.05639295981 | AK181: 8.372788774 | AL181: 0.001393060604 | AM181: 0.7299195629 | AO181: 175 | AQ181: 175 | AR181: 825 | AS181: 0.001908512491 | AT181: 0.0003818328259 | AU181: 0.675212589 | AV181: 0.09938849691 | AW181: 0.09938851529 | AX181: 14.7195886 | AY181: 0.001478335847 | AZ181: 0.7746011043
AD182: 176 | AE182: 824 | AF182: 1.823212082 | AG182: 32.40465848 | AH182: 21.77616223 | AI182: 0.6720071511 | AJ182: 0.05626388821 | AK182: 8.372513317 | AL182: 0.001389914376 | AM182: 0.7282710393 | AO182: 176 | AQ182: 176 | AR182: 824 | AS182: 0.001908512491 | AT182: 0.0003818328259 | AU182: 0.6737040572 | AV182: 0.09935826169 | AW182: 0.09935828017 | AX182: 14.74806024 | AY182: 0.001475399091 | AZ182: 0.7730623374
AD183: 177 | AE183: 823 | AF183: 1.819038867 | AG183: 32.40465848 | AH183: 21.72703596 | AI183: 0.6704911263 | AJ183: 0.05613510378 | AK183: 8.372236646 | AL183: 0.001386775237 | AM183: 0.7266262301 | AO183: 177 | AQ183: 177 | AR183: 823 | AS183: 0.001908512491 | AT183: 0.0003818328259 | AU183: 0.6721989692 | AV183: 0.09932853449 | AW183: 0.09932855306 | AX183: 14.77665953 | AY183: 0.001472469877 | AZ183: 0.7715275223
AD184: 178 | AE184: 822 | AF184: 1.814874936 | AG184: 32.40465848 | AH184: 21.6780205 | AI184: 0.6689785209 | AJ184: 0.05600660586 | AK184: 8.371958756 | AL184: 0.001383643171 | AM184: 0.7249851267 | AO184: 178 | AQ184: 178 | AR184: 822 | AS184: 0.001908512491 | AT184: 0.0003818328259 | AU184: 0.6706973172 | AV184: 0.09929931515 | AW184: 0.09929933382 | AX184: 14.80538706 | AY184: 0.00146954819 | AZ184: 0.769996651
AD185: 179 | AE185: 821 | AF185: 1.810720267 | AG185: 32.40465848 | AH185: 21.6291156 | AI185: 0.6674693272 | AJ185: 0.05587839379 | AK185: 8.371679643 | AL185: 0.001380518161 | AM185: 0.723347721 | AO185: 179 | AQ185: 179 | AR185: 821 | AS185: 0.001908512491 | AT185: 0.0003818328259 | AU185: 0.6691990935 | AV185: 0.09927060353 | AW185: 0.09927062229 | AX185: 14.83424339 | AY185: 0.001466634015 | AZ185: 0.7684697158
AD186: 180 | AE186: 820 | AF186: 1.806574841 | AG186: 32.40465848 | AH186: 21.580321 | AI186: 0.6659635375 | AJ186: 0.05575046692 | AK186: 8.3713993 | AL186: 0.001377400193 | AM186: 0.7217140045 | AO186: 180 | AQ186: 180 | AR186: 820 | AS186: 0.001908512491 | AT186: 0.0003818328259 | AU186: 0.6677042905 | AV186: 0.09924239947 | AW186: 0.09924241832 | AX186: 14.86322909 | AY186: 0.001463727337 | AZ186: 0.7669467088
AD187: 181 | AE187: 819 | AF187: 1.802438635 | AG187: 32.40465848 | AH187: 21.53163645 | AI187: 0.6644611442 | AJ187: 0.0556228246 | AK187: 8.371117721 | AL187: 0.001374289249 | AM187: 0.7200839688 | AO187: 181 | AQ187: 181 | AR187: 819 | AS187: 0.001908512491 | AT187: 0.0003818328259 | AU187: 0.6662129005 | AV187: 0.09921470284 | AW187: 0.09921472178 | AX187: 14.89234473 | AY187: 0.001460828141 | AZ187: 0.7654276223
AD188: 182 | AE188: 818 | AF188: 1.798311629 | AG188: 32.40465848 | AH188: 21.48306172 | AI188: 0.6629621396 | AJ188: 0.05549546617 | AK188: 8.370834903 | AL188: 0.001371185315 | AM188: 0.7184576057 | AO188: 182 | AQ188: 182 | AR188: 818 | AS188: 0.001908512491 | AT188: 0.0003818328259 | AU188: 0.6647249159 | AV188: 0.09918751348 | AW188: 0.09918753252 | AX188: 14.92159089 | AY188: 0.001457936413 | AZ188: 0.7639124484
AD189: 183 | AE189: 817 | AF189: 1.794193801 | AG189: 32.40465848 | AH189: 21.43459655 | AI189: 0.661466516 | AJ189: 0.05536839099 | AK189: 8.370550837 | AL189: 0.001368088374 | AM189: 0.7168349069 | AO189: 183 | AQ189: 183 | AR189: 817 | AS189: 0.001908512491 | AT189: 0.0003818328259 | AU189: 0.6632403292 | AV189: 0.09916083127 | AW189: 0.0991608504 | AX189: 14.95096815 | AY189: 0.001455052137 | AZ189: 0.7624011796
AD190: 184 | AE190: 816 | AF190: 1.790085131 | AG190: 32.40465848 | AH190: 21.38624069 | AI190: 0.6599742657 | AJ190: 0.05524159841 | AK190: 8.370265521 | AL190: 0.001364998411 | AM190: 0.7152158642 | AO190: 184 | AQ190: 184 | AR190: 816 | AS190: 0.001908512491 | AT190: 0.0003818328259 | AU190: 0.6617591327 | AV190: 0.09913465607 | AW190: 0.09913467529 | AX190: 14.9804771 | AY190: 0.001452175299 | AZ190: 0.7608938079
AD191: 185 | AE191: 815 | AF191: 1.785985597 | AG191: 32.40465848 | AH191: 21.3379939 | AI191: 0.6584853813 | AJ191: 0.05511508778 | AK191: 8.369978947 | AL191: 0.001361915409 | AM191: 0.7136004691 | AO191: 185 | AQ191: 185 | AR191: 815 | AS191: 0.001908512491 | AT191: 0.0003818328259 | AU191: 0.6602813188 | AV191: 0.09910898774 | AW191: 0.09910900706 | AX191: 15.0101183 | AY191: 0.001449305884 | AZ191: 0.7593903258
AD192: 186 | AE192: 814 | AF192: 1.781895179 | AG192: 32.40465848 | AH192: 21.28985593 | AI192: 0.6569998551 | AJ192: 0.05498885847 | AK192: 8.36969111 | AL192: 0.001358839354 | AM192: 0.7119887136 | AO192: 186 | AQ192: 186 | AR192: 814 | AS192: 0.001908512491 | AT192: 0.0003818328259 | AU192: 0.65880688 | AV192: 0.09908382615 | AW192: 0.09908384556 | AX192: 15.03989235 | AY192: 0.001446443878 | AZ192: 0.7578907256
AD193: 187 | AE193: 813 | AF193: 1.777813856 | AG193: 32.40465848 | AH193: 21.24182653 | AI193: 0.6555176795 | AJ193: 0.05486290981 | AK193: 8.369402004 | AL193: 0.001355770228 | AM193: 0.7103805893 | AO193: 187 | AQ193: 187 | AR193: 813 | AS193: 0.001908512491 | AT193: 0.0003818328259 | AU193: 0.6573358088 | AV193: 0.09905917118 | AW193: 0.09905919068 | AX193: 15.06979984 | AY193: 0.001443589266 | AZ193: 0.7563949995
AD194: 188 | AE194: 812 | AF194: 1.773741607 | AG194: 32.40465848 | AH194: 21.19390547 | AI194: 0.654038847 | AJ194: 0.05473724117 | AK194: 8.369111624 | AL194: 0.001352708018 | AM194: 0.7087760882 | AO194: 188 | AQ194: 188 | AR194: 812 | AS194: 0.001908512491 | AT194: 0.0003818328259 | AU194: 0.6558680976 | AV194: 0.09903502269 | AW194: 0.09903504229 | AX194: 15.09984136 | AY194: 0.001440742033 | AZ194: 0.7549031399
AD195: 189 | AE195: 811 | AF195: 1.769678411 | AG195: 32.40465848 | AH195: 21.1460925 | AI195: 0.65256335 | AJ195: 0.05461185192 | AK195: 8.368819965 | AL195: 0.001349652707 | AM195: 0.7071752019 | AO195: 189 | AQ195: 189 | AR195: 811 | AS195: 0.001908512491 | AT195: 0.0003818328259 | AU195: 0.654403739 | AV195: 0.09901138057 | AW195: 0.09901140026 | AX195: 15.13001751 | AY195: 0.001437902165 | AZ195: 0.7534151392
AD196: 190 | AE196: 810 | AF196: 1.765624247 | AG196: 32.40465848 | AH196: 21.09838736 | AI196: 0.651091181 | AJ196: 0.05448674141 | AK196: 8.368527019 | AL196: 0.001346604279 | AM196: 0.7055779224 | AO196: 190 | AQ196: 190 | AR196: 810 | AS196: 0.001908512491 | AT196: 0.0003818328259 | AU196: 0.6529427254 | AV196: 0.0989882447 | AW196: 0.09898826448 | AX196: 15.16032887 | AY196: 0.001435069648 | AZ196: 0.7519309899
AD197: 191 | AE197: 809 | AF197: 1.761579095 | AG197: 32.40465848 | AH197: 21.05078983 | AI197: 0.6496223325 | AJ197: 0.05436190899 | AK197: 8.368232783 | AL197: 0.001343562719 | AM197: 0.7039842415 | AO197: 191 | AQ197: 191 | AR197: 809 | AS197: 0.001908512491 | AT197: 0.0003818328259 | AU197: 0.6514850494 | AV197: 0.09896561495 | AW197: 0.09896563483 | AX197: 15.19077605 | AY197: 0.001432244466 | AZ197: 0.7504506842
AD198: 192 | AE198: =ENNE-AD198 -> 808 | AF198: =(1-betasquare)*((EXP(alpha*AE198))-(EXP(-alpha*AE198)))-Rg*(((POWER((1-beta),2)*(EXP(alpha*AE198)))-POWER((1+beta),2))*(EXP(-alpha*AE198))) -> 1.757542935 | AG198: =(POWER((1+beta),2)*EXP(alpha*ENNE))-(POWER((1-beta),2)*EXP(-(alpha*ENNE)))-(Rg*(1-betasquare)*(EXP(alpha*ENNE)-EXP(-(alpha*ENNE)))) -> 32.40465848 | AH198: =POWER((1+beta),2)*EXP(alpha*AE198)-POWER((1-beta),2)*EXP(-alpha*AE198)-Rg*(1-betasquare)*(EXP(alpha*AE198)-EXP(-alpha*AE198)) -> 21.00329965 | AI198: =AH198/AG198 -> 0.648156797 | AJ198: =AF198/AG198 -> 0.05423735405 | AK198: 8.367937249 | AL198: 0.001340528011 | AM198: 0.7023941511 | AO198: 192 | AQ198: 192 | AR198: =ENNE-AQ198 -> 808 | AS198: =IF(AO198<=$C$4,$S$5,(IF(AO198<=($C$5+$C$4),kappaBS,$S$5))) -> 0.001908512491 | AT198: =esse -> 0.0003818328259 | AU198: 0.6500307035 | AV198: 0.09894349121 | AW198: =AW199-(AS198+AT198)*AW199+AT198*AU198 -> 0.09894351119 | AX198: =AW198/AU198*100 -> 15.22135964 | AY198: 0.001429426605 | AZ198: =AU198+AW198 -> 0.7489742147
AD199: 193 | AE199: 807 | AF199: 1.753515745 | AG199: 32.40465848 | AH199: 20.95591659 | AI199: 0.646694567 | AJ199: 0.05411307594 | AK199: =AJ199/AI199*100 -> 8.367640412 | AL199: =kappaM*(AI199)+kappaM*AJ199 -> 0.001337500141 | AM199: =AI199+AJ199 -> 0.700807643 | AO199: 193 | AQ199: 193 | AR199: 807 | AS199: 0.001908512491 | AT199: 0.0003818328259 | AU199: 0.6485796804 | AV199: =AW199 -> 0.09892187337 | AW199: 0.09892189344 | AX199: 15.25208027 | AY199: =IF(AO199<=$C$4,AZ199*$S$5,IF(AO199<=($C$4+$C$5),AZ199*kappaBS,AZ199*$S$5)) -> 0.001426616051 | AZ199: 0.7475015738
AD200: 194 | AE200: 806 | AF200: 1.749497505 | AG200: 32.40465848 | AH200: 20.9086404 | AI200: 0.6452356351 | AJ200: 0.05398907402 | AK200: 8.367342267 | AL200: 0.001334479092 | AM200: 0.6992247092 | AO200: 194 | AQ200: 194 | AR200: 806 | AS200: 0.001908512491 | AT200: 0.0003818328259 | AU200: =AU199-(AS200+AT200)*AU199+AT200*AV200 -> 0.6471319725 | AV200: 0.09890076133 | AW200: 0.09890078149 | AX200: 15.28293852 | AY200: 0.00142381279 | AZ200: 0.746032754
AD201: 195 | AE201: 805 | AF201: 1.745488195 | AG201: 32.40465848 | AH201: 20.86147084 | AI201: 0.6437799939 | AJ201: 0.05386534767 | AK201: 8.367042807 | AL201: 0.001331464849 | AM201: 0.6976453415 | AO201: 195 | AQ201: 195 | AR201: 805 | AS201: 0.001908512491 | AT201: 0.0003818328259 | AU201: 0.6456875725 | AV201: 0.09888015496 | AW201: 0.09888017521 | AX201: 15.31393501 | AY201: 0.001421016807 | AZ201: 0.7445677477
... 806 more rows

Sheet (maize)
K2: Quantities to be Fitted
B3: Input | K3: S | M3: 0.0003213056913 | P3: Quantities for integration
B4: Layers MAD | C4: 218 | K4: KMI | M4: 0.001628691741 | P4: MI | R4: MA | T4: VB | W4: Additional quantities | AD4: Integration for profile P1 | AO4: Integration for profile P2
B5: Layers Vein | C5: 605 | P5: KMI | Q5: =kappaM -> 0.001628691741 | R5: KMA | S5: =C13*kappaM -> 0.0003436539574 | T5: KVB | U5: =C14*kappaM -> 0.003029366638 | W5: N | X5: 1000 | AD5: n | AE5: N-n | AF5: num J | AG5: denom | AH5: num I | AI5: I P1 | AJ5: J | AK5: J/I % | AL5: A | AM5: I+J | AO5: Layer | AQ5: n | AR5: N-n | AS5: k | AT5: s | AU5: I P2 | AV5: J P2(1) | AW5: J P2(1) | AX5: J/I % | AY5: A | AZ5: I+J
B6: Layers MAB | C6: 178 | K6: Sq.Differences for curve fitting | P6: α2 | Q6: =kappaM*(kappaM+2*esse) -> 3.699252639e-06 | W6: M | X6: =1-C7 -> 0.564 | Y6: Width factor | Z6: =C7/X6 -> 0.7730496454 | AD6: 0 | AE6: =ENNE-AD6 -> 1000 | AF6: =(1-betasquare)*((EXP(alpha*AE6))-(EXP(-alpha*AE6)))-Rg*(((POWER((1-beta),2)*(EXP(alpha*AE6)))-POWER((1+beta),2))*(EXP(-alpha*AE6))) -> 1.923445844 | AG6: =(POWER((1+beta),2)*EXP(alpha*ENNE))-(POWER((1-beta),2)*EXP(-(alpha*ENNE)))-(Rg*(1-betasquare)*(EXP(alpha*ENNE)-EXP(-(alpha*ENNE)))) -> 23.22489346 | AH6: =POWER((1+beta),2)*EXP(alpha*AE6)-POWER((1-beta),2)*EXP(-alpha*AE6)-Rg*(1-betasquare)*(EXP(alpha*AE6)-EXP(-alpha*AE6)) -> 23.22489346 | AI6: =AH6/AG6 -> 1 | AJ6: =AF6/AG6 -> 0.08281828493 | AK6: =AJ6/AI6*100 -> 8.281828493 | AM6: =AI6+AJ6 -> 1.082818285 | AO6: 0 | AQ6: 0 | AR6: =ENNE-AQ6 -> 1000 | AS6: =IF(AO6<=$C$4,$S$5,(IF(AO6<=($C$5+$C$4),kappaBS,$S$5))) -> 0.0003436539574 | AT6: =esse -> 0.0003213056913 | AU6: 1 | AV6: =AW6 -> 0.09798368205 | AW6: =AW7-(AS6+AT6)*AW7+AT6*AU6 -> 0.09798368263 | AX6: =AW6/AU6*100 -> 9.798368263 | AZ6: =AU6+AW6 -> 1.097983683
B7: VEW/IVD | C7: 0.436 | K7: Sqdiff leaf level transmittance | M7: =POWER((C28-trasmittance),2) -> 0.0002260081287 | P7: α | Q7: =SQRT(alphasquare) -> 0.001923344129 | AD7: 1 | AE7: 999 | AF7: 1.919703243 | AG7: 23.22489346 | AH7: 23.18026328 | AI7: 0.9980783471 | AJ7: 0.08265713884 | AK7: =AJ7/AI7*100 -> 8.281628299 | AL7: =kappaM*(AI7)+kappaM*AJ7 -> 0.00176018496 | AM7: =AI7+AJ7 -> 1.080735486 | AO7: 1 | AQ7: 1 | AR7: 999 | AS7: 0.0003436539574 | AT7: 0.0003213056913 | AU7: =AU6-(AS7+AT7)*AU6+AT7*AV7 -> 0.9993664407 | AV7: =AW7 -> 0.09772736169 | AW7: 0.09772736227 | AX7: 9.77893176 | AY7: =IF(AO7<=$C$4,AZ7*$S$5,IF(AO7<=($C$4+$C$5),AZ7*kappaBS,AZ7*$S$5)) -> 0.0003770206268 | AZ7: 1.097093803
K8: Sqdiff absorptance | M8: =POWER((1-reflectance-trasmittance)-C27,2) -> 0.0001019238675 | P8: β2 | Q8: =kappaM/(kappaM+2*esse) -> 0.7170737028 | W8: J(N)=RgI(N) | Y8: 0.06 | AD8: 2 | AE8: 998 | AF8: 1.915967749 | AG8: 23.22489346 | AH8: 23.13571884 | AI8: 0.9961603864 | AJ8: 0.08249629875 | AK8: 8.281427356 | AL8: 0.001756799235 | AM8: 1.078656685 | AO8: 2 | AQ8: 2 | AR8: 998 | AS8: 0.0003436539574 | AT8: 0.0003213056913 | AU8: =AU7-(AS8+AT8)*AU7+AT8*AV8 -> 0.9987332204 | AV8: 0.09747107447 | AW8: 0.09747107506 | AX8: 9.759470605 | AY8: 0.000376714944 | AZ8: 1.096204295
K9: Sqdiff Reflectance | M9: =POWER(reflectance-C26,2) -> 0.0001117164849 | P9: β | Q9: =SQRT(betasquare) -> 0.8468020446 | AD9: 3 | AE9: 997 | AF9: 1.912239348 | AG9: 23.22489346 | AH9: 23.09125999 | AI9: 0.9942461108 | AJ9: 0.08233576406 | AK9: 8.281225661 | AL9: 0.001753420008 | AM9: 1.076581875 | AO9: 3 | AQ9: 3 | AR9: 997 | AS9: 0.0003436539574 | AT9: 0.0003213056913 | AU9: 0.9981003387 | AV9: 0.09721482032 | AW9: 0.09721482092 | AX9: 9.739984763 | AY9: 0.000376409389 | AZ9: 1.09531516
B10: Leaf level reflectance R | C10: 0.1 | K10: sqdiff optic | M10: =M7+M8+M9 -> 0.0004396484811 | W10: Sqdiff I | Y10: =POWER((AM1007-trasmittance),2) -> 0.001375907799 | AD10: 4 | AE10: 996 | AF10: 1.908518026 | AG10: 23.22489346 | AH10: 23.04688657 | AI10: 0.9923355131 | AJ10: 0.08217553418 | AK10: 8.281023212 | AL10: 0.001750047268 | AM10: 1.074511047 | AO10: 4 | AQ10: 4 | AR10: 996 | AS10: 0.0003436539574 | AT10: 0.0003213056913 | AU10: 0.9974677956 | AV10: 0.09695859915 | AW10: 0.09695859975 | AX10: 9.720474202 | AY10: 0.0003761039616 | AZ10: 1.094426395
B11: Leaf level Transmittance T | C11: 0.1 | W11: Sqdiff J | Y11: =POWER((AJ6-reflectance),2) -> 0.0002952113329 | AD11: 5 | AE11: 995 | AF11: 1.904803769 | AG11: 23.22489346 | AH11: 23.00259839 | AI11: 0.9904285863 | AJ11: 0.0820156085 | AK11: 8.280820004 | AL11: 0.001746681003 | AM11: 1.072444195 | AO11: 5 | AQ11: 5 | AR11: 995 | AS11: 0.0003436539574 | AT11: 0.0003213056913 | AU11: 0.9968355908 | AV11: 0.09670241087 | AW11: 0.09670241147 | AX11: 9.700938887 | AY11: 0.0003757986618 | AZ11: 1.093538002
AD12: 6 | AE12: 994 | AF12: 1.901096564 | AG12: 23.22489346 | AH12: 22.95839532 | AI12: 0.9885253234 | AJ12: 0.08185598645 | AK12: 8.280616037 | AL12: 0.001743321199 | AM12: 1.07038131 | AO12: 6 | AQ12: 6 | AR12: 994 | AS12: 0.0003436539574 | AT12: 0.0003213056913 | AU12: 0.9962037241 | AV12: 0.09644625539 | AW12: 0.096446256 | AX12: 9.681378785 | AY12: 0.0003754934895 | AZ12: 1.09264998
B13: kMA/kMI | C13: 0.211 | P13: Profile level output | AD13: 7 | AE13: 993 | AF13: 1.897396397 | AG13: 23.22489346 | AH13: 22.91427717 | AI13: 0.9866257172 | AJ13: 0.08169666743 | AK13: 8.280411305 | AL13: 0.001739967845 | AM13: 1.068322385 | AO13: 7 | AQ13: 7 | AR13: 993 | AS13: 0.0003436539574 | AT13: 0.0003213056913 | AU13: 0.9955721953 | AV13: 0.09619013263 | AW13: 0.09619013325 | AX13: 9.661793861 | AY13: 0.0003751884445 | AZ13: 1.091762329
B14: kVB/KMI | C14: 1.86 | Q14: P1 | S14: P2 | AD14: 8 | AE14: 992 | AF14: 1.893703254 | AG14: 23.22489346 | AH14: 22.87024378 | AI14: 0.9847297609 | AJ14: 0.08153765085 | AK14: 8.280205808 | AL14: 0.001736620927 | AM14: 1.066267412 | AO14: 8 | AQ14: 8 | AR14: 992 | AS14: 0.0003436539574 | AT14: 0.0003213056913 | AU14: 0.9949410041 | AV14: 0.0959340425 | AW14: 0.09593404312 | AX14: 9.642184082 | AY14: 0.0003748835267 | AZ14: 1.090875047
P15: Atot P1 | Q15: =SUM(AL7:AL1006) -> 0.7798884426 | R15: A tot MAD | S15: =SUM(OFFSET(AY7,0,0,$C$4,1)) -> 0.07516844292 | AD15: 9 | AE15: 991 | AF15: 1.890017121 | AG15: 23.22489346 | AH15: 22.826295 | AI15: 0.9828374473 | AJ15: 0.08137893612 | AK15: 8.279999541 | AL15: 0.001733280434 | AM15: 1.064216383 | AO15: 9 | AQ15: 9 | AR15: 991 | AS15: 0.0003436539574 | AT15: 0.0003213056913 | AU15: 0.9943101504 | AV15: 0.09567798491 | AW15: 0.09567798554 | AX15: 9.622549413 | AY15: 0.0003745787362 | AZ15: 1.089988136
P16: 1-R-T | Q16: =1-AJ6-AI1006 -> 0.7713378521 | R16: A tot VB | S16: =SUM(OFFSET(AY7,$C$4,0,$C$5,1)) -> 0.7205166719 | AD16: 10 | AE16: 990 | AF16: 1.886337985 | AG16: 23.22489346 | AH16: 22.78243066 | AI16: 0.9809487695 | AJ16: 0.08122052266 | AK16: 8.279792502 | AL16: 0.001729946354 | AM16: 1.062169292 | AO16: 10 | AQ16: 10 | AR16: 990 | AS16: 0.0003436539574 | AT16: 0.0003213056913 | AU16: 0.9936796339 | AV16: 0.09542195978 | AW16: 0.09542196041 | AX16: 9.602889821 | AY16: 0.0003742740726 | AZ16: 1.089101594
P17: R=J(0) | Q17: =AJ6 -> 0.08281828493 | R17: A tot MAB | S17: =SUM(OFFSET(AY7,($C$4+$C$5),0,$C$6,1)) -> 0.007175390512 | AD17: 11 | AE17: 989 | AF17: 1.882665833 | AG17: 23.22489346 | AH17: 22.7386506 | AI17: 0.9790637204 | AJ17: 0.08106240988 | AK17: 8.279584688 | AL17: 0.001726618673 | AM17: 1.06012613 | AO17: 11 | AQ17: 11 | AR17: 989 | AS17: 0.0003436539574 | AT17: 0.0003213056913 | AU17: 0.9930494544 | AV17: 0.09516596702 | AW17: 0.09516596766 | AX17: 9.583205272 | AY17: 0.000373969536 | AZ17: 1.088215422
P18: T | Q18: =AI1006 -> 0.145843863 | R18: A Total P2 | S18: =SUM(S15:S17) -> 0.8028605053 | AD18: 12 | AE18: 988 | AF18: 1.87900065 | AG18: 23.22489346 | AH18: 22.69495465 | AI18: 0.9771822932 | AJ18: 0.08090459719 | AK18: 8.279376096 | AL18: 0.00172329738 | AM18: 1.05808689 | AO18: 12 | AQ18: 12 | AR18: 988 | AS18: 0.0003436539574 | AT18: 0.0003213056913 | AU18: 0.9924196117 | AV18: 0.09491000654 | AW18: 0.09491000719 | AX18: 9.56349573 | AY18: 0.0003736651263 | AZ18: 1.087329619
B19: Output Leaf level Absorbed light | R19: J(0) | S19: =AW6 -> 0.09798368263 | AD19: 13 | AE19: 987 | AF19: 1.875342423 | AG19: 23.22489346 | AH19: 22.65134266 | AI19: 0.9753044808 | AJ19: 0.08074708402 | AK19: 8.279166722 | AL19: 0.001719982462 | AM19: 1.056051565 | AO19: 13 | AQ19: 13 | AR19: 987 | AS19: 0.0003436539574 | AT19: 0.0003213056913 | AU19: 0.9917901056 | AV19: 0.09465407826 | AW19: 0.09465407891 | AX19: 9.543761163 | AY19: 0.0003733608432 | AZ19: 1.086444184
B20: A MI | C20: =Q15*X6 -> 0.4398570816 | R20: T | S20: =AU1006 -> 0.1031284881 | AD20: 14 | AE20: 986 | AF20: 1.871691139 | AG20: 23.22489346 | AH20: 22.60781446 | AI20: 0.9734302763 | AJ20: 0.08058986977 | AK20: 8.278956565 | AL20: 0.001716673907 | AM20: 1.054020146 | AO20: 14 | AQ20: 14 | AR20: 986 | AS20: 0.0003436539574 | AT20: 0.0003213056913 | AU20: 0.9911609358 | AV20: 0.09439818209 | AW20: 0.09439818274 | AX20: 9.524001535 | AY20: 0.0003730566868 | AZ20: 1.085559119
B21: A MAD | C21: =S15*C7 -> 0.03277344112 | R21: 1-R-t | S21: =1-S19-S20 -> 0.7988878293 | AD21: 15 | AE21: 985 | AF21: 1.868046784 | AG21: 23.22489346 | AH21: 22.56436989 | AI21: 0.9715596728 | AJ21: 0.08043295387 | AK21: 8.278745621 | AL21: 0.001713371703 | AM21: 1.051992627 | AO21: 15 | AQ21: 15 | AR21: 985 | AS21: 0.0003436539574 | AT21: 0.0003213056913 | AU21: 0.9905321023 | AV21: 0.09414231793 | AW21: 0.0941423186 | AX21: 9.504216812 | AY21: 0.0003727526569 | AZ21: 1.084674421
B22: A MAB | C22: =S17*C7 -> 0.003128470263 | AD22: 16 | AE22: 984 | AF22: 1.864409345 | AG22: 23.22489346 | AH22: 22.52100879 | AI22: 0.9696926633 | AJ22: 0.08027633573 | AK22: 8.278533887 | AL22: 0.001710075837 | AM22: 1.049968999 | AO22: 16 | AQ22: 16 | AR22: 984 | AS22: 0.0003436539574 | AT22: 0.0003213056913 | AU22: 0.9899036047 | AV22: 0.09388648572 | AW22: 0.09388648639 | AX22: 9.484406961 | AY22: 0.0003724487535 | AZ22: 1.083790091
B23: Amesophyll | C23: =SUM(C20:C21,C22) -> 0.475758993 | AD23: 17 | AE23: 983 | AF23: 1.860778807 | AG23: 23.22489346 | AH23: 22.47773101 | AI23: 0.9678292409 | AJ23: 0.08012001478 | AK23: 8.27832136 | AL23: 0.001706786298 | AM23: 1.047949256 | AO23: 17 | AQ23: 17 | AR23: 983 | AS23: 0.0003436539574 | AT23: 0.0003213056913 | AU23: 0.9892754428 | AV23: 0.09363068535 | AW23: 0.09363068603 | AX23: 9.464571946 | AY23: 0.0003721449764 | AZ23: 1.082906129
B24: A VB | C24: =S16*C7 -> 0.3141452689 | AD24: 18 | AE24: 982 | AF24: 1.857155158 | AG24: 23.22489346 | AH24: 22.43453637 | AI24: 0.9659693988 | AJ24: 0.07996399044 | AK24: 8.278108037 | AL24: 0.001703503073 | AM24: 1.045933389 | AO24: 18 | AQ24: 18 | AR24: 982 | AS24: 0.0003436539574 | AT24: 0.0003213056913 | AU24: 0.9886476164 | AV24: 0.09337491675 | AW24: 0.09337491743 | AX24: 9.444711733 | AY24: 0.0003718413255 | AZ24: 1.082022534
B25: AB BS / M | C25: =C24/C23 -> 0.6603033754 | AD25: 19 | AE25: 981 | AF25: 1.853538385 | AG25: 23.22489346 | AH25: 22.39142473 | AI25: 0.9641131301 | AJ25: 0.07980826213 | AK25: 8.277893915 | AL25: 0.00170022615 | AM25: 1.043921392 | AO25: 19 | AQ25: 19 | AR25: 981 | AS25: 0.0003436539574 | AT25: 0.0003213056913 | AU25: 0.9880201254 | AV25: 0.09311917982 | AW25: 0.0931191805 | AX25: 9.424826288 | AY25: 0.0003715378007 | AZ25: 1.081139306
B26: Leaf level Reflectance | C26: =C7*AW6+X6*AJ6 -> 0.08943039832 | AD26: 20 | AE26: 980 | AF26: 1.849928474 | AG26: 23.22489346 | AH26: 22.34839592 | AI26: 0.9622604279 | AJ26: 0.07965282928 | AK26: 8.277678991 | AL26: 0.001696955517 | AM26: 1.041913257 | AO26: 20 | AQ26: 20 | AR26: 980 | AS26: 0.0003436539574 | AT26: 0.0003213056913 | AU26: 0.9873929694 | AV26: 0.09286347448 | AW26: 0.09286347517 | AX26: 9.404915575 | AY26: 0.0003712344019 | AZ26: 1.080256445
B27: Leaf level Absorptance | C27: =SUM(C23,C24) -> 0.7899042619 | AD27: 21 | AE27: 979 | AF27: 1.846325411 | AG27: 23.22489346 | AH27: 22.30544978 | AI27: 0.9604112853 | AJ27: 0.07949769131 | AK27: 8.277463262 | AL27: 0.001693691162 | AM27: 1.039908977 | AO27: 21 | AQ27: 21 | AR27: 979 | AS27: 0.0003436539574 | AT27: 0.0003213056913 | AU27: 0.9867661483 | AV27: 0.09260780064 | AW27: 0.09260780134 | AX27: 9.384979561 | AY27: 0.000370931129 | AZ27: 1.07937395
B28: Leaf level trasmittance | C28: =C7*AW1006+X6*AI1006 -> 0.08496643323 | AD28: 22 | AE28: 978 | AF28: 1.842729183 | AG28: 23.22489346 | AH28: 22.26258615 | AI28: 0.9585656955 | AJ28: 0.07934284764 | AK28: 8.277246725 | AL28: 0.001690433072 | AM28: 1.037908543 | AO28: 22 | AQ28: 22 | AR28: 978 | AS28: 0.0003436539574 | AT28: 0.0003213056913 | AU28: 0.986139662 | AV28: 0.09235215822 | AW28: 0.09235215892 | AX28: 9.36501821 | AY28: 0.000370627982 | AZ28: 1.078491821
AD29: 23 | AE29: 977 | AF29: 1.839139777 | AG29: 23.22489346 | AH29: 22.21980488 | AI29: 0.9567236517 | AJ29: 0.07918829771 | AK29: 8.277029377 | AL29: 0.001687181236 | AM29: 1.035911949 | AO29: 23 | AQ29: 23 | AR29: 977 | AS29: 0.0003436539574 | AT29: 0.0003213056913 | AU29: 0.98551351 | AV29: 0.09209654712 | AW29: 0.09209654783 | AX29: 9.345031489 | AY29: 0.0003703249606 | AZ29: 1.077610058
AD30: 24 | AE30: 976 | AF30: 1.83555718 | AG30: 23.22489346 | AH30: 22.1771058 | AI30: 0.954885147 | AJ30: 0.07903404093 | AK30: 8.276811214 | AL30: 0.001683935642 | AM30: 1.033919188 | AO30: 24 | AQ30: 24 | AR30: 976 | AS30: 0.0003436539574 | AT30: 0.0003213056913 | AU30: 0.9848876923 | AV30: 0.09184096727 | AW30: 0.09184096799 | AX30: 9.325019361 | AY30: 0.0003700220649 | AZ30: 1.07672866
AD31: 25 | AE31: 975 | AF31: 1.831981379 | AG31: 23.22489346 | AH31: 22.13448877 | AI31: 0.9530501748 | AJ31: 0.07888007675 | AK31: 8.276592234 | AL31: 0.001680696278 | AM31: 1.031930252 | AO31: 25 | AQ31: 25 | AR31: 975 | AS31: 0.0003436539574 | AT31: 0.0003213056913 | AU31: 0.9842622087 | AV31: 0.09158541858 | AW31: 0.0915854193 | AX31: 9.304981792 | AY31: 0.0003697192946 | AZ31: 1.075847628
AD32: 26 | AE32: 974 | AF32: 1.828412359 | AG32: 23.22489346 | AH32: 22.09195361 | AI32: 0.9512187281 | AJ32: 0.0787264046 | AK32: 8.276372434 | AL32: 0.001677463131 | AM32: 1.029945133 | AO32: 26 | AQ32: 26 | AR32: 974 | AS32: 0.0003436539574 | AT32: 0.0003213056913 | AU32: 0.9836370588 | AV32: 0.09132990095 | AW32: 0.09132990168 | AX32: 9.284918747 | AY32: 0.0003694166498 | AZ32: 1.074966961
AD33: 27 | AE33: 973 | AF33: 1.824850109 | AG33: 23.22489346 | AH33: 22.04950018 | AI33: 0.9493908001 | AJ33: 0.07857302389 | AK33: 8.27615181 | AL33: 0.00167423619 | AM33: 1.027963824 | AO33: 27 | AQ33: 27 | AR33: 973 | AS33: 0.0003436539574 | AT33: 0.0003213056913 | AU33: 0.9830122426 | AV33: 0.0910744143 | AW33: 0.09107441504 | AX33: 9.264830191 | AY33: 0.0003691141302 | AZ33: 1.074086658
AD34: 28 | AE34: 972 | AF34: 1.821294614 | AG34: 23.22489346 | AH34: 22.00712832 | AI34: 0.9475663843 | AJ34: 0.07841993407 | AK34: 8.275930359 | AL34: 0.001671015443 | AM34: 1.025986318 | AO34: 28 | AQ34: 28 | AR34: 972 | AS34: 0.0003436539574 | AT34: 0.0003213056913 | AU34: 0.9823877598 | AV34: 0.09081895855 | AW34: 0.09081895929 | AX34: 9.24471609 | AY34: 0.0003688117358 | AZ34: 1.073206719
AD35: 29 | AE35: 971 | AF35: 1.817745862 | AG35: 23.22489346 | AH35: 21.96483786 | AI35: 0.9457454737 | AJ35: 0.07826713457 | AK35: 8.275708079 | AL35: 0.001667800878 | AM35: 1.024012608 | AO35: 29 | AQ35: 29 | AR35: 971 | AS35: 0.0003436539574 | AT35: 0.0003213056913 | AU35: 0.9817636101 | AV35: 0.09056353361 | AW35: 0.09056353436 | AX35: 9.224576407 | AY35: 0.0003685094665 | AZ35: 1.072327144
AD36: 30 | AE36: 970 | AF36: 1.814203839 | AG36: 23.22489346 | AH36: 21.92262866 | AI36: 0.9439280617 | AJ36: 0.07811462483 | AK36: 8.275484965 | AL36: 0.001664592482 | AM36: 1.022042686 | AO36: 30 | AQ36: 30 | AR36: 970 | AS36: 0.0003436539574 | AT36: 0.0003213056913 | AU36: 0.9811397935 | AV36: 0.09030813939 | AW36: 0.09030814014 | AX36: 9.204411109 | AY36: 0.0003682073222 | AZ36: 1.071447934
AD37: 31 | AE37: 969 | AF37: 1.810668533 | AG37: 23.22489346 | AH37: 21.88050056 | AI37: 0.9421141415 | AJ37: 0.07796240427 | AK37: 8.275261016 | AL37: 0.001661390245 | AM37: 1.020076546 | AO37: 31 | AQ37: 31 | AR37: 969 | AS37: 0.0003436539574 | AT37: 0.0003213056913 | AU37: 0.9805163096 | AV37: 0.09005277581 | AW37: 0.09005277657 | AX37: 9.184220159 | AY37: 0.0003679053028 | AZ37: 1.070569086
AD38: 32 | AE38: 968 | AF38: 1.80713993 | AG38: 23.22489346 | AH38: 21.8384534 | AI38: 0.9403037064 | AJ38: 0.07781047234 | AK38: 8.275036227 | AL38: 0.001658194154 | AM38: 1.018114179 | AO38: 32 | AQ38: 32 | AR38: 968 | AS38: 0.0003436539574 | AT38: 0.0003213056913 | AU38: 0.9798931582 | AV38: 0.08979744277 | AW38: 0.08979744354 | AX38: 9.164003523 | AY38: 0.0003676034082 | AZ38: 1.069690602
AD39: 33 | AE39: 967 | AF39: 1.803618018 | AG39: 23.22489346 | AH39: 21.79648702 | AI39: 0.9384967497 | AJ39: 0.07765882848 | AK39: 8.274810595 | AL39: 0.001655004198 | AM39: 1.016155578 | AO39: 33 | AQ39: 33 | AR39: 967 | AS39: 0.0003436539574 | AT39: 0.0003213056913 | AU39: 0.9792703392 | AV39: 0.0895421402 | AW39: 0.08954214097 | AX39: 9.143761165 | AY39: 0.0003673016382 | AZ39: 1.06881248
AD40: 34 | AE40: 966 | AF40: 1.800102782 | AG40: 23.22489346 | AH40: 21.75460128 | AI40: 0.9366932648 | AJ40: 0.07750747212 | AK40: 8.274584118 | AL40: 0.001651820364 | AM40: 1.014200737 | AO40: 34 | AQ40: 34 | AR40: 966 | AS40: 0.0003436539574 | AT40: 0.0003213056913 | AU40: 0.9786478523 | AV40: 0.089286868 | AW40: 0.08928686878 | AX40: 9.123493049 | AY40: 0.0003669999928 | AZ40: 1.067934721
AD41: 35 | AE41: 965 | AF41: 1.796594211 | AG41: 23.22489346 | AH41: 21.71279601 | AI41: 0.934893245 | AJ41: 0.07735640271 | AK41: 8.274356791 | AL41: 0.001648642641 | AM41: 1.012249648 | AO41: 35 | AQ41: 35 | AR41: 965 | AS41: 0.0003436539574 | AT41: 0.0003213056913 | AU41: 0.9780256974 | AV41: 0.0890316261 | AW41: 0.08903162688 | AX41: 9.103199141 | AY41: 0.0003666984719 | AZ41: 1.067057324
AD42: 36 | AE42: 964 | AF42: 1.793092291 | AG42: 23.22489346 | AH42: 21.67107106 | AI42: 0.9330966835 | AJ42: 0.07720561968 | AK42: 8.274128613 | AL42: 0.001645471017 | AM42: 1.010302303 | AO42: 36 | AQ42: 36 | AR42: 964 | AS42: 0.0003436539574 | AT42: 0.0003213056913 | AU42: 0.9774038741 | AV42: 0.08877641439 | AW42: 0.08877641518 | AX42: 9.082879405 | AY42: 0.0003663970754 | AZ42: 1.066180289
AD43: 37 | AE43: 963 | AF43: 1.78959701 | AG43: 23.22489346 | AH43: 21.62942628 | AI43: 0.9313035738 | AJ43: 0.07705512247 | AK43: 8.273899579 | AL43: 0.001642305481 | AM43: 1.008358696 | AO43: 37 | AQ43: 37 | AR43: 963 | AS43: 0.0003436539574 | AT43: 0.0003213056913 | AU43: 0.9767823823 | AV43: 0.0885212328 | AW43: 0.0885212336 | AX43: 9.062533805 | AY43: 0.0003660958031 | AZ43: 1.065303616
AD44: 38 | AE44: 962 | AF44: 1.786108354 | AG44: 23.22489346 | AH44: 21.58786151 | AI44: 0.9295139093 | AJ44: 0.07690491054 | AK44: 8.273669686 | AL44: 0.00163914602 | AM44: 1.00641882 | AO44: 38 | AQ44: 38 | AR44: 962 | AS44: 0.0003436539574 | AT44: 0.0003213056913 | AU44: 0.9761612219 | AV44: 0.08826608125 | AW44: 0.08826608205 | AX44: 9.042162306 | AY44: 0.000365794655 | AZ44: 1.064427304
AD45: 39 | AE45: 961 | AF45: 1.78262631 | AG45: 23.22489346 | AH45: 21.5463766 | AI45: 0.9277276832 | AJ45: 0.07675498333 | AK45: 8.273438932 | AL45: 0.001635992623 | AM45: 1.004482667 | AO45: 39 | AQ45: 39 | AR45: 961 | AS45: 0.0003436539574 | AT45: 0.0003213056913 | AU45: 0.9755403925 | AV45: 0.08801095963 | AW45: 0.08801096044 | AX45: 9.021764872 | AY45: 0.000365493631 | AZ45: 1.063551353
AD46: 40 | AE46: 960 | AF46: 1.779150866 | AG46: 23.22489346 | AH46: 21.5049714 | AI46: 0.9259448891 | AJ46: 0.07660534027 | AK46: 8.273207312 | AL46: 0.001632845279 | AM46: 1.002550229 | AO46: 40 | AQ46: 40 | AR46: 960 | AS46: 0.0003436539574 | AT46: 0.0003213056913 | AU46: 0.9749198939 | AV46: 0.08775586787 | AW46: 0.08775586869 | AX46: 9.001341468 | AY46: 0.0003651927309 | AZ46: 1.062675763
AD47: 41 | AE47: 959 | AF47: 1.775682009 | AG47: 23.22489346 | AH47: 21.46364574 | AI47: 0.9241655202 | AJ47: 0.07645598082 | AK47: 8.272974824 | AL47: 0.001629703975 | AM47: 1.000621501 | AO47: 41 | AQ47: 41 | AR47: 959 | AS47: 0.0003436539574 | AT47: 0.0003213056913 | AU47: 0.974299726 | AV47: 0.08750080589 | AW47: 0.08750080671 | AX47: 8.980892057 | AY47: 0.0003648919547 | AZ47: 1.061800533
AD48: 42 | AE48: 958 | AF48: 1.772219725 | AG48: 23.22489346 | AH48: 21.42239949 | AI48: 0.9223895701 | AJ48: 0.07630690443 | AK48: 8.272741464 | AL48: 0.0016265687 | AM48: 0.9986964745 | AO48: 42 | AQ48: 42 | AR48: 958 | AS48: 0.0003436539574 | AT48: 0.0003213056913 | AU48: 0.9736798886 | AV48: 0.08724577358 | AW48: 0.08724577441 | AX48: 8.960416604 | AY48: 0.0003645913023 | AZ48: 1.060925663
AD49: 43 | AE49: 957 | AF49: 1.768764003 | AG49: 23.22489346 | AH49: 21.38123249 | AI49: 0.9206170321 | AJ49: 0.07615811053 | AK49: 8.272507229 | AL49: 0.001623439443 | AM49: 0.9967751427 | AO49: 43 | AQ49: 43 | AR49: 957 | AS49: 0.0003436539574 | AT49: 0.0003213056913 | AU49: 0.9730603814 | AV49: 0.08699077087 | AW49: 0.08699077171 | AX49: 8.939915074 | AY49: 0.0003642907735 | AZ49: 1.060051153
AD50: 44 | AE50: 956 | AF50: 1.765314829 | AG50: 23.22489346 | AH50: 21.34014458 | AI50: 0.9188478998 | AJ50: 0.07600959859 | AK50: 8.272272115 | AL50: 0.001620316191 | AM50: 0.9948574984 | AO50: 44 | AQ50: 44 | AR50: 956 | AS50: 0.0003436539574 | AT50: 0.0003213056913 | AU50: 0.9724412042 | AV50: 0.08673579768 | AW50: 0.08673579852 | AX50: 8.919387429 | AY50: 0.0003639903682 | AZ50: 1.059177003
AD51: 45 | AE51: 955 | AF51: 1.761872191 | AG51: 23.22489346 | AH51: 21.29913561 | AI51: 0.9170821665 | AJ51: 0.07586136806 | AK51: 8.27203612 | AL51: 0.001617198934 | AM51: 0.9929435345 | AO51: 45 | AQ51: 45 | AR51: 955 | AS51: 0.0003436539574 | AT51: 0.0003213056913 | AU51: 0.9718223568 | AV51: 0.08648085391 | AW51: 0.08648085476 | AX51: 8.898833634 | AY51: 0.0003636900865 | AZ51: 1.058303212
AD52: 46 | AE52: 954 | AF52: 1.758436075 | AG52: 23.22489346 | AH52: 21.25820543 | AI52: 0.9153198257 | AJ52: 0.07571341838 | AK52: 8.271799239 | AL52: 0.00161408766 | AM52: 0.991033244 | AO52: 46 | AQ52: 46 | AR52: 954 | AS52: 0.0003436539574 | AT52: 0.0003213056913 | AU52: 0.9712038391 | AV52: 0.08622593947 | AW52: 0.08622594033 | AX52: 8.878253654 | AY52: 0.000363389928 | AZ52: 1.057429779
AD53: 47 | AE53: 953 | AF53: 1.75500647 | AG53: 23.22489346 | AH53: 21.21735389 | AI53: 0.9135608709 | AJ53: 0.075565749 | AK53: 8.27156147 | AL53: 0.001610982357 | AM53: 0.9891266199 | AO53: 47 | AQ53: 47 | AR53: 953 | AS53: 0.0003436539574 | AT53: 0.0003213056913 | AU53: 0.9705856507 | AV53: 0.08597105429 | AW53: 0.08597105515 | AX53: 8.857647452 | AY53: 0.0003630898928 | AZ53: 1.056556706
AD54: 48 | AE54: 952 | AF54: 1.751583362 | AG54: 23.22489346 | AH54: 21.17658084 | AI54: 0.9118052956 | AJ54: 0.07541835939 | AK54: 8.27132281 | AL54: 0.001607883013 | AM54: 0.9872236549 | AO54: 48 | AQ54: 48 | AR54: 952 | AS54: 0.0003436539574 | AT54: 0.0003213056913 | AU54: 0.9699677915 | AV54: 0.08571619827 | AW54: 0.08571619914 | AX54: 8.837014991 | AY54: 0.0003627899808 | AZ54: 1.055683991
AD55: 49 | AE55: 951 | AF55: 1.748166738 | AG55: 23.22489346 | AH55: 21.13588613 | AI55: 0.9100530932 | AJ55: 0.07527124899 | AK55: 8.271083253 | AL55: 0.001604789618 | AM55: 0.9853243422 | AO55: 49 | AQ55: 49 | AR55: 951 | AS55: 0.0003436539574 | AT55: 0.0003213056913 | AU55: 0.9693502613 | AV55: 0.08546137133 | AW55: 0.08546137221 | AX55: 8.816356236 | AY55: 0.0003624901918 | AZ55: 1.054811633
AD56: 50 | AE56: 950 | AF56: 1.744756587 | AG56: 23.22489346 | AH56: 21.09526961 | AI56: 0.9083042575 | AJ56: 0.07512441727 | AK56: 8.270842799 | AL56: 0.00160170216 | AM56: 0.9834286747 | AO56: 50 | AQ56: 50 | AR56: 950 | AS56: 0.0003436539574 | AT56: 0.0003213056913 | AU56: 0.9687330598 | AV56: 0.08520657339 | AW56: 0.08520657427 | AX56: 8.795671151 | AY56: 0.0003621905258 | AZ56: 1.053939634
AD57: 51 | AE57: 949 | AF57: 1.741352895 | AG57: 23.22489346 | AH57: 21.05473112 | AI57: 0.9065587817 | AJ57: 0.07497786367 | AK57: 8.270601442 | AL57: 0.001598620628 | AM57: 0.9815366454 | AO57: 51 | AQ57: 51 | AR57: 949 | AS57: 0.0003436539574 | AT57: 0.0003213056913 | AU57: 0.9681161869 | AV57: 0.08495180435 | AW57: 0.08495180524 | AX57: 8.774959698 | AY57: 0.0003618909826 | AZ57: 1.053067992
AD58: 52 | AE58: 948 | AF58: 1.737955651 | AG58: 23.22489346 | AH58: 21.01427052 | AI58: 0.9048166596 | AJ58: 0.07483158766 | AK58: 8.270359179 | AL58: 0.001595545009 | AM58: 0.9796482472 | AO58: 52 | AQ58: 52 | AR58: 948 | AS58: 0.0003436539574 | AT58: 0.0003213056913 | AU58: 0.9674996424 | AV58: 0.08469706413 | AW58: 0.08469706502 | AX58: 8.754221843 | AY58: 0.0003615915621 | AZ58: 1.052196707
AD59: 53 | AE59: 947 | AF59: 1.73456484 | AG59: 23.22489346 | AH59: 20.97388765 | AI59: 0.9030778846 | AJ59: 0.0746855887 | AK59: 8.270116008 | AL59: 0.001592475294 | AM59: 0.9777634733 | AO59: 53 | AQ59: 53 | AR59: 947 | AS59: 0.0003436539574 | AT59: 0.0003213056913 | AU59: 0.966883426 | AV59: 0.08444235264 | AW59: 0.08444235354 | AX59: 8.733457548 | AY59: 0.0003612922643 | AZ59: 1.05132578
AD60: 54 | AE60: 946 | AF60: 1.731180452 | AG60: 23.22489346 | AH60: 20.93358238 | AI60: 0.9013424503 | AJ60: 0.07453986624 | AK60: 8.269871924 | AL60: 0.001589411469 | AM60: 0.9758823165 | AO60: 54 | AQ60: 54 | AR60: 946 | AS60: 0.0003436539574 | AT60: 0.0003213056913 | AU60: 0.9662675375 | AV60: 0.0841876698 | AW60: 0.08418767071 | AX60: 8.712666776 | AY60: 0.000360993089 | AZ60: 1.050455208
AD61: 55 | AE61: 945 | AF61: 1.727802472 | AG61: 23.22489346 | AH61: 20.89335454 | AI61: 0.8996103503 | AJ61: 0.07439441974 | AK61: 8.269626925 | AL61: 0.001586353525 | AM61: 0.97400477 | AO61: 55 | AQ61: 55 | AR61: 945 | AS61: 0.0003436539574 | AT61: 0.0003213056913 | AU61: 0.9656519767 | AV61: 0.08393301552 | AW61: 0.08393301643 | AX61: 8.691849492 | AY61: 0.0003606940362 | AZ61: 1.049584993
AD62: 56 | AE62: 944 | AF62: 1.72443089 | AG62: 23.22489346 | AH62: 20.85320399 | AI62: 0.8978815782 | AJ62: 0.07424924868 | AK62: 8.269381006 | AL62: 0.001583301449 | AM62: 0.9721308268 | AO62: 56 | AQ62: 56 | AR62: 944 | AS62: 0.0003436539574 | AT62: 0.0003213056913 | AU62: 0.9650367435 | AV62: 0.08367838971 | AW62: 0.08367839063 | AX62: 8.671005659 | AY62: 0.0003603951057 | AZ62: 1.048715134
AD63: 57 | AE63: 943 | AF63: 1.721065692 | AG63: 23.22489346 | AH63: 20.81313058 | AI63: 0.8961561275 | AJ63: 0.0741043525 | AK63: 8.269134164 | AL63: 0.001580255231 | AM63: 0.9702604801 | AO63: 57 | AQ63: 57 | AR63: 943 | AS63: 0.0003436539574 | AT63: 0.0003213056913 | AU63: 0.9644218375 | AV63: 0.08342379229 | AW63: 0.08342379322 | AX63: 8.650135239 | AY63: 0.0003600962974 | AZ63: 1.047845631
AD64: 58 | AE64: 942 | AF64: 1.717706865 | AG64: 23.22489346 | AH64: 20.77313417 | AI64: 0.894433992 | AJ64: 0.07395973068 | AK64: 8.268886395 | AL64: 0.001577214858 | AM64: 0.9683937227 | AO64: 58 | AQ64: 58 | AR64: 942 | AS64: 0.0003436539574 | AT64: 0.0003213056913 | AU64: 0.9638072586 | AV64: 0.08316922317 | AW64: 0.08316922411 | AX64: 8.629238197 | AY64: 0.0003597976112 | AZ64: 1.046976483
AD65: 59 | AE65: 941 | AF65: 1.714354398 | AG65: 23.22489346 | AH65: 20.7332146 | AI65: 0.8927151653 | AJ65: 0.07381538268 | AK65: 8.268637697 | AL65: 0.001574180321 | AM65: 0.966530548 | AO65: 59 | AQ65: 59 | AR65: 941 | AS65: 0.0003436539574 | AT65: 0.0003213056913 | AU65: 0.9631930067 | AV65: 0.08291468227 | AW65: 0.08291468321 | AX65: 8.608314496 | AY65: 0.0003594990471 | AZ65: 1.04610769
AD66: 60 | AE66: 940 | AF66: 1.711008279 | AG66: 23.22489346 | AH66: 20.69337173 | AI66: 0.8909996409 | AJ66: 0.07367130797 | AK66: 8.268388066 | AL66: 0.001571151607 | AM66: 0.9646709489 | AO66: 60 | AQ66: 60 | AR66: 940 | AS66: 0.0003436539574 | AT66: 0.0003213056913 | AU66: 0.9625790814 | AV66: 0.0826601695 | AW66: 0.08266017045 | AX66: 8.587364098 | AY66: 0.0003592006049 | AZ66: 1.045239252
AD67: 61 | AE67: 939 | AF67: 1.707668493 | AG67: 23.22489346 | AH67: 20.65360541 | AI67: 0.8892874125 | AJ67: 0.07352750601 | AK67: 8.268137497 | AL67: 0.001568128706 | AM67: 0.9628149185 | AO67: 61 | AQ67: 61 | AR67: 939 | AS67: 0.0003436539574 | AT67: 0.0003213056913 | AU67: 0.9619654825 | AV67: 0.08240568476 | AW67: 0.08240568572 | AX67: 8.566386967 | AY67: 0.0003589022846 | AZ67: 1.044371168
AD68: 62 | AE68: 938 | AF68: 1.70433503 | AG68: 23.22489346 | AH68: 20.61391549 | AI68: 0.8875784739 | AJ68: 0.07338397627 | AK68: 8.267885988 | AL68: 0.001565111606 | AM68: 0.9609624501 | AO68: 62 | AQ68: 62 | AR68: 938 | AS68: 0.0003436539574 | AT68: 0.0003213056913 | AU68: 0.96135221 | AV68: 0.08215122799 | AW68: 0.08215122895 | AX68: 8.545383066 | AY68: 0.000358604086 | AZ68: 1.043503439
AD69: 63 | AE69: 937 | AF69: 1.701007878 | AG69: 23.22489346 | AH69: 20.57430183 | AI69: 0.8858728186 | AJ69: 0.07324071822 | AK69: 8.267633535 | AL69: 0.001562100296 | AM69: 0.9591135368 | AO69: 63 | AQ69: 63 | AR69: 937 | AS69: 0.0003436539574 | AT69: 0.0003213056913 | AU69: 0.9607392634 | AV69: 0.08189679908 | AW69: 0.08189680006 | AX69: 8.524352358 | AY69: 0.000358306009 | AZ69: 1.042636063
AD70: 64 | AE70: =ENNE-AD70 -> 936 | AF70: =(1-betasquare)*((EXP(alpha*AE70))-(EXP(-alpha*AE70)))-Rg*(((POWER((1-beta),2)*(EXP(alpha*AE70)))-POWER((1+beta),2))*(EXP(-alpha*AE70))) -> 1.697687022 | AG70: =(POWER((1+beta),2)*EXP(alpha*ENNE))-(POWER((1-beta),2)*EXP(-(alpha*ENNE)))-(Rg*(1-betasquare)*(EXP(alpha*ENNE)-EXP(-(alpha*ENNE)))) -> 23.22489346 | AH70: =POWER((1+beta),2)*EXP(alpha*AE70)-POWER((1-beta),2)*EXP(-alpha*AE70)-Rg*(1-betasquare)*(EXP(alpha*AE70)-EXP(-alpha*AE70)) -> 20.53476428 | AI70: =AH70/AG70 -> 0.8841704404 | AJ70: =AF70/AG70 -> 0.07309773134 | AK70: 8.267380134 | AL70: 0.001559094765 | AM70: 0.9572681717 | AO70: 64 | AQ70: 64 | AR70: =ENNE-AQ70 -> 936 | AS70: =IF(AO70<=$C$4,$S$5,(IF(AO70<=($C$5+$C$4),kappaBS,$S$5))) -> 0.0003436539574 | AT70: =esse -> 0.0003213056913 | AU70: 0.9601266428 | AV70: 0.08164239796 | AW70: =AW71-(AS70+AT70)*AW71+AT70*AU70 -> 0.08164239894 | AX70: =AW70/AU70*100 -> 8.503294805 | AY70: 0.0003580080535 | AZ70: =AU70+AW70 -> 1.041769042
AD71: 65 | AE71: 935 | AF71: 1.694372452 | AG71: 23.22489346 | AH71: 20.49530269 | AI71: 0.8824713329 | AJ71: 0.07295501508 | AK71: =AJ71/AI71*100 -> 8.267125781 | AL71: =kappaM*(AI71)+kappaM*AJ71 -> 0.001556095002 | AM71: =AI71+AJ71 -> 0.955426348 | AO71: 65 | AQ71: 65 | AR71: 935 | AS71: 0.0003436539574 | AT71: 0.0003213056913 | AU71: 0.9595143477 | AV71: =AW71 -> 0.08138802454 | AW71: 0.08138802552 | AX71: 8.482210372 | AY71: =IF(AO71<=$C$4,AZ71*$S$5,IF(AO71<=($C$4+$C$5),AZ71*kappaBS,AZ71*$S$5)) -> 0.0003577102194 | AZ71: 1.040902373
AD72: 66 | AE72: 934 | AF72: 1.691064156 | AG72: 23.22489346 | AH72: 20.45591692 | AI72: 0.88077549 | AJ72: 0.07281256893 | AK72: 8.266870474 | AL72: 0.001553100996 | AM72: 0.9535880589 | AO72: 66 | AQ72: 66 | AR72: 934 | AS72: 0.0003436539574 | AT72: 0.0003213056913 | AU72: =AU71-(AS72+AT72)*AU71+AT72*AV72 -> 0.9589023781 | AV72: 0.08113367872 | AW72: 0.08113367972 | AX72: 8.46109902 | AY72: 0.0003574125067 | AZ72: 1.040036058
AD73: 67 | AE73: 933 | AF73: 1.68776212 | AG73: 23.22489346 | AH73: 20.41660682 | AI73: 0.8790829052 | AJ73: 0.07267039235 | AK73: 8.266614209 | AL73: 0.001550112735 | AM73: 0.9517532976 | AO73: 67 | AQ73: 67 | AR73: 933 | AS73: 0.0003436539574 | AT73: 0.0003213056913 | AU73: 0.9582907337 | AV73: 0.08087936044 | AW73: 0.08087936143 | AX73: 8.439960712 | AY73: 0.0003571149152 | AZ73: 1.039170095
AD74: 68 | AE74: 932 | AF74: 1.684466333 | AG74: 23.22489346 | AH74: 20.37737224 | AI74: 0.8773935725 | AJ74: 0.07252848482 | AK74: 8.266356981 | AL74: 0.001547130209 | AM74: 0.9499220573 | AO74: 68 | AQ74: 68 | AR74: 932 | AS74: 0.0003436539574 | AT74: 0.0003213056913 | AU74: 0.9576794143 | AV74: 0.08062506959 | AW74: 0.08062507059 | AX74: 8.418795411 | AY74: 0.0003568174448 | AZ74: 1.038304485
AD75: 69 | AE75: 931 | AF75: 1.681176782 | AG75: 23.22489346 | AH75: 20.33821305 | AI75: 0.8757074854 | AJ75: 0.07238684582 | AK75: 8.266098787 | AL75: 0.001544153407 | AM75: 0.9480943312 | AO75: 69 | AQ75: 69 | AR75: 931 | AS75: 0.0003436539574 | AT75: 0.0003213056913 | AU75: 0.9570684198 | AV75: 0.08037080609 | AW75: 0.0803708071 | AX75: 8.39760308 | AY75: 0.0003565200955 | AZ75: 1.037439227
AD76: 70 | AE76: 930 | AF76: 1.677893456 | AG76: 23.22489346 | AH76: 20.29912909 | AI76: 0.8740246377 | AJ76: 0.07224547482 | AK76: 8.265839623 | AL76: 0.001541182317 | AM76: 0.9462701126 | AO76: 70 | AQ76: 70 | AR76: 930 | AS76: 0.0003436539574 | AT76: 0.0003213056913 | AU76: 0.9564577498 | AV76: 0.08011656986 | AW76: 0.08011657088 | AX76: 8.376383682 | AY76: 0.000356222867 | AZ76: 1.036574321
AD77: 71 | AE77: 929 | AF77: 1.674616341 | AG77: 23.22489346 | AH77: 20.26012023 | AI77: 0.8723450234 | AJ77: 0.0721043713 | AK77: 8.265579487 | AL77: 0.001538216929 | AM77: 0.9444493947 | AO77: 71 | AQ77: 71 | AR77: 929 | AS77: 0.0003436539574 | AT77: 0.0003213056913 | AU77: 0.9558474042 | AV77: 0.0798623608 | AW77: 0.07986236183 | AX77: 8.355137178 | AY77: 0.0003559257594 | AZ77: 1.035709766
AD78: 72 | AE78: 928 | AF78: 1.671345427 | AG78: 23.22489346 | AH78: 20.22118631 | AI78: 0.870668636 | AJ78: 0.07196353474 | AK78: 8.265318373 | AL78: 0.001535257231 | AM78: 0.9426321707 | AO78: 72 | AQ78: 72 | AR78: 928 | AS78: 0.0003436539574 | AT78: 0.0003213056913 | AU78: 0.9552373828 | AV78: 0.07960817885 | AW78: 0.07960817988 | AX78: 8.333863531 | AY78: 0.0003556287725 | AZ78: 1.034845563
AD79: 73 | AE79: 927 | AF79: 1.668080701 | AG79: 23.22489346 | AH79: 20.18232719 | AI79: 0.8689954695 | AJ79: 0.07182296461 | AK79: 8.265056279 | AL79: 0.001532303213 | AM79: 0.9408184341 | AO79: 73 | AQ79: 73 | AR79: 927 | AS79: 0.0003436539574 | AT79: 0.0003213056913 | AU79: 0.9546276854 | AV79: 0.0793540239 | AW79: 0.07935402494 | AX79: 8.312562704 | AY79: 0.0003553319062 | AZ79: 1.03398171
AD80: 74 | AE80: 926 | AF80: 1.664822151 | AG80: 23.22489346 | AH80: 20.14354274 | AI80: 0.8673255176 | AJ80: 0.0716826604 | AK80: 8.2647932 | AL80: 0.001529354864 | AM80: 0.939008178 | AO80: 74 | AQ80: 74 | AR80: 926 | AS80: 0.0003436539574 | AT80: 0.0003213056913 | AU80: 0.9540183118 | AV80: 0.07909989587 | AW80: 0.07909989692 | AX80: 8.291234659 | AY80: 0.0003550351605 | AZ80: 1.033118209
AD81: 75 | AE81: 925 | AF81: 1.661569764 | AG81: 23.22489346 | AH81: 20.1048328 | AI81: 0.8656587741 | AJ81: 0.07154262158 | AK81: 8.264529133 | AL81: 0.001526412173 | AM81: 0.9372013957 | AO81: 75 | AQ81: 75 | AR81: 925 | AS81: 0.0003436539574 | AT81: 0.0003213056913 | AU81: 0.9534092617 | AV81: 0.07884579468 | AW81: 0.07884579573 | AX81: 8.269879358 | AY81: 0.0003547385351 | AZ81: 1.032255057
AD82: 76 | AE82: 924 | AF82: 1.658323529 | AG82: 23.22489346 | AH82: 20.06619723 | AI82: 0.863995233 | AJ82: 0.07140284765 | AK82: 8.264264075 | AL82: 0.001523475128 | AM82: 0.9353980806 | AO82: 76 | AQ82: 76 | AR82: 924 | AS82: 0.0003436539574 | AT82: 0.0003213056913 | AU82: 0.952800535 | AV82: 0.07859172023 | AW82: 0.07859172129 | AX82: 8.248496764 | AY82: 0.0003544420301 | AZ82: 1.031392256
AD83: 77 | AE83: 923 | AF83: 1.655083434 | AG83: 23.22489346 | AH83: 20.0276359 | AI83: 0.862334888 | AJ83: 0.07126333807 | AK83: 8.26399802 | AL83: 0.00152054372 | AM83: 0.933598226 | AO83: 77 | AQ83: 77 | AR83: 923 | AS83: 0.0003436539574 | AT83: 0.0003213056913 | AU83: 0.9521921314 | AV83: 0.07833767245 | AW83: 0.07833767352 | AX83: 8.227086838 | AY83: 0.0003541456453 | AZ83: 1.030529805
AD84: 78 | AE84: 922 | AF84: 1.651849467 | AG84: 23.22489346 | AH84: 19.98914865 | AI84: 0.8606777329 | AJ84: 0.07112409234 | AK84: 8.263730967 | AL84: 0.001517617937 | AM84: 0.9318018253 | AO84: 78 | AQ84: 78 | AR84: 922 | AS84: 0.0003436539574 | AT84: 0.0003213056913 | AU84: 0.9515840508 | AV84: 0.07808365125 | AW84: 0.07808365232 | AX84: 8.205649544 | AY84: 0.0003538493806 | AZ84: 1.029667703
AD85: 79 | AE85: 921 | AF85: 1.648621615 | AG85: 23.22489346 | AH85: 19.95073535 | AI85: 0.8590237618 | AJ85: 0.07098510994 | AK85: 8.26346291 | AL85: 0.001514697768 | AM85: 0.9300088717 | AO85: 79 | AQ85: 79 | AR85: 921 | AS85: 0.0003436539574 | AT85: 0.0003213056913 | AU85: 0.9509762929 | AV85: 0.07782965653 | AW85: 0.07782965762 | AX85: 8.184184842 | AY85: 0.0003535532359 | AZ85: 1.028805951
AD86: 80 | AE86: 920 | AF86: 1.645399868 | AG86: 23.22489346 | AH86: 19.91239584 | AI86: 0.8573729684 | AJ86: 0.07084639036 | AK86: 8.263193846 | AL86: 0.001511783203 | AM86: 0.9282193587 | AO86: 80 | AQ86: 80 | AR86: 920 | AS86: 0.0003436539574 | AT86: 0.0003213056913 | AU86: 0.9503688575 | AV86: 0.07757568822 | AW86: 0.07757568931 | AX86: 8.162692695 | AY86: 0.0003532572111 | AZ86: 1.027944547
AD87: 81 | AE87: 919 | AF87: 1.642184212 | AG87: 23.22489346 | AH87: 19.87413 | AI87: 0.8557253466 | AJ87: 0.07070793308 | AK87: 8.262923771 | AL87: 0.001508874231 | AM87: 0.9264332797 | AO87: 81 | AQ87: 81 | AR87: 919 | AS87: 0.0003436539574 | AT87: 0.0003213056913 | AU87: 0.9497617445 | AV87: 0.07732174623 | AW87: 0.07732174733 | AX87: 8.141173065 | AY87: 0.0003529613061 | AZ87: 1.027083492
AD88: 82 | AE88: 918 | AF88: 1.638974637 | AG88: 23.22489346 | AH88: 19.83593768 | AI88: 0.8540808904 | AJ88: 0.07056973759 | AK88: 8.262652681 | AL88: 0.001505970841 | AM88: 0.924650628 | AO88: 82 | AQ88: 82 | AR88: 918 | AS88: 0.0003436539574 | AT88: 0.0003213056913 | AU88: 0.9491549536 | AV88: 0.07706783047 | AW88: 0.07706783158 | AX88: 8.119625914 | AY88: 0.0003526655209 | AZ88: 1.026222785
AD89: 83 | AE89: 917 | AF89: 1.635771129 | AG89: 23.22489346 | AH89: 19.79781874 | AI89: 0.8524395936 | AJ89: 0.07043180338 | AK89: 8.262380573 | AL89: 0.001503073022 | AM89: 0.922871397 | AO89: 83 | AQ89: 83 | AR89: 917 | AS89: 0.0003436539574 | AT89: 0.0003213056913 | AU89: 0.9485484846 | AV89: 0.07681394086 | AW89: 0.07681394197 | AX89: 8.098051203 | AY89: 0.0003523698552 | AZ89: 1.025362427
AD90: 84 | AE90: 916 | AF90: 1.632573678 | AG90: 23.22489346 | AH90: 19.75977304 | AI90: 0.8508014503 | AJ90: 0.07029412994 | AK90: 8.262107442 | AL90: 0.001500180764 | AM90: 0.9210955802 | AO90: 84 | AQ90: 84 | AR90: 916 | AS90: 0.0003436539574 | AT90: 0.0003213056913 | AU90: 0.9479423373 | AV90: 0.07656007731 | AW90: 0.07656007843 | AX90: 8.076448895 | AY90: 0.0003520743091 | AZ90: 1.024502416
AD91: 85 | AE91: 915 | AF91: 1.629382272 | AG91: 23.22489346 | AH91: 19.72180043 | AI91: 0.8491664542 | AJ91: 0.07015671675 | AK91: 8.261833284 | AL91: 0.001497294056 | AM91: 0.919323171 | AO91: 85 | AQ91: 85 | AR91: 915 | AS91: 0.0003436539574 | AT91: 0.0003213056913 | AU91: 0.9473365116 | AV91: 0.07630623973 | AW91: 0.07630624086 | AX91: 8.05481895 | AY91: 0.0003517788824 | AZ91: 1.023642752
AD92: 86 | AE92: 914 | AF92: 1.626196898 | AG92: 23.22489346 | AH92: 19.68390077 | AI92: 0.8475345995 | AJ92: 0.07001956333 | AK92: 8.261558097 | AL92: 0.001494412887 | AM92: 0.9175541628 | AO92: 86 | AQ92: 86 | AR92: 914 | AS92: 0.0003436539574 | AT92: 0.0003213056913 | AU92: 0.9467310071 | AV92: 0.07605242804 | AW92: 0.07605242918 | AX92: 8.033161332 | AY92: 0.000351483575 | AZ92: 1.022783436
AD93: 87 | AE93: 913 | AF93: 1.623017545 | AG93: 23.22489346 | AH93: 19.64607394 | AI93: 0.8459058799 | AJ93: 0.06988266914 | AK93: 8.261281875 | AL93: 0.001491537246 | AM93: 0.9157885491 | AO93: 87 | AQ93: 87 | AR93: 913 | AS93: 0.0003436539574 | AT93: 0.0003213056913 | AU93: 0.9461258237 | AV93: 0.07579864215 | AW93: 0.0757986433 | AX93: 8.011476 | AY93: 0.0003511883868 | AZ93: 1.021924467
AD94: 88 | AE94: 912 | AF94: 1.619844202 | AG94: 23.22489346 | AH94: 19.60831978 | AI94: 0.8442802897 | AJ94: 0.0697460337 | AK94: 8.261004615 | AL94: 0.001488667124 | AM94: 0.9140263234 | AO94: 88 | AQ94: 88 | AR94: 912 | AS94: 0.0003436539574 | AT94: 0.0003213056913 | AU94: 0.9455209612 | AV94: 0.07554488198 | AW94: 0.07554488313 | AX94: 7.989762917 | AY94: 0.0003508933177 | AZ94: 1.021065844
AD95: 89 | AE95: 911 | AF95: 1.616676855 | AG95: 23.22489346 | AH95: 19.57063815 | AI95: 0.8426578226 | AJ95: 0.06960965648 | AK95: 8.260726313 | AL95: 0.001485802509 | AM95: 0.9122674791 | AO95: 89 | AQ95: 89 | AR95: 911 | AS95: 0.0003436539574 | AT95: 0.0003213056913 | AU95: 0.9449164194 | AV95: 0.07529114744 | AW95: 0.0752911486 | AX95: 7.968022044 | AY95: 0.0003505983677 | AZ95: 1.020207568
AD96: 90 | AE96: 910 | AF96: 1.613515495 | AG96: 23.22489346 | AH96: 19.53302892 | AI96: 0.8410384727 | AJ96: 0.069473537 | AK96: 8.260446965 | AL96: 0.00148294339 | AM96: 0.9105120097 | AO96: 90 | AQ96: 90 | AR96: 910 | AS96: 0.0003436539574 | AT96: 0.0003213056913 | AU96: 0.9443121981 | AV96: 0.07503743844 | AW96: 0.07503743961 | AX96: 7.946253343 | AY96: 0.0003503035365 | AZ96: 1.019349638
AD97: 91 | AE97: 909 | AF97: 1.610360108 | AG97: 23.22489346 | AH97: 19.49549195 | AI97: 0.839422234 | AJ97: 0.06933767474 | AK97: 8.260166567 | AL97: 0.001480089758 | AM97: 0.9087599088 | AO97: 91 | AQ97: 91 | AR97: 909 | AS97: 0.0003436539574 | AT97: 0.0003213056913 | AU97: 0.943708297 | AV97: 0.0747837549 | AW97: 0.07478375461 | AX97: 7.924456619 | AY97: 0.0003500088242 | AZ97: 1.018492052
AD98: 92 | AE98: 908 | AF98: 1.607210684 | AG98: 23.22489346 | AH98: 19.4580271 | AI98: 0.8378091006 | AJ98: 0.0692020692 | AK98: 8.259885115 | AL98: 0.001477241601 | AM98: 0.9070111698 | AO98: 92 | AQ98: 92 | AR98: 908 | AS98: 0.0003436539574 | AT98: 0.0003213056913 | AU98: 0.943104716 | AV98: 0.07453009527 | AW98: 0.07453009349 | AX98: 7.902631831 | AY98: 0.00034971423 | AZ98: 1.01763481
AD99: 93 | AE99: 907 | AF99: 1.604067211 | AG99: 23.22489346 | AH99: 19.42063423 | AI99: 0.8361990664 | AJ99: 0.06906671988 | AK99: 8.259602605 | AL99: 0.00147439891 | AM99: 0.9052657863 | AO99: 93 | AQ99: 93 | AR99: 907 | AS99: 0.0003436539574 | AT99: 0.0003213056913 | AU99: 0.9425014549 | AV99: 0.07427645942 | AW99: 0.07427645764 | AX99: 7.880779096 | AY99: 0.000349419754 | AZ99: 1.016777913
AD100: 94 | AE100: 906 | AF100: 1.600929676 | AG100: 23.22489346 | AH100: 19.3833132 | AI100: 0.8345921256 | AJ100: 0.06893162628 | AK100: 8.259319033 | AL100: 0.001471561673 | AM100: 0.9035237519 | AO100: 94 | AQ100: 94 | AR100: 906 | AS100: 0.0003436539574 | AT100: 0.0003213056913 | AU100: 0.9418985134 | AV100: 0.07402284876 | AW100: 0.07402284697 | AX100: 7.858898376 | AY100: 0.0003491253965 | AZ100: 1.01592136
AD101: 95 | AE101: 905 | AF101: 1.597798069 | AG101: 23.22489346 | AH101: 19.34606387 | AI101: 0.8329882721 | AJ101: 0.0687967879 | AK101: 8.259034395 | AL101: 0.001468729879 | AM101: 0.90178506 | AO101: 95 | AQ101: 95 | AR101: 905 | AS101: 0.0003436539574 | AT101: 0.0003213056913 | AU101: 0.9412958914 | AV101: 0.0737692632 | AW101: 0.07376926141 | AX101: 7.836989631 | AY101: 0.0003488311573 | AZ101: 1.015065153
AD102: 96 | AE102: 904 | AF102: 1.594672378 | AG102: 23.22489346 | AH102: 19.30888611 | AI102: 0.8313875001 | AJ102: 0.06866220424 | AK102: 8.258748686 | AL102: 0.00146590352 | AM102: 0.9000497043 | AO102: 96 | AQ102: 96 | AR102: 904 | AS102: 0.0003436539574 | AT102: 0.0003213056913 | AU102: 0.9406935886 | AV102: 0.07351570265 | AW102: 0.07351570085 | AX102: 7.815052823 | AY102: 0.0003485370365 | AZ102: 1.014209289
AD103: 97 | AE103: 903 | AF103: 1.591552591 | AG103: 23.22489346 | AH103: 19.27177978 | AI103: 0.8297898035 | AJ103: 0.06852787481 | AK103: 8.258461904 | AL103: 0.001463082584 | AM103: 0.8983176784 | AO103: 97 | AQ103: 97 | AR103: 903 | AS103: 0.0003436539574 | AT103: 0.0003213056913 | AU103: 0.9400916049 | AV103: 0.07326216703 | AW103: 0.07326216522 | AX103: 7.793087912 | AY103: 0.0003482430339 | AZ103: 1.01335377
AD104: 98 | AE104: 902 | AF104: 1.588438697 | AG104: 23.22489346 | AH104: 19.23474474 | AI104: 0.8281951766 | AJ104: 0.0683937991 | AK104: 8.258174043 | AL104: 0.00146026706 | AM104: 0.8965889757 | AO104: 98 | AQ104: 98 | AR104: 902 | AS104: 0.0003436539574 | AT104: 0.0003213056913 | AU104: 0.93948994 | AV104: 0.07300865625 | AW104: 0.07300865443 | AX104: 7.771094859 | AY104: 0.0003479491494 | AZ104: 1.012498594
AD105: 99 | AE105: 901 | AF105: 1.585330684 | AG105: 23.22489346 | AH105: 19.19778085 | AI105: 0.8266036134 | AJ105: 0.06825997662 | AK105: 8.257885099 | AL105: 0.001457456938 | AM105: 0.89486359 | AO105: 99 | AQ105: 99 | AR105: 901 | AS105: 0.0003436539574 | AT105: 0.0003213056913 | AU105: 0.9388885938 | AV105: 0.07275517022 | AW105: 0.0727551684 | AX105: 7.749073626 | AY105: 0.0003476553829 | AZ105: 1.011643762
AD106: 100 | AE106: 900 | AF106: 1.582228541 | AG106: 23.22489346 | AH106: 19.16088798 | AI106: 0.825015108 | AJ106: 0.06812640688 | AK106: 8.257595069 | AL106: 0.001454652209 | AM106: 0.8931415149 | AO106: 100 | AQ106: 100 | AR106: 900 | AS106: 0.0003436539574 | AT106: 0.0003213056913 | AU106: 0.9382875659 | AV106: 0.07250170886 | AW106: 0.07250170703 | AX106: 7.727024173 | AY106: 0.0003473617343 | AZ106: 1.010789273
AD107: 101 | AE107: 899 | AF107: 1.579132257 | AG107: 23.22489346 | AH107: 19.124066 | AI107: 0.8234296545 | AJ107: 0.06799308937 | AK107: 8.257303948 | AL107: 0.001451852861 | AM107: 0.8914227439 | AO107: 101 | AQ107: 101 | AR107: 899 | AS107: 0.0003436539574 | AT107: 0.0003213056913 | AU107: 0.9376868564 | AV107: 0.07224827208 | AW107: 0.07224827025 | AX107: 7.704946461 | AY107: 0.0003470682036 | AZ107: 1.009935127
AD108: 102 | AE108: 898 | AF108: 1.576041819 | AG108: 23.22489346 | AH108: 19.08731475 | AI108: 0.8218472471 | AJ108: 0.06786002362 | AK108: 8.257011733 | AL108: 0.001449058884 | AM108: 0.8897072708 | AO108: 102 | AQ108: 102 | AR108: 898 | AS108: 0.0003436539574 | AT108: 0.0003213056913 | AU108: 0.9370864648 | AV108: 0.0719948598 | AW108: 0.07199485796 | AX108: 7.68284045 | AY108: 0.0003467747905 | AZ108: 1.009081323
AD109: 103 | AE109: 897 | AF109: 1.572957216 | AG109: 23.22489346 | AH109: 19.05063412 | AI109: 0.82026788 | AJ109: 0.06772720912 | AK109: 8.256718418 | AL109: 0.001446270268 | AM109: 0.8879950891 | AO109: 103 | AQ109: 103 | AR109: 897 | AS109: 0.0003436539574 | AT109: 0.0003213056913 | AU109: 0.936486391 | AV109: 0.07174147193 | AW109: 0.07174147009 | AX109: 7.6607061 | AY109: 0.000346481495 | AZ109: 1.008227861
AD110: 104 | AE110: 896 | AF110: 1.569878437 | AG110: 23.22489346 | AH110: 19.01402396 | AI110: 0.8186915472 | AJ110: 0.06759464539 | AK110: 8.256424 | AL110: 0.001443487002 | AM110: 0.8862861926 | AO110: 104 | AQ110: 104 | AR110: 896 | AS110: 0.0003436539574 | AT110: 0.0003213056913 | AU110: 0.9358866349 | AV110: 0.07148810839 | AW110: 0.07148810654 | AX110: 7.638543374 | AY110: 0.0003461883171 | AZ110: 1.007374741
AD111: 105 | AE111: 895 | AF111: 1.566805471 | AG111: 23.22489346 | AH111: 18.97748413 | AI111: 0.8171182429 | AJ111: 0.06746233193 | AK111: 8.256128475 | AL111: 0.001440709077 | AM111: 0.8845805749 | AO111: 105 | AQ111: 105 | AR111: 895 | AS111: 0.0003436539574 | AT111: 0.0003213056913 | AU111: 0.9352871962 | AV111: 0.07123476908 | AW111: 0.07123476722 | AX111: 7.61635223 | AY111: 0.0003458952565 | AZ111: 1.006521963
AD112: 106 | AE112: 894 | AF112: 1.563738307 | AG112: 23.22489346 | AH112: 18.94101451 | AI112: 0.8155479614 | AJ112: 0.06733026825 | AK112: 8.255831838 | AL112: 0.001437936481 | AM112: 0.8828782297 | AO112: 106 | AQ112: 106 | AR112: 894 | AS112: 0.0003436539574 | AT112: 0.0003213056913 | AU112: 0.9346880747 | AV112: 0.07098145393 | AW112: 0.07098145206 | AX112: 7.594132629 | AY112: 0.0003456023133 | AZ112: 1.005669527
AD113: 107 | AE113: 893 | AF113: 1.560676932 | AG113: 23.22489346 | AH113: 18.90461496 | AI113: 0.8139806968 | AJ113: 0.06719845387 | AK113: 8.255534085 | AL113: 0.001435169205 | AM113: 0.8811791507 | AO113: 107 | AQ113: 107 | AR113: 893 | AS113: 0.0003436539574 | AT113: 0.0003213056913 | AU113: 0.9340892702 | AV113: 0.07072816284 | AW113: 0.07072816097 | AX113: 7.571884532 | AY113: 0.0003453094873 | AZ113: 1.004817431
AD114: 108 | AE114: 892 | AF114: 1.557621335 | AG114: 23.22489346 | AH114: 18.86828534 | AI114: 0.8124164433 | AJ114: 0.0670668883 | AK114: 8.255235212 | AL114: 0.001432407239 | AM114: 0.8794833317 | AO114: 108 | AQ114: 108 | AR114: 892 | AS114: 0.0003436539574 | AT114: 0.0003213056913 | AU114: 0.9334907825 | AV114: 0.07047489573 | AW114: 0.07047489386 | AX114: 7.549607899 | AY114: 0.0003450167784 | AZ114: 1.003965676
AD115: 109 | AE115: 891 | AF115: 1.554571506 | AG115: 23.22489346 | AH115: 18.83202552 | AI115: 0.8108551952 | AJ115: 0.06693557105 | AK115: 8.254935215 | AL115: 0.001429650571 | AM115: 0.8777907663 | AO115: 109 | AQ115: 109 | AR115: 891 | AS115: 0.0003436539574 | AT115: 0.0003213056913 | AU115: 0.9328926114 | AV115: 0.07022165252 | AW115: 0.07022165064 | AX115: 7.527302691 | AY115: 0.0003447241865 | AZ115: 1.003114262
AD116: 110 | AE116: 890 | AF116: 1.551527433 | AG116: 23.22489346 | AH116: 18.79583536 | AI116: 0.8092969466 | AJ116: 0.06680450164 | AK116: 8.254634089 | AL116: 0.001426899193 | AM116: 0.8761014483 | AO116: 110 | AQ116: 110 | AR116: 890 | AS116: 0.0003436539574 | AT116: 0.0003213056913 | AU116: 0.9322947568 | AV116: 0.06996843312 | AW116: 0.06996843123 | AX116: 7.504968866 | AY116: 0.0003444317115 | AZ116: 1.002263188
AD117: 111 | AE117: 889 | AF117: 1.548489105 | AG117: 23.22489346 | AH117: 18.75971473 | AI117: 0.8077416918 | AJ117: 0.06667367958 | AK117: 8.254331831 | AL117: 0.001424153094 | AM117: 0.8744153714 | AO117: 111 | AQ117: 111 | AR117: 889 | AS117: 0.0003436539574 | AT117: 0.0003213056913 | AU117: 0.9316972183 | AV117: 0.06971523744 | AW117: 0.06971523555 | AX117: 7.482606386 | AY117: 0.0003441393533 | AZ117: 1.001412454
AD118: 112 | AE118: 888 | AF118: 1.54545651 | AG118: 23.22489346 | AH118: 18.7236635 | AI118: 0.8061894251 | AJ118: 0.06654310438 | AK118: 8.254028435 | AL118: 0.001421412263 | AM118: 0.8727325295 | AO118: 112 | AQ118: 112 | AR118: 888 | AS118: 0.0003436539574 | AT118: 0.0003213056913 | AU118: 0.9310999958 | AV118: 0.0694620654 | AW118: 0.0694620635 | AX118: 7.46021521 | AY118: 0.0003438471119 | AZ118: 1.000562059
AD119: 113 | AE119: 887 | AF119: 1.542429637 | AG119: 23.22489346 | AH119: 18.68768154 | AI119: 0.8046401407 | AJ119: 0.06641277557 | AK119: 8.253723897 | AL119: 0.001418676691 | AM119: 0.8710529162 | AO119: 113 | AQ119: 113 | AR119: 887 | AS119: 0.0003436539574 | AT119: 0.0003213056913 | AU119: 0.9305030891 | AV119: 0.06920891691 | AW119: 0.06920891501 | AX119: 7.437795298 | AY119: 0.0003435549871 | AZ119: 0.9997120041
AD120: 114 | AE120: 886 | AF120: 1.539408475 | AG120: 23.22489346 | AH120: 18.6517687 | AI120: 0.8030938328 | AJ120: 0.06628269266 | AK120: 8.253418213 | AL120: 0.001415946367 | AM120: 0.8693765254 | AO120: 114 | AQ120: 114 | AR120: 886 | AS120: 0.0003436539574 | AT120: 0.0003213056913 | AU120: 0.9299064979 | AV120: 0.06895579189 | AW120: 0.06895578998 | AX120: 7.415346611 | AY120: 0.0003432629788 | AZ120: 0.9988622879
AD121: 115 | AE121: 885 | AF121: 1.536393013 | AG121: 23.22489346 | AH121: 18.61592486 | AI121: 0.8015504957 | AJ121: 0.06615285518 | AK121: 8.253111379 | AL121: 0.001413221281 | AM121: 0.8677033509 | AO121: 115 | AQ121: 115 | AR121: 885 | AS121: 0.0003436539574 | AT121: 0.0003213056913 | AU121: 0.9293102222 | AV121: 0.06870269025 | AW121: 0.06870268833 | AX121: 7.392869108 | AY121: 0.0003429710869 | AZ121: 0.9980129105
AD122: 116 | AE122: 884 | AF122: 1.53338324 | AG122: 23.22489346 | AH122: 18.58014989 | AI122: 0.8000101239 | AJ122: 0.06602326263 | AK122: 8.252803391 | AL122: 0.001410501424 | AM122: 0.8660333865 | AO122: 116 | AQ122: 116 | AR122: 884 | AS122: 0.0003436539574 | AT122: 0.0003213056913 | AU122: 0.9287142617 | AV122: 0.0684496119 | AW122: 0.06844960998 | AX122: 7.370362748 | AY122: 0.0003426793113 | AZ122: 0.9971638716
AD123: 117 | AE123: 883 | AF123: 1.530379145 | AG123: 23.22489346 | AH123: 18.54444365 | AI123: 0.7984727114 | AJ123: 0.06589391454 | AK123: 8.252494243 | AL123: 0.001407786785 | AM123: 0.8643666259 | AO123: 117 | AQ123: 117 | AR123: 883 | AS123: 0.0003436539574 | AT123: 0.0003213056913 | AU123: 0.9281186161 | AV123: 0.06819655676 | AW123: 0.06819655483 | AX123: 7.347827492 | AY123: 0.0003423876519 | AZ123: 0.9963151709
AD124: 118 | AE124: 882 | AF124: 1.527380716 | AG124: 23.22489346 | AH124: 18.50880601 | AI124: 0.7969382527 | AJ124: 0.06576481044 | AK124: 8.252183932 | AL124: 0.001405077354 | AM124: 0.8627030631 | AO124: 118 | AQ124: 118 | AR124: 882 | AS124: 0.0003436539574 | AT124: 0.0003213056913 | AU124: 0.9275232853 | AV124: 0.06794352474 | AW124: 0.06794352281 | AX124: 7.325263299 | AY124: 0.0003420961087 | AZ124: 0.9954668081
AD125: 119 | AE125: 881 | AF125: 1.524387942 | AG125: 23.22489346 | AH125: 18.47323684 | AI125: 0.7954067421 | AJ125: 0.06563594984 | AK125: 8.251872453 | AL125: 0.001402373121 | AM125: 0.8610426919 | AO125: 119 | AQ125: 119 | AR125: 881 | AS125: 0.0003436539574 | AT125: 0.0003213056913 | AU125: 0.9269282691 | AV125: 0.06769051576 | AW125: 0.06769051382 | AX125: 7.302670129 | AY125: 0.0003418046815 | AZ125: 0.9946187829
AD126: 120 | AE126: 880 | AF126: 1.521400813 | AG126: 23.22489346 | AH126: 18.43773601 | AI126: 0.7938781739 | AJ126: 0.06550733227 | AK126: 8.251559802 | AL126: 0.001399674076 | AM126: 0.8593855061 | AO126: 120 | AQ126: 120 | AR126: 880 | AS126: 0.0003436539574 | AT126: 0.0003213056913 | AU126: 0.9263335673 | AV126: 0.06743752973 | AW126: 0.06743752779 | AX126: 7.280047941 | AY126: 0.0003415133702 | AZ126: 0.9937710951
AD127: 121 | AE127: 879 | AF127: 1.518419317 | AG127: 23.22489346 | AH127: 18.40230338 | AI127: 0.7923525424 | AJ127: 0.06537895725 | AK127: 8.251245973 | AL127: 0.00139698021 | AM127: 0.8577314997 | AO127: 121 | AQ127: 121 | AR127: 879 | AS127: 0.0003436539574 | AT127: 0.0003213056913 | AU127: 0.9257391796 | AV127: 0.06718456656 | AW127: 0.06718456462 | AX127: 7.257396694 | AY127: 0.0003412221747 | AZ127: 0.9929237442
AD128: 122 | AE128: 878 | AF128: 1.515443443 | AG128: 23.22489346 | AH128: 18.36693883 | AI128: 0.7908298421 | AJ128: 0.06525082431 | AK128: 8.250930964 | AL128: 0.001394291511 | AM128: 0.8560806664 | AO128: 122 | AQ128: 122 | AR128: 878 | AS128: 0.0003436539574 | AT128: 0.0003213056913 | AU128: 0.9251451059 | AV128: 0.06693162618 | AW128: 0.06693162423 | AX128: 7.234716348 | AY128: 0.000340931095 | AZ128: 0.9920767301
AD129: 123 | AE129: 877 | AF129: 1.51247318 | AG129: 23.22489346 | AH129: 18.33164222 | AI129: 0.7893100672 | AJ129: 0.06512293298 | AK129: 8.250614769 | AL129: 0.001391607971 | AM129: 0.8544330002 | AO129: 123 | AQ129: 123 | AR129: 877 | AS129: 0.0003436539574 | AT129: 0.0003213056913 | AU129: 0.924551346 | AV129: 0.06667870849 | AW129: 0.06667870653 | AX129: 7.212006863 | AY129: 0.0003406401309 | AZ129: 0.9912300525
AD130: 124 | AE130: 876 | AF130: 1.509508518 | AG130: 23.22489346 | AH130: 18.29641342 | AI130: 0.7877932122 | AJ130: 0.06499528277 | AK130: 8.250297383 | AL130: 0.001388929579 | AM130: 0.852788495 | AO130: 124 | AQ130: 124 | AR130: 876 | AS130: 0.0003436539574 | AT130: 0.0003213056913 | AU130: 0.9239578997 | AV130: 0.0664258134 | AW130: 0.06642581144 | AX130: 7.189268198 | AY130: 0.0003403492823 | AZ130: 0.9903837111
AD131: 125 | AE131: 875 | AF131: 1.506549444 | AG131: 23.22489346 | AH131: 18.26125231 | AI131: 0.7862792715 | AJ131: 0.06486787322 | AK131: 8.249978802 | AL131: 0.001386256325 | AM131: 0.8511471447 | AO131: 125 | AQ131: 125 | AR131: 875 | AS131: 0.0003436539574 | AT131: 0.0003213056913 | AU131: 0.9233647667 | AV131: 0.06617294084 | AW131: 0.06617293887 | AX131: 7.166500311 | AY131: 0.0003400585491 | AZ131: 0.9895377056
AD132: 126 | AE132: 874 | AF132: 1.50359595 | AG132: 23.22489346 | AH132: 18.22615875 | AI132: 0.7847682394 | AJ132: 0.06474070386 | AK132: 8.249659022 | AL132: 0.0013835882 | AM132: 0.8495089432 | AO132: 126 | AQ132: 126 | AR132: 874 | AS132: 0.0003436539574 | AT132: 0.0003213056913 | AU132: 0.9227719469 | AV132: 0.06592009072 | AW132: 0.06592008874 | AX132: 7.143703161 | AY132: 0.0003397679313 | AZ132: 0.9886920356
AD133: 127 | AE133: 873 | AF133: 1.500648022 | AG133: 23.22489346 | AH133: 18.19113261 | AI133: 0.7832601103 | AJ133: 0.06461377422 | AK133: 8.249338038 | AL133: 0.001380925193 | AM133: 0.8478738845 | AO133: 127 | AQ133: 127 | AR133: 873 | AS133: 0.0003436539574 | AT133: 0.0003213056913 | AU133: 0.92217944 | AV133: 0.06566726294 | AW133: 0.06566726096 | AX133: 7.120876709 | AY133: 0.0003394774287 | AZ133: 0.987846701
AD134: 128 | AE134: =ENNE-AD134 -> 872 | AF134: =(1-betasquare)*((EXP(alpha*AE134))-(EXP(-alpha*AE134)))-Rg*(((POWER((1-beta),2)*(EXP(alpha*AE134)))-POWER((1+beta),2))*(EXP(-alpha*AE134))) -> 1.497705651 | AG134: =(POWER((1+beta),2)*EXP(alpha*ENNE))-(POWER((1-beta),2)*EXP(-(alpha*ENNE)))-(Rg*(1-betasquare)*(EXP(alpha*ENNE)-EXP(-(alpha*ENNE)))) -> 23.22489346 | AH134: =POWER((1+beta),2)*EXP(alpha*AE134)-POWER((1-beta),2)*EXP(-alpha*AE134)-Rg*(1-betasquare)*(EXP(alpha*AE134)-EXP(-alpha*AE134)) -> 18.15617377 | AI134: =AH134/AG134 -> 0.7817548787 | AJ134: =AF134/AG134 -> 0.06448708382 | AK134: 8.249015846 | AL134: 0.001378267295 | AM134: 0.8462419626 | AO134: 128 | AQ134: 128 | AR134: =ENNE-AQ134 -> 872 | AS134: =IF(AO134<=$C$4,$S$5,(IF(AO134<=($C$5+$C$4),kappaBS,$S$5))) -> 0.0003436539574 | AT134: =esse -> 0.0003213056913 | AU134: 0.921587246 | AV134: 0.06541445743 | AW134: =AW135-(AS134+AT134)*AW135+AT134*AU134 -> 0.06541445545 | AX134: =AW134/AU134*100 -> 7.098020913 | AY134: 0.0003391870413 | AZ134: =AU134+AW134 -> 0.9870017014
AD135: 129 | AE135: 871 | AF135: 1.494768826 | AG135: 23.22489346 | AH135: 18.12128209 | AI135: 0.7802525391 | AJ135: 0.0643606322 | AK135: =AJ135/AI135*100 -> 8.24869244 | AL135: =kappaM*(AI135)+kappaM*AJ135 -> 0.001375614496 | AM135: =AI135+AJ135 -> 0.8446131713 | AO135: 129 | AQ135: 129 | AR135: 871 | AS135: 0.0003436539574 | AT135: 0.0003213056913 | AU135: 0.9209953644 | AV135: =AW135 -> 0.0651616741 | AW135: 0.06516167211 | AX135: 7.075135731 | AY135: =IF(AO135<=$C$4,AZ135*$S$5,IF(AO135<=($C$4+$C$5),AZ135*kappaBS,AZ135*$S$5)) -> 0.0003388967689 | AZ135: 0.9861570366
AD136: 130 | AE136: 870 | AF136: 1.491837535 | AG136: 23.22489346 | AH136: 18.08645745 | AI136: 0.7787530858 | AJ136: 0.06423441889 | AK136: 8.248367816 | AL136: 0.001372966787 | AM136: 0.8429875047 | AO136: 130 | AQ136: 130 | AR136: 870 | AS136: 0.0003436539574 | AT136: 0.0003213056913 | AU136: =AU135-(AS136+AT136)*AU135+AT136*AV136 -> 0.9204037953 | AV136: 0.06490891287 | AW136: 0.06490891087 | AX136: 7.052221123 | AY136: 0.0003386066114 | AZ136: 0.9853127062
AD137: 131 | AE137: 869 | AF137: 1.488911768 | AG137: 23.22489346 | AH137: 18.05169971 | AI137: 0.7772565133 | AJ137: 0.06410844343 | AK137: 8.24804197 | AL137: 0.001370324156 | AM137: 0.8413649567 | AO137: 131 | AQ137: 131 | AR137: 869 | AS137: 0.0003436539574 | AT137: 0.0003213056913 | AU137: 0.9198125383 | AV137: 0.06465617364 | AW137: 0.06465617164 | AX137: 7.029277048 | AY137: 0.0003383165688 | AZ137: 0.9844687099
AD138: 132 | AE138: 868 | AF138: 1.485991515 | AG138: 23.22489346 | AH138: 18.01700875 | AI138: 0.775762816 | AJ138: 0.06398270534 | AK138: 8.247714897 | AL138: 0.001367686595 | AM138: 0.8397455214 | AO138: 132 | AQ138: 132 | AR138: 868 | AS138: 0.0003436539574 | AT138: 0.0003213056913 | AU138: 0.9192215933 | AV138: 0.06440345633 | AW138: 0.06440345433 | AX138: 7.006303463 | AY138: 0.0003380266409 | AZ138: 0.9836250476
AD139: 133 | AE139: 867 | AF139: 1.483076763 | AG139: 23.22489346 | AH139: 17.98238444 | AI139: 0.7742719885 | AJ139: 0.06385720417 | AK139: 8.247386592 | AL139: 0.001365054094 | AM139: 0.8381291927 | AO139: 133 | AQ139: 133 | AR139: 867 | AS139: 0.0003436539574 | AT139: 0.0003213056913 | AU139: 0.91863096 | AV139: 0.06415076086 | AW139: 0.06415075885 | AX139: 6.983300329 | AY139: 0.0003377368276 | AZ139: 0.9827817189
AD140: 134 | AE140: 866 | AF140: 1.480167503 | AG140: 23.22489346 | AH140: 17.94782665 | AI140: 0.7727840253 | AJ140: 0.06373193944 | AK140: 8.247057051 | AL140: 0.001362426643 | AM140: 0.8365159647 | AO140: 134 | AQ140: 134 | AR140: 866 | AS140: 0.0003436539574 | AT140: 0.0003213056913 | AU140: 0.9180406383 | AV140: 0.06389808715 | AW140: 0.06389808513 | AX140: 6.960267603 | AY140: 0.0003374471289 | AZ140: 0.9819387234
AD141: 135 | AE141: 865 | AF141: 1.477263724 | AG141: 23.22489346 | AH141: 17.91333526 | AI141: 0.7712989207 | AJ141: 0.0636069107 | AK141: 8.246726268 | AL141: 0.001359804232 | AM141: 0.8349058314 | AO141: 135 | AQ141: 135 | AR141: 865 | AS141: 0.0003436539574 | AT141: 0.0003213056913 | AU141: 0.917450628 | AV141: 0.06364543509 | AW141: 0.06364543307 | AX141: 6.937205243 | AY141: 0.0003371575446 | AZ141: 0.981096061
AD142: 136 | AE142: 864 | AF142: 1.474365415 | AG142: 23.22489346 | AH142: 17.87891013 | AI142: 0.7698166694 | AJ142: 0.06348211748 | AK142: 8.24639424 | AL142: 0.001357186852 | AM142: 0.8332987869 | AO142: 136 | AQ142: 136 | AR142: 864 | AS142: 0.0003436539574 | AT142: 0.0003213056913 | AU142: 0.9168609288 | AV142: 0.06339280462 | AW142: 0.06339280259 | AX142: 6.914113209 | AY142: 0.0003368680747 | AZ142: 0.9802537314
AD143: 137 | AE143: 863 | AF143: 1.471472565 | AG143: 23.22489346 | AH143: 17.84455114 | AI143: 0.7683372659 | AJ143: 0.06335755933 | AK143: 8.246060961 | AL143: 0.001354574493 | AM143: 0.8316948252 | AO143: 137 | AQ143: 137 | AR143: 863 | AS143: 0.0003436539574 | AT143: 0.0003213056913 | AU143: 0.9162715406 | AV143: 0.06314019564 | AW143: 0.0631401936 | AX143: 6.890991459 | AY143: 0.000336578719 | AZ143: 0.9794117342
AD144: 138 | AE144: 862 | AF144: 1.468585164 | AG144: 23.22489346 | AH144: 17.81025816 | AI144: 0.7668607046 | AJ144: 0.06323323577 | AK144: 8.245726426 | AL144: 0.001351967145 | AM144: 0.8300939404 | AO144: 138 | AQ144: 138 | AR144: 862 | AS144: 0.0003436539574 | AT144: 0.0003213056913 | AU144: 0.9156824631 | AV144: 0.06288760806 | AW144: 0.06288760603 | AX144: 6.867839951 | AY144: 0.0003362894775 | AZ144: 0.9785700692
AD145: 139 | AE145: 861 | AF145: 1.4657032 | AG145: 23.22489346 | AH145: 17.77603107 | AI145: 0.7653869801 | AJ145: 0.06310914635 | AK145: 8.245390631 | AL145: 0.001349364799 | AM145: 0.8284961265 | AO145: 139 | AQ145: 139 | AR145: 861 | AS145: 0.0003436539574 | AT145: 0.0003213056913 | AU145: 0.9150936962 | AV145: 0.06263504181 | AW145: 0.06263503977 | AX145: 6.844658643 | AY145: 0.0003360003501 | AZ145: 0.977728736
AD146: 140 | AE146: 860 | AF146: 1.462826664 | AG146: 23.22489346 | AH146: 17.74186973 | AI146: 0.763916087 | AJ146: 0.06298529062 | AK146: 8.245053572 | AL146: 0.001346767444 | AM146: 0.8269013776 | AO146: 140 | AQ146: 140 | AR146: 860 | AS146: 0.0003436539574 | AT146: 0.0003213056913 | AU146: 0.9145052397 | AV146: 0.0623824968 | AW146: 0.06238249475 | AX146: 6.821447494 | AY146: 0.0003357113365 | AZ146: 0.9768877345
AD147: 141 | AE147: 859 | AF147: 1.459955544 | AG147: 23.22489346 | AH147: 17.70777403 | AI147: 0.7624480198 | AJ147: 0.0628616681 | AK147: 8.244715242 | AL147: 0.001344175072 | AM147: 0.8253096879 | AO147: 141 | AQ147: 141 | AR147: 859 | AS147: 0.0003436539574 | AT147: 0.0003213056913 | AU147: 0.9139170933 | AV147: 0.06212997294 | AW147: 0.06212997089 | AX147: 6.798206461 | AY147: 0.0003354224369 | AZ147: 0.9760470642
AD148: 142 | AE148: 858 | AF148: 1.457089831 | AG148: 23.22489346 | AH148: 17.67374383 | AI148: 0.7609827731 | AJ148: 0.06273827835 | AK148: 8.244375638 | AL148: 0.001341587673 | AM148: 0.8237210514 | AO148: 142 | AQ148: 142 | AR148: 858 | AS148: 0.0003436539574 | AT148: 0.0003213056913 | AU148: 0.9133292569 | AV148: 0.06187747014 | AW148: 0.06187746809 | AX148: 6.774935503 | AY148: 0.000335133651 | AZ148: 0.975206725
AD149: 143 | AE149: 857 | AF149: 1.454229512 | AG149: 23.22489346 | AH149: 17.63977901 | AI149: 0.7595203415 | AJ149: 0.06261512091 | AK149: 8.244034754 | AL149: 0.001339005238 | AM149: 0.8221354624 | AO149: 143 | AQ149: 143 | AR149: 857 | AS149: 0.0003436539574 | AT149: 0.0003213056913 | AU149: 0.9127417303 | AV149: 0.06162498833 | AW149: 0.06162498627 | AX149: 6.751634577 | AY149: 0.0003348449788 | AZ149: 0.9743667166
AD150: 144 | AE150: 856 | AF150: 1.451374578 | AG150: 23.22489346 | AH150: 17.60587944 | AI150: 0.7580607195 | AJ150: 0.06249219533 | AK150: 8.243692586 | AL150: 0.001336427755 | AM150: 0.8205529148 | AO150: 144 | AQ150: 144 | AR150: 856 | AS150: 0.0003436539574 | AT150: 0.0003213056913 | AU150: 0.9121545132 | AV150: 0.06137252741 | AW150: 0.06137252534 | AX150: 6.728303643 | AY150: 0.0003345564201 | AZ150: 0.9735270386
AD151: 145 | AE151: 855 | AF151: 1.448525019 | AG151: 23.22489346 | AH151: 17.57204501 | AI151: 0.7566039018 | AJ151: 0.06236950114 | AK151: 8.243349129 | AL151: 0.001333855217 | AM151: 0.8189734029 | AO151: 145 | AQ151: 145 | AR151: 855 | AS151: 0.0003436539574 | AT151: 0.0003213056913 | AU151: 0.9115676055 | AV151: 0.06112008729 | AW151: 0.06112008522 | AX151: 6.704942656 | AY151: 0.0003342679749 | AZ151: 0.9726876907
AD152: 146 | AE152: 854 | AF152: 1.445680823 | AG152: 23.22489346 | AH152: 17.53827558 | AI152: 0.7551498829 | AJ152: 0.0622470379 | AK152: 8.243004377 | AL152: 0.001331287614 | AM152: 0.8173969208 | AO152: 146 | AQ152: 146 | AR152: 854 | AS152: 0.0003436539574 | AT152: 0.0003213056913 | AU152: 0.910981007 | AV152: 0.0608676679 | AW152: 0.06086766583 | AX152: 6.681551576 | AY152: 0.0003339796431 | AZ152: 0.9718486728
AD153: 147 | AE153: 853 | AF153: 1.442841981 | AG153: 23.22489346 | AH153: 17.50457102 | AI153: 0.7536986575 | AJ153: 0.06212480515 | AK153: 8.242658326 | AL153: 0.001328724936 | AM153: 0.8158234627 | AO153: 147 | AQ153: 147 | AR153: 853 | AS153: 0.0003436539574 | AT153: 0.0003213056913 | AU153: 0.9103947174 | AV153: 0.06061526915 | AW153: 0.06061526707 | AX153: 6.65813036 | AY153: 0.0003336914245 | AZ153: 0.9710099844
AD154: 148 | AE154: 852 | AF154: 1.440008481 | AG154: 23.22489346 | AH154: 17.47093122 | AI154: 0.7522502203 | AJ154: 0.06200280244 | AK154: 8.242310971 | AL154: 0.001326167173 | AM154: 0.8142530228 | AO154: 148 | AQ154: 148 | AR154: 852 | AS154: 0.0003436539574 | AT154: 0.0003213056913 | AU154: 0.9098087366 | AV154: 0.06036289095 | AW154: 0.06036288887 | AX154: 6.634678965 | AY154: 0.0003334033191 | AZ154: 0.9701716254
AD155: 149 | AE155: 851 | AF155: 1.437180313 | AG155: 23.22489346 | AH155: 17.43735605 | AI155: 0.7508045658 | AJ155: 0.06188102932 | AK155: 8.241962307 | AL155: 0.001323614317 | AM155: 0.8126855952 | AO155: 149 | AQ155: 149 | AR155: 851 | AS155: 0.0003436539574 | AT155: 0.0003213056913 | AU155: 0.9092230643 | AV155: 0.06011053322 | AW155: 0.06011053113 | AX155: 6.611197349 | AY155: 0.0003331153268 | AZ155: 0.9693335955
AD156: 150 | AE156: 850 | AF156: 1.434357467 | AG156: 23.22489346 | AH156: 17.40384538 | AI156: 0.7493616888 | AJ156: 0.06175948534 | AK156: 8.24161233 | AL156: 0.001321066357 | AM156: 0.8111211741 | AO156: 150 | AQ156: 150 | AR156: 850 | AS156: 0.0003436539574 | AT156: 0.0003213056913 | AU156: 0.9086377005 | AV156: 0.05985819587 | AW156: 0.05985819377 | AX156: 6.58768547 | AY156: 0.0003328274475 | AZ156: 0.9684958942
AD157: 151 | AE157: 849 | AF157: 1.431539932 | AG157: 23.22489346 | AH157: 17.3703991 | AI157: 0.7479215838 | AJ157: 0.06163817004 | AK157: 8.241261032 | AL157: 0.001318523285 | AM157: 0.8095597538 | AO157: 151 | AQ157: 151 | AR157: 849 | AS157: 0.0003436539574 | AT157: 0.0003213056913 | AU157: 0.9080526448 | AV157: 0.05960587881 | AW157: 0.05960587671 | AX157: 6.564143286 | AY157: 0.000332539681 | AZ157: 0.9676585215
AD158: 152 | AE158: 848 | AF158: 1.428727698 | AG158: 23.22489346 | AH158: 17.33701707 | AI158: 0.7464842456 | AJ158: 0.06151708298 | AK158: 8.240908411 | AL158: 0.001315985091 | AM158: 0.8080013286 | AO158: 152 | AQ158: 152 | AR158: 848 | AS158: 0.0003436539574 | AT158: 0.0003213056913 | AU158: 0.907467897 | AV158: 0.05935358196 | AW158: 0.05935357986 | AX158: 6.540570752 | AY158: 0.0003322520273 | AZ158: 0.9668214769
AD159: 153 | AE159: 847 | AF159: 1.425920755 | AG159: 23.22489346 | AH159: 17.30369918 | AI159: 0.7450496688 | AJ159: 0.06139622372 | AK159: 8.240554461 | AL159: 0.001313451765 | AM159: 0.8064458925 | AO159: 153 | AQ159: 153 | AR159: 847 | AS159: 0.0003436539574 | AT159: 0.0003213056913 | AU159: 0.9068834571 | AV159: 0.05910130524 | AW159: 0.05910130313 | AX159: 6.516967828 | AY159: 0.0003319644863 | AZ159: 0.9659847602
AD160: 154 | AE160: 846 | AF160: 1.423119091 | AG160: 23.22489346 | AH160: 17.2704453 | AI160: 0.7436178481 | AJ160: 0.0612755918 | AK160: 8.240199177 | AL160: 0.001310923298 | AM160: 0.8048934399 | AO160: 154 | AQ160: 154 | AR160: 846 | AS160: 0.0003436539574 | AT160: 0.0003213056913 | AU160: 0.9062993247 | AV160: 0.05884904856 | AW160: 0.05884904644 | AX160: 6.493334469 | AY160: 0.0003316770579 | AZ160: 0.9651483712
AD161: 155 | AE161: 845 | AF161: 1.420322697 | AG161: 23.22489346 | AH161: 17.2372553 | AI161: 0.7421887783 | AJ161: 0.06115518678 | AK161: 8.239842553 | AL161: 0.001308399681 | AM161: 0.8033439651 | AO161: 155 | AQ161: 155 | AR161: 845 | AS161: 0.0003436539574 | AT161: 0.0003213056913 | AU161: 0.9057154997 | AV161: 0.05859681183 | AW161: 0.05859680971 | AX161: 6.469670634 | AY161: 0.000331389742 | AZ161: 0.9643123094
AD162: 156 | AE162: 844 | AF162: 1.417531563 | AG162: 23.22489346 | AH162: 17.20412907 | AI162: 0.740762454 | AJ162: 0.06103500821 | AK162: 8.239484585 | AL162: 0.001305880905 | AM162: 0.8017974622 | AO162: 156 | AQ162: 156 | AR162: 844 | AS162: 0.0003436539574 | AT162: 0.0003213056913 | AU162: 0.9051319819 | AV162: 0.05834459497 | AW162: 0.05834459284 | AX162: 6.445976278 | AY162: 0.0003311025385 | AZ162: 0.9634765748
AD163: 157 | AE163: 843 | AF163: 1.414745677 | AG163: 23.22489346 | AH163: 17.17106648 | AI163: 0.73933887 | AJ163: 0.06091505565 | AK163: 8.239125267 | AL163: 0.001303366959 | AM163: 0.8002539256 | AO163: 157 | AQ163: 157 | AR163: 843 | AS163: 0.0003436539574 | AT163: 0.0003213056913 | AU163: 0.9045487711 | AV163: 0.05809239788 | AW163: 0.05809239576 | AX163: 6.42225136 | AY163: 0.0003308154472 | AZ163: 0.9626411668
AD164: 158 | AE164: 842 | AF164: 1.411965031 | AG164: 23.22489346 | AH164: 17.13806742 | AI164: 0.737918021 | AJ164: 0.06079532865 | AK164: 8.238764595 | AL164: 0.001300857836 | AM164: 0.7987133496 | AO164: 158 | AQ164: 158 | AR164: 842 | AS164: 0.0003436539574 | AT164: 0.0003213056913 | AU164: 0.903965867 | AV164: 0.0578402205 | AW164: 0.05784021837 | AX164: 6.398495837 | AY164: 0.0003305284682 | AZ164: 0.9618060854
AD165: 159 | AE165: 841 | AF165: 1.409189612 | AG165: 23.22489346 | AH165: 17.10513175 | AI165: 0.7364999017 | AJ165: 0.06067582678 | AK165: 8.238402563 | AL165: 0.001298353525 | AM165: 0.7971757285 | AO165: 159 | AQ165: 159 | AR165: 841 | AS165: 0.0003436539574 | AT165: 0.0003213056913 | AU165: 0.9033832696 | AV165: 0.05758806273 | AW165: 0.05758806059 | AX165: 6.374709664 | AY165: 0.0003302416013 | AZ165: 0.9609713302
AD166: 160 | AE166: 840 | AF166: 1.406419412 | AG166: 23.22489346 | AH166: 17.07225936 | AI166: 0.7350845069 | AJ166: 0.06055654958 | AK166: 8.238039166 | AL166: 0.001295854018 | AM166: 0.7956410565 | AO166: 160 | AQ166: 160 | AR166: 840 | AS166: 0.0003436539574 | AT166: 0.0003213056913 | AU166: 0.9028009785 | AV166: 0.05733592448 | AW166: 0.05733592234 | AX166: 6.3508928 | AY166: 0.0003299548463 | AZ166: 0.9601369009
AD167: 161 | AE167: 839 | AF167: 1.40365442 | AG167: 23.22489346 | AH167: 17.03945012 | AI167: 0.7336718314 | AJ167: 0.06043749663 | AK167: 8.237674399 | AL167: 0.001293359304 | AM167: 0.7941093281 | AO167: 161 | AQ167: 161 | AR167: 839 | AS167: 0.0003436539574 | AT167: 0.0003213056913 | AU167: 0.9022189937 | AV167: 0.05708380568 | AW167: 0.05708380353 | AX167: 6.3270452 | AY167: 0.0003296682033 | AZ167: 0.9593027972
AD168: 162 | AE168: 838 | AF168: 1.400894625 | AG168: 23.22489346 | AH168: 17.00670391 | AI168: 0.73226187 | AJ168: 0.06031866747 | AK168: 8.237308256 | AL168: 0.001290869375 | AM168: 0.7925805374 | AO168: 162 | AQ168: 162 | AR168: 838 | AS168: 0.0003436539574 | AT168: 0.0003213056913 | AU168: 0.9016373148 | AV168: 0.05683170622 | AW168: 0.05683170407 | AX168: 6.303166821 | AY168: 0.0003293816721 | AZ168: 0.9584690189
AD169: 163 | AE169: 837 | AF169: 1.398140018 | AG169: 23.22489346 | AH169: 16.97402062 | AI169: 0.7308546173 | AJ169: 0.06020006167 | AK169: 8.236940732 | AL169: 0.001288384222 | AM169: 0.791054679 | AO169: 163 | AQ169: 163 | AR169: 837 | AS169: 0.0003436539574 | AT169: 0.0003213056913 | AU169: 0.9010559417 | AV169: 0.05657962604 | AW169: 0.05657962389 | AX169: 6.279257621 | AY169: 0.0003290952526 | AZ169: 0.9576355656
AD170: 164 | AE170: 836 | AF170: 1.395390589 | AG170: 23.22489346 | AH170: 16.94140012 | AI170: 0.7294500683 | AJ170: 0.06008167879 | AK170: 8.236571823 | AL170: 0.001285903836 | AM170: 0.7895317471 | AO170: 164 | AQ170: 164 | AR170: 836 | AS170: 0.0003436539574 | AT170: 0.0003213056913 | AU170: 0.9004748742 | AV170: 0.05632756504 | AW170: 0.05632756288 | AX170: 6.255317555 | AY170: 0.0003288089447 | AZ170: 0.9568024371
AD171: 165 | AE171: 835 | AF171: 1.392646326 | AG171: 23.22489346 | AH171: 16.90884229 | AI171: 0.7280482177 | AJ171: 0.05996351839 | AK171: 8.236201522 | AL171: 0.001283428206 | AM171: 0.7880117361 | AO171: 165 | AQ171: 165 | AR171: 835 | AS171: 0.0003436539574 | AT171: 0.0003213056913 | AU171: 0.8998941122 | AV171: 0.05607552314 | AW171: 0.05607552098 | AX171: 6.23134658 | AY171: 0.0003285227483 | AZ171: 0.9559696332
AD172: 166 | AE172: 834 | AF172: 1.38990722 | AG172: 23.22489346 | AH172: 16.87634701 | AI172: 0.7266490603 | AJ172: 0.05984558003 | AK172: 8.235829825 | AL172: 0.001280957325 | AM172: 0.7864946403 | AO172: 166 | AQ172: 166 | AR172: 834 | AS172: 0.0003436539574 | AT172: 0.0003213056913 | AU172: 0.8993136553 | AV172: 0.05582350025 | AW172: 0.05582349809 | AX172: 6.207344652 | AY172: 0.0003282366633 | AZ172: 0.9551371534
AD173: 167 | AE173: 833 | AF173: 1.387173261 | AG173: 23.22489346 | AH173: 16.84391416 | AI173: 0.725252591 | AJ173: 0.05972786329 | AK173: 8.235456726 | AL173: 0.001278491183 | AM173: 0.7849804543 | AO173: 167 | AQ173: 167 | AR173: 833 | AS173: 0.0003436539574 | AT173: 0.0003213056913 | AU173: 0.8987335035 | AV173: 0.05557149629 | AW173: 0.05557149412 | AX173: 6.183311728 | AY173: 0.0003279506897 | AZ173: 0.9543049976
AD174: 168 | AE174: 832 | AF174: 1.384444439 | AG174: 23.22489346 | AH174: 16.81154361 | AI174: 0.7238588046 | AJ174: 0.05961036772 | AK174: 8.23508222 | AL174: 0.00127602977 | AM174: 0.7834691723 | AO174: 168 | AQ174: 168 | AR174: 832 | AS174: 0.0003436539574 | AT174: 0.0003213056913 | AU174: 0.8981536564 | AV174: 0.05531951118 | AW174: 0.055319509 | AX174: 6.159247764 | AY174: 0.0003276648273 | AZ174: 0.9534731654
AD175: 169 | AE175: 831 | AF175: 1.381720744 | AG175: 23.22489346 | AH175: 16.77923526 | AI175: 0.7224676959 | AJ175: 0.05949309288 | AK175: 8.234706301 | AL175: 0.001273573078 | AM175: 0.7819607888 | AO175: 169 | AQ175: 169 | AR175: 831 | AS175: 0.0003436539574 | AT175: 0.0003213056913 | AU175: 0.897574114 | AV175: 0.05506754482 | AW175: 0.05506754264 | AX175: 6.135152716 | AY175: 0.000327379076 | AZ175: 0.9526416566
AD176: 170 | AE176: 830 | AF176: 1.379002165 | AG176: 23.22489346 | AH176: 16.74698898 | AI176: 0.7210792598 | AJ176: 0.05937603835 | AK176: 8.234328965 | AL176: 0.001271121098 | AM176: 0.7804552982 | AO176: 170 | AQ176: 170 | AR176: 830 | AS176: 0.0003436539574 | AT176: 0.0003213056913 | AU176: 0.896994876 | AV176: 0.05481559712 | AW176: 0.05481559494 | AX176: 6.111026541 | AY176: 0.0003270934357 | AZ176: 0.9518104709
AD177: 171 | AE177: 829 | AF177: 1.376288692 | AG177: 23.22489346 | AH177: 16.71480465 | AI177: 0.7196934912 | AJ177: 0.05925920369 | AK177: 8.233950205 | AL177: 0.001268673821 | AM177: 0.7789526949 | AO177: 171 | AQ177: 171 | AR177: 829 | AS177: 0.0003436539574 | AT177: 0.0003213056913 | AU177: 0.8964159422 | AV177: 0.05456366802 | AW177: 0.05456366583 | AX177: 6.086869194 | AY177: 0.0003268079064 | AZ177: 0.950979608
AD178: 172 | AE178: 828 | AF178: 1.373580316 | AG178: 23.22489346 | AH178: 16.68268216 | AI178: 0.7183103849 | AJ178: 0.05914258847 | AK178: 8.233570016 | AL178: 0.001266231237 | AM178: 0.7774529733 | AO178: 172 | AQ178: 172 | AR178: 828 | AS178: 0.0003436539574 | AT178: 0.0003213056913 | AU178: 0.8958373125 | AV178: 0.05431175742 | AW178: 0.05431175523 | AX178: 6.062680631 | AY178: 0.000326522488 | AZ178: 0.9501490677
AD179: 173 | AE179: 827 | AF179: 1.370877026 | AG179: 23.22489346 | AH179: 16.65062138 | AI179: 0.7169299358 | AJ179: 0.05902619226 | AK179: 8.233188393 | AL179: 0.001263793337 | AM179: 0.775956128 | AO179: 173 | AQ179: 173 | AR179: 827 | AS179: 0.0003436539574 | AT179: 0.0003213056913 | AU179: 0.8952589865 | AV179: 0.05405986523 | AW179: 0.05405986303 | AX179: 6.038460808 | AY179: 0.0003262371802 | AZ179: 0.9493188496
AD180: 174 | AE180: 826 | AF180: 1.368178813 | AG180: 23.22489346 | AH180: 16.61862219 | AI180: 0.7155521388 | AJ180: 0.05891001462 | AK180: 8.23280533 | AL180: 0.001261360113 | AM180: 0.7744621534 | AO180: 174 | AQ180: 174 | AR180: 826 | AS180: 0.0003436539574 | AT180: 0.0003213056913 | AU180: 0.8946809642 | AV180: 0.05380799137 | AW180: 0.05380798917 | AX180: 6.014209681 | AY180: 0.0003259519831 | AZ180: 0.9484889534
AD181: 175 | AE181: 825 | AF181: 1.365485666 | AG181: 23.22489346 | AH181: 16.58668448 | AI181: 0.7141769888 | AJ181: 0.05879405513 | AK181: 8.232420822 | AL181: 0.001258931555 | AM181: 0.7729710439 | AO181: 175 | AQ181: 175 | AR181: 825 | AS181: 0.0003436539574 | AT181: 0.0003213056913 | AU181: 0.8941032454 | AV181: 0.05355613575 | AW181: 0.05355613355 | AX181: 5.989927206 | AY181: 0.0003256668966 | AZ181: 0.9476593789
AD182: 176 | AE182: 824 | AF182: 1.362797576 | AG182: 23.22489346 | AH182: 16.55480812 | AI182: 0.7128044807 | AJ182: 0.05867831336 | AK182: 8.232034864 | AL182: 0.001256507655 | AM182: 0.7714827941 | AO182: 176 | AQ182: 176 | AR182: 824 | AS182: 0.0003436539574 | AT182: 0.0003213056913 | AU182: 0.8935258298 | AV182: 0.0533042983 | AW182: 0.05330429609 | AX182: 5.965613339 | AY182: 0.0003253819205 | AZ182: 0.9468301259
AD183: 177 | AE183: 823 | AF183: 1.360114532 | AG183: 23.22489346 | AH183: 16.52299301 | AI183: 0.7114346095 | AJ183: 0.05856278889 | AK183: 8.231647449 | AL183: 0.001254088403 | AM183: 0.7699973984 | AO183: 177 | AQ183: 177 | AR183: 823 | AS183: 0.0003436539574 | AT183: 0.0003213056913 | AU183: 0.8929487172 | AV183: 0.05305247891 | AW183: 0.0530524767 | AX183: 5.941268034 | AY183: 0.0003250970547 | AZ183: 0.9460011939
AD184: 178 | AE184: 822 | AF184: 1.357436525 | AG184: 23.22489346 | AH184: 16.49123902 | AI184: 0.7100673701 | AJ184: 0.05844748127 | AK184: 8.231258572 | AL184: 0.001251673791 | AM184: 0.7685148514 | AO184: 178 | AQ184: 178 | AR184: 822 | AS184: 0.0003436539574 | AT184: 0.0003213056913 | AU184: 0.8923719075 | AV184: 0.05280067752 | AW184: 0.0528006753 | AX184: 5.916891249 | AY184: 0.0003248122992 | AZ184: 0.9451725828
AD185: 179 | AE185: 821 | AF185: 1.354763545 | AG185: 23.22489346 | AH185: 16.45954603 | AI185: 0.7087027574 | AJ185: 0.05833239009 | AK185: 8.230868228 | AL185: 0.00124926381 | AM185: 0.7670351475 | AO185: 179 | AQ185: 179 | AR185: 821 | AS185: 0.0003436539574 | AT185: 0.0003213056913 | AU185: 0.8917954005 | AV185: 0.05254889402 | AW185: 0.05254889181 | AX185: 5.892482937 | AY185: 0.0003245276539 | AZ185: 0.9443442923
AD186: 180 | AE186: 820 | AF186: 1.352095581 | AG186: 23.22489346 | AH186: 16.42791394 | AI186: 0.7073407663 | AJ186: 0.05821751492 | AK186: 8.230476411 | AL186: 0.00124685845 | AM186: 0.7655582813 | AO186: 180 | AQ186: 180 | AR186: 820 | AS186: 0.0003436539574 | AT186: 0.0003213056913 | AU186: 0.8912191959 | AV186: 0.05229712835 | AW186: 0.05229712613 | AX186: 5.868043055 | AY186: 0.0003242431187 | AZ186: 0.943516322
AD187: 181 | AE187: 819 | AF187: 1.349432625 | AG187: 23.22489346 | AH187: 16.39634261 | AI187: 0.7059813919 | AJ187: 0.05810285534 | AK187: 8.230083116 | AL187: 0.001244457703 | AM187: 0.7640842473 | AO187: 181 | AQ187: 181 | AR187: 819 | AS187: 0.0003436539574 | AT187: 0.0003213056913 | AU187: 0.8906432936 | AV187: 0.0520453804 | AW187: 0.05204537818 | AX187: 5.843571557 | AY187: 0.0003239586934 | AZ187: 0.9426886717
AD188: 182 | AE188: 818 | AF188: 1.346774665 | AG188: 23.22489346 | AH188: 16.36483194 | AI188: 0.7046246291 | AJ188: 0.05798841091 | AK188: 8.229688336 | AL188: 0.00124206156 | AM188: 0.76261304 | AO188: 182 | AQ188: 182 | AR188: 818 | AS188: 0.0003436539574 | AT188: 0.0003213056913 | AU188: 0.8900676933 | AV188: 0.05179365011 | AW188: 0.05179364788 | AX188: 5.8190684 | AY188: 0.000323674378 | AZ188: 0.9418613412
AD189: 183 | AE189: 817 | AF189: 1.344121693 | AG189: 23.22489346 | AH189: 16.33338181 | AI189: 0.7032704729 | AJ189: 0.05787418123 | AK189: 8.229292066 | AL189: 0.001239670012 | AM189: 0.7611446541 | AO189: 183 | AQ189: 183 | AR189: 817 | AS189: 0.0003436539574 | AT189: 0.0003213056913 | AU189: 0.8894923949 | AV189: 0.05154193737 | AW189: 0.05154193514 | AX189: 5.794533538 | AY189: 0.0003233901723 | AZ189: 0.9410343301
AD190: 184 | AE190: 816 | AF190: 1.341473698 | AG190: 23.22489346 | AH190: 16.30199209 | AI190: 0.7019189182 | AJ190: 0.05776016586 | AK190: 8.228894301 | AL190: 0.00123728305 | AM190: 0.7596790841 | AO190: 184 | AQ190: 184 | AR190: 816 | AS190: 0.0003436539574 | AT190: 0.0003213056913 | AU190: 0.8889173982 | AV190: 0.05129024211 | AW190: 0.05129023987 | AX190: 5.769966926 | AY190: 0.0003231060764 | AZ190: 0.9402076381
AD191: 185 | AE191: 815 | AF191: 1.338830671 | AG191: 23.22489346 | AH191: 16.27066268 | AI191: 0.7005699602 | AJ191: 0.05764636439 | AK191: 8.228495035 | AL191: 0.001234900666 | AM191: 0.7582163246 | AO191: 185 | AQ191: 185 | AR191: 815 | AS191: 0.0003436539574 | AT191: 0.0003213056913 | AU191: 0.888342703 | AV191: 0.05103856424 | AW191: 0.051038562 | AX191: 5.745368519 | AY191: 0.00032282209 | AZ191: 0.939381265
AD192: 186 | AE192: 814 | AF192: 1.336192602 | AG192: 23.22489346 | AH192: 16.23939347 | AI192: 0.6992235937 | AJ192: 0.05753277638 | AK192: 8.228094261 | AL192: 0.00123252285 | AM192: 0.7567563701 | AO192: 186 | AQ192: 186 | AR192: 814 | AS192: 0.0003436539574 | AT192: 0.0003213056913 | AU192: 0.8877683091 | AV192: 0.05078690368 | AW192: 0.05078690143 | AX192: 5.720738273 | AY192: 0.0003225382131 | AZ192: 0.9385552105
AD193: 187 | AE193: 813 | AF193: 1.333559481 | AG193: 23.22489346 | AH193: 16.20818432 | AI193: 0.6978798138 | AJ193: 0.05741940144 | AK193: 8.227691975 | AL193: 0.001230149594 | AM193: 0.7552992153 | AO193: 187 | AQ193: 187 | AR193: 813 | AS193: 0.0003436539574 | AT193: 0.0003213056913 | AU193: 0.8871942162 | AV193: 0.05053526033 | AW193: 0.05053525809 | AX193: 5.696076142 | AY193: 0.0003222544456 | AZ193: 0.9377294743
AD194: 188 | AE194: 812 | AF194: 1.330931298 | AG194: 23.22489346 | AH194: 16.17703514 | AI194: 0.6965386156 | AJ194: 0.05730623912 | AK194: 8.22728817 | AL194: 0.001227780889 | AM194: 0.7538448547 | AO194: 188 | AQ194: 188 | AR194: 812 | AS194: 0.0003436539574 | AT194: 0.0003213056913 | AU194: 0.8866204243 | AV194: 0.05028363412 | AW194: 0.05028363187 | AX194: 5.671382081 | AY194: 0.0003219707874 | AZ194: 0.9369040562
AD195: 189 | AE195: 811 | AF195: 1.328308044 | AG195: 23.22489346 | AH195: 16.14594579 | AI195: 0.695199994 | AJ195: 0.05719328902 | AK195: 8.226882841 | AL195: 0.001225416726 | AM195: 0.752393283 | AO195: 189 | AQ195: 189 | AR195: 811 | AS195: 0.0003436539574 | AT195: 0.0003213056913 | AU195: 0.8860469331 | AV195: 0.05003202496 | AW195: 0.05003202271 | AX195: 5.646656045 | AY195: 0.0003216872383 | AZ195: 0.9360789558
AD196: 190 | AE196: 810 | AF196: 1.325689709 | AG196: 23.22489346 | AH196: 16.11491618 | AI196: 0.6938639442 | AJ196: 0.05708055071 | AK196: 8.226475982 | AL196: 0.001223057097 | AM196: 0.7509444949 | AO196: 190 | AQ196: 190 | AR196: 810 | AS196: 0.0003436539574 | AT196: 0.0003213056913 | AU196: 0.8854737424 | AV196: 0.04978043276 | AW196: 0.04978043051 | AX196: 5.621897988 | AY196: 0.0003214037984 | AZ196: 0.9352541729
AD197: 191 | AE197: 809 | AF197: 1.323076283 | AG197: 23.22489346 | AH197: 16.08394617 | AI197: 0.6925304611 | AJ197: 0.05696802379 | AK197: 8.226067587 | AL197: 0.001220701992 | AM197: 0.7494984849 | AO197: 191 | AQ197: 191 | AR197: 809 | AS197: 0.0003436539574 | AT197: 0.0003213056913 | AU197: 0.8849008519 | AV197: 0.04952885745 | AW197: 0.04952885519 | AX197: 5.597107865 | AY197: 0.0003211204675 | AZ197: 0.9344297071
AD198: 192 | AE198: =ENNE-AD198 -> 808 | AF198: =(1-betasquare)*((EXP(alpha*AE198))-(EXP(-alpha*AE198)))-Rg*(((POWER((1-beta),2)*(EXP(alpha*AE198)))-POWER((1+beta),2))*(EXP(-alpha*AE198))) -> 1.320467757 | AG198: =(POWER((1+beta),2)*EXP(alpha*ENNE))-(POWER((1-beta),2)*EXP(-(alpha*ENNE)))-(Rg*(1-betasquare)*(EXP(alpha*ENNE)-EXP(-(alpha*ENNE)))) -> 23.22489346 | AH198: =POWER((1+beta),2)*EXP(alpha*AE198)-POWER((1-beta),2)*EXP(-alpha*AE198)-Rg*(1-betasquare)*(EXP(alpha*AE198)-EXP(-alpha*AE198)) -> 16.05303567 | AI198: =AH198/AG198 -> 0.6911995399 | AJ198: =AF198/AG198 -> 0.05685570783 | AK198: 8.22565765 | AL198: 0.001218351404 | AM198: 0.7480552477 | AO198: 192 | AQ198: 192 | AR198: =ENNE-AQ198 -> 808 | AS198: =IF(AO198<=$C$4,$S$5,(IF(AO198<=($C$5+$C$4),kappaBS,$S$5))) -> 0.0003436539574 | AT198: =esse -> 0.0003213056913 | AU198: 0.8843282617 | AV198: 0.04927729892 | AW198: =AW199-(AS198+AT198)*AW199+AT198*AU198 -> 0.04927729666 | AX198: =AW198/AU198*100 -> 5.572285631 | AY198: 0.0003208372455 | AZ198: =AU198+AW198 -> 0.9336055583
AD199: 193 | AE199: 807 | AF199: 1.31786412 | AG199: 23.22489346 | AH199: 16.02218455 | AI199: 0.6898711756 | AJ199: 0.05674360241 | AK199: =AJ199/AI199*100 -> 8.225246165 | AL199: =kappaM*(AI199)+kappaM*AJ199 -> 0.001216005323 | AM199: =AI199+AJ199 -> 0.746614778 | AO199: 193 | AQ199: 193 | AR199: 807 | AS199: 0.0003436539574 | AT199: 0.0003213056913 | AU199: 0.8837559713 | AV199: =AW199 -> 0.0490257571 | AW199: 0.04902575484 | AX199: 5.54743124 | AY199: =IF(AO199<=$C$4,AZ199*$S$5,IF(AO199<=($C$4+$C$5),AZ199*kappaBS,AZ199*$S$5)) -> 0.0003205541323 | AZ199: 0.9327817261
AD200: 194 | AE200: 806 | AF200: 1.315265365 | AG200: 23.22489346 | AH200: 15.9913927 | AI200: 0.6885453633 | AJ200: 0.05663170713 | AK200: 8.224833127 | AL200: 0.00121366374 | AM200: 0.7451770704 | AO200: 194 | AQ200: 194 | AR200: 806 | AS200: 0.0003436539574 | AT200: 0.0003213056913 | AU200: =AU199-(AS200+AT200)*AU199+AT200*AV200 -> 0.8831839807 | AV200: 0.04877423191 | AW200: 0.04877422964 | AX200: 5.522544646 | AY200: 0.0003202711279 | AZ200: 0.9319582103
AD201: 195 | AE201: 805 | AF201: 1.312671479 | AG201: 23.22489346 | AH201: 15.96066001 | AI201: 0.6872220981 | AJ201: 0.05652002157 | AK201: 8.22441853 | AL201: 0.001211326648 | AM201: 0.7437421196 | AO201: 195 | AQ201: 195 | AR201: 805 | AS201: 0.0003436539574 | AT201: 0.0003213056913 | AU201: 0.8826122896 | AV201: 0.04852272325 | AW201: 0.04852272098 | AX201: 5.497625804 | AY201: 0.000319988232 | AZ201: 0.9311350106
... 806 more rows

Sheet (MDG1)
K2: Quantities to be Fitted
B3: Input | K3: S | M3: 0.0003834369354 | P3: Quantities for integration
B4: Layers MAD | C4: 83 | K4: KMI | M4: 0.001234620092 | P4: MI | R4: MA | T4: VB | W4: Additional quantities | AD4: Integration for profile P1 | AO4: Integration for profile P2
B5: Layers Vein | C5: 739 | P5: KMI | Q5: =kappaM -> 0.001234620092 | R5: KMA | S5: =C13*kappaM -> 1.234620092e-13 | T5: KVB | U5: =C14*kappaM -> 0.003703860275 | W5: N | X5: 1000 | AD5: n | AE5: N-n | AF5: num J | AG5: denom | AH5: num I | AI5: I P1 | AJ5: J | AK5: J/I % | AL5: A | AM5: I+J | AO5: Layer | AQ5: n | AR5: N-n | AS5: k | AT5: s | AU5: I P2 | AV5: J P2(1) | AW5: J P2(1) | AX5: J/I % | AY5: A | AZ5: I+J
B6: Layers MAB | C6: 178 | K6: Sq.Differences for curve fitting | P6: α2 | Q6: =kappaM*(kappaM+2*esse) -> 2.471084659e-06 | W6: M | X6: =1-C7 -> 0.443 | Y6: Width factor | Z6: =C7/X6 -> 1.257336343 | AD6: 0 | AE6: =ENNE-AD6 -> 1000 | AF6: =(1-betasquare)*((EXP(alpha*AE6))-(EXP(-alpha*AE6)))-Rg*(((POWER((1-beta),2)*(EXP(alpha*AE6)))-POWER((1+beta),2))*(EXP(-alpha*AE6))) -> 1.802692511 | AG6: =(POWER((1+beta),2)*EXP(alpha*ENNE))-(POWER((1-beta),2)*EXP(-(alpha*ENNE)))-(Rg*(1-betasquare)*(EXP(alpha*ENNE)-EXP(-(alpha*ENNE)))) -> 15.23656702 | AH6: =POWER((1+beta),2)*EXP(alpha*AE6)-POWER((1-beta),2)*EXP(-alpha*AE6)-Rg*(1-betasquare)*(EXP(alpha*AE6)-EXP(-alpha*AE6)) -> 15.23656702 | AI6: =AH6/AG6 -> 1 | AJ6: =AF6/AG6 -> 0.1183135616 | AK6: =AJ6/AI6*100 -> 11.83135616 | AM6: =AI6+AJ6 -> 1.118313562 | AO6: 0 | AQ6: 0 | AR6: =ENNE-AQ6 -> 1000 | AS6: =IF(AO6<=$C$4,$S$5,(IF(AO6<=($C$5+$C$4),kappaBS,$S$5))) -> 1.234620092e-13 | AT6: =esse -> 0.0003834369354 | AU6: 1 | AV6: =AW6 -> 0.07548593571 | AW6: =AW7-(AS6+AT6)*AW7+AT6*AU6 -> 0.07548593772 | AX6: =AW6/AU6*100 -> 7.548593772 | AZ6: =AU6+AW6 -> 1.075485938
B7: VEW/IVD | C7: 0.557 | K7: Sqdiff leaf level transmittance | M7: =POWER((C28-trasmittance),2) -> 5.108752773e-05 | P7: α | Q7: =SQRT(alphasquare) -> 0.001571968403 | AD7: 1 | AE7: 999 | AF7: 1.799731355 | AG7: 15.23656702 | AH7: 15.21261938 | AI7: 0.9984282783 | AJ7: 0.1181192163 | AK7: =AJ7/AI7*100 -> 11.83051591 | AL7: =kappaM*(AI7)+kappaM*AJ7 -> 0.00137851197 | AM7: =AI7+AJ7 -> 1.116547495 | AO7: 1 | AQ7: 1 | AR7: 999 | AS7: 1.234620092e-13 | AT7: 0.0003834369354 | AU7: =AU6-(AS7+AT7)*AU6+AT7*AV7 -> 0.9996453712 | AV7: =AW7 -> 0.0751313089 | AW7: 0.0751313109 | AX7: 7.515796408 | AY7: =IF(AO7<=$C$4,AZ7*$S$5,IF(AO7<=($C$4+$C$5),AZ7*kappaBS,AZ7*$S$5)) -> 1.326940883e-13 | AZ7: 1.074776682
K8: Sqdiff absorptance | M8: =POWER((1-reflectance-trasmittance)-C27,2) -> 2.984716608e-05 | P8: β2 | Q8: =kappaM/(kappaM+2*esse) -> 0.616849271 | W8: J(N)=RgI(N) | Y8: 0.06 | AD8: 2 | AE8: 998 | AF8: 1.796774653 | AG8: 15.23656702 | AH8: 15.18870933 | AI8: 0.9968590238 | AJ8: 0.1179251632 | AK8: 11.82967305 | AL8: 0.001376334955 | AM8: 1.114784187 | AO8: 2 | AQ8: 2 | AR8: 998 | AS8: 1.234620092e-13 | AT8: 0.0003834369354 | AU8: =AU7-(AS8+AT8)*AU7+AT8*AV8 -> 0.9992907424 | AV8: 0.07477668208 | AW8: 0.07477668406 | AX8: 7.482975764 | AY8: 1.326065222e-13 | AZ8: 1.074067426
K9: Sqdiff Reflectance | M9: =POWER(reflectance-C26,2) -> 3.070740221e-05 | P9: β | Q9: =SQRT(betasquare) -> 0.7853975242 | AD9: 3 | AE9: 997 | AF9: 1.793822398 | AG9: 15.23656702 | AH9: 15.16483681 | AI9: 0.9952922326 | AJ9: 0.1177314021 | AK9: 11.82882758 | AL9: 0.001374161342 | AM9: 1.113023635 | AO9: 3 | AQ9: 3 | AR9: 997 | AS9: 1.234620092e-13 | AT9: 0.0003834369354 | AU9: 0.9989361135 | AV9: 0.07442205525 | AW9: 0.07442205721 | AX9: 7.450131815 | AY9: 1.325189561e-13 | AZ9: 1.073358171
B10: Leaf level reflectance R | C10: 0.1 | K10: sqdiff optic | M10: =M7+M8+M9 -> 0.000111642096 | W10: Sqdiff I | Y10: =POWER((AM1007-trasmittance),2) -> 0.00880149379 | AD10: 4 | AE10: 996 | AF10: 1.790874583 | AG10: 15.23656702 | AH10: 15.14100176 | AI10: 0.9937279009 | AJ10: 0.1175379323 | AK10: 11.82797949 | AL10: 0.001371991125 | AM10: 1.111265833 | AO10: 4 | AQ10: 4 | AR10: 996 | AS10: 1.234620092e-13 | AT10: 0.0003834369354 | AU10: 0.9985814847 | AV10: 0.0740674284 | AW10: 0.07406743034 | AX10: 7.417264537 | AY10: 1.324313899e-13 | AZ10: 1.072648915
B11: Leaf level Transmittance T | C11: 0.1 | W11: Sqdiff J | Y11: =POWER((AJ6-reflectance),2) -> 0.0003353865395 | AD11: 5 | AE11: 995 | AF11: 1.787931199 | AG11: 15.23656702 | AH11: 15.11720413 | AI11: 0.9921660247 | AJ11: 0.1173447534 | AK11: 11.82712877 | AL11: 0.001369824298 | AM11: 1.109510778 | AO11: 5 | AQ11: 5 | AR11: 995 | AS11: 1.234620092e-13 | AT11: 0.0003834369354 | AU11: 0.9982268559 | AV11: 0.07371280153 | AW11: 0.07371280346 | AX11: 7.384373905 | AY11: 1.323438238e-13 | AZ11: 1.071939659
AD12: 6 | AE12: 994 | AF12: 1.784992241 | AG12: 15.23656702 | AH12: 15.09344386 | AI12: 0.9906066003 | AJ12: 0.1171518649 | AK12: 11.82627542 | AL12: 0.001367660858 | AM12: 1.107758465 | AO12: 6 | AQ12: 6 | AR12: 994 | AS12: 1.234620092e-13 | AT12: 0.0003834369354 | AU12: 0.9978722271 | AV12: 0.07335817465 | AW12: 0.07335817656 | AX12: 7.351459893 | AY12: 1.322562577e-13 | AZ12: 1.071230404
B13: kMA/kMI | C13: 1e-10 | P13: Profile level output | AD13: 7 | AE13: 993 | AF13: 1.7820577 | AG13: 15.23656702 | AH13: 15.06972088 | AI13: 0.9890496237 | AJ13: 0.1169592663 | AK13: 11.82541942 | AL13: 0.001365500797 | AM13: 1.10600889 | AO13: 7 | AQ13: 7 | AR13: 993 | AS13: 1.234620092e-13 | AT13: 0.0003834369354 | AU13: 0.9975175983 | AV13: 0.07300354775 | AW13: 0.07300354965 | AX13: 7.318522477 | AY13: 1.321686915e-13 | AZ13: 1.070521148
B14: kVB/KMI | C14: 3 | Q14: P1 | S14: P2 | AD14: 8 | AE14: 992 | AF14: 1.77912757 | AG14: 15.23656702 | AH14: 15.04603514 | AI14: 0.9874950912 | AJ14: 0.1167669572 | AK14: 11.82456078 | AL14: 0.001363344111 | AM14: 1.104262048 | AO14: 8 | AQ14: 8 | AR14: 992 | AS14: 1.234620092e-13 | AT14: 0.0003834369354 | AU14: 0.9971629695 | AV14: 0.07264892084 | AW14: 0.07264892272 | AX14: 7.285561632 | AY14: 1.320811254e-13 | AZ14: 1.069811892
P15: Atot P1 | Q15: =SUM(AL7:AL1006) -> 0.6883266048 | R15: A tot MAD | S15: =SUM(OFFSET(AY7,0,0,$C$4,1)) -> 1.071562162e-11 | AD15: 9 | AE15: 991 | AF15: 1.776201843 | AG15: 15.23656702 | AH15: 15.02238658 | AI15: 0.9859429989 | AJ15: 0.1165749371 | AK15: 11.82369947 | AL15: 0.001361190795 | AM15: 1.102517936 | AO15: 9 | AQ15: 9 | AR15: 991 | AS15: 1.234620092e-13 | AT15: 0.0003834369354 | AU15: 0.9968083407 | AV15: 0.07229429391 | AW15: 0.07229429577 | AX15: 7.252577333 | AY15: 1.319935593e-13 | AZ15: 1.069102636
P16: 1-R-T | Q16: =1-AJ6-AI1006 -> 0.6754989099 | R16: A tot VB | S16: =SUM(OFFSET(AY7,$C$4,0,$C$5,1)) -> 0.879009078 | AD16: 10 | AE16: 990 | AF16: 1.773280512 | AG16: 15.23656702 | AH16: 14.99877514 | AI16: 0.9843933429 | AJ16: 0.1163832056 | AK16: 11.8228355 | AL16: 0.001359040843 | AM16: 1.100776548 | AO16: 10 | AQ16: 10 | AR16: 990 | AS16: 1.234620092e-13 | AT16: 0.0003834369354 | AU16: 0.9964537119 | AV16: 0.07193966696 | AW16: 0.07193966881 | AX16: 7.219569555 | AY16: 1.319059931e-13 | AZ16: 1.068393381
P17: R=J(0) | Q17: =AJ6 -> 0.1183135616 | R17: A tot MAB | S17: =SUM(OFFSET(AY7,($C$4+$C$5),0,$C$6,1)) -> 1.110655254e-12 | AD17: 11 | AE17: 989 | AF17: 1.770363569 | AG17: 15.23656702 | AH17: 14.97520077 | AI17: 0.9828461194 | AJ17: 0.116191762 | AK17: 11.82196884 | AL17: 0.00135689425 | AM17: 1.099037881 | AO17: 11 | AQ17: 11 | AR17: 989 | AS17: 1.234620092e-13 | AT17: 0.0003834369354 | AU17: 0.996099083 | AV17: 0.07158504 | AW17: 0.07158504183 | AX17: 7.186538272 | AY17: 1.31818427e-13 | AZ17: 1.067684125
P18: T | Q18: =AI1006 -> 0.2061875285 | R18: A Total P2 | S18: =SUM(S15:S17) -> 0.8790090781 | AD18: 12 | AE18: 988 | AF18: 1.767451009 | AG18: 15.23656702 | AH18: 14.9516634 | AI18: 0.9813013246 | AJ18: 0.1160006061 | AK18: 11.82109951 | AL18: 0.00135475101 | AM18: 1.097301931 | AO18: 12 | AQ18: 12 | AR18: 988 | AS18: 1.234620092e-13 | AT18: 0.0003834369354 | AU18: 0.9957444542 | AV18: 0.07123041303 | AW18: 0.07123041484 | AX18: 7.15348346 | AY18: 1.317308608e-13 | AZ18: 1.066974869
B19: Output Leaf level Absorbed light | R19: J(0) | S19: =AW6 -> 0.07548593772 | AD19: 13 | AE19: 987 | AF19: 1.764542822 | AG19: 15.23656702 | AH19: 14.92816298 | AI19: 0.9797589548 | AJ19: 0.1158097372 | AK19: 11.82022748 | AL19: 0.001352611119 | AM19: 1.095568692 | AO19: 13 | AQ19: 13 | AR19: 987 | AS19: 1.234620092e-13 | AT19: 0.0003834369354 | AU19: 0.9953898254 | AV19: 0.07087578603 | AW19: 0.07087578783 | AX19: 7.120405094 | AY19: 1.316432947e-13 | AZ19: 1.066265613
B20: A MI | C20: =Q15*X6 -> 0.3049286859 | R20: T | S20: =AU1006 -> 0.04495349966 | AD20: 14 | AE20: 986 | AF20: 1.761639003 | AG20: 15.23656702 | AH20: 14.90469944 | AI20: 0.9782190059 | AJ20: 0.1156191549 | AK20: 11.81935274 | AL20: 0.00135047457 | AM20: 1.093838161 | AO20: 14 | AQ20: 14 | AR20: 986 | AS20: 1.234620092e-13 | AT20: 0.0003834369354 | AU20: 0.9950351966 | AV20: 0.07052115903 | AW20: 0.07052116081 | AX20: 7.087303148 | AY20: 1.315557285e-13 | AZ20: 1.065556357
B21: A MAD | C21: =S15*C7 -> 5.968601244e-12 | R21: 1-R-t | S21: =1-S19-S20 -> 0.8795605626 | AD21: 15 | AE21: 985 | AF21: 1.758739544 | AG21: 15.23656702 | AH21: 14.88127274 | AI21: 0.9766814744 | AJ21: 0.1154288588 | AK21: 11.8184753 | AL21: 0.00134834136 | AM21: 1.092110333 | AO21: 15 | AQ21: 15 | AR21: 985 | AS21: 1.234620092e-13 | AT21: 0.0003834369354 | AU21: 0.9946805678 | AV21: 0.070166532 | AW21: 0.07016653377 | AX21: 7.054177596 | AY21: 1.314681624e-13 | AZ21: 1.064847102
B22: A MAB | C22: =S17*C7 -> 6.186349763e-13 | AD22: 16 | AE22: 984 | AF22: 1.755844437 | AG22: 15.23656702 | AH22: 14.85788281 | AI22: 0.9751463563 | AJ22: 0.1152388484 | AK22: 11.81759514 | AL22: 0.001346211481 | AM22: 1.090385205 | AO22: 16 | AQ22: 16 | AR22: 984 | AS22: 1.234620092e-13 | AT22: 0.0003834369354 | AU22: 0.994325939 | AV22: 0.06981190497 | AW22: 0.06981190672 | AX22: 7.021028415 | AY22: 1.313805962e-13 | AZ22: 1.064137846
B23: Amesophyll | C23: =SUM(C20:C21,C22) -> 0.3049286859 | AD23: 17 | AE23: 983 | AF23: 1.752953676 | AG23: 15.23656702 | AH23: 14.8345296 | AI23: 0.9736136478 | AJ23: 0.1150491232 | AK23: 11.81671225 | AL23: 0.00134408493 | AM23: 1.088662771 | AO23: 17 | AQ23: 17 | AR23: 983 | AS23: 1.234620092e-13 | AT23: 0.0003834369354 | AU23: 0.9939713102 | AV23: 0.06945727791 | AW23: 0.06945727965 | AX23: 6.987855578 | AY23: 1.312930301e-13 | AZ23: 1.06342859
B24: A VB | C24: =S16*C7 -> 0.4896080565 | AD24: 18 | AE24: 982 | AF24: 1.750067254 | AG24: 15.23656702 | AH24: 14.81121304 | AI24: 0.9720833453 | AJ24: 0.1148596827 | AK24: 11.81582663 | AL24: 0.001341961701 | AM24: 1.086943028 | AO24: 18 | AQ24: 18 | AR24: 982 | AS24: 1.234620092e-13 | AT24: 0.0003834369354 | AU24: 0.9936166814 | AV24: 0.06910265084 | AW24: 0.06910265256 | AX24: 6.95465906 | AY24: 1.312054639e-13 | AZ24: 1.062719334
B25: AB BS / M | C25: =C24/C23 -> 1.605647743 | AD25: 19 | AE25: 981 | AF25: 1.747185163 | AG25: 15.23656702 | AH25: 14.78793308 | AI25: 0.9705554448 | AJ25: 0.1146705266 | AK25: 11.81493826 | AL25: 0.001339841788 | AM25: 1.085225971 | AO25: 19 | AQ25: 19 | AR25: 981 | AS25: 1.234620092e-13 | AT25: 0.0003834369354 | AU25: 0.9932620526 | AV25: 0.06874802376 | AW25: 0.06874802546 | AX25: 6.921438837 | AY25: 1.311178978e-13 | AZ25: 1.062010078
B26: Leaf level Reflectance | C26: =C7*AW6+X6*AJ6 -> 0.09445857511 | AD26: 20 | AE26: 980 | AF26: 1.744307397 | AG26: 15.23656702 | AH26: 14.76468967 | AI26: 0.9690299427 | AJ26: 0.1144816542 | AK26: 11.81404713 | AL26: 0.001337725187 | AM26: 1.083511597 | AO26: 20 | AQ26: 20 | AR26: 980 | AS26: 1.234620092e-13 | AT26: 0.0003834369354 | AU26: 0.9929074238 | AV26: 0.06839339665 | AW26: 0.06839339834 | AX26: 6.888194881 | AY26: 1.310303316e-13 | AZ26: 1.061300822
B27: Leaf level Absorptance | C27: =SUM(C23,C24) -> 0.7945367424 | AD27: 21 | AE27: 979 | AF27: 1.741433947 | AG27: 15.23656702 | AH27: 14.74148274 | AI27: 0.9675068352 | AJ27: 0.1142930652 | AK27: 11.81315325 | AL27: 0.001335611892 | AM27: 1.0817999 | AO27: 21 | AQ27: 21 | AR27: 979 | AS27: 1.234620092e-13 | AT27: 0.0003834369354 | AU27: 0.992552795 | AV27: 0.06803876954 | AW27: 0.06803877121 | AX27: 6.854927169 | AY27: 1.309427655e-13 | AZ27: 1.060591566
B28: Leaf level trasmittance | C28: =C7*AW1006+X6*AI1006 -> 0.09285244599 | AD28: 22 | AE28: 978 | AF28: 1.738564808 | AG28: 15.23656702 | AH28: 14.71831223 | AI28: 0.9659861184 | AJ28: 0.114104759 | AK28: 11.8122566 | AL28: 0.001333501898 | AM28: 1.080090877 | AO28: 22 | AQ28: 22 | AR28: 978 | AS28: 1.234620092e-13 | AT28: 0.0003834369354 | AU28: 0.9921981662 | AV28: 0.06768414241 | AW28: 0.06768414406 | AX28: 6.821635674 | AY28: 1.308551993e-13 | AZ28: 1.05988231
AD29: 23 | AE29: 977 | AF29: 1.735699971 | AG29: 15.23656702 | AH29: 14.6951781 | AI29: 0.9644677886 | AJ29: 0.1139167352 | AK29: 11.81135716 | AL29: 0.0013313952 | AM29: 1.078384524 | AO29: 23 | AQ29: 23 | AR29: 977 | AS29: 1.234620092e-13 | AT29: 0.0003834369354 | AU29: 0.9918435374 | AV29: 0.06732951526 | AW29: 0.06732951689 | AX29: 6.788320371 | AY29: 1.307676331e-13 | AZ29: 1.059173054
AD30: 24 | AE30: 976 | AF30: 1.732839431 | AG30: 15.23656702 | AH30: 14.67208028 | AI30: 0.9629518422 | AJ30: 0.1137289934 | AK30: 11.81045494 | AL30: 0.001329291792 | AM30: 1.076680836 | AO30: 24 | AQ30: 24 | AR30: 976 | AS30: 1.234620092e-13 | AT30: 0.0003834369354 | AU30: 0.9914889086 | AV30: 0.06697488809 | AW30: 0.06697488971 | AX30: 6.754981234 | AY30: 1.30680067e-13 | AZ30: 1.058463798
AD31: 25 | AE31: 975 | AF31: 1.729983179 | AG31: 15.23656702 | AH31: 14.64901872 | AI31: 0.9614382753 | AJ31: 0.1135415331 | AK31: 11.80954993 | AL31: 0.001327191669 | AM31: 1.074979808 | AO31: 25 | AQ31: 25 | AR31: 975 | AS31: 1.234620092e-13 | AT31: 0.0003834369354 | AU31: 0.9911342798 | AV31: 0.06662026091 | AW31: 0.06662026252 | AX31: 6.721618239 | AY31: 1.305925008e-13 | AZ31: 1.057754542
AD32: 26 | AE32: 974 | AF32: 1.727131209 | AG32: 15.23656702 | AH32: 14.62599335 | AI32: 0.9599270841 | AJ32: 0.1133543538 | AK32: 11.8086421 | AL32: 0.001325094827 | AM32: 1.073281438 | AO32: 26 | AQ32: 26 | AR32: 974 | AS32: 1.234620092e-13 | AT32: 0.0003834369354 | AU32: 0.990779651 | AV32: 0.06626563372 | AW32: 0.06626563531 | AX32: 6.688231358 | AY32: 1.305049346e-13 | AZ32: 1.057045286
AD33: 27 | AE33: 973 | AF33: 1.724283514 | AG33: 15.23656702 | AH33: 14.60300413 | AI33: 0.9584182651 | AJ33: 0.1131674551 | AK33: 11.80773147 | AL33: 0.00132300126 | AM33: 1.07158572 | AO33: 27 | AQ33: 27 | AR33: 973 | AS33: 1.234620092e-13 | AT33: 0.0003834369354 | AU33: 0.9904250222 | AV33: 0.06591100651 | AW33: 0.06591100808 | AX33: 6.654820568 | AY33: 1.304173684e-13 | AZ33: 1.05633603
AD34: 28 | AE34: 972 | AF34: 1.721440086 | AG34: 15.23656702 | AH34: 14.58005099 | AI34: 0.9569118143 | AJ34: 0.1129808364 | AK34: 11.80681801 | AL34: 0.001320910962 | AM34: 1.069892651 | AO34: 28 | AQ34: 28 | AR34: 972 | AS34: 1.234620092e-13 | AT34: 0.0003834369354 | AU34: 0.9900703934 | AV34: 0.06555637928 | AW34: 0.06555638084 | AX34: 6.621385841 | AY34: 1.303298023e-13 | AZ34: 1.055626774
AD35: 29 | AE35: 971 | AF35: 1.71860092 | AG35: 15.23656702 | AH35: 14.55713388 | AI35: 0.9554077282 | AJ35: 0.1127944974 | AK35: 11.80590172 | AL35: 0.00131882393 | AM35: 1.068202226 | AO35: 29 | AQ35: 29 | AR35: 971 | AS35: 1.234620092e-13 | AT35: 0.0003834369354 | AU35: 0.9897157646 | AV35: 0.06520175204 | AW35: 0.06520175358 | AX35: 6.587927152 | AY35: 1.302422361e-13 | AZ35: 1.054917518
AD36: 30 | AE36: 970 | AF36: 1.715766006 | AG36: 15.23656702 | AH36: 14.53425275 | AI36: 0.953906003 | AJ36: 0.1126084376 | AK36: 11.80498259 | AL36: 0.001316740156 | AM36: 1.066514441 | AO36: 30 | AQ36: 30 | AR36: 970 | AS36: 1.234620092e-13 | AT36: 0.0003834369354 | AU36: 0.9893611358 | AV36: 0.06484712479 | AW36: 0.06484712631 | AX36: 6.554444476 | AY36: 1.301546699e-13 | AZ36: 1.054208262
AD37: 31 | AE37: 969 | AF37: 1.71293534 | AG37: 15.23656702 | AH37: 14.51140752 | AI37: 0.9524066349 | AJ37: 0.1124226565 | AK37: 11.80406061 | AL37: 0.001314659637 | AM37: 1.064829291 | AO37: 31 | AQ37: 31 | AR37: 969 | AS37: 1.234620092e-13 | AT37: 0.0003834369354 | AU37: 0.989006507 | AV37: 0.06449249751 | AW37: 0.06449249902 | AX37: 6.520937786 | AY37: 1.300671037e-13 | AZ37: 1.053499006
AD38: 32 | AE38: 968 | AF38: 1.710108913 | AG38: 15.23656702 | AH38: 14.48859816 | AI38: 0.9509096204 | AJ38: 0.1122371536 | AK38: 11.80313577 | AL38: 0.001312582367 | AM38: 1.063146774 | AO38: 32 | AQ38: 32 | AR38: 968 | AS38: 1.234620092e-13 | AT38: 0.0003834369354 | AU38: 0.9886518782 | AV38: 0.06413787023 | AW38: 0.06413787172 | AX38: 6.487407057 | AY38: 1.299795376e-13 | AZ38: 1.05278975
AD39: 33 | AE39: 967 | AF39: 1.707286718 | AG39: 15.23656702 | AH39: 14.4658246 | AI39: 0.9494149556 | AJ39: 0.1120519285 | AK39: 11.80220807 | AL39: 0.001310508342 | AM39: 1.061466884 | AO39: 33 | AQ39: 33 | AR39: 967 | AS39: 1.234620092e-13 | AT39: 0.0003834369354 | AU39: 0.9882972494 | AV39: 0.06378324292 | AW39: 0.0637832444 | AX39: 6.453852263 | AY39: 1.298919714e-13 | AZ39: 1.052080494
AD40: 34 | AE40: 966 | AF40: 1.70446875 | AG40: 15.23656702 | AH40: 14.44308679 | AI40: 0.9479226369 | AJ40: 0.1118669808 | AK40: 11.80127749 | AL40: 0.001308437555 | AM40: 1.059789618 | AO40: 34 | AQ40: 34 | AR40: 966 | AS40: 1.234620092e-13 | AT40: 0.0003834369354 | AU40: 0.9879426206 | AV40: 0.06342861561 | AW40: 0.06342861707 | AX40: 6.420273378 | AY40: 1.298044052e-13 | AZ40: 1.051371238
AD41: 35 | AE41: 965 | AF41: 1.701655 | AG41: 15.23656702 | AH41: 14.42038466 | AI41: 0.9464326606 | AJ41: 0.1116823099 | AK41: 11.80034402 | AL41: 0.001306370002 | AM41: 1.05811497 | AO41: 35 | AQ41: 35 | AR41: 965 | AS41: 1.234620092e-13 | AT41: 0.0003834369354 | AU41: 0.9875879918 | AV41: 0.06307398827 | AW41: 0.06307398972 | AX41: 6.386670377 | AY41: 1.29716839e-13 | AZ41: 1.050661982
AD42: 36 | AE42: 964 | AF42: 1.698845462 | AG42: 15.23656702 | AH42: 14.39771817 | AI42: 0.944945023 | AJ42: 0.1114979155 | AK42: 11.79940767 | AL42: 0.001304305677 | AM42: 1.056442938 | AO42: 36 | AQ42: 36 | AR42: 964 | AS42: 1.234620092e-13 | AT42: 0.0003834369354 | AU42: 0.987233363 | AV42: 0.06271936092 | AW42: 0.06271936235 | AX42: 6.353043232 | AY42: 1.296292728e-13 | AZ42: 1.049952725
AD43: 37 | AE43: 963 | AF43: 1.696040128 | AG43: 15.23656702 | AH43: 14.37508726 | AI43: 0.9434597204 | AJ43: 0.111313797 | AK43: 11.7984684 | AL43: 0.001302244577 | AM43: 1.054773517 | AO43: 37 | AQ43: 37 | AR43: 963 | AS43: 1.234620092e-13 | AT43: 0.0003834369354 | AU43: 0.9868787342 | AV43: 0.06236473356 | AW43: 0.06236473497 | AX43: 6.319391918 | AY43: 1.295417066e-13 | AZ43: 1.049243469
AD44: 38 | AE44: 962 | AF44: 1.693238993 | AG44: 15.23656702 | AH44: 14.35249187 | AI44: 0.9419767493 | AJ44: 0.1111299541 | AK44: 11.79752623 | AL44: 0.001300186694 | AM44: 1.053106703 | AO44: 38 | AQ44: 38 | AR44: 962 | AS44: 1.234620092e-13 | AT44: 0.0003834369354 | AU44: 0.9865241054 | AV44: 0.06201010618 | AW44: 0.06201010757 | AX44: 6.285716409 | AY44: 1.294541404e-13 | AZ44: 1.048534213
AD45: 39 | AE45: 961 | AF45: 1.690442048 | AG45: 15.23656702 | AH45: 14.32993195 | AI45: 0.9404961058 | AJ45: 0.1109463862 | AK45: 11.79658113 | AL45: 0.001298132026 | AM45: 1.051442492 | AO45: 39 | AQ45: 39 | AR45: 961 | AS45: 1.234620092e-13 | AT45: 0.0003834369354 | AU45: 0.9861694766 | AV45: 0.06165547878 | AW45: 0.06165548016 | AX45: 6.252016679 | AY45: 1.293665742e-13 | AZ45: 1.047824957
AD46: 40 | AE46: 960 | AF46: 1.687649288 | AG46: 15.23656702 | AH46: 14.30740744 | AI46: 0.9390177863 | AJ46: 0.1107630929 | AK46: 11.79563311 | AL46: 0.001296080565 | AM46: 1.049780879 | AO46: 40 | AQ46: 40 | AR46: 960 | AS46: 1.234620092e-13 | AT46: 0.0003834369354 | AU46: 0.9858148478 | AV46: 0.06130085137 | AW46: 0.06130085274 | AX46: 6.218292702 | AY46: 1.29279008e-13 | AZ46: 1.047115701
AD47: 41 | AE47: 959 | AF47: 1.684860705 | AG47: 15.23656702 | AH47: 14.28491828 | AI47: 0.9375417873 | AJ47: 0.1105800737 | AK47: 11.79468214 | AL47: 0.001294032308 | AM47: 1.048121861 | AO47: 41 | AQ47: 41 | AR47: 959 | AS47: 1.234620092e-13 | AT47: 0.0003834369354 | AU47: 0.9854602191 | AV47: 0.06094622395 | AW47: 0.0609462253 | AX47: 6.184544451 | AY47: 1.291914418e-13 | AZ47: 1.046406444
AD48: 42 | AE48: 958 | AF48: 1.682076292 | AG48: 15.23656702 | AH48: 14.26246442 | AI48: 0.936068105 | AJ48: 0.1103973283 | AK48: 11.79372823 | AL48: 0.001291987249 | AM48: 1.046465433 | AO48: 42 | AQ48: 42 | AR48: 958 | AS48: 1.234620092e-13 | AT48: 0.0003834369354 | AU48: 0.9851055903 | AV48: 0.06059159651 | AW48: 0.06059159784 | AX48: 6.150771901 | AY48: 1.291038756e-13 | AZ48: 1.045697188
AD49: 43 | AE49: 957 | AF49: 1.679296042 | AG49: 15.23656702 | AH49: 14.2400458 | AI49: 0.9345967358 | AJ49: 0.1102148561 | AK49: 11.79277135 | AL49: 0.001289945383 | AM49: 1.044811592 | AO49: 43 | AQ49: 43 | AR49: 957 | AS49: 1.234620092e-13 | AT49: 0.0003834369354 | AU49: 0.9847509615 | AV49: 0.06023696905 | AW49: 0.06023697037 | AX49: 6.116975025 | AY49: 1.290163094e-13 | AZ49: 1.044987932
AD50: 44 | AE50: 956 | AF50: 1.676519949 | AG50: 15.23656702 | AH50: 14.21766238 | AI50: 0.9331276761 | AJ50: 0.1100326567 | AK50: 11.79181151 | AL50: 0.001287906706 | AM50: 1.043160333 | AO50: 44 | AQ50: 44 | AR50: 956 | AS50: 1.234620092e-13 | AT50: 0.0003834369354 | AU50: 0.9843963327 | AV50: 0.05988234158 | AW50: 0.05988234288 | AX50: 6.083153796 | AY50: 1.289287432e-13 | AZ50: 1.044278676
AD51: 45 | AE51: 955 | AF51: 1.673748005 | AG51: 15.23656702 | AH51: 14.19531408 | AI51: 0.9316609222 | AJ51: 0.1098507297 | AK51: 11.7908487 | AL51: 0.001285871211 | AM51: 1.041511652 | AO51: 45 | AQ51: 45 | AR51: 955 | AS51: 1.234620092e-13 | AT51: 0.0003834369354 | AU51: 0.9840417039 | AV51: 0.05952771409 | AW51: 0.05952771538 | AX51: 6.049308189 | AY51: 1.28841177e-13 | AZ51: 1.043569419
AD52: 46 | AE52: 954 | AF52: 1.670980205 | AG52: 15.23656702 | AH52: 14.17300087 | AI52: 0.9301964706 | AJ52: 0.1096690746 | AK52: 11.7898829 | AL52: 0.001283838895 | AM52: 1.039865545 | AO52: 46 | AQ52: 46 | AR52: 954 | AS52: 1.234620092e-13 | AT52: 0.0003834369354 | AU52: 0.9836870751 | AV52: 0.05917308659 | AW52: 0.05917308786 | AX52: 6.015438178 | AY52: 1.287536108e-13 | AZ52: 1.042860163
AD53: 47 | AE53: 953 | AF53: 1.66821654 | AG53: 15.23656702 | AH53: 14.15072267 | AI53: 0.9287343175 | AJ53: 0.1094876909 | AK53: 11.7889141 | AL53: 0.001281809751 | AM53: 1.038222008 | AO53: 47 | AQ53: 47 | AR53: 953 | AS53: 1.234620092e-13 | AT53: 0.0003834369354 | AU53: 0.9833324463 | AV53: 0.05881845908 | AW53: 0.05881846033 | AX53: 5.981543734 | AY53: 1.286660446e-13 | AZ53: 1.042150907
AD54: 48 | AE54: 952 | AF54: 1.665457005 | AG54: 15.23656702 | AH54: 14.12847945 | AI54: 0.9272744594 | AJ54: 0.1093065782 | AK54: 11.7879423 | AL54: 0.001279783776 | AM54: 1.036581038 | AO54: 48 | AQ54: 48 | AR54: 952 | AS54: 1.234620092e-13 | AT54: 0.0003834369354 | AU54: 0.9829778175 | AV54: 0.05846383154 | AW54: 0.05846383278 | AX54: 5.947624834 | AY54: 1.285784784e-13 | AZ54: 1.04144165
AD55: 49 | AE55: 951 | AF55: 1.662701591 | AG55: 15.23656702 | AH55: 14.10627113 | AI55: 0.9258168927 | AJ55: 0.1091257361 | AK55: 11.78696748 | AL55: 0.001277760963 | AM55: 1.034942629 | AO55: 49 | AQ55: 49 | AR55: 951 | AS55: 1.234620092e-13 | AT55: 0.0003834369354 | AU55: 0.9826231887 | AV55: 0.058109204 | AW55: 0.05810920522 | AX55: 5.913681449 | AY55: 1.284909122e-13 | AZ55: 1.040732394
AD56: 50 | AE56: 950 | AF56: 1.659950294 | AG56: 15.23656702 | AH56: 14.08409768 | AI56: 0.9243616137 | AJ56: 0.108945164 | AK56: 11.78598964 | AL56: 0.001275741309 | AM56: 1.033306778 | AO56: 50 | AQ56: 50 | AR56: 950 | AS56: 1.234620092e-13 | AT56: 0.0003834369354 | AU56: 0.98226856 | AV56: 0.05775457644 | AW56: 0.05775457765 | AX56: 5.879713553 | AY56: 1.28403346e-13 | AZ56: 1.040023138
AD57: 51 | AE57: 949 | AF57: 1.657203104 | AG57: 15.23656702 | AH57: 14.06195903 | AI57: 0.922908619 | AJ57: 0.1087648617 | AK57: 11.78500877 | AL57: 0.001273724807 | AM57: 1.031673481 | AO57: 51 | AQ57: 51 | AR57: 949 | AS57: 1.234620092e-13 | AT57: 0.0003834369354 | AU57: 0.9819139312 | AV57: 0.05739994886 | AW57: 0.05739995006 | AX57: 5.84572112 | AY57: 1.283157798e-13 | AZ57: 1.039313881
AD58: 52 | AE58: 948 | AF58: 1.654460017 | AG58: 15.23656702 | AH58: 14.03985512 | AI58: 0.9214579048 | AJ58: 0.1085848285 | AK58: 11.78402486 | AL58: 0.001271711454 | AM58: 1.030042733 | AO58: 52 | AQ58: 52 | AR58: 948 | AS58: 1.234620092e-13 | AT58: 0.0003834369354 | AU58: 0.9815593024 | AV58: 0.05704532127 | AW58: 0.05704532245 | AX58: 5.811704123 | AY58: 1.282282136e-13 | AZ58: 1.038604625
AD59: 53 | AE59: 947 | AF59: 1.651721025 | AG59: 15.23656702 | AH59: 14.01778591 | AI59: 0.9200094676 | AJ59: 0.1084050642 | AK59: 11.78303789 | AL59: 0.001269701243 | AM59: 1.028414532 | AO59: 53 | AQ59: 53 | AR59: 947 | AS59: 1.234620092e-13 | AT59: 0.0003834369354 | AU59: 0.9812046736 | AV59: 0.05669069366 | AW59: 0.05669069483 | AX59: 5.777662536 | AY59: 1.281406473e-13 | AZ59: 1.037895368
AD60: 54 | AE60: 946 | AF60: 1.648986122 | AG60: 15.23656702 | AH60: 13.99575134 | AI60: 0.9185633038 | AJ60: 0.1082255681 | AK60: 11.78204786 | AL60: 0.001267694171 | AM60: 1.026788872 | AO60: 54 | AQ60: 54 | AR60: 946 | AS60: 1.234620092e-13 | AT60: 0.0003834369354 | AU60: 0.9808500448 | AV60: 0.05633606604 | AW60: 0.05633606719 | AX60: 5.743596332 | AY60: 1.280530811e-13 | AZ60: 1.037186112
AD61: 55 | AE61: 945 | AF61: 1.6462553 | AG61: 15.23656702 | AH61: 13.97375136 | AI61: 0.9171194099 | AJ61: 0.1080463399 | AK61: 11.78105476 | AL61: 0.001265690232 | AM61: 1.02516575 | AO61: 55 | AQ61: 55 | AR61: 945 | AS61: 1.234620092e-13 | AT61: 0.0003834369354 | AU61: 0.980495416 | AV61: 0.05598143841 | AW61: 0.05598143954 | AX61: 5.709505483 | AY61: 1.279655149e-13 | AZ61: 1.036476856
AD62: 56 | AE62: 944 | AF62: 1.643528553 | AG62: 15.23656702 | AH62: 13.9517859 | AI62: 0.9156777823 | AJ62: 0.1078673792 | AK62: 11.78005859 | AL62: 0.001263689421 | AM62: 1.023545162 | AO62: 56 | AQ62: 56 | AR62: 944 | AS62: 1.234620092e-13 | AT62: 0.0003834369354 | AU62: 0.9801407872 | AV62: 0.05562681076 | AW62: 0.05562681188 | AX62: 5.675389965 | AY62: 1.278779487e-13 | AZ62: 1.035767599
AD63: 57 | AE63: 943 | AF63: 1.640805874 | AG63: 15.23656702 | AH63: 13.92985492 | AI63: 0.9142384174 | AJ63: 0.1076886855 | AK63: 11.77905932 | AL63: 0.001261691733 | AM63: 1.021927103 | AO63: 57 | AQ63: 57 | AR63: 943 | AS63: 1.234620092e-13 | AT63: 0.0003834369354 | AU63: 0.9797861585 | AV63: 0.05527218309 | AW63: 0.0552721842 | AX63: 5.641249748 | AY63: 1.277903824e-13 | AZ63: 1.035058343
AD64: 58 | AE64: 942 | AF64: 1.638087256 | AG64: 15.23656702 | AH64: 13.90795836 | AI64: 0.9128013116 | AJ64: 0.1075102583 | AK64: 11.77805695 | AL64: 0.001259697164 | AM64: 1.02031157 | AO64: 58 | AQ64: 58 | AR64: 942 | AS64: 1.234620092e-13 | AT64: 0.0003834369354 | AU64: 0.9794315297 | AV64: 0.05491755542 | AW64: 0.0549175565 | AX64: 5.607084808 | AY64: 1.277028162e-13 | AZ64: 1.034349086
AD65: 59 | AE65: 941 | AF65: 1.635372693 | AG65: 15.23656702 | AH65: 13.88609617 | AI65: 0.9113664615 | AJ65: 0.1073320972 | AK65: 11.77705147 | AL65: 0.001257705708 | AM65: 1.018698559 | AO65: 59 | AQ65: 59 | AR65: 941 | AS65: 1.234620092e-13 | AT65: 0.0003834369354 | AU65: 0.9790769009 | AV65: 0.05456292772 | AW65: 0.0545629288 | AX65: 5.572895116 | AY65: 1.2761525e-13 | AZ65: 1.03363983
AD66: 60 | AE66: 940 | AF66: 1.632662178 | AG66: 15.23656702 | AH66: 13.86426829 | AI66: 0.9099338634 | AJ66: 0.1071542019 | AK66: 11.77604287 | AL66: 0.00125571736 | AM66: 1.017088065 | AO66: 60 | AQ66: 60 | AR66: 940 | AS66: 1.234620092e-13 | AT66: 0.0003834369354 | AU66: 0.9787222721 | AV66: 0.05420830001 | AW66: 0.05420830107 | AX66: 5.538680647 | AY66: 1.275276838e-13 | AZ66: 1.032930573
AD67: 61 | AE67: 939 | AF67: 1.629955704 | AG67: 15.23656702 | AH67: 13.84247468 | AI67: 0.9085035139 | AJ67: 0.1069765717 | AK67: 11.77503114 | AL67: 0.001253732116 | AM67: 1.015480086 | AO67: 61 | AQ67: 61 | AR67: 939 | AS67: 1.234620092e-13 | AT67: 0.0003834369354 | AU67: 0.9783676433 | AV67: 0.05385367229 | AW67: 0.05385367333 | AX67: 5.504441373 | AY67: 1.274401175e-13 | AZ67: 1.032221317
AD68: 62 | AE68: 938 | AF68: 1.627253265 | AG68: 15.23656702 | AH68: 13.82071527 | AI68: 0.9070754093 | AJ68: 0.1067992064 | AK68: 11.77401628 | AL68: 0.001251749971 | AM68: 1.013874616 | AO68: 62 | AQ68: 62 | AR68: 938 | AS68: 1.234620092e-13 | AT68: 0.0003834369354 | AU68: 0.9780130145 | AV68: 0.05349904455 | AW68: 0.05349904558 | AX68: 5.470177266 | AY68: 1.273525513e-13 | AZ68: 1.03151206
AD69: 63 | AE69: 937 | AF69: 1.624554854 | AG69: 15.23656702 | AH69: 13.79899001 | AI69: 0.9056495462 | AJ69: 0.1066221054 | AK69: 11.77299826 | AL69: 0.001249770919 | AM69: 1.012271652 | AO69: 63 | AQ69: 63 | AR69: 937 | AS69: 1.234620092e-13 | AT69: 0.0003834369354 | AU69: 0.9776583858 | AV69: 0.0531444168 | AW69: 0.05314441782 | AX69: 5.435888301 | AY69: 1.27264985e-13 | AZ69: 1.030802804
AD70: 64 | AE70: =ENNE-AD70 -> 936 | AF70: =(1-betasquare)*((EXP(alpha*AE70))-(EXP(-alpha*AE70)))-Rg*(((POWER((1-beta),2)*(EXP(alpha*AE70)))-POWER((1+beta),2))*(EXP(-alpha*AE70))) -> 1.621860464 | AG70: =(POWER((1+beta),2)*EXP(alpha*ENNE))-(POWER((1-beta),2)*EXP(-(alpha*ENNE)))-(Rg*(1-betasquare)*(EXP(alpha*ENNE)-EXP(-(alpha*ENNE)))) -> 15.23656702 | AH70: =POWER((1+beta),2)*EXP(alpha*AE70)-POWER((1-beta),2)*EXP(-alpha*AE70)-Rg*(1-betasquare)*(EXP(alpha*AE70)-EXP(-alpha*AE70)) -> 13.77729885 | AI70: =AH70/AG70 -> 0.904225921 | AJ70: =AF70/AG70 -> 0.1064452683 | AK70: 11.77197709 | AL70: 0.001247794956 | AM70: 1.010671189 | AO70: 64 | AQ70: 64 | AR70: =ENNE-AQ70 -> 936 | AS70: =IF(AO70<=$C$4,$S$5,(IF(AO70<=($C$5+$C$4),kappaBS,$S$5))) -> 1.234620092e-13 | AT70: =esse -> 0.0003834369354 | AU70: 0.977303757 | AV70: 0.05278978904 | AW70: =AW71-(AS70+AT70)*AW71+AT70*AU70 -> 0.05278979004 | AX70: =AW70/AU70*100 -> 5.40157445 | AY70: 1.271774188e-13 | AZ70: =AU70+AW70 -> 1.030093547
AD71: 65 | AE71: 935 | AF71: 1.619170089 | AG71: 15.23656702 | AH71: 13.75564173 | AI71: 0.9028045303 | AJ71: 0.1062686947 | AK71: =AJ71/AI71*100 -> 11.77095275 | AL71: =kappaM*(AI71)+kappaM*AJ71 -> 0.001245822077 | AM71: =AI71+AJ71 -> 1.009073225 | AO71: 65 | AQ71: 65 | AR71: 935 | AS71: 1.234620092e-13 | AT71: 0.0003834369354 | AU71: 0.9769491282 | AV71: =AW71 -> 0.05243516126 | AW71: 0.05243516224 | AX71: 5.367235686 | AY71: =IF(AO71<=$C$4,AZ71*$S$5,IF(AO71<=($C$4+$C$5),AZ71*kappaBS,AZ71*$S$5)) -> 1.270898526e-13 | AZ71: 1.02938429
AD72: 66 | AE72: 934 | AF72: 1.616483721 | AG72: 15.23656702 | AH72: 13.73401861 | AI72: 0.9013853704 | AJ72: 0.1060923841 | AK72: 11.76992523 | AL72: 0.001243852278 | AM72: 1.007477755 | AO72: 66 | AQ72: 66 | AR72: 934 | AS72: 1.234620092e-13 | AT72: 0.0003834369354 | AU72: =AU71-(AS72+AT72)*AU71+AT72*AV72 -> 0.9765944994 | AV72: 0.05208053346 | AW72: 0.05208053443 | AX72: 5.332871982 | AY72: 1.270022863e-13 | AZ72: 1.028675034
AD73: 67 | AE73: 933 | AF73: 1.613801355 | AG73: 15.23656702 | AH73: 13.71242942 | AI73: 0.899968438 | AJ73: 0.1059163362 | AK73: 11.76889452 | AL73: 0.001241885552 | AM73: 1.005884774 | AO73: 67 | AQ73: 67 | AR73: 933 | AS73: 1.234620092e-13 | AT73: 0.0003834369354 | AU73: 0.9762398706 | AV73: 0.05172590565 | AW73: 0.05172590661 | AX73: 5.29848331 | AY73: 1.269147201e-13 | AZ73: 1.027965777
AD74: 68 | AE74: 932 | AF74: 1.611122984 | AG74: 15.23656702 | AH74: 13.69087412 | AI74: 0.8985537294 | AJ74: 0.1057405505 | AK74: 11.76786062 | AL74: 0.001239921896 | AM74: 1.00429428 | AO74: 68 | AQ74: 68 | AR74: 932 | AS74: 1.234620092e-13 | AT74: 0.0003834369354 | AU74: 0.9758852419 | AV74: 0.05137127783 | AW74: 0.05137127877 | AX74: 5.264069644 | AY74: 1.268271538e-13 | AZ74: 1.027256521
AD75: 69 | AE75: 931 | AF75: 1.6084486 | AG75: 15.23656702 | AH75: 13.66935265 | AI75: 0.8971412413 | AJ75: 0.1055650264 | AK75: 11.7668235 | AL75: 0.001237961304 | AM75: 1.002706268 | AO75: 69 | AQ75: 69 | AR75: 931 | AS75: 1.234620092e-13 | AT75: 0.0003834369354 | AU75: 0.9755306131 | AV75: 0.05101664999 | AW75: 0.05101665092 | AX75: 5.229630955 | AY75: 1.267395876e-13 | AZ75: 1.026547264
AD76: 70 | AE76: 930 | AF76: 1.605778198 | AG76: 15.23656702 | AH76: 13.64786496 | AI76: 0.8957309701 | AJ76: 0.1053897637 | AK76: 11.76578317 | AL76: 0.001236003772 | AM76: 1.001120734 | AO76: 70 | AQ76: 70 | AR76: 930 | AS76: 1.234620092e-13 | AT76: 0.0003834369354 | AU76: 0.9751759843 | AV76: 0.05066202214 | AW76: 0.05066202306 | AX76: 5.195167218 | AY76: 1.266520213e-13 | AZ76: 1.025838007
AD77: 71 | AE77: 929 | AF77: 1.603111771 | AG77: 15.23656702 | AH77: 13.62641099 | AI77: 0.8943229123 | AJ77: 0.1052147619 | AK77: 11.76473961 | AL77: 0.001234049295 | AM77: 0.9995376742 | AO77: 71 | AQ77: 71 | AR77: 929 | AS77: 1.234620092e-13 | AT77: 0.0003834369354 | AU77: 0.9748213555 | AV77: 0.05030739428 | AW77: 0.05030739518 | AX77: 5.160678405 | AY77: 1.265644551e-13 | AZ77: 1.025128751
AD78: 72 | AE78: 928 | AF78: 1.600449312 | AG78: 15.23656702 | AH78: 13.6049907 | AI78: 0.8929170644 | AJ78: 0.1050400205 | AK78: 11.76369281 | AL78: 0.001232097868 | AM78: 0.9979570849 | AO78: 72 | AQ78: 72 | AR78: 928 | AS78: 1.234620092e-13 | AT78: 0.0003834369354 | AU78: 0.9744667267 | AV78: 0.0499527664 | AW78: 0.04995276728 | AX78: 5.126164487 | AY78: 1.264768888e-13 | AZ78: 1.024419494
AD79: 73 | AE79: 927 | AF79: 1.597790815 | AG79: 15.23656702 | AH79: 13.58360402 | AI79: 0.891513423 | AJ79: 0.1048655391 | AK79: 11.76264276 | AL79: 0.001230149486 | AM79: 0.9963789622 | AO79: 73 | AQ79: 73 | AR79: 927 | AS79: 1.234620092e-13 | AT79: 0.0003834369354 | AU79: 0.974112098 | AV79: 0.04959813851 | AW79: 0.04959813938 | AX79: 5.091625438 | AY79: 1.263893226e-13 | AZ79: 1.023710237
AD80: 74 | AE80: 926 | AF80: 1.595136273 | AG80: 15.23656702 | AH80: 13.56225091 | AI80: 0.8901119847 | AJ80: 0.1046913173 | AK80: 11.76158946 | AL80: 0.001228204144 | AM80: 0.994803302 | AO80: 74 | AQ80: 74 | AR80: 926 | AS80: 1.234620092e-13 | AT80: 0.0003834369354 | AU80: 0.9737574692 | AV80: 0.0492435106 | AW80: 0.04924351146 | AX80: 5.057061231 | AY80: 1.263017563e-13 | AZ80: 1.023000981
AD81: 75 | AE81: 925 | AF81: 1.59248568 | AG81: 15.23656702 | AH81: 13.54093131 | AI81: 0.8887127458 | AJ81: 0.1045173547 | AK81: 11.76053288 | AL81: 0.001226261838 | AM81: 0.9932301005 | AO81: 75 | AQ81: 75 | AR81: 925 | AS81: 1.234620092e-13 | AT81: 0.0003834369354 | AU81: 0.9734028404 | AV81: 0.04888888268 | AW81: 0.04888888352 | AX81: 5.022471837 | AY81: 1.262141901e-13 | AZ81: 1.022291724
AD82: 76 | AE82: 924 | AF82: 1.589839028 | AG82: 15.23656702 | AH82: 13.51964518 | AI82: 0.8873157031 | AJ82: 0.1043436508 | AK82: 11.75947303 | AL82: 0.001224322562 | AM82: 0.9916593539 | AO82: 76 | AQ82: 76 | AR82: 924 | AS82: 1.234620092e-13 | AT82: 0.0003834369354 | AU82: 0.9730482116 | AV82: 0.04853425475 | AW82: 0.04853425557 | AX82: 4.98785723 | AY82: 1.261266238e-13 | AZ82: 1.021582467
AD83: 77 | AE83: 923 | AF83: 1.587196312 | AG83: 15.23656702 | AH83: 13.49839245 | AI83: 0.885920853 | AJ83: 0.1041702051 | AK83: 11.75840988 | AL83: 0.001222386313 | AM83: 0.9900910581 | AO83: 77 | AQ83: 77 | AR83: 923 | AS83: 1.234620092e-13 | AT83: 0.0003834369354 | AU83: 0.9726935829 | AV83: 0.0481796268 | AW83: 0.04817962761 | AX83: 4.953217381 | AY83: 1.260390576e-13 | AZ83: 1.02087321
AD84: 78 | AE84: 922 | AF84: 1.584557525 | AG84: 15.23656702 | AH84: 13.47717308 | AI84: 0.8845281921 | AJ84: 0.1039970174 | AK84: 11.75734344 | AL84: 0.001220453085 | AM84: 0.9885252094 | AO84: 78 | AQ84: 78 | AR84: 922 | AS84: 1.234620092e-13 | AT84: 0.0003834369354 | AU84: 0.9723389541 | AV84: 0.04782499884 | AW84: 0.04782499964 | AX84: 4.918552264 | AY84: 1.259514913e-13 | AZ84: 1.020163954
AD85: 79 | AE85: 921 | AF85: 1.58192266 | AG85: 15.23656702 | AH85: 13.45598701 | AI85: 0.8831377169 | AJ85: 0.103824087 | AK85: 11.75627368 | AL85: 0.001218522873 | AM85: 0.9869618039 | AO85: 79 | AQ85: 79 | AR85: 921 | AS85: 1.234620092e-13 | AT85: 0.0003834369354 | AU85: 0.9719843253 | AV85: 0.04747037086 | AW85: 0.04747037165 | AX85: 4.88386185 | AY85: 1.25863925e-13 | AZ85: 1.019454697
AD86: 80 | AE86: 920 | AF86: 1.579291711 | AG86: 15.23656702 | AH86: 13.43483419 | AI86: 0.881749424 | AJ86: 0.1036514137 | AK86: 11.75520061 | AL86: 0.001216595672 | AM86: 0.9854008377 | AO86: 80 | AQ86: 80 | AR86: 920 | AS86: 1.234620092e-13 | AT86: 0.0003834369354 | AU86: 0.9716296965 | AV86: 0.04711574287 | AW86: 0.04711574365 | AX86: 4.849146111 | AY86: 1.257763588e-13 | AZ86: 1.01874544
AD87: 81 | AE87: 919 | AF87: 1.576664672 | AG87: 15.23656702 | AH87: 13.41371458 | AI87: 0.88036331 | AJ87: 0.1034789969 | AK87: 11.75412421 | AL87: 0.001214671479 | AM87: 0.9838423069 | AO87: 81 | AQ87: 81 | AR87: 919 | AS87: 1.234620092e-13 | AT87: 0.0003834369354 | AU87: 0.9712750678 | AV87: 0.04676111487 | AW87: 0.04676111563 | AX87: 4.814405021 | AY87: 1.256887925e-13 | AZ87: 1.018036183
AD88: 82 | AE88: 918 | AF88: 1.574041535 | AG88: 15.23656702 | AH88: 13.3926281 | AI88: 0.8789793715 | AJ88: 0.1033068363 | AK88: 11.75304446 | AL88: 0.001212750288 | AM88: 0.9822862078 | AO88: 82 | AQ88: 82 | AR88: 918 | AS88: 1.234620092e-13 | AT88: 0.0003834369354 | AU88: 0.970920439 | AV88: 0.04640648686 | AW88: 0.0464064876 | AX88: 4.779638551 | AY88: 1.256012262e-13 | AZ88: 1.017326927
AD89: 83 | AE89: 917 | AF89: 1.571422295 | AG89: 15.23656702 | AH89: 13.37157472 | AI89: 0.877597605 | AJ89: 0.1031349314 | AK89: 11.75196136 | AL89: 0.001210832094 | AM89: 0.9807325364 | AO89: 83 | AQ89: 83 | AR89: 917 | AS89: 1.234620092e-13 | AT89: 0.0003834369354 | AU89: 0.9705658102 | AV89: 0.04605185883 | AW89: 0.04605185956 | AX89: 4.744846673 | AY89: 1.2551366e-13 | AZ89: 1.01661767
AD90: 84 | AE90: 916 | AF90: 1.568806945 | AG90: 15.23656702 | AH90: 13.35055439 | AI90: 0.8762180071 | AJ90: 0.1029632819 | AK90: 11.7508749 | AL90: 0.001208916893 | AM90: 0.9791812889 | AO90: 84 | AQ90: 84 | AR90: 916 | AS90: 0.003703860275 | AT90: 0.0003834369354 | AU90: 0.9666163413 | AV90: 0.04569723079 | AW90: 0.0456972315 | AX90: 4.72754593 | AY90: 0.003749468025 | AZ90: 1.012313573
AD91: 85 | AE91: 915 | AF91: 1.566195478 | AG91: 15.23656702 | AH91: 13.32956704 | AI91: 0.8748405744 | AJ91: 0.1027918872 | AK91: 11.74978507 | AL91: 0.001207004679 | AM91: 0.9776324615 | AO91: 85 | AQ91: 85 | AR91: 915 | AS91: 0.003703860275 | AT91: 0.0003834369354 | AU91: 0.9626829442 | AV91: 0.0455126187 | AW91: 0.0455126194 | AX91: 4.727685234 | AY91: 0.003734215495 | AZ91: 1.008195564
AD92: 86 | AE92: 914 | AF92: 1.563587888 | AG92: 15.23656702 | AH92: 13.30861264 | AI92: 0.8734653035 | AJ92: 0.1026207469 | AK92: 11.74869185 | AL92: 0.001205095449 | AM92: 0.9760860504 | AO92: 86 | AQ92: 86 | AR92: 914 | AS92: 0.003703860275 | AT92: 0.0003834369354 | AU92: 0.9587655536 | AV92: 0.04532876333 | AW92: 0.04532876403 | AX92: 4.727825677 | AY92: 0.003719025053 | AZ92: 1.004094318
AD93: 87 | AE93: 913 | AF93: 1.560984169 | AG93: 15.23656702 | AH93: 13.28769112 | AI93: 0.872092191 | AJ93: 0.1024498607 | AK93: 11.74759524 | AL93: 0.001203189197 | AM93: 0.9745420518 | AO93: 87 | AQ93: 87 | AR93: 913 | AS93: 0.003703860275 | AT93: 0.0003834369354 | AU93: 0.9548641044 | AV93: 0.04514566164 | AW93: 0.04514566233 | AX93: 4.72796727 | AY93: 0.003703896447 | AZ93: 1.000009767
AD94: 88 | AE94: 912 | AF94: 1.558384314 | AG94: 15.23656702 | AH94: 13.26680243 | AI94: 0.8707212336 | AJ94: 0.1022792281 | AK94: 11.74649523 | AL94: 0.001201285919 | AM94: 0.9730004617 | AO94: 88 | AQ94: 88 | AR94: 912 | AS94: 0.003703860275 | AT94: 0.0003834369354 | AU94: 0.9509785316 | AV94: 0.04496331057 | AW94: 0.04496331125 | AX94: 4.728110021 | AY94: 0.003688829425 | AZ94: 0.9959418428
AD95: 89 | AE95: 911 | AF95: 1.555788317 | AG95: 15.23656702 | AH95: 13.24594653 | AI95: 0.8693524277 | AJ95: 0.1021088487 | AK95: 11.7453918 | AL95: 0.00119938561 | AM95: 0.9714612765 | AO95: 89 | AQ95: 89 | AR95: 911 | AS95: 0.003703860275 | AT95: 0.0003834369354 | AU95: 0.9471087706 | AV95: 0.0447817071 | AW95: 0.04478170776 | AX95: 4.72825394 | AY95: 0.003673823737 | AZ95: 0.9918904784
AD96: 90 | AE96: 910 | AF96: 1.553196171 | AG96: 15.23656702 | AH96: 13.22512336 | AI96: 0.8679857702 | AJ96: 0.1019387221 | AK96: 11.74428494 | AL96: 0.001197488265 | AM96: 0.9699244923 | AO96: 90 | AQ96: 90 | AR96: 910 | AS96: 0.003703860275 | AT96: 0.0003834369354 | AU96: 0.9432547572 | AV96: 0.0446008482 | AW96: 0.04460084885 | AX96: 4.728399037 | AY96: 0.003658879134 | AZ96: 0.9878556061
AD97: 91 | AE97: 909 | AF97: 1.55060787 | AG97: 15.23656702 | AH97: 13.20433287 | AI97: 0.8666212574 | AJ97: 0.1017688478 | AK97: 11.74317465 | AL97: 0.00119559388 | AM97: 0.9683901052 | AO97: 91 | AQ97: 91 | AR97: 909 | AS97: 0.003703860275 | AT97: 0.0003834369354 | AU97: 0.9394164272 | AV97: 0.04442073087 | AW97: 0.04442073151 | AX97: 4.728545321 | AY97: 0.003643995367 | AZ97: 0.9838371587
AD98: 92 | AE98: 908 | AF98: 1.548023408 | AG98: 15.23656702 | AH98: 13.18357501 | AI98: 0.8652588862 | AJ98: 0.1015992254 | AK98: 11.74206091 | AL98: 0.00119370245 | AM98: 0.9668581117 | AO98: 92 | AQ98: 92 | AR98: 908 | AS98: 0.003703860275 | AT98: 0.0003834369354 | AU98: 0.9355937169 | AV98: 0.04424135211 | AW98: 0.04424135274 | AX98: 4.728692802 | AY98: 0.003629172188 | AZ98: 0.9798350696
AD99: 93 | AE99: 907 | AF99: 1.545442777 | AG99: 15.23656702 | AH99: 13.16284973 | AI99: 0.8638986531 | AJ99: 0.1014298546 | AK99: 11.74094371 | AL99: 0.001191813971 | AM99: 0.9653285077 | AO99: 93 | AQ99: 93 | AR99: 907 | AS99: 0.003703860275 | AT99: 0.0003834369354 | AU99: 0.9317865625 | AV99: 0.04406270894 | AW99: 0.04406270956 | AX99: 4.728841489 | AY99: 0.003614409351 | AZ99: 0.9758492721
